Workbook

Sheet Instructions, Start Here
A2: Mental Health/Substance Use Disorder (MHSUD) Financial Requirement Parity Workbook for Plan Year (PY) 2026 Individual or Small Group Market Rate Filing
A3: Last Updated: 3/21/2025
A5: Purpose
A6: ● Issuers and plans must comply with the federal Mental Health Parity and Addiction Equity Act of 2008 (MHPAEA) and related regulations and guidance such as Chapter 284-43 WAC Subchapter K, Mental Health and Substance Use Disorder. For ease of reference highlighted excerpts of relevant citations are included at the bottom of this page. ● Financial requirements and treatment limitations applicable to mental health/substance use disorder (MHSUD) benefits cannot be more restrictive than those applicable to medical/surgical benefits. This workbook provides a framework to demonstrate compliance with these financial requirements. ● Populate this workbook in addition to the Word document that further certifies parity of Mental Health and Substance Use Disorder Financial Requirements.
A8: 'Summary' Worksheet
A9: ● Populate only one 'Summary' worksheet for each Excel file. Unless file size limitations dictate otherwise, only create one Excel file per filing. See specific instructions on the 'Summary' worksheet. ● Note that the [GENERATE TESTING TEMPLATES] macro button on the Summary worksheet creates one testing worksheet per plan, using the HIOS Plan ID field for the tab names.
A11: 'Data Information' Worksheet
A12: ● Populate only one 'Data Information' worksheet for each Excel file. See specific instructions on the 'Data Information' worksheet.
A14: 'Mapping Information' Worksheet
A15: ● Populate only one 'Mapping Information' worksheet for each Excel file. See specific instructions on the 'Mapping Information' worksheet.
A17: 'Template' Worksheet - One worksheet for each plan
A18: ● PARITY PASS/FAIL RESULTS, BY BENEFIT CLASSIFICATION
A19: ● Results By Benefit Classification: For each benefit classification, make a selection in the second column (labeled column "B"). Select "Yes" if all cost shares for medical/surgical services in the benefit classification are the same as those for MH/SUD services in the benefit classification; consider cost shares in terms of deductible, copay, coinsurance, and out-of-pocket maximum. Note: The remaining columns will auto-update based on entries here and elsewhere in the file.
A20: ---- IMPORTANT ---- Test results will appear in this table after all PART 1 and PART 2 entries are made in the worksheet. No Benefit Classification results should reflect "Fail" after all PART 1 and 2 entries have been made. If any result still reflects "Fail" after all entries have been made, please revisit PART 1 and 2 entries. Check that information was entered accurately and flows through as expected. If needed, edit the plan's medical/surgical and/or MHSUD service financial requirements to bring the results into compliance.
A21: ● Testing Options (located to the right of Results by Benefit Classification): ○ Out-of-network Tier? If out-of-network benefits apply, select "Yes;" if not, select "No." When "No," you can leave blank the corresponding out-of-network section(s) in the upcoming PARTS 1 and 2. ○ Outpatient Benefit Testing: Indicate whether outpatient parity will be demonstrated "All Combined" or with "Office Visits Separate." Select "All Combined" to use the single outpatient classification. Select "Office Visits Separate" to use the subclassifications described in WAC 284-43-7020(6), namely (i) Office visits (a.k.a. Outpatient - Office visits) and (ii) All other outpatient items and services (a.k.a. Outpatient - all other). Note: If "Office Visits Separate" is selected, testing must be performed for both subclassifiations.
A22: ● PART 1 -- COST SHARES FOR MEDICAL/SURGICAL BENEFITS, BY BENEFIT CLASSIFICATION
A23: For each benefit classification/subclassification that requires testing (see table Results by Benefit Classification): List services and cost shares for covered medical/surgical benefits + other embedded non-MHSUD benefits like pediatric dental. Include every possible financial requirement type and level for each benefit classification/subclassification. Include preventive services and other services with no cost shares.
A24: ● Service Description: Briefly describe the service. Be consistent with what is in the 'Mapping Information' worksheet in this file, the Form filing, the Plans and Benefits Template (PBT) in the Binder filing, the Benefit Components file, and other information in this rate filing.
A25: ● Cost-Share Description: Describe the member's cost-shares. Be consistent with what is in the Form filing, the Plans and Benefits Template (PBT) in the Binder filing, the Benefit Components file, and other information in this rate filing. This entry should contain the wording "Before Deductible", "After Deductible", or "Before and After Deductible" to describe when the cost shares apply, similarly to the Benefit Components file. This entry should contain the wording "Accrues towards deductible" if the cost share accrues towards the deductible. If the cost share does not accrue towards the deductible, the entry should not contain the word "Accrues" at all.
A26: ● Plan Projected Allowed Amount: Enter a projected "allowed" dollar amount for each plan and listed service. Reminder: Dollar amounts should reflect what the plan "allows," before accounting for enrollee cost sharing and should be consistent with projections for the rate filing. The amounts should generally be specific to each plan. [WAC 284-43-7040(1)(c)]
A27: ● Deductible: Enter the deductible level that applies to each service. If not subject to deductible, enter "N/A". Every row in PART 1 should have a deductible value entered of "N/A" or greater than $0. In other words: The deductible should only be blank in extra data rows or if an entire benefit classification section is not used (e.g., when there are no out-of-network benefits).
A28: ● Copayment: Enter the copayment level that applies to each service. If not applicable, enter "N/A".
A29: ● Coinsurance: Enter the coinsurance level that applies to each service. If not applicable, enter "N/A".
A30: ● Out-of-Pocket Maximum (OOPM): Enter the OOPM level that applies to each service. If not applicable, enter "N/A".
A31: ● No Cost Share: Leave this column blank unless the member has no cost share for the service. If no cost share applies, enter "x" in this column and enter "N/A" for Deductible, Copayment, Coinsurance, and OOPM.
A32: ● PART 2 -- ANALYSIS OF MHSUD FINANCIAL REQUIREMENT PARITY, BY BENEFIT CLASSIFICATION
A33: Note: the remaining columns of the top table will auto-populate after entries are made throughout PARTS 1 and 2. For each benefit classification/subclassification that requires testing (see table Results by Benefit Classification): ● MHSUD Cost Shares in Plan Design: Indicate the plan design's MHSUD benefit financial requirements for each benefit classification/subclassification. If a particular type of financial requirement does not apply, enter "N/A".
A34: ● Step 1 Substantially All: This table will auto-populate from PARTS 1 and 2. Confirm details appear as expected. If not, revisit information entered elsewhere in PARTS 1 and 2.
A35: ● Step 2 Predominant Level: For each financial type that passed the Step 1 Substantially All test: Inputs are required in each section. Enter every unique amount (a.k.a. level), from smallest to largest, separately by financial requirement type (i.e., deductible, copayment, coinsurance, and OOPM). If a particular type of financial requirement does not apply, simply leave blank those value fields.
A36: If you need room to enter additional unique amounts for a particular type of financial requirement, you can insert rows. For example, to enter an additional deductible amount, insert a row above the "Total" row in the deductible table; to do so, click in the bottom-right white cell of the deductible section and click [Tab].
A37: The remaining fields will auto-populate using other information from PARTS 1 and 2. Confirm details flow through as expected. If not, revisit information entered elsewhere in PARTS 1 and 2.
A39: Sample of Relevant Requirements, Citations, and Definitions
A40: 1. Mental Health Parity and Addiction Equity Act of 2008 (MHPAEA) and Chapter 284-43 WAC Subchapter K, Mental Health and Substance Use Disorder: Financial requirements applicable to mental health/substance use disorder (MHSUD) benefits cannot be more restrictive than those applicable to medical/surgical benefits.
A41: 2. Financial requirements: [WAC 284-43-7010] Financial requirements are cost sharing measures such as deductibles, copayments, coinsurance, and out-of-pocket maximums but do not include aggregate lifetime or annual dollar limits.
A42: 3. See WAC 284-43-7010 for descriptions of "Medical/surgical benefits," "Mental health benefits," and "Substance use disorder benefits."
A43: 4. Substantially all: [WAC 284-43-7010] A type of financial requirement or quantitative treatment limitation is considered to apply to substantially all medical/surgical benefits in a classification of benefits if it applies to at least two-thirds of all medical/surgical benefits in that classification as determined by WAC 284-43-7040(2)(a).
A44: 5. Predominant level: [WAC 284-43-7010] If a type of financial requirement or quantitative treatment limitation applies to substantially all medical/surgical benefits in a classification, the predominant level is the level that applies to more than one-half of the medical/surgical benefits in that classification subject to the financial requirement or quantitative treatment limitation.
A45: 6. Data used in the calculations: [WAC 284-43-7040(1)(c)] The determination of the portion of medical/surgical benefits in a classification of benefits subject to a financial requirement or quantitative treatment limitation (or subject to any level of a financial requirement or quantitative treatment limitation) is based on the dollar amount of all plan payments for medical/surgical benefits in the classification expected to be paid under the plan for the plan year. See WAC 284-43-7040(1)(c) (i) and (ii) for additional details.
A46: 7. Classification of Benefits [WAC 284-43-7020]:
A47: a) Inpatient, in-network:
A48: Benefits furnished on an inpatient basis and within a network of providers established or recognized under a plan or health insurance coverage.
A49: b) Inpatient, out-of-network:
A50: Benefits furnished on an inpatient basis and outside any network of providers established or recognized under a plan or health insurance coverage; also includes inpatient benefits under a plan (or health insurance coverage) that has no network of providers.
A51: c) Outpatient, in-network:
A52: Benefits furnished on an outpatient basis and within a network of providers established or recognized under a plan or health insurance coverage. Note: outpatient can optionally be subclassified into "Office Visits" and "All Other Outpatient Items and Services."
A53: d) Outpatient, out-of-network:
A54: Benefits furnished on an outpatient basis and outside any network of providers established or recognized under a plan or health insurance coverage; also includes outpatient benefits under a plan (or health insurance coverage) that has no network of providers. Note: outpatient can optionally be subclassified into "Office Visits" and "All Other Outpatient Items and Services."
A55: e) Emergency care:
A56: Benefits for treatment of an emergency condition related to a mental health or substance use disorder. Such benefits must comply with the requirements for emergency medical services in RCW 48.43.093. Medically necessary detoxification must be covered as an emergency medical condition according to RCW 48.43.093, and may be provided in hospitals licensed under chapter 70.41 RCW. Medically necessary detoxification services must not require prenotification.
A57: f) Prescription drugs:
A58: Benefits for prescription drugs.

Sheet Summary
A1: MHSUD Financial Requirement Parity Testing -- Summary
A3: Issuer and Filing Information
B5: Issuer Name: | C5: <<Enter Issuer Name>>
B6: HIOS Issuer ID: | C6: <<Enter HIOS Issuer ID #####>>
B7: Market: | C7: Select Market
B8: Plan Year: | C8: 2026
B9: State Filing Tracking Number: | C9: <<Enter State Tracking ######>>
A11: Worksheet Instructions
B13: Step 1) In your Excel application, ensure macros are enabled and calculations are set to automatic.
B14: Step 2) Enter Plans. ● List HIOS Plan IDs and Plan Names in the first two columns of the table below. Include silver base and CSR plan variants. ● When a plan has multiple in-network tiers, load information for each tier. Enter each in-network tier here in this file as a separate "plan" record with the plan ID formatted as "12345WA0010001_INN-T1." This will create a separate worksheet for each in-network tier and allows for parity to be analyzed for each tier. ● Confirm all HIOS Plan IDs are included in the table-object and then remove any extra rows in the table. ● For ease of review, we request that plans in this file be in the same order as they are in the Benefit Components' file.
B15: Step 3) Click the button below to start the macro that generates the testing worksheets.
C17: Note: The macro creates a testing template for each Plan ID listed in the table below. It also links the IDs in the table to its worksheet.
B19: Step 4) Populate each testing worksheet with the corresponding plan's information.
C21: This format is used for cells that need user input
B23: Step 5) Prior to submitting this file as part of the rate filing, remove the "Example" sheet from the workbook.
B24: Step 6) After completing all plan testing worksheets, save a copy of the workbook in Excel and PDF formats and include both as part of your rate filing submission.
A26: Testing Summary
B28: HIOS Plan ID | C28: Plan Name | D28: Test Results | E28: Notes
B29: 12345WA0010001_INN-T1 | C29: Plan 1 | D29: =IFERROR(INDIRECT("'"&tbl_Summary[[#This Row],[HIOS Plan ID]]&"'!TestResult"),"Enter Plan ID in column 1") -> Enter Plan ID in column 1
B30: <<Enter HIOS Plan ID>> | C30: <<Enter Plan Name>> | D30: =IFERROR(INDIRECT("'"&tbl_Summary[[#This Row],[HIOS Plan ID]]&"'!TestResult"),"Enter Plan ID in column 1") -> Enter Plan ID in column 1
B31: <<Enter HIOS Plan ID>> | C31: <<Enter Plan Name>> | D31: =IFERROR(INDIRECT("'"&tbl_Summary[[#This Row],[HIOS Plan ID]]&"'!TestResult"),"Enter Plan ID in column 1") -> Enter Plan ID in column 1

Sheet Data Information
A1: MHSUD Financial Requirement Parity Testing
A2: Testing Data Information
A4: Instructions: Provide information about the data used to test parity.
A5: Item # | B5: Task
A6: 1 | B6: Identify the data source used to estimate allowed claims for the purpose of MHSUD financial requirement parity testing. This refers to the allowed amounts by service entered in Part 1 of each plan's testing worksheet.
B7: <<Enter your response here; you may add rows as needed to address this item>>
A9: 2 | B9: Identify the period (i.e., date range) represented in the data.
B10: <<Enter your response here; you may add rows as needed to address this item>>
A12: 3 | B12: Address the credibility of the data used in your MHSUD financial requirement parity testing.
B13: <<Enter your response here; you may add rows as needed to address this item>>
A15: 4 | B15: Identify whether the data is consistent with the data in your URRT. If not, explain why the data is not consistent, why the data is appropriate, and summarize material adjustments made to the data.
B16: <<Enter your response here; you may add rows as needed to address this item>>
A18: 5 | B18: If data other than State of Washington plan data was used, what is the source, and why is it appropriate for MHSUD financial requirement parity testing purposes?
B19: <<Enter your response here; you may add rows as needed to address this item>>

Sheet Mapping Information
A1: MHSUD Financial Requirement Parity Testing
A2: Mapping Medical/Surgical Services to Benefit Classifications
A4: Instructions
A5: Purpose: Show how medical/surgical services map to benefit classifications used in PART 1 of the testing worksheets.
A7: A. Service Description column: List all services used to test parity. If additional rows are needed, add rows to the table. Enter descriptions exactly as they are entered in PART 1 of the testing worksheets.
A8: B. Mapped Benefit Classification for MHSUD Parity Testing column: Select the parity testing benefit classification assigned to each medical/surgical service: Inpatient, Outpatient - Office Visits*, Outpatient - All Other*, Emergency Care, or Prescription Drugs. *Note 1: If ALL plans test parity with the combined Outpatient classification, you may enter "Outpatient" instead of "Outpatient - Office Visits" and "Outpatient - All Other". *Note 2: If ANY plan tests parity using Outpatient subclassifications, choose either "Outpatient - Office Visits" or "Outpatient - All Other" for each outpatient medical/surgical service.
A9: C. Mapped Benefit in corresponding Benefit Components document (If applicable) column: Select the benefit from the Benefit Components document that is assigned to each Benefit Classification for MHSUD parity testing. *Note 1: Click on the "Import Benefit Components Into Column C" button and select the matching benefit components to expand the list of options in column C. *Note 2: To assign multiple benefits from the Benefit Components document to a single Benefit Classification for MHSUD parity testing, create two separate rows with the same entry in column B, but different entries in column C.
A10: Notes column: Explain any differences by plan.
A12: Mapping Table
A13: A. Service Description | B13: B. Mapped Benefit Classification for MHSUD Parity Testing | C13: C. Mapped Benefit in corresponding Benefit Components document (If applicable) | D13: Notes
A14: <<Enter service description>> | B14: <<select testing classification>> | C14: <<select mapped Ben. Comp. category>>
A15: <<Enter service description>> | B15: <<select testing classification>> | C15: <<select mapped Ben. Comp. category>>
A16: <<Enter service description>> | B16: <<select testing classification>> | C16: <<select mapped Ben. Comp. category>>
A17: <<Enter service description>> | B17: <<select testing classification>> | C17: <<select mapped Ben. Comp. category>>
A18: <<Enter service description>> | B18: <<select testing classification>> | C18: <<select mapped Ben. Comp. category>>
A19: <<Enter service description>> | B19: <<select testing classification>> | C19: <<select mapped Ben. Comp. category>>
A20: <<Enter service description>> | B20: <<select testing classification>> | C20: <<select mapped Ben. Comp. category>>
A21: <<Enter service description>> | B21: <<select testing classification>> | C21: <<select mapped Ben. Comp. category>>
A22: <<Enter service description>> | B22: <<select testing classification>> | C22: <<select mapped Ben. Comp. category>>
A23: <<Enter service description>> | B23: <<select testing classification>> | C23: <<select mapped Ben. Comp. category>>

Sheet Template
A1: MHSUD Financial Requirement (a.k.a. Cost Share) Parity Testing | G1: Workbook Info | K1: =K40 -> Benefit Classification | L1: =L40 -> (1) Inpatient, In-Network (IP INN) | T1: =T40 -> Benefit Classification | U1: =U40 -> (2) Inpatient, Out-of-Network (IP OON) | AC1: =AC40 -> Benefit Classification | AD1: =AD40 -> (3) Outpatient, In-Network (OP INN) | AL1: =AL40 -> Benefit Classification | AM1: =AM40 -> (3a) Outpatient - Office Visits, In-Network (OP-OV INN) | AU1: =AU40 -> Benefit Classification | AV1: =AV40 -> (3b) Outpatient - All Other, In-Network (OP-AO INN) | BD1: =BD40 -> Benefit Classification | BE1: =BE40 -> (4) Outpatient, Out-of-Network (OP OON) | BM1: =BM40 -> Benefit Classification | BN1: =BN40 -> (4a) Outpatient - Office Visits, Out-of-Network (OP-OV OON) | BV1: =BV40 -> Benefit Classification | BW1: =BW40 -> (4b) Outpatient - All Other, Out-of-Network (OP-AO OON) | CE1: =CE40 -> Benefit Classification | CF1: =CF40 -> (5) Emergency Care, (ER ) | CN1: =CN40 -> Benefit Classification | CO1: =CO40 -> (6) Prescription Drugs, (RX )
B3: Issuer / Market: | C3: =IF(LEFT(IssuerName,2)="<<","<<Go back to 'Summary' tab and enter Issuer Name>>",IssuerName) -> <<Go back to 'Summary' tab and enter Issuer Name>> | G3: Link back to Summary Sheet
B4: Market: | C4: =IF(Market="Select Market","<<Go back to 'Summary' tab and select the market for this filing>>",Market) -> <<Go back to 'Summary' tab and select the market for this filing>> | G4: User Inputs Cell Format
B5: State Filing Tracking Number: | C5: =IF(LEFT(StateTracker,2)="<<","<<Go back to 'Summary' tab and enter state filing tracking number>>",StateTracker) -> <<Go back to 'Summary' tab and enter state filing tracking number>> | G5: See the Example worksheet for additional details.
A7: PLAN INFORMATION
B9: Plan Name: | D9: <<<<This will auto populate from summary sheet macro
B10: Plan ID: | D10: <<<<This will auto populate from summary sheet macro
B11: CSR Variant Description: | D11: <<<<If the plan is a CSR variant, identify it here. Otherwise, leave the field blank. | K11: Click>>>>> | L11: Home | N11: Errors found: | O11: =O76+O85+O96+O107 -> 0 | T11: Click>>>>> | U11: Home | W11: Errors found: | X11: =X76+X85+X96+X107 -> 0 | AC11: Click>>>>> | AD11: Home | AF11: Errors found: | AG11: =AG76+AG85+AG96+AG107 -> 0 | AL11: Click>>>>> | AM11: Home | AO11: Errors found: | AP11: =AP76+AP85+AP96+AP107 -> 0 | AU11: Click>>>>> | AV11: Home | AX11: Errors found: | AY11: =AY76+AY85+AY96+AY107 -> 0 | BD11: Click>>>>> | BE11: Home | BG11: Errors found: | BH11: =BH76+BH85+BH96+BH107 -> 0 | BM11: Click>>>>> | BN11: Home | BP11: Errors found: | BQ11: =BQ76+BQ85+BQ96+BQ107 -> 0 | BV11: Click>>>>> | BW11: Home | BY11: Errors found: | BZ11: =BZ76+BZ85+BZ96+BZ107 -> 0 | CE11: Click>>>>> | CF11: Home | CH11: Errors found: | CI11: =CI76+CI85+CI96+CI107 -> 0 | CN11: Click>>>>> | CO11: Home | CQ11: Errors found: | CR11: =CR76+CR85+CR96+CR107 -> 0
A12: PARITY PASS/FAIL RESULTS, BY BENEFIT CLASSIFICATION
B14: Overall Result: | C14: =IF(AND(I28="Pass",OR(I30="Pass",AND(I32="Pass",I33="Pass")),E36="Pass",E37="Pass"),"Pass","Fail") -> Fail | E14: <<<<Click the links in the cells below to scroll directly to the stated section>>>>> | K14: <<<<Click the links in the cells below to scroll directly to the stated section>>>>> | T14: <<<<Click the links in the cells below to scroll directly to the stated section>>>>> | AC14: <<<<Click the links in the cells below to scroll directly to the stated section>>>>> | AL14: <<<<Click the links in the cells below to scroll directly to the stated section>>>>> | AU14: <<<<Click the links in the cells below to scroll directly to the stated section>>>>> | BD14: <<<<Click the links in the cells below to scroll directly to the stated section>>>>> | BM14: <<<<Click the links in the cells below to scroll directly to the stated section>>>>> | BV14: <<<<Click the links in the cells below to scroll directly to the stated section>>>>> | CE14: <<<<Click the links in the cells below to scroll directly to the stated section>>>>> | CN14: <<<<Click the links in the cells below to scroll directly to the stated section>>>>>
E15: Move to IP INN | F15: Move to IP OON | G15: Move to OP INN | H15: Move to OP-OV INN | I15: Move to OP-AO INN | K15: Move to IP INN | L15: Move to IP OON | M15: Move to OP INN | N15: Move to OP-OV INN | O15: Move to OP-AO INN | T15: Move to IP INN | U15: Move to IP OON | V15: Move to OP INN | W15: Move to OP-OV INN | X15: Move to OP-AO INN | AC15: Move to IP INN | AD15: Move to IP OON | AE15: Move to OP INN | AF15: Move to OP-OV INN | AG15: Move to OP-AO INN | AL15: Move to IP INN | AM15: Move to IP OON | AN15: Move to OP INN | AO15: Move to OP-OV INN | AP15: Move to OP-AO INN | AU15: Move to IP INN | AV15: Move to IP OON | AW15: Move to OP INN | AX15: Move to OP-OV INN | AY15: Move to OP-AO INN | BD15: Move to IP INN | BE15: Move to IP OON | BF15: Move to OP INN | BG15: Move to OP-OV INN | BH15: Move to OP-AO INN | BM15: Move to IP INN | BN15: Move to IP OON | BO15: Move to OP INN | BP15: Move to OP-OV INN | BQ15: Move to OP-AO INN | BV15: Move to IP INN | BW15: Move to IP OON | BX15: Move to OP INN | BY15: Move to OP-OV INN | BZ15: Move to OP-AO INN | CE15: Move to IP INN | CF15: Move to IP OON | CG15: Move to OP INN | CH15: Move to OP-OV INN | CI15: Move to OP-AO INN | CN15: Move to IP INN | CO15: Move to IP OON | CP15: Move to OP INN | CQ15: Move to OP-OV INN | CR15: Move to OP-AO INN
C16: Links only work for sections that are not already hidden>>>>> | E16: Move to OP OON | F16: Move to OP-OV OON | G16: Move to OP-AO OON | H16: Move to ER | I16: Move to RX | K16: Move to OP OON | L16: Move to OP-OV OON | M16: Move to OP-AO OON | N16: Move to ER | O16: Move to RX | T16: Move to OP OON | U16: Move to OP-OV OON | V16: Move to OP-AO OON | W16: Move to ER | X16: Move to RX | AC16: Move to OP OON | AD16: Move to OP-OV OON | AE16: Move to OP-AO OON | AF16: Move to ER | AG16: Move to RX | AL16: Move to OP OON | AM16: Move to OP-OV OON | AN16: Move to OP-AO OON | AO16: Move to ER | AP16: Move to RX | AU16: Move to OP OON | AV16: Move to OP-OV OON | AW16: Move to OP-AO OON | AX16: Move to ER | AY16: Move to RX | BD16: Move to OP OON | BE16: Move to OP-OV OON | BF16: Move to OP-AO OON | BG16: Move to ER | BH16: Move to RX | BM16: Move to OP OON | BN16: Move to OP-OV OON | BO16: Move to OP-AO OON | BP16: Move to ER | BQ16: Move to RX | BV16: Move to OP OON | BW16: Move to OP-OV OON | BX16: Move to OP-AO OON | BY16: Move to ER | BZ16: Move to RX | CE16: Move to OP OON | CF16: Move to OP-OV OON | CG16: Move to OP-AO OON | CH16: Move to ER | CI16: Move to RX | CN16: Move to OP OON | CO16: Move to OP-OV OON | CP16: Move to OP-AO OON | CQ16: Move to ER | CR16: Move to RX
B18: Testing Options
B19: Option | C19: Selection | E19: Column Options | G19: No Errors found?
B21: Out-of-Network Tier? | C21: Select Input | E21: Update Columns | G21: =IF(O11+X11+AG11+AP11+AY11+BH11+BQ11+BZ11+CI11+CR11=0,TRUE,FALSE) -> TRUE
B22: Outpatient Benefit Testing | C22: Select Input | E22: Hide/Unhide All Columns
B25: Results By Benefit Classification
B26: A. Benefit Classification | C26: B1. Do the MHSUD cost shares match all Medical/Surgical cost shares in the Benefit Classification? (In-Network) | D26: C1. Test Required? (In-Network) | E26: B2. Do the MHSUD cost shares match all Medical/Surgical cost shares in the Benefit Classification? (Out-of-Network) | F26: C2. Test Required? (Out-of-Network) | G26: D. By Network Tier | I26: E. Test Results
G27: D1. In-Network | H27: D2. Out-of-Network
B28: Inpatient | C28: Select Input | D28: =IF(C28="Yes","No","Yes") -> Yes | E28: Select Input | F28: =IF(E28="Yes","No","Yes") -> Yes | G28: =N66 -> Fail | H28: =IF($C$21="No","Pass",W66) -> Pass | I28: =IF(AND(G28="Pass",H28="Pass"),"Pass","Fail") -> Fail
B29: Outpatient
B30: Outpatient - All Services Combined | C30: Select Input | D30: =IF(C22="All Combined",IF(C30="Yes","No","Yes"),"No") -> No | E30: Select Input | F30: =IF(C22="All Combined",IF(E30="Yes","No","Yes"),"No") -> No | G30: =AF66 -> Pass | H30: =IF($C$21="No","Pass",BG66) -> Pass | I30: =IF(AND(G30="Pass",H30="Pass"),"Pass","Fail") -> Pass
B31: Outpatient - Office Visits Separate
B32: Outpatient - Office Visits | C32: Select Input | D32: =IF(C22="Office Visits Separate",IF(C32="Yes","No","Yes"),"No") -> No | E32: Select Input | F32: =IF(C22="Office Visits Separate",IF(E32="Yes","No","Yes"),"No") -> No | G32: =AO66 -> Pass | H32: =IF($C$21="No","Pass",BP66) -> Pass | I32: =IF(AND(G32="Pass",H32="Pass"),"Pass","Fail") -> Pass
B33: Outpatient - All Other | C33: Select Input | D33: =IF(C22="Office Visits Separate",IF(C33="Yes","No","Yes"),"No") -> No | E33: Select Input | F33: =IF(C22="Office Visits Separate",IF(E33="Yes","No","Yes"),"No") -> No | G33: =AX66 -> Pass | H33: =IF($C$21="No","Pass",BY66) -> Pass | I33: =IF(AND(G33="Pass",H33="Pass"),"Pass","Fail") -> Pass
B35: A. Benefit Classification | C35: B. Do the MHSUD cost shares match all Medical/Surgical cost shares in the Benefit Classification? | D35: C. Test Required? | E35: D. Test Results
B36: Emergency Care | C36: Select Input | D36: =IF(C36="Yes","No","Yes") -> Yes | E36: =IF(D36="No","Pass",CH66) -> Fail
B37: Prescription Drugs | C37: Select Input | D37: =IF(C37="Yes","No","Yes") -> Yes | E37: =IF(D37="No","Pass",CQ66) -> Fail
K38: PART 1 | T38: PART 1 | AC38: PART 1 | AL38: PART 1 | AU38: PART 1 | BD38: PART 1 | BM38: PART 1 | BV38: PART 1 | CE38: PART 1 | CN38: PART 1
K39: COST SHARES FOR MEDICAL/SURGICAL BENEFITS, BY BENEFIT CLASSIFICATION | T39: COST SHARES FOR MEDICAL/SURGICAL BENEFITS, BY BENEFIT CLASSIFICATION | AC39: COST SHARES FOR MEDICAL/SURGICAL BENEFITS, BY BENEFIT CLASSIFICATION | AL39: COST SHARES FOR MEDICAL/SURGICAL BENEFITS, BY BENEFIT CLASSIFICATION | AU39: COST SHARES FOR MEDICAL/SURGICAL BENEFITS, BY BENEFIT CLASSIFICATION | BD39: COST SHARES FOR MEDICAL/SURGICAL BENEFITS, BY BENEFIT CLASSIFICATION | BM39: COST SHARES FOR MEDICAL/SURGICAL BENEFITS, BY BENEFIT CLASSIFICATION | BV39: COST SHARES FOR MEDICAL/SURGICAL BENEFITS, BY BENEFIT CLASSIFICATION | CE39: COST SHARES FOR MEDICAL/SURGICAL BENEFITS, BY BENEFIT CLASSIFICATION | CN39: COST SHARES FOR MEDICAL/SURGICAL BENEFITS, BY BENEFIT CLASSIFICATION
K40: Benefit Classification | L40: ="(" &L45&") "&L43&", "&SUBSTITUTE(L44,"N/A","")&" ("&M45&")" -> (1) Inpatient, In-Network (IP INN) | T40: Benefit Classification | U40: ="(" &U45&") "&U43&", "&SUBSTITUTE(U44,"N/A","")&" ("&V45&")" -> (2) Inpatient, Out-of-Network (IP OON) | AC40: Benefit Classification | AD40: ="(" &AD45&") "&AD43&", "&SUBSTITUTE(AD44,"N/A","")&" ("&AE45&")" -> (3) Outpatient, In-Network (OP INN) | AL40: Benefit Classification | AM40: ="(" &AM45&") "&AM43&", "&SUBSTITUTE(AM44,"N/A","")&" ("&AN45&")" -> (3a) Outpatient - Office Visits, In-Network (OP-OV INN) | AU40: Benefit Classification | AV40: ="(" &AV45&") "&AV43&", "&SUBSTITUTE(AV44,"N/A","")&" ("&AW45&")" -> (3b) Outpatient - All Other, In-Network (OP-AO INN) | BD40: Benefit Classification | BE40: ="(" &BE45&") "&BE43&", "&SUBSTITUTE(BE44,"N/A","")&" ("&BF45&")" -> (4) Outpatient, Out-of-Network (OP OON) | BM40: Benefit Classification | BN40: ="(" &BN45&") "&BN43&", "&SUBSTITUTE(BN44,"N/A","")&" ("&BO45&")" -> (4a) Outpatient - Office Visits, Out-of-Network (OP-OV OON) | BV40: Benefit Classification | BW40: ="(" &BW45&") "&BW43&", "&SUBSTITUTE(BW44,"N/A","")&" ("&BX45&")" -> (4b) Outpatient - All Other, Out-of-Network (OP-AO OON) | CE40: Benefit Classification | CF40: ="(" &CF45&") "&CF43&", "&SUBSTITUTE(CF44,"N/A","")&" ("&CG45&")" -> (5) Emergency Care, (ER ) | CN40: Benefit Classification | CO40: ="(" &CO45&") "&CO43&", "&SUBSTITUTE(CO44,"N/A","")&" ("&CP45&")" -> (6) Prescription Drugs, (RX )
AC41: Notes: | AD41: Use this table if you are testing all outpatient services combined. | AL41: Notes: | AM41: Use this table if you are separately testing outpatient office visits and all other outpatient services. | AU41: Notes: | AV41: =AM41 -> Use this table if you are separately testing outpatient office visits and all other outpatient services. | BD41: Notes: | BE41: Use this table if you are testing all outpatient services combined. | BM41: Notes: | BN41: =AM41 -> Use this table if you are separately testing outpatient office visits and all other outpatient services. | BV41: Notes: | BW41: =BN41 -> Use this table if you are separately testing outpatient office visits and all other outpatient services.
K43: Classification | L43: Inpatient | M43: =VLOOKUP(L43,LookupTables!$F$4:$G$9,2,FALSE) -> IP | T43: Classification | U43: Inpatient | V43: =VLOOKUP(U43,LookupTables!$F$4:$G$9,2,FALSE) -> IP | AC43: Classification | AD43: Outpatient | AE43: =VLOOKUP(AD43,LookupTables!$F$4:$G$9,2,FALSE) -> OP | AL43: Classification | AM43: Outpatient - Office Visits | AN43: =VLOOKUP(AM43,LookupTables!$F$4:$G$9,2,FALSE) -> OP-OV | AU43: Classification | AV43: Outpatient - All Other | AW43: =VLOOKUP(AV43,LookupTables!$F$4:$G$9,2,FALSE) -> OP-AO | BD43: Classification | BE43: Outpatient | BF43: =VLOOKUP(BE43,LookupTables!$F$4:$G$9,2,FALSE) -> OP | BM43: Classification | BN43: Outpatient - Office Visits | BO43: =VLOOKUP(BN43,LookupTables!$F$4:$G$9,2,FALSE) -> OP-OV | BV43: Classification | BW43: Outpatient - All Other | BX43: =VLOOKUP(BW43,LookupTables!$F$4:$G$9,2,FALSE) -> OP-AO | CE43: Classification | CF43: Emergency Care | CG43: =VLOOKUP(CF43,LookupTables!$F$4:$G$9,2,FALSE) -> ER | CN43: Classification | CO43: Prescription Drugs | CP43: =VLOOKUP(CO43,LookupTables!$F$4:$G$9,2,FALSE) -> RX
K44: Network (In/Out) | L44: In-Network | M44: =VLOOKUP(L44,LookupTables!$C$4:$D$6,2,0) -> INN | T44: Network (In/Out) | U44: Out-of-Network | V44: =VLOOKUP(U44,LookupTables!$C$4:$D$6,2,0) -> OON | AC44: Network (In/Out) | AD44: In-Network | AE44: =VLOOKUP(AD44,LookupTables!$C$4:$D$6,2,0) -> INN | AL44: Network (In/Out) | AM44: In-Network | AN44: =VLOOKUP(AM44,LookupTables!$C$4:$D$6,2,0) -> INN | AU44: Network (In/Out) | AV44: In-Network | AW44: =VLOOKUP(AV44,LookupTables!$C$4:$D$6,2,0) -> INN | BD44: Network (In/Out) | BE44: Out-of-Network | BF44: =VLOOKUP(BE44,LookupTables!$C$4:$D$6,2,0) -> OON | BM44: Network (In/Out) | BN44: Out-of-Network | BO44: =VLOOKUP(BN44,LookupTables!$C$4:$D$6,2,0) -> OON | BV44: Network (In/Out) | BW44: Out-of-Network | BX44: =VLOOKUP(BW44,LookupTables!$C$4:$D$6,2,0) -> OON | CE44: Network (In/Out) | CF44: N/A | CG44: =VLOOKUP(CF44,LookupTables!$C$4:$D$6,2,0) ->  | CN44: Network (In/Out) | CO44: N/A | CP44: =VLOOKUP(CO44,LookupTables!$C$4:$D$6,2,0) -> 
K45: Classification Code | L45: 1 | M45: =M43&" "&M44 -> IP INN | Q45: Number of Rows | R45: 6 | T45: Classification Code | U45: 2 | V45: =V43&" "&V44 -> IP OON | Z45: Number of Rows | AA45: 6 | AC45: Classification Code | AD45: 3 | AE45: =AE43&" "&AE44 -> OP INN | AI45: Number of Rows | AJ45: 6 | AL45: Classification Code | AM45: 3a | AN45: =AN43&" "&AN44 -> OP-OV INN | AR45: Number of Rows | AS45: 6 | AU45: Classification Code | AV45: 3b | AW45: =AW43&" "&AW44 -> OP-AO INN | BA45: Number of Rows | BB45: 6 | BD45: Classification Code | BE45: 4 | BF45: =BF43&" "&BF44 -> OP OON | BJ45: Number of Rows | BK45: 6 | BM45: Classification Code | BN45: 4a | BO45: =BO43&" "&BO44 -> OP-OV OON | BS45: Number of Rows | BT45: 6 | BV45: Classification Code | BW45: 4b | BX45: =BX43&" "&BX44 -> OP-AO OON | CB45: Number of Rows | CC45: 6 | CE45: Classification Code | CF45: 5 | CG45: =CG43&" "&CG44 -> ER | CK45: Number of Rows | CL45: 6 | CN45: Classification Code | CO45: 6 | CP45: =CP43&" "&CP44 -> RX
K46: Table Name | M46: =SUBSTITUTE(SUBSTITUTE("tbl_"&M45&"_P1"," ",""),"-","") -> tbl_IPINN_P1 | T46: Table Name | V46: =SUBSTITUTE(SUBSTITUTE("tbl_"&V45&"_P1"," ",""),"-","") -> tbl_IPOON_P1 | AC46: Table Name | AE46: =SUBSTITUTE(SUBSTITUTE("tbl_"&AE45&"_P1"," ",""),"-","") -> tbl_OPINN_P1 | AL46: Table Name | AN46: =SUBSTITUTE(SUBSTITUTE("tbl_"&AN45&"_P1"," ",""),"-","") -> tbl_OPOVINN_P1 | AU46: Table Name | AW46: =SUBSTITUTE(SUBSTITUTE("tbl_"&AW45&"_P1"," ",""),"-","") -> tbl_OPAOINN_P1 | BD46: Table Name | BF46: =SUBSTITUTE(SUBSTITUTE("tbl_"&BF45&"_P1"," ",""),"-","") -> tbl_OPOON_P1 | BM46: Table Name | BO46: =SUBSTITUTE(SUBSTITUTE("tbl_"&BO45&"_P1"," ",""),"-","") -> tbl_OPOVOON_P1 | BV46: Table Name | BX46: =SUBSTITUTE(SUBSTITUTE("tbl_"&BX45&"_P1"," ",""),"-","") -> tbl_OPAOOON_P1 | CE46: Table Name | CG46: =SUBSTITUTE(SUBSTITUTE("tbl_"&CG45&"_P1"," ",""),"-","") -> tbl_ER_P1 | CN46: Table Name | CP46: =SUBSTITUTE(SUBSTITUTE("tbl_"&CP45&"_P1"," ",""),"-","") -> tbl_RX_P1 | CT46: Number of Rows | CU46: 6
K47: For each cost share, if it does not apply, enter "N/A". | T47: For each cost share, if it does not apply, enter "N/A". | AC47: For each cost share, if it does not apply, enter "N/A". | AL47: For each cost share, if it does not apply, enter "N/A". | AU47: For each cost share, if it does not apply, enter "N/A". | BD47: For each cost share, if it does not apply, enter "N/A". | BM47: For each cost share, if it does not apply, enter "N/A". | BV47: For each cost share, if it does not apply, enter "N/A". | CE47: For each cost share, if it does not apply, enter "N/A". | CN47: For each cost share, if it does not apply, enter "N/A".
K48: Service Description | L48: Cost-Share Description | M48: Plan Projected Allowed Amount | N48: Deductible | O48: Copayment | P48: Coinsurance | Q48: Out-of-Pocket Maximum (OOPM) | R48: No Cost-Share (If true, enter "x") | T48: Service Description | U48: Cost-Share Description | V48: Plan Projected Allowed Amount | W48: Deductible | X48: Copayment | Y48: Coinsurance | Z48: Out-of-Pocket Maximum (OOPM) | AA48: No Cost-Share (If true, enter "x") | AC48: Service Description | AD48: Cost-Share Description | AE48: Plan Projected Allowed Amount | AF48: Deductible | AG48: Copayment | AH48: Coinsurance | AI48: Out-of-Pocket Maximum (OOPM) | AJ48: No Cost-Share (If true, enter "x") | AL48: Service Description | AM48: Cost-Share Description | AN48: Plan Projected Allowed Amount | AO48: Deductible | AP48: Copayment | AQ48: Coinsurance | AR48: Out-of-Pocket Maximum (OOPM) | AS48: No Cost-Share (If true, enter "x") | AU48: Service Description | AV48: Cost-Share Description | AW48: Plan Projected Allowed Amount | AX48: Deductible | AY48: Copayment | AZ48: Coinsurance | BA48: Out-of-Pocket Maximum (OOPM) | BB48: No Cost-Share (If true, enter "x") | BD48: Service Description | BE48: Cost-Share Description | BF48: Plan Projected Allowed Amount | BG48: Deductible | BH48: Copayment | BI48: Coinsurance | BJ48: Out-of-Pocket Maximum (OOPM) | BK48: No Cost-Share (If true, enter "x") | BM48: Service Description | BN48: Cost-Share Description | BO48: Plan Projected Allowed Amount | BP48: Deductible | BQ48: Copayment | BR48: Coinsurance | BS48: Out-of-Pocket Maximum (OOPM) | BT48: No Cost-Share (If true, enter "x") | BV48: Service Description | BW48: Cost-Share Description | BX48: Plan Projected Allowed Amount | BY48: Deductible | BZ48: Copayment | CA48: Coinsurance | CB48: Out-of-Pocket Maximum (OOPM) | CC48: No Cost-Share (If true, enter "x") | CE48: Service Description | CF48: Cost-Share Description | CG48: Plan Projected Allowed Amount | CH48: Deductible | CI48: Copayment | CJ48: Coinsurance | CK48: Out-of-Pocket Maximum (OOPM) | CL48: No Cost-Share (If true, enter "x") | CN48: Service Description | CO48: Cost-Share Description | CP48: Plan Projected Allowed Amount | CQ48: Deductible | CR48: Copayment | CS48: Coinsurance | CT48: Out-of-Pocket Maximum (OOPM) | CU48: No Cost-Share (If true, enter "x")
T49: <<Enter description>> | U49: <<Enter description>> | AC49: <<Enter description>> | AD49: <<Enter description>> | AL49: <<Enter description>> | AM49: <<Enter description>> | AU49: <<Enter description>> | AV49: <<Enter description>> | BD49: <<Enter description>> | BE49: <<Enter description>> | BM49: <<Enter description>> | BN49: <<Enter description>> | BV49: <<Enter description>> | BW49: <<Enter description>> | CE49: <<Enter description>> | CF49: <<Enter description>> | CN49: <<Enter description>> | CO49: <<Enter description>>
K55: Total Row | M55: =SUBTOTAL(109,tbl_IPINN_P1[Plan Projected Allowed Amount]) -> 0 | T55: Total Row | V55: =SUBTOTAL(109,tbl_IPOON_P1[Plan Projected Allowed Amount]) -> 0 | AC55: Total Row | AE55: =SUBTOTAL(109,tbl_OPINN_P1[Plan Projected Allowed Amount]) -> 0 | AL55: Total Row | AN55: =SUBTOTAL(109,tbl_OPOVINN_P1[Plan Projected Allowed Amount]) -> 0 | AU55: Total Row | AW55: =SUBTOTAL(109,tbl_OPAOINN_P1[Plan Projected Allowed Amount]) -> 0 | BD55: Total Row | BF55: =SUBTOTAL(109,tbl_OPOON_P1[Plan Projected Allowed Amount]) -> 0 | BM55: Total Row | BO55: =SUBTOTAL(109,tbl_OPOVOON_P1[Plan Projected Allowed Amount]) -> 0 | BV55: Total Row | BX55: =SUBTOTAL(109,tbl_OPAOOON_P1[Plan Projected Allowed Amount]) -> 0 | CE55: Total Row | CG55: =SUBTOTAL(109,tbl_ER_P1[Plan Projected Allowed Amount]) -> 0 | CN55: Total Row | CP55: =SUBTOTAL(109,tbl_RX_P1[Plan Projected Allowed Amount]) -> 0
K57: PART 2 | T57: PART 2 | AC57: PART 2 | AL57: PART 2 | AU57: PART 2 | BD57: PART 2 | BM57: PART 2 | BV57: PART 2 | CE57: PART 2 | CN57: PART 2
K58: ANALYSIS OF MHSUD FINANCIAL REQUIREMENT PARITY, BY BENEFIT CLASSIFICATION | T58: ANALYSIS OF MHSUD FINANCIAL REQUIREMENT PARITY, BY BENEFIT CLASSIFICATION | AC58: ANALYSIS OF MHSUD FINANCIAL REQUIREMENT PARITY, BY BENEFIT CLASSIFICATION | AL58: ANALYSIS OF MHSUD FINANCIAL REQUIREMENT PARITY, BY BENEFIT CLASSIFICATION | AU58: ANALYSIS OF MHSUD FINANCIAL REQUIREMENT PARITY, BY BENEFIT CLASSIFICATION | BD58: ANALYSIS OF MHSUD FINANCIAL REQUIREMENT PARITY, BY BENEFIT CLASSIFICATION | BM58: ANALYSIS OF MHSUD FINANCIAL REQUIREMENT PARITY, BY BENEFIT CLASSIFICATION | BV58: ANALYSIS OF MHSUD FINANCIAL REQUIREMENT PARITY, BY BENEFIT CLASSIFICATION | CE58: ANALYSIS OF MHSUD FINANCIAL REQUIREMENT PARITY, BY BENEFIT CLASSIFICATION | CN58: ANALYSIS OF MHSUD FINANCIAL REQUIREMENT PARITY, BY BENEFIT CLASSIFICATION
K60: ="Financial Parity for "&L40 -> Financial Parity for (1) Inpatient, In-Network (IP INN) | T60: ="Financial Parity for "&U40 -> Financial Parity for (2) Inpatient, Out-of-Network (IP OON) | AC60: ="Financial Parity for "&AD40 -> Financial Parity for (3) Outpatient, In-Network (OP INN) | AL60: ="Financial Parity for "&AM40 -> Financial Parity for (3a) Outpatient - Office Visits, In-Network (OP-OV INN) | AU60: ="Financial Parity for "&AV40 -> Financial Parity for (3b) Outpatient - All Other, In-Network (OP-AO INN) | BD60: ="Financial Parity for "&BE40 -> Financial Parity for (4) Outpatient, Out-of-Network (OP OON) | BM60: ="Financial Parity for "&BN40 -> Financial Parity for (4a) Outpatient - Office Visits, Out-of-Network (OP-OV OON) | BV60: ="Financial Parity for "&BW40 -> Financial Parity for (4b) Outpatient - All Other, Out-of-Network (OP-AO OON) | CE60: ="Financial Parity for "&CF40 -> Financial Parity for (5) Emergency Care, (ER ) | CN60: ="Financial Parity for "&CO40 -> Financial Parity for (6) Prescription Drugs, (RX )
K61: Cost-Share Type | L61: MHSUD Cost Shares in Plan Design* | M61: Predominant Level for Medical/ Surgical | N61: MHSUD Financial Parity Result | P61: Enter Footnotes (as needed) about MHSUD Cost Shares in the Plan Design | T61: Cost-Share Type | U61: MHSUD Cost Shares in Plan Design* | V61: Predominant Level for Medical/ Surgical | W61: MHSUD Financial Parity Result | Y61: Enter Footnotes (as needed) about MHSUD Cost Shares in the Plan Design | AC61: Cost-Share Type | AD61: MHSUD Cost Shares in Plan Design* | AE61: Predominant Level for Medical/ Surgical | AF61: MHSUD Financial Parity Result | AH61: Enter Footnotes (as needed) about MHSUD Cost Shares in the Plan Design | AL61: Cost-Share Type | AM61: MHSUD Cost Shares in Plan Design* | AN61: Predominant Level for Medical/ Surgical | AO61: MHSUD Financial Parity Result | AQ61: Enter Footnotes (as needed) about MHSUD Cost Shares in the Plan Design | AU61: Cost-Share Type | AV61: MHSUD Cost Shares in Plan Design* | AW61: Predominant Level for Medical/ Surgical | AX61: MHSUD Financial Parity Result | AZ61: Enter Footnotes (as needed) about MHSUD Cost Shares in the Plan Design | BD61: Cost-Share Type | BE61: MHSUD Cost Shares in Plan Design* | BF61: Predominant Level for Medical/ Surgical | BG61: MHSUD Financial Parity Result | BI61: Enter Footnotes (as needed) about MHSUD Cost Shares in the Plan Design | BM61: Cost-Share Type | BN61: MHSUD Cost Shares in Plan Design* | BO61: Predominant Level for Medical/ Surgical | BP61: MHSUD Financial Parity Result | BR61: Enter Footnotes (as needed) about MHSUD Cost Shares in the Plan Design | BV61: Cost-Share Type | BW61: MHSUD Cost Shares in Plan Design* | BX61: Predominant Level for Medical/ Surgical | BY61: MHSUD Financial Parity Result | CA61: Enter Footnotes (as needed) about MHSUD Cost Shares in the Plan Design | CE61: Cost-Share Type | CF61: MHSUD Cost Shares in Plan Design* | CG61: Predominant Level for Medical/ Surgical | CH61: MHSUD Financial Parity Result | CJ61: Enter Footnotes (as needed) about MHSUD Cost Shares in the Plan Design | CN61: Cost-Share Type | CO61: MHSUD Cost Shares in Plan Design* | CP61: Predominant Level for Medical/ Surgical | CQ61: MHSUD Financial Parity Result | CS61: Enter Footnotes (as needed) about MHSUD Cost Shares in the Plan Design
K62: Deductible | M62: =IF(OR(N69="Fail",N69="N/A"),N69,MAX(tbl_IPINN_P2Ded[Predominant & Smaller])) -> Fail | N62: =IF(AND(OR(L62="",L62="N/A"),N69="N/A"),"N/A",IF(AND(OR(M62="N/A",M62="Fail"),OR(L62="N/A",L62="Not Applicable")),"Pass",IF(M62="Fail",M62,IF(L62="","Fail - Enter MHSUD cost share",IF(AND(M62<>"N/A",M62<>"Fail",OR(AND(L62<=M62,L62>=0),L62="N/A",L62="Not Applicable")),"Pass","Fail"))))) -> Fail | P62: xx | T62: Deductible | V62: =IF(OR(W69="Fail",W69="N/A"),W69,MAX(tbl_IPOON_P2Ded[Predominant & Smaller])) -> N/A | W62: =IF(AND(OR(U62="",U62="N/A"),W69="N/A"),"N/A",IF(AND(OR(V62="N/A",V62="Fail"),OR(U62="N/A",U62="Not Applicable")),"Pass",IF(V62="Fail",V62,IF(U62="","Fail - Enter MHSUD cost share",IF(AND(V62<>"N/A",V62<>"Fail",OR(AND(U62<=V62,U62>=0),U62="N/A",U62="Not Applicable")),"Pass","Fail"))))) -> N/A | Y62: xx | AC62: Deductible | AE62: =IF(OR(AF69="Fail",AF69="N/A"),AF69,MAX(tbl_OPINN_P2Ded[Predominant & Smaller])) -> N/A | AF62: =IF(AND(OR(AD62="",AD62="N/A"),AF69="N/A"),"N/A",IF(AND(OR(AE62="N/A",AE62="Fail"),OR(AD62="N/A",AD62="Not Applicable")),"Pass",IF(AE62="Fail",AE62,IF(AD62="","Fail - Enter MHSUD cost share",IF(AND(AE62<>"N/A",AE62<>"Fail",OR(AND(AD62<=AE62,AD62>=0),AD62="N/A",AD62="Not Applicable")),"Pass","Fail"))))) -> N/A | AH62: xx | AL62: Deductible | AN62: =IF(OR(AO69="Fail",AO69="N/A"),AO69,MAX(tbl_OPOVINN_P2Ded[Predominant & Smaller])) -> N/A | AO62: =IF(AND(OR(AM62="",AM62="N/A"),AO69="N/A"),"N/A",IF(AND(OR(AN62="N/A",AN62="Fail"),OR(AM62="N/A",AM62="Not Applicable")),"Pass",IF(AN62="Fail",AN62,IF(AM62="","Fail - Enter MHSUD cost share",IF(AND(AN62<>"N/A",AN62<>"Fail",OR(AND(AM62<=AN62,AM62>=0),AM62="N/A",AM62="Not Applicable")),"Pass","Fail"))))) -> N/A | AQ62: xx | AU62: Deductible | AW62: =IF(OR(AX69="Fail",AX69="N/A"),AX69,MAX(tbl_OPAOINN_P2Ded[Predominant & Smaller])) -> N/A | AX62: =IF(AND(OR(AV62="",AV62="N/A"),AX69="N/A"),"N/A",IF(AND(OR(AW62="N/A",AW62="Fail"),OR(AV62="N/A",AV62="Not Applicable")),"Pass",IF(AW62="Fail",AW62,IF(AV62="","Fail - Enter MHSUD cost share",IF(AND(AW62<>"N/A",AW62<>"Fail",OR(AND(AV62<=AW62,AV62>=0),AV62="N/A",AV62="Not Applicable")),"Pass","Fail"))))) -> N/A | AZ62: xx | BD62: Deductible | BF62: =IF(OR(BG69="Fail",BG69="N/A"),BG69,MAX(tbl_OPOON_P2Ded[Predominant & Smaller])) -> N/A | BG62: =IF(AND(OR(BE62="",BE62="N/A"),BG69="N/A"),"N/A",IF(AND(OR(BF62="N/A",BF62="Fail"),OR(BE62="N/A",BE62="Not Applicable")),"Pass",IF(BF62="Fail",BF62,IF(BE62="","Fail - Enter MHSUD cost share",IF(AND(BF62<>"N/A",BF62<>"Fail",OR(AND(BE62<=BF62,BE62>=0),BE62="N/A",BE62="Not Applicable")),"Pass","Fail"))))) -> N/A | BI62: xx | BM62: Deductible | BO62: =IF(OR(BP69="Fail",BP69="N/A"),BP69,MAX(tbl_OPOVOON_P2Ded[Predominant & Smaller])) -> N/A | BP62: =IF(AND(OR(BN62="",BN62="N/A"),BP69="N/A"),"N/A",IF(AND(OR(BO62="N/A",BO62="Fail"),OR(BN62="N/A",BN62="Not Applicable")),"Pass",IF(BO62="Fail",BO62,IF(BN62="","Fail - Enter MHSUD cost share",IF(AND(BO62<>"N/A",BO62<>"Fail",OR(AND(BN62<=BO62,BN62>=0),BN62="N/A",BN62="Not Applicable")),"Pass","Fail"))))) -> N/A | BR62: xx | BV62: Deductible | BX62: =IF(OR(BY69="Fail",BY69="N/A"),BY69,MAX(tbl_OPAOOON_P2Ded[Predominant & Smaller])) -> N/A | BY62: =IF(AND(OR(BW62="",BW62="N/A"),BY69="N/A"),"N/A",IF(AND(OR(BX62="N/A",BX62="Fail"),OR(BW62="N/A",BW62="Not Applicable")),"Pass",IF(BX62="Fail",BX62,IF(BW62="","Fail - Enter MHSUD cost share",IF(AND(BX62<>"N/A",BX62<>"Fail",OR(AND(BW62<=BX62,BW62>=0),BW62="N/A",BW62="Not Applicable")),"Pass","Fail"))))) -> N/A | CA62: xx | CE62: Deductible | CG62: =IF(OR(CH69="Fail",CH69="N/A"),CH69,MAX(tbl_ER_P2Ded[Predominant & Smaller])) -> Fail | CH62: =IF(AND(OR(CF62="",CF62="N/A"),CH69="N/A"),"N/A",IF(AND(OR(CG62="N/A",CG62="Fail"),OR(CF62="N/A",CF62="Not Applicable")),"Pass",IF(CG62="Fail",CG62,IF(CF62="","Fail - Enter MHSUD cost share",IF(AND(CG62<>"N/A",CG62<>"Fail",OR(AND(CF62<=CG62,CF62>=0),CF62="N/A",CF62="Not Applicable")),"Pass","Fail"))))) -> Fail | CJ62: xx | CN62: Deductible | CP62: =IF(OR(CQ69="Fail",CQ69="N/A"),CQ69,MAX(tbl_RX_P2Ded[Predominant & Smaller])) -> Fail | CQ62: =IF(AND(OR(CO62="",CO62="N/A"),CQ69="N/A"),"N/A",IF(AND(OR(CP62="N/A",CP62="Fail"),OR(CO62="N/A",CO62="Not Applicable")),"Pass",IF(CP62="Fail",CP62,IF(CO62="","Fail - Enter MHSUD cost share",IF(AND(CP62<>"N/A",CP62<>"Fail",OR(AND(CO62<=CP62,CO62>=0),CO62="N/A",CO62="Not Applicable")),"Pass","Fail"))))) -> Fail | CS62: xx
K63: Copayment | M63: =IF(OR(N70="Fail",N70="N/A"),N70,MAX(tbl_IPINN_P2Cop[Predominant & Smaller])) -> Fail | N63: =IF(AND(OR(L63="",L63="N/A"),N70="N/A"),"N/A",IF(AND(OR(M63="N/A",M63="Fail"),OR(L63="N/A",L63="Not Applicable")),"Pass",IF(M63="Fail",M63,IF(L63="","Fail - Enter MHSUD cost share",IF(AND(M63<>"N/A",M63<>"Fail",OR(AND(L63<=M63,L63>=0),L63="N/A",L63="Not Applicable")),"Pass","Fail"))))) -> Fail | T63: Copayment | V63: =IF(OR(W70="Fail",W70="N/A"),W70,MAX(tbl_IPOON_P2Cop[Predominant & Smaller])) -> N/A | W63: =IF(AND(OR(U63="",U63="N/A"),W70="N/A"),"N/A",IF(AND(OR(V63="N/A",V63="Fail"),OR(U63="N/A",U63="Not Applicable")),"Pass",IF(V63="Fail",V63,IF(U63="","Fail - Enter MHSUD cost share",IF(AND(V63<>"N/A",V63<>"Fail",OR(AND(U63<=V63,U63>=0),U63="N/A",U63="Not Applicable")),"Pass","Fail"))))) -> N/A | AC63: Copayment | AE63: =IF(OR(AF70="Fail",AF70="N/A"),AF70,MAX(tbl_OPINN_P2Cop[Predominant & Smaller])) -> N/A | AF63: =IF(AND(OR(AD63="",AD63="N/A"),AF70="N/A"),"N/A",IF(AND(OR(AE63="N/A",AE63="Fail"),OR(AD63="N/A",AD63="Not Applicable")),"Pass",IF(AE63="Fail",AE63,IF(AD63="","Fail - Enter MHSUD cost share",IF(AND(AE63<>"N/A",AE63<>"Fail",OR(AND(AD63<=AE63,AD63>=0),AD63="N/A",AD63="Not Applicable")),"Pass","Fail"))))) -> N/A | AL63: Copayment | AN63: =IF(OR(AO70="Fail",AO70="N/A"),AO70,MAX(tbl_OPOVINN_P2Cop[Predominant & Smaller])) -> N/A | AO63: =IF(AND(OR(AM63="",AM63="N/A"),AO70="N/A"),"N/A",IF(AND(OR(AN63="N/A",AN63="Fail"),OR(AM63="N/A",AM63="Not Applicable")),"Pass",IF(AN63="Fail",AN63,IF(AM63="","Fail - Enter MHSUD cost share",IF(AND(AN63<>"N/A",AN63<>"Fail",OR(AND(AM63<=AN63,AM63>=0),AM63="N/A",AM63="Not Applicable")),"Pass","Fail"))))) -> N/A | AU63: Copayment | AW63: =IF(OR(AX70="Fail",AX70="N/A"),AX70,MAX(tbl_OPAOINN_P2Cop[Predominant & Smaller])) -> N/A | AX63: =IF(AND(OR(AV63="",AV63="N/A"),AX70="N/A"),"N/A",IF(AND(OR(AW63="N/A",AW63="Fail"),OR(AV63="N/A",AV63="Not Applicable")),"Pass",IF(AW63="Fail",AW63,IF(AV63="","Fail - Enter MHSUD cost share",IF(AND(AW63<>"N/A",AW63<>"Fail",OR(AND(AV63<=AW63,AV63>=0),AV63="N/A",AV63="Not Applicable")),"Pass","Fail"))))) -> N/A | BD63: Copayment | BF63: =IF(OR(BG70="Fail",BG70="N/A"),BG70,MAX(tbl_OPOON_P2Cop[Predominant & Smaller])) -> N/A | BG63: =IF(AND(OR(BE63="",BE63="N/A"),BG70="N/A"),"N/A",IF(AND(OR(BF63="N/A",BF63="Fail"),OR(BE63="N/A",BE63="Not Applicable")),"Pass",IF(BF63="Fail",BF63,IF(BE63="","Fail - Enter MHSUD cost share",IF(AND(BF63<>"N/A",BF63<>"Fail",OR(AND(BE63<=BF63,BE63>=0),BE63="N/A",BE63="Not Applicable")),"Pass","Fail"))))) -> N/A | BM63: Copayment | BO63: =IF(OR(BP70="Fail",BP70="N/A"),BP70,MAX(tbl_OPOVOON_P2Cop[Predominant & Smaller])) -> N/A | BP63: =IF(AND(OR(BN63="",BN63="N/A"),BP70="N/A"),"N/A",IF(AND(OR(BO63="N/A",BO63="Fail"),OR(BN63="N/A",BN63="Not Applicable")),"Pass",IF(BO63="Fail",BO63,IF(BN63="","Fail - Enter MHSUD cost share",IF(AND(BO63<>"N/A",BO63<>"Fail",OR(AND(BN63<=BO63,BN63>=0),BN63="N/A",BN63="Not Applicable")),"Pass","Fail"))))) -> N/A | BV63: Copayment | BX63: =IF(OR(BY70="Fail",BY70="N/A"),BY70,MAX(tbl_OPAOOON_P2Cop[Predominant & Smaller])) -> N/A | BY63: =IF(AND(OR(BW63="",BW63="N/A"),BY70="N/A"),"N/A",IF(AND(OR(BX63="N/A",BX63="Fail"),OR(BW63="N/A",BW63="Not Applicable")),"Pass",IF(BX63="Fail",BX63,IF(BW63="","Fail - Enter MHSUD cost share",IF(AND(BX63<>"N/A",BX63<>"Fail",OR(AND(BW63<=BX63,BW63>=0),BW63="N/A",BW63="Not Applicable")),"Pass","Fail"))))) -> N/A | CE63: Copayment | CG63: =IF(OR(CH70="Fail",CH70="N/A"),CH70,MAX(tbl_ER_P2Cop[Predominant & Smaller])) -> Fail | CH63: =IF(AND(OR(CF63="",CF63="N/A"),CH70="N/A"),"N/A",IF(AND(OR(CG63="N/A",CG63="Fail"),OR(CF63="N/A",CF63="Not Applicable")),"Pass",IF(CG63="Fail",CG63,IF(CF63="","Fail - Enter MHSUD cost share",IF(AND(CG63<>"N/A",CG63<>"Fail",OR(AND(CF63<=CG63,CF63>=0),CF63="N/A",CF63="Not Applicable")),"Pass","Fail"))))) -> Fail | CN63: Copayment | CP63: =IF(OR(CQ70="Fail",CQ70="N/A"),CQ70,MAX(tbl_RX_P2Cop[Predominant & Smaller])) -> Fail | CQ63: =IF(AND(OR(CO63="",CO63="N/A"),CQ70="N/A"),"N/A",IF(AND(OR(CP63="N/A",CP63="Fail"),OR(CO63="N/A",CO63="Not Applicable")),"Pass",IF(CP63="Fail",CP63,IF(CO63="","Fail - Enter MHSUD cost share",IF(AND(CP63<>"N/A",CP63<>"Fail",OR(AND(CO63<=CP63,CO63>=0),CO63="N/A",CO63="Not Applicable")),"Pass","Fail"))))) -> Fail
K64: Coinsurance | M64: =IF(OR(N71="Fail",N71="N/A"),N71,MAX(tbl_IPINN_P2Coi[Predominant & Smaller])) -> Fail | N64: =IF(AND(OR(L64="",L64="N/A"),N71="N/A"),"N/A",IF(AND(OR(M64="N/A",M64="Fail"),OR(L64="N/A",L64="Not Applicable")),"Pass",IF(M64="Fail",M64,IF(L64="","Fail - Enter MHSUD cost share",IF(AND(M64<>"N/A",M64<>"Fail",OR(AND(L64<=M64,L64>=0),L64="N/A",L64="Not Applicable")),"Pass","Fail"))))) -> Fail | T64: Coinsurance | V64: =IF(OR(W71="Fail",W71="N/A"),W71,MAX(tbl_IPOON_P2Coi[Predominant & Smaller])) -> N/A | W64: N/A | AC64: Coinsurance | AE64: =IF(OR(AF71="Fail",AF71="N/A"),AF71,MAX(tbl_OPINN_P2Coi[Predominant & Smaller])) -> N/A | AF64: N/A | AL64: Coinsurance | AN64: =IF(OR(AO71="Fail",AO71="N/A"),AO71,MAX(tbl_OPOVINN_P2Coi[Predominant & Smaller])) -> N/A | AO64: N/A | AU64: Coinsurance | AW64: =IF(OR(AX71="Fail",AX71="N/A"),AX71,MAX(tbl_OPAOINN_P2Coi[Predominant & Smaller])) -> N/A | AX64: N/A | BD64: Coinsurance | BF64: =IF(OR(BG71="Fail",BG71="N/A"),BG71,MAX(tbl_OPOON_P2Coi[Predominant & Smaller])) -> N/A | BG64: N/A | BM64: Coinsurance | BO64: =IF(OR(BP71="Fail",BP71="N/A"),BP71,MAX(tbl_OPOVOON_P2Coi[Predominant & Smaller])) -> N/A | BP64: N/A | BV64: Coinsurance | BX64: =IF(OR(BY71="Fail",BY71="N/A"),BY71,MAX(tbl_OPAOOON_P2Coi[Predominant & Smaller])) -> N/A | BY64: N/A | CE64: Coinsurance | CG64: =IF(OR(CH71="Fail",CH71="N/A"),CH71,MAX(tbl_ER_P2Coi[Predominant & Smaller])) -> Fail | CH64: Fail | CN64: Coinsurance | CP64: =IF(OR(CQ71="Fail",CQ71="N/A"),CQ71,MAX(tbl_RX_P2Coi[Predominant & Smaller])) -> Fail | CQ64: Fail
K65: OOPM | M65: =IF(OR(N72="Fail",N72="N/A"),N72,MAX(tbl_IPINN_P2OOPM[Predominant & Smaller])) -> Fail | N65: =IF(AND(OR(L65="",L65="N/A"),N72="N/A"),"N/A",IF(AND(OR(M65="N/A",M65="Fail"),OR(L65="N/A",L65="Not Applicable")),"Pass",IF(M65="Fail",M65,IF(L65="","Fail - Enter MHSUD cost share",IF(AND(M65<>"N/A",M65<>"Fail",OR(AND(L65<=M65,L65>=0),L65="N/A",L65="Not Applicable")),"Pass","Fail"))))) -> Fail | T65: OOPM | V65: =IF(OR(W72="Fail",W72="N/A"),W72,MAX(tbl_IPOON_P2OOPM[Predominant & Smaller])) -> N/A | W65: N/A | AC65: OOPM | AE65: =IF(OR(AF72="Fail",AF72="N/A"),AF72,MAX(tbl_OPINN_P2OOPM[Predominant & Smaller])) -> N/A | AF65: N/A | AL65: OOPM | AN65: =IF(OR(AO72="Fail",AO72="N/A"),AO72,MAX(tbl_OPOVINN_P2OOPM[Predominant & Smaller])) -> N/A | AO65: N/A | AU65: OOPM | AW65: =IF(OR(AX72="Fail",AX72="N/A"),AX72,MAX(tbl_OPAOINN_P2OOPM[Predominant & Smaller])) -> N/A | AX65: N/A | BD65: OOPM | BF65: =IF(OR(BG72="Fail",BG72="N/A"),BG72,MAX(tbl_OPOON_P2OOPM[Predominant & Smaller])) -> N/A | BG65: N/A | BM65: OOPM | BO65: =IF(OR(BP72="Fail",BP72="N/A"),BP72,MAX(tbl_OPOVOON_P2OOPM[Predominant & Smaller])) -> N/A | BP65: N/A | BV65: OOPM | BX65: =IF(OR(BY72="Fail",BY72="N/A"),BY72,MAX(tbl_OPAOOON_P2OOPM[Predominant & Smaller])) -> N/A | BY65: N/A | CE65: OOPM | CG65: =IF(OR(CH72="Fail",CH72="N/A"),CH72,MAX(tbl_ER_P2OOPM[Predominant & Smaller])) -> Fail | CH65: Fail | CN65: OOPM | CP65: =IF(OR(CQ72="Fail",CQ72="N/A"),CQ72,MAX(tbl_RX_P2OOPM[Predominant & Smaller])) -> Fail | CQ65: Fail
K66: Overall | N66: =IF((COUNTIF(N62:N65,"Pass")+COUNTIF(N62:N65,"N/A"))=4,"Pass","Fail") -> Fail | T66: Overall | W66: =IF((COUNTIF(W62:W65,"Pass")+COUNTIF(W62:W65,"N/A"))=4,"Pass","Fail") -> Pass | AC66: Overall | AF66: =IF((COUNTIF(AF62:AF65,"Pass")+COUNTIF(AF62:AF65,"N/A"))=4,"Pass","Fail") -> Pass | AL66: Overall | AO66: =IF((COUNTIF(AO62:AO65,"Pass")+COUNTIF(AO62:AO65,"N/A"))=4,"Pass","Fail") -> Pass | AU66: Overall | AX66: =IF((COUNTIF(AX62:AX65,"Pass")+COUNTIF(AX62:AX65,"N/A"))=4,"Pass","Fail") -> Pass | BD66: Overall | BG66: =IF((COUNTIF(BG62:BG65,"Pass")+COUNTIF(BG62:BG65,"N/A"))=4,"Pass","Fail") -> Pass | BM66: Overall | BP66: =IF((COUNTIF(BP62:BP65,"Pass")+COUNTIF(BP62:BP65,"N/A"))=4,"Pass","Fail") -> Pass | BV66: Overall | BY66: =IF((COUNTIF(BY62:BY65,"Pass")+COUNTIF(BY62:BY65,"N/A"))=4,"Pass","Fail") -> Pass | CE66: Overall | CH66: =IF((COUNTIF(CH62:CH65,"Pass")+COUNTIF(CH62:CH65,"N/A"))=4,"Pass","Fail") -> Fail | CN66: Overall | CQ66: =IF((COUNTIF(CQ62:CQ65,"Pass")+COUNTIF(CQ62:CQ65,"N/A"))=4,"Pass","Fail") -> Fail
L67: *If not applicable, enter "N/A" | U67: *If not applicable, enter "N/A" | AD67: *If not applicable, enter "N/A" | AM67: *If not applicable, enter "N/A" | AV67: *If not applicable, enter "N/A" | BE67: *If not applicable, enter "N/A" | BN67: *If not applicable, enter "N/A" | BW67: *If not applicable, enter "N/A" | CF67: *If not applicable, enter "N/A" | CO67: *If not applicable, enter "N/A"
K68: Step 1 Substantially All (i.e., ≥ ⅔ of medical/surgical benefits) | T68: Step 1 Substantially All (i.e., ≥ ⅔ of medical/surgical benefits) | AC68: Step 1 Substantially All (i.e., ≥ ⅔ of medical/surgical benefits) | AL68: Step 1 Substantially All (i.e., ≥ ⅔ of medical/surgical benefits) | AU68: Step 1 Substantially All (i.e., ≥ ⅔ of medical/surgical benefits) | BD68: Step 1 Substantially All (i.e., ≥ ⅔ of medical/surgical benefits) | BM68: Step 1 Substantially All (i.e., ≥ ⅔ of medical/surgical benefits) | BV68: Step 1 Substantially All (i.e., ≥ ⅔ of medical/surgical benefits) | CE68: Step 1 Substantially All (i.e., ≥ ⅔ of medical/surgical benefits) | CN68: Step 1 Substantially All (i.e., ≥ ⅔ of medical/surgical benefits)
K69: Deductible | L69: =SUMIF(tbl_IPINN_P1[Deductible],">0",tbl_IPINN_P1[Plan Projected Allowed Amount]) -> 0 | M69: =IFERROR(L69/L$73,"") ->  | N69: =IF($D$28="Yes",IF(L69=0,"Fail",IF(M69>=(2/3),M$45&" "&K69,"Fail")),"N/A") -> Fail | T69: Deductible | U69: =SUMIF(tbl_IPOON_P1[Deductible],">0",tbl_IPOON_P1[Plan Projected Allowed Amount]) -> 0 | V69: =IFERROR(U69/U$73,"") ->  | W69: =IF(AND($F$28="Yes",$C$21="Yes"),IF(U69=0,"Fail",IF(V69>=(2/3),V$45&" "&T69,"Fail")),"N/A") -> N/A | AC69: Deductible | AD69: =SUMIF(tbl_OPINN_P1[Deductible],">0",tbl_OPINN_P1[Plan Projected Allowed Amount]) -> 0 | AE69: =IFERROR(AD69/AD$73,"") ->  | AF69: =IF(AND($D$30="Yes",$C$22="All Combined"),IF(AD69=0,"Fail",IF(AE69>=(2/3),AE$45&" "&AC69,"Fail")),"N/A") -> N/A | AL69: Deductible | AM69: =SUMIF(tbl_OPOVINN_P1[Deductible],">0",tbl_OPOVINN_P1[Plan Projected Allowed Amount]) -> 0 | AN69: =IFERROR(AM69/AM$73,"") ->  | AO69: =IF(AND($D$32="Yes",$C$22="Office Visits Separate"),IF(AM69=0,"Fail",IF(AN69>=(2/3),AN$45&" "&AL69,"Fail")),"N/A") -> N/A | AU69: Deductible | AV69: =SUMIF(tbl_OPAOINN_P1[Deductible],">0",tbl_OPAOINN_P1[Plan Projected Allowed Amount]) -> 0 | AW69: =IFERROR(AV69/AV$73,"") ->  | AX69: =IF(AND($D$33="Yes",$C$22="Office Visits Separate"),IF(AV69=0,"Fail",IF(AW69>=(2/3),AW$45&" "&AU69,"Fail")),"N/A") -> N/A | BD69: Deductible | BE69: =SUMIF(tbl_OPOON_P1[Deductible],">0",tbl_OPOON_P1[Plan Projected Allowed Amount]) -> 0 | BF69: =IFERROR(BE69/BE$73,"") ->  | BG69: =IF(AND($F$30="Yes",$C$22="All Combined",$C$21="Yes"),IF(BE69=0,"Fail",IF(BF69>=(2/3),BF$45&" "&BD69,"Fail")),"N/A") -> N/A | BM69: Deductible | BN69: =SUMIF(tbl_OPOVOON_P1[Deductible],">0",tbl_OPOVOON_P1[Plan Projected Allowed Amount]) -> 0 | BO69: =IFERROR(BN69/BN$73,"") ->  | BP69: =IF(AND($F$32="Yes",$C$22="Office Visits Separate",$C$21="Yes"),IF(BN69=0,"Fail",IF(BO69>=(2/3),BO$45&" "&BM69,"Fail")),"N/A") -> N/A | BV69: Deductible | BW69: =SUMIF(tbl_OPAOOON_P1[Deductible],">0",tbl_OPAOOON_P1[Plan Projected Allowed Amount]) -> 0 | BX69: =IFERROR(BW69/BW$73,"") ->  | BY69: =IF(AND($F$33="Yes",$C$22="Office Visits Separate",$C$21="Yes"),IF(BW69=0,"Fail",IF(BX69>=(2/3),BX$45&" "&BV69,"Fail")),"N/A") -> N/A | CE69: Deductible | CF69: =SUMIF(tbl_ER_P1[Deductible],">0",tbl_ER_P1[Plan Projected Allowed Amount]) -> 0 | CG69: =IFERROR(CF69/CF$73,"") ->  | CH69: =IF($D$36="Yes",IF(CF69=0,"Fail",IF(CG69>=(2/3),CG$45&" "&CE69,"Fail")),"N/A") -> Fail | CN69: Deductible | CO69: =SUMIF(tbl_RX_P1[Deductible],">0",tbl_RX_P1[Plan Projected Allowed Amount]) -> 0 | CP69: =IFERROR(CO69/CO$73,"") ->  | CQ69: =IF($D$37="Yes",IF(CO69=0,"Fail",IF(CP69>=(2/3),CP$45&" "&CN69,"Fail")),"N/A") -> Fail
K70: Copayment | L70: =SUMIF(tbl_IPINN_P1[Copayment],">0",tbl_IPINN_P1[Plan Projected Allowed Amount]) -> 0 | M70: =IFERROR(L70/L$73,"") ->  | N70: =IF($D$28="Yes",IF(L70=0,"Fail",IF(M70>=(2/3),M$45&" "&K70,"Fail")),"N/A") -> Fail | T70: Copayment | U70: =SUMIF(tbl_IPOON_P1[Copayment],">0",tbl_IPOON_P1[Plan Projected Allowed Amount]) -> 0 | V70: =IFERROR(U70/U$73,"") ->  | W70: =IF(AND($F$28="Yes",$C$21="Yes"),IF(U70=0,"Fail",IF(V70>=(2/3),V$45&" "&T70,"Fail")),"N/A") -> N/A | AC70: Copayment | AD70: =SUMIF(tbl_OPINN_P1[Copayment],">0",tbl_OPINN_P1[Plan Projected Allowed Amount]) -> 0 | AE70: =IFERROR(AD70/AD$73,"") ->  | AF70: =IF(AND($D$30="Yes",$C$22="All Combined"),IF(AD70=0,"Fail",IF(AE70>=(2/3),AE$45&" "&AC70,"Fail")),"N/A") -> N/A | AL70: Copayment | AM70: =SUMIF(tbl_OPOVINN_P1[Copayment],">0",tbl_OPOVINN_P1[Plan Projected Allowed Amount]) -> 0 | AN70: =IFERROR(AM70/AM$73,"") ->  | AO70: =IF(AND($D$32="Yes",$C$22="Office Visits Separate"),IF(AM70=0,"Fail",IF(AN70>=(2/3),AN$45&" "&AL70,"Fail")),"N/A") -> N/A | AU70: Copayment | AV70: =SUMIF(tbl_OPAOINN_P1[Copayment],">0",tbl_OPAOINN_P1[Plan Projected Allowed Amount]) -> 0 | AW70: =IFERROR(AV70/AV$73,"") ->  | AX70: =IF(AND($D$33="Yes",$C$22="Office Visits Separate"),IF(AV70=0,"Fail",IF(AW70>=(2/3),AW$45&" "&AU70,"Fail")),"N/A") -> N/A | BD70: Copayment | BE70: =SUMIF(tbl_OPOON_P1[Copayment],">0",tbl_OPOON_P1[Plan Projected Allowed Amount]) -> 0 | BF70: =IFERROR(BE70/BE$73,"") ->  | BG70: =IF(AND($F$30="Yes",$C$22="All Combined",$C$21="Yes"),IF(BE70=0,"Fail",IF(BF70>=(2/3),BF$45&" "&BD70,"Fail")),"N/A") -> N/A | BM70: Copayment | BN70: =SUMIF(tbl_OPOVOON_P1[Copayment],">0",tbl_OPOVOON_P1[Plan Projected Allowed Amount]) -> 0 | BO70: =IFERROR(BN70/BN$73,"") ->  | BP70: =IF(AND($F$32="Yes",$C$22="Office Visits Separate",$C$21="Yes"),IF(BN70=0,"Fail",IF(BO70>=(2/3),BO$45&" "&BM70,"Fail")),"N/A") -> N/A | BV70: Copayment | BW70: =SUMIF(tbl_OPAOOON_P1[Copayment],">0",tbl_OPAOOON_P1[Plan Projected Allowed Amount]) -> 0 | BX70: =IFERROR(BW70/BW$73,"") ->  | BY70: =IF(AND($F$33="Yes",$C$22="Office Visits Separate",$C$21="Yes"),IF(BW70=0,"Fail",IF(BX70>=(2/3),BX$45&" "&BV70,"Fail")),"N/A") -> N/A | CE70: Copayment | CF70: =SUMIF(tbl_ER_P1[Copayment],">0",tbl_ER_P1[Plan Projected Allowed Amount]) -> 0 | CG70: =IFERROR(CF70/CF$73,"") ->  | CH70: =IF($D$36="Yes",IF(CF70=0,"Fail",IF(CG70>=(2/3),CG$45&" "&CE70,"Fail")),"N/A") -> Fail | CN70: Copayment | CO70: =SUMIF(tbl_RX_P1[Copayment],">0",tbl_RX_P1[Plan Projected Allowed Amount]) -> 0 | CP70: =IFERROR(CO70/CO$73,"") ->  | CQ70: =IF($D$37="Yes",IF(CO70=0,"Fail",IF(CP70>=(2/3),CP$45&" "&CN70,"Fail")),"N/A") -> Fail
K71: Coinsurance | L71: =SUMIF(tbl_IPINN_P1[Coinsurance],">0",tbl_IPINN_P1[Plan Projected Allowed Amount]) -> 0 | M71: =IFERROR(L71/L$73,"") ->  | N71: =IF($D$28="Yes",IF(L71=0,"Fail",IF(M71>=(2/3),M$45&" "&K71,"Fail")),"N/A") -> Fail | T71: Coinsurance | U71: =SUMIF(tbl_IPOON_P1[Coinsurance],">0",tbl_IPOON_P1[Plan Projected Allowed Amount]) -> 0 | V71: =IFERROR(U71/U$73,"") ->  | W71: =IF(AND($F$28="Yes",$C$21="Yes"),IF(U71=0,"Fail",IF(V71>=(2/3),V$45&" "&T71,"Fail")),"N/A") -> N/A | AC71: Coinsurance | AD71: =SUMIF(tbl_OPINN_P1[Coinsurance],">0",tbl_OPINN_P1[Plan Projected Allowed Amount]) -> 0 | AE71: =IFERROR(AD71/AD$73,"") ->  | AF71: =IF(AND($D$30="Yes",$C$22="All Combined"),IF(AD71=0,"Fail",IF(AE71>=(2/3),AE$45&" "&AC71,"Fail")),"N/A") -> N/A | AL71: Coinsurance | AM71: =SUMIF(tbl_OPOVINN_P1[Coinsurance],">0",tbl_OPOVINN_P1[Plan Projected Allowed Amount]) -> 0 | AN71: =IFERROR(AM71/AM$73,"") ->  | AO71: =IF(AND($D$32="Yes",$C$22="Office Visits Separate"),IF(AM71=0,"Fail",IF(AN71>=(2/3),AN$45&" "&AL71,"Fail")),"N/A") -> N/A | AU71: Coinsurance | AV71: =SUMIF(tbl_OPAOINN_P1[Coinsurance],">0",tbl_OPAOINN_P1[Plan Projected Allowed Amount]) -> 0 | AW71: =IFERROR(AV71/AV$73,"") ->  | AX71: =IF(AND($D$33="Yes",$C$22="Office Visits Separate"),IF(AV71=0,"Fail",IF(AW71>=(2/3),AW$45&" "&AU71,"Fail")),"N/A") -> N/A | BD71: Coinsurance | BE71: =SUMIF(tbl_OPOON_P1[Coinsurance],">0",tbl_OPOON_P1[Plan Projected Allowed Amount]) -> 0 | BF71: =IFERROR(BE71/BE$73,"") ->  | BG71: =IF(AND($F$30="Yes",$C$22="All Combined",$C$21="Yes"),IF(BE71=0,"Fail",IF(BF71>=(2/3),BF$45&" "&BD71,"Fail")),"N/A") -> N/A | BM71: Coinsurance | BN71: =SUMIF(tbl_OPOVOON_P1[Coinsurance],">0",tbl_OPOVOON_P1[Plan Projected Allowed Amount]) -> 0 | BO71: =IFERROR(BN71/BN$73,"") ->  | BP71: =IF(AND($F$32="Yes",$C$22="Office Visits Separate",$C$21="Yes"),IF(BN71=0,"Fail",IF(BO71>=(2/3),BO$45&" "&BM71,"Fail")),"N/A") -> N/A | BV71: Coinsurance | BW71: =SUMIF(tbl_OPAOOON_P1[Coinsurance],">0",tbl_OPAOOON_P1[Plan Projected Allowed Amount]) -> 0 | BX71: =IFERROR(BW71/BW$73,"") ->  | BY71: =IF(AND($F$33="Yes",$C$22="Office Visits Separate",$C$21="Yes"),IF(BW71=0,"Fail",IF(BX71>=(2/3),BX$45&" "&BV71,"Fail")),"N/A") -> N/A | CE71: Coinsurance | CF71: =SUMIF(tbl_ER_P1[Coinsurance],">0",tbl_ER_P1[Plan Projected Allowed Amount]) -> 0 | CG71: =IFERROR(CF71/CF$73,"") ->  | CH71: =IF($D$36="Yes",IF(CF71=0,"Fail",IF(CG71>=(2/3),CG$45&" "&CE71,"Fail")),"N/A") -> Fail | CN71: Coinsurance | CO71: =SUMIF(tbl_RX_P1[Coinsurance],">0",tbl_RX_P1[Plan Projected Allowed Amount]) -> 0 | CP71: =IFERROR(CO71/CO$73,"") ->  | CQ71: =IF($D$37="Yes",IF(CO71=0,"Fail",IF(CP71>=(2/3),CP$45&" "&CN71,"Fail")),"N/A") -> Fail
K72: OOPM | L72: =SUMIF(tbl_IPINN_P1[Out-of-Pocket Maximum (OOPM)],">0",tbl_IPINN_P1[Plan Projected Allowed Amount]) -> 0 | M72: =IFERROR(L72/L$73,"") ->  | N72: =IF($D$28="Yes",IF(L72=0,"Fail",IF(M72>=(2/3),M$45&" "&K72,"Fail")),"N/A") -> Fail | T72: OOPM | U72: =SUMIF(tbl_IPOON_P1[Out-of-Pocket Maximum (OOPM)],">0",tbl_IPOON_P1[Plan Projected Allowed Amount]) -> 0 | V72: =IFERROR(U72/U$73,"") ->  | W72: =IF(AND($F$28="Yes",$C$21="Yes"),IF(U72=0,"Fail",IF(V72>=(2/3),V$45&" "&T72,"Fail")),"N/A") -> N/A | AC72: OOPM | AD72: =SUMIF(tbl_OPINN_P1[Out-of-Pocket Maximum (OOPM)],">0",tbl_OPINN_P1[Plan Projected Allowed Amount]) -> 0 | AE72: =IFERROR(AD72/AD$73,"") ->  | AF72: =IF(AND($D$30="Yes",$C$22="All Combined"),IF(AD72=0,"Fail",IF(AE72>=(2/3),AE$45&" "&AC72,"Fail")),"N/A") -> N/A | AL72: OOPM | AM72: =SUMIF(tbl_OPOVINN_P1[Out-of-Pocket Maximum (OOPM)],">0",tbl_OPOVINN_P1[Plan Projected Allowed Amount]) -> 0 | AN72: =IFERROR(AM72/AM$73,"") ->  | AO72: =IF(AND($D$32="Yes",$C$22="Office Visits Separate"),IF(AM72=0,"Fail",IF(AN72>=(2/3),AN$45&" "&AL72,"Fail")),"N/A") -> N/A | AU72: OOPM | AV72: =SUMIF(tbl_OPAOINN_P1[Out-of-Pocket Maximum (OOPM)],">0",tbl_OPAOINN_P1[Plan Projected Allowed Amount]) -> 0 | AW72: =IFERROR(AV72/AV$73,"") ->  | AX72: =IF(AND($D$33="Yes",$C$22="Office Visits Separate"),IF(AV72=0,"Fail",IF(AW72>=(2/3),AW$45&" "&AU72,"Fail")),"N/A") -> N/A | BD72: OOPM | BE72: =SUMIF(tbl_OPOON_P1[Out-of-Pocket Maximum (OOPM)],">0",tbl_OPOON_P1[Plan Projected Allowed Amount]) -> 0 | BF72: =IFERROR(BE72/BE$73,"") ->  | BG72: =IF(AND($F$30="Yes",$C$22="All Combined",$C$21="Yes"),IF(BE72=0,"Fail",IF(BF72>=(2/3),BF$45&" "&BD72,"Fail")),"N/A") -> N/A | BM72: OOPM | BN72: =SUMIF(tbl_OPOVOON_P1[Out-of-Pocket Maximum (OOPM)],">0",tbl_OPOVOON_P1[Plan Projected Allowed Amount]) -> 0 | BO72: =IFERROR(BN72/BN$73,"") ->  | BP72: =IF(AND($F$32="Yes",$C$22="Office Visits Separate",$C$21="Yes"),IF(BN72=0,"Fail",IF(BO72>=(2/3),BO$45&" "&BM72,"Fail")),"N/A") -> N/A | BV72: OOPM | BW72: =SUMIF(tbl_OPAOOON_P1[Out-of-Pocket Maximum (OOPM)],">0",tbl_OPAOOON_P1[Plan Projected Allowed Amount]) -> 0 | BX72: =IFERROR(BW72/BW$73,"") ->  | BY72: =IF(AND($F$33="Yes",$C$22="Office Visits Separate",$C$21="Yes"),IF(BW72=0,"Fail",IF(BX72>=(2/3),BX$45&" "&BV72,"Fail")),"N/A") -> N/A | CE72: OOPM | CF72: =SUMIF(tbl_ER_P1[Out-of-Pocket Maximum (OOPM)],">0",tbl_ER_P1[Plan Projected Allowed Amount]) -> 0 | CG72: =IFERROR(CF72/CF$73,"") ->  | CH72: =IF($D$36="Yes",IF(CF72=0,"Fail",IF(CG72>=(2/3),CG$45&" "&CE72,"Fail")),"N/A") -> Fail | CN72: OOPM | CO72: =SUMIF(tbl_RX_P1[Out-of-Pocket Maximum (OOPM)],">0",tbl_RX_P1[Plan Projected Allowed Amount]) -> 0 | CP72: =IFERROR(CO72/CO$73,"") ->  | CQ72: =IF($D$37="Yes",IF(CO72=0,"Fail",IF(CP72>=(2/3),CP$45&" "&CN72,"Fail")),"N/A") -> Fail
K73: Total Projected | L73: =tbl_IPINN_P1[[#Totals],[Plan Projected Allowed Amount]] -> 0 | T73: Total Projected | U73: =tbl_IPOON_P1[[#Totals],[Plan Projected Allowed Amount]] -> 0 | AC73: Total Projected | AD73: =tbl_OPINN_P1[[#Totals],[Plan Projected Allowed Amount]] -> 0 | AL73: Total Projected | AM73: =tbl_OPOVINN_P1[[#Totals],[Plan Projected Allowed Amount]] -> 0 | AU73: Total Projected | AV73: =tbl_OPAOINN_P1[[#Totals],[Plan Projected Allowed Amount]] -> 0 | BD73: Total Projected | BE73: =tbl_OPOON_P1[[#Totals],[Plan Projected Allowed Amount]] -> 0 | BM73: Total Projected | BN73: =tbl_OPOVOON_P1[[#Totals],[Plan Projected Allowed Amount]] -> 0 | BV73: Total Projected | BW73: =tbl_OPAOOON_P1[[#Totals],[Plan Projected Allowed Amount]] -> 0 | CE73: Total Projected | CF73: =tbl_ER_P1[[#Totals],[Plan Projected Allowed Amount]] -> 0 | CN73: Total Projected | CO73: =tbl_RX_P1[[#Totals],[Plan Projected Allowed Amount]] -> 0
K75: Step 2 Predominant Level | T75: Step 2 Predominant Level | AC75: Step 2 Predominant Level | AL75: Step 2 Predominant Level | AU75: Step 2 Predominant Level | BD75: Step 2 Predominant Level | BM75: Step 2 Predominant Level | BV75: Step 2 Predominant Level | CE75: Step 2 Predominant Level | CN75: Step 2 Predominant Level
K76: =K80&" ---- "&L$40 -> Deductible ---- (1) Inpatient, In-Network (IP INN) | N76: Errors found: | O76: =COUNTIF(tbl_IPINN_P2Ded[[#Data],[#Totals],[Error Checking]],"?*") -> 0 | T76: =T80&" ---- "&U$40 -> Deductible ---- (2) Inpatient, Out-of-Network (IP OON) | W76: Errors found: | X76: =COUNTIF(tbl_IPOON_P2Ded[[#Data],[#Totals],[Error Checking]],"?*") -> 0 | AC76: =AC80&" ---- "&AD$40 -> Deductible ---- (3) Outpatient, In-Network (OP INN) | AF76: Errors found: | AG76: =COUNTIF(tbl_OPINN_P2Ded[[#Data],[#Totals],[Error Checking]],"?*") -> 0 | AL76: =AL80&" ---- "&AM$40 -> Deductible ---- (3a) Outpatient - Office Visits, In-Network (OP-OV INN) | AO76: Errors found: | AP76: =COUNTIF(tbl_OPOVINN_P2Ded[[#Data],[#Totals],[Error Checking]],"?*") -> 0 | AU76: =AU80&" ---- "&AV$40 -> Deductible ---- (3b) Outpatient - All Other, In-Network (OP-AO INN) | AX76: Errors found: | AY76: =COUNTIF(tbl_OPAOINN_P2Ded[[#Data],[#Totals],[Error Checking]],"?*") -> 0 | BD76: =BD80&" ---- "&BE$40 -> Deductible ---- (4) Outpatient, Out-of-Network (OP OON) | BG76: Errors found: | BH76: =COUNTIF(tbl_OPOON_P2Ded[[#Data],[#Totals],[Error Checking]],"?*") -> 0 | BM76: =BM80&" ---- "&BN$40 -> Deductible ---- (4a) Outpatient - Office Visits, Out-of-Network (OP-OV OON) | BP76: Errors found: | BQ76: =COUNTIF(tbl_OPOVOON_P2Ded[[#Data],[#Totals],[Error Checking]],"?*") -> 0 | BV76: =BV80&" ---- "&BW$40 -> Deductible ---- (4b) Outpatient - All Other, Out-of-Network (OP-AO OON) | BY76: Errors found: | BZ76: =COUNTIF(tbl_OPAOOON_P2Ded[[#Data],[#Totals],[Error Checking]],"?*") -> 0 | CE76: =CE80&" ---- "&CF$40 -> Deductible ---- (5) Emergency Care, (ER ) | CH76: Errors found: | CI76: =COUNTIF(tbl_ER_P2Ded[[#Data],[#Totals],[Error Checking]],"?*") -> 0 | CN76: =CN80&" ---- "&CO$40 -> Deductible ---- (6) Prescription Drugs, (RX ) | CQ76: Errors found: | CR76: =COUNTIF(tbl_RX_P2Ded[[#Data],[#Totals],[Error Checking]],"?*") -> 0
K77: =IF(INDEX(M$69:M$72,MATCH(K80,K$69:K$72,0))="","If testing is required for this benefit classification: Please ensure each different cost-share combination is entered above in PART 1.",IF(INDEX(M$69:M$72,MATCH(K80,K$69:K$72,0))>=(2/3),"Applies to substantially all medical/surgical benefits in this classification. ENTER different "&LOWER(K80)&" amounts from smallest to largest.","Does not apply to substantially all medical/surgical benefits in this classification. DELETE any values in the left-hand column below.")) -> If testing is required for this benefit classification: Please ensure each different cost-share combination is entered above in PART 1. | T77: =IF(INDEX(V$69:V$72,MATCH(T80,T$69:T$72,0))="","If testing is required for this benefit classification: Please ensure each different cost-share combination is entered above in PART 1.",IF(INDEX(V$69:V$72,MATCH(T80,T$69:T$72,0))>=(2/3),"Applies to substantially all medical/surgical benefits in this classification. ENTER different "&LOWER(T80)&" amounts from smallest to largest.","Does not apply to substantially all medical/surgical benefits in this classification. DELETE any values in the left-hand column below.")) -> If testing is required for this benefit classification: Please ensure each different cost-share combination is entered above in PART 1. | AC77: =IF(INDEX(AE$69:AE$72,MATCH(AC80,AC$69:AC$72,0))="","If testing is required for this benefit classification: Please ensure each different cost-share combination is entered above in PART 1.",IF(INDEX(AE$69:AE$72,MATCH(AC80,AC$69:AC$72,0))>=(2/3),"Applies to substantially all medical/surgical benefits in this classification. ENTER different "&LOWER(AC80)&" amounts from smallest to largest.","Does not apply to substantially all medical/surgical benefits in this classification. DELETE any values in the left-hand column below.")) -> If testing is required for this benefit classification: Please ensure each different cost-share combination is entered above in PART 1. | AL77: =IF(INDEX(AN$69:AN$72,MATCH(AL80,AL$69:AL$72,0))="","If testing is required for this benefit classification: Please ensure each different cost-share combination is entered above in PART 1.",IF(INDEX(AN$69:AN$72,MATCH(AL80,AL$69:AL$72,0))>=(2/3),"Applies to substantially all medical/surgical benefits in this classification. ENTER different "&LOWER(AL80)&" amounts from smallest to largest.","Does not apply to substantially all medical/surgical benefits in this classification. DELETE any values in the left-hand column below.")) -> If testing is required for this benefit classification: Please ensure each different cost-share combination is entered above in PART 1. | AU77: =IF(INDEX(AW$69:AW$72,MATCH(AU80,AU$69:AU$72,0))="","If testing is required for this benefit classification: Please ensure each different cost-share combination is entered above in PART 1.",IF(INDEX(AW$69:AW$72,MATCH(AU80,AU$69:AU$72,0))>=(2/3),"Applies to substantially all medical/surgical benefits in this classification. ENTER different "&LOWER(AU80)&" amounts from smallest to largest.","Does not apply to substantially all medical/surgical benefits in this classification. DELETE any values in the left-hand column below.")) -> If testing is required for this benefit classification: Please ensure each different cost-share combination is entered above in PART 1. | BD77: =IF(INDEX(BF$69:BF$72,MATCH(BD80,BD$69:BD$72,0))="","If testing is required for this benefit classification: Please ensure each different cost-share combination is entered above in PART 1.",IF(INDEX(BF$69:BF$72,MATCH(BD80,BD$69:BD$72,0))>=(2/3),"Applies to substantially all medical/surgical benefits in this classification. ENTER different "&LOWER(BD80)&" amounts from smallest to largest.","Does not apply to substantially all medical/surgical benefits in this classification. DELETE any values in the left-hand column below.")) -> If testing is required for this benefit classification: Please ensure each different cost-share combination is entered above in PART 1. | BM77: =IF(INDEX(BO$69:BO$72,MATCH(BM80,BM$69:BM$72,0))="","If testing is required for this benefit classification: Please ensure each different cost-share combination is entered above in PART 1.",IF(INDEX(BO$69:BO$72,MATCH(BM80,BM$69:BM$72,0))>=(2/3),"Applies to substantially all medical/surgical benefits in this classification. ENTER different "&LOWER(BM80)&" amounts from smallest to largest.","Does not apply to substantially all medical/surgical benefits in this classification. DELETE any values in the left-hand column below.")) -> If testing is required for this benefit classification: Please ensure each different cost-share combination is entered above in PART 1. | BV77: =IF(INDEX(BX$69:BX$72,MATCH(BV80,BV$69:BV$72,0))="","If testing is required for this benefit classification: Please ensure each different cost-share combination is entered above in PART 1.",IF(INDEX(BX$69:BX$72,MATCH(BV80,BV$69:BV$72,0))>=(2/3),"Applies to substantially all medical/surgical benefits in this classification. ENTER different "&LOWER(BV80)&" amounts from smallest to largest.","Does not apply to substantially all medical/surgical benefits in this classification. DELETE any values in the left-hand column below.")) -> If testing is required for this benefit classification: Please ensure each different cost-share combination is entered above in PART 1. | CE77: =IF(INDEX(CG$69:CG$72,MATCH(CE80,CE$69:CE$72,0))="","If testing is required for this benefit classification: Please ensure each different cost-share combination is entered above in PART 1.",IF(INDEX(CG$69:CG$72,MATCH(CE80,CE$69:CE$72,0))>=(2/3),"Applies to substantially all medical/surgical benefits in this classification. ENTER different "&LOWER(CE80)&" amounts from smallest to largest.","Does not apply to substantially all medical/surgical benefits in this classification. DELETE any values in the left-hand column below.")) -> If testing is required for this benefit classification: Please ensure each different cost-share combination is entered above in PART 1. | CN77: =IF(INDEX(CP$69:CP$72,MATCH(CN80,CN$69:CN$72,0))="","If testing is required for this benefit classification: Please ensure each different cost-share combination is entered above in PART 1.",IF(INDEX(CP$69:CP$72,MATCH(CN80,CN$69:CN$72,0))>=(2/3),"Applies to substantially all medical/surgical benefits in this classification. ENTER different "&LOWER(CN80)&" amounts from smallest to largest.","Does not apply to substantially all medical/surgical benefits in this classification. DELETE any values in the left-hand column below.")) -> If testing is required for this benefit classification: Please ensure each different cost-share combination is entered above in PART 1.
K80: Deductible | L80: Allowed Claims | M80: Portion | N80: Predominant & Smaller | O80: Error Checking | T80: Deductible | U80: Allowed Claims | V80: Portion | W80: Predominant & Smaller | X80: Error Checking | AC80: Deductible | AD80: Allowed Claims | AE80: Portion | AF80: Predominant & Smaller | AG80: Error Checking | AL80: Deductible | AM80: Allowed Claims | AN80: Portion | AO80: Predominant & Smaller | AP80: Error Checking | AU80: Deductible | AV80: Allowed Claims | AW80: Portion | AX80: Predominant & Smaller | AY80: Error Checking | BD80: Deductible | BE80: Allowed Claims | BF80: Portion | BG80: Predominant & Smaller | BH80: Error Checking | BM80: Deductible | BN80: Allowed Claims | BO80: Portion | BP80: Predominant & Smaller | BQ80: Error Checking | BV80: Deductible | BW80: Allowed Claims | BX80: Portion | BY80: Predominant & Smaller | BZ80: Error Checking | CE80: Deductible | CF80: Allowed Claims | CG80: Portion | CH80: Predominant & Smaller | CI80: Error Checking | CN80: Deductible | CO80: Allowed Claims | CP80: Portion | CQ80: Predominant & Smaller | CR80: Error Checking
L81: =SUMIF(tbl_IPINN_P1[Deductible],K81,tbl_IPINN_P1[Plan Projected Allowed Amount]) -> 0 | M81: =IF(OR(L81=0,L81=""),"",L81/tbl_IPINN_P2Ded[[#Totals],[Allowed Claims]]) ->  | N81: =IF(M81="","",IF(SUMIF(tbl_IPINN_P2Ded[Deductible],">="&K81,tbl_IPINN_P2Ded[Portion])>0.5,K81,"")) ->  | O81: =IF(COUNTIF(tbl_IPINN_P2Ded[Deductible],tbl_IPINN_P2Ded[[#This Row],[Deductible]])>1,"Remove Duplicate Entry.",IF(AND(tbl_IPINN_P2Ded[[#This Row],[Deductible]]<>"",tbl_IPINN_P2Ded[[#This Row],[Allowed Claims]]=0),"Entry not found in Part 1 Table",IF(AND(OFFSET(tbl_IPINN_P2Ded[[#This Row],[Deductible]],1,0)<>"Total",OFFSET(tbl_IPINN_P2Ded[[#This Row],[Deductible]],1,0)<>"",OFFSET(tbl_IPINN_P2Ded[[#This Row],[Deductible]],1,0)<tbl_IPINN_P2Ded[[#This Row],[Deductible]]),"Sort Entries from lowest to highest",""))) ->  | U81: =SUMIF(tbl_IPOON_P1[Deductible],T81,tbl_IPOON_P1[Plan Projected Allowed Amount]) -> 0 | V81: =IF(OR(U81=0,U81=""),"",U81/tbl_IPOON_P2Ded[[#Totals],[Allowed Claims]]) ->  | W81: =IF(V81="","",IF(SUMIF(tbl_IPOON_P2Ded[Deductible],">="&T81,tbl_IPOON_P2Ded[Portion])>0.5,T81,"")) ->  | X81: =IF(COUNTIF(tbl_IPOON_P2Ded[Deductible],tbl_IPOON_P2Ded[[#This Row],[Deductible]])>1,"Remove Duplicate Entry.",IF(AND(tbl_IPOON_P2Ded[[#This Row],[Deductible]]<>"",tbl_IPOON_P2Ded[[#This Row],[Allowed Claims]]=0),"Entry not found in Part 1 Table",IF(AND(OFFSET(tbl_IPOON_P2Ded[[#This Row],[Deductible]],1,0)<>"Total",OFFSET(tbl_IPOON_P2Ded[[#This Row],[Deductible]],1,0)<>"",OFFSET(tbl_IPOON_P2Ded[[#This Row],[Deductible]],1,0)<tbl_IPOON_P2Ded[[#This Row],[Deductible]]),"Sort Entries from lowest to highest",""))) ->  | AD81: =SUMIF(tbl_OPINN_P1[Deductible],AC81,tbl_OPINN_P1[Plan Projected Allowed Amount]) -> 0 | AE81: =IF(OR(AD81=0,AD81=""),"",AD81/tbl_OPINN_P2Ded[[#Totals],[Allowed Claims]]) ->  | AF81: =IF(AE81="","",IF(SUMIF(tbl_OPINN_P2Ded[Deductible],">="&AC81,tbl_OPINN_P2Ded[Portion])>0.5,AC81,"")) ->  | AG81: =IF(COUNTIF(tbl_OPINN_P2Ded[Deductible],tbl_OPINN_P2Ded[[#This Row],[Deductible]])>1,"Remove Duplicate Entry.",IF(AND(tbl_OPINN_P2Ded[[#This Row],[Deductible]]<>"",tbl_OPINN_P2Ded[[#This Row],[Allowed Claims]]=0),"Entry not found in Part 1 Table",IF(AND(OFFSET(tbl_OPINN_P2Ded[[#This Row],[Deductible]],1,0)<>"Total",OFFSET(tbl_OPINN_P2Ded[[#This Row],[Deductible]],1,0)<>"",OFFSET(tbl_OPINN_P2Ded[[#This Row],[Deductible]],1,0)<tbl_OPINN_P2Ded[[#This Row],[Deductible]]),"Sort Entries from lowest to highest",""))) ->  | AM81: =SUMIF(tbl_OPOVINN_P1[Deductible],AL81,tbl_OPOVINN_P1[Plan Projected Allowed Amount]) -> 0 | AN81: =IF(OR(AM81=0,AM81=""),"",AM81/tbl_OPOVINN_P2Ded[[#Totals],[Allowed Claims]]) ->  | AO81: =IF(AN81="","",IF(SUMIF(tbl_OPOVINN_P2Ded[Deductible],">="&AL81,tbl_OPOVINN_P2Ded[Portion])>0.5,AL81,"")) ->  | AP81: =IF(COUNTIF(tbl_OPOVINN_P2Ded[Deductible],tbl_OPOVINN_P2Ded[[#This Row],[Deductible]])>1,"Remove Duplicate Entry.",IF(AND(tbl_OPOVINN_P2Ded[[#This Row],[Deductible]]<>"",tbl_OPOVINN_P2Ded[[#This Row],[Allowed Claims]]=0),"Entry not found in Part 1 Table",IF(AND(OFFSET(tbl_OPOVINN_P2Ded[[#This Row],[Deductible]],1,0)<>"Total",OFFSET(tbl_OPOVINN_P2Ded[[#This Row],[Deductible]],1,0)<>"",OFFSET(tbl_OPOVINN_P2Ded[[#This Row],[Deductible]],1,0)<tbl_OPOVINN_P2Ded[[#This Row],[Deductible]]),"Sort Entries from lowest to highest",""))) ->  | AV81: =SUMIF(tbl_OPAOINN_P1[Deductible],AU81,tbl_OPAOINN_P1[Plan Projected Allowed Amount]) -> 0 | AW81: =IF(OR(AV81=0,AV81=""),"",AV81/tbl_OPAOINN_P2Ded[[#Totals],[Allowed Claims]]) ->  | AX81: =IF(AW81="","",IF(SUMIF(tbl_OPAOINN_P2Ded[Deductible],">="&AU81,tbl_OPAOINN_P2Ded[Portion])>0.5,AU81,"")) ->  | AY81: =IF(COUNTIF(tbl_OPAOINN_P2Ded[Deductible],tbl_OPAOINN_P2Ded[[#This Row],[Deductible]])>1,"Remove Duplicate Entry.",IF(AND(tbl_OPAOINN_P2Ded[[#This Row],[Deductible]]<>"",tbl_OPAOINN_P2Ded[[#This Row],[Allowed Claims]]=0),"Entry not found in Part 1 Table",IF(AND(OFFSET(tbl_OPAOINN_P2Ded[[#This Row],[Deductible]],1,0)<>"Total",OFFSET(tbl_OPAOINN_P2Ded[[#This Row],[Deductible]],1,0)<>"",OFFSET(tbl_OPAOINN_P2Ded[[#This Row],[Deductible]],1,0)<tbl_OPAOINN_P2Ded[[#This Row],[Deductible]]),"Sort Entries from lowest to highest",""))) ->  | BE81: =SUMIF(tbl_OPOON_P1[Deductible],BD81,tbl_OPOON_P1[Plan Projected Allowed Amount]) -> 0 | BF81: =IF(OR(BE81=0,BE81=""),"",BE81/tbl_OPOON_P2Ded[[#Totals],[Allowed Claims]]) ->  | BG81: =IF(BF81="","",IF(SUMIF(tbl_OPOON_P2Ded[Deductible],">="&BD81,tbl_OPOON_P2Ded[Portion])>0.5,BD81,"")) ->  | BH81: =IF(COUNTIF(tbl_OPOON_P2Ded[Deductible],tbl_OPOON_P2Ded[[#This Row],[Deductible]])>1,"Remove Duplicate Entry.",IF(AND(tbl_OPOON_P2Ded[[#This Row],[Deductible]]<>"",tbl_OPOON_P2Ded[[#This Row],[Allowed Claims]]=0),"Entry not found in Part 1 Table",IF(AND(OFFSET(tbl_OPOON_P2Ded[[#This Row],[Deductible]],1,0)<>"Total",OFFSET(tbl_OPOON_P2Ded[[#This Row],[Deductible]],1,0)<>"",OFFSET(tbl_OPOON_P2Ded[[#This Row],[Deductible]],1,0)<tbl_OPOON_P2Ded[[#This Row],[Deductible]]),"Sort Entries from lowest to highest",""))) ->  | BN81: =SUMIF(tbl_OPOVOON_P1[Deductible],BM81,tbl_OPOVOON_P1[Plan Projected Allowed Amount]) -> 0 | BO81: =IF(OR(BN81=0,BN81=""),"",BN81/tbl_OPOVOON_P2Ded[[#Totals],[Allowed Claims]]) ->  | BP81: =IF(BO81="","",IF(SUMIF(tbl_OPOVOON_P2Ded[Deductible],">="&BM81,tbl_OPOVOON_P2Ded[Portion])>0.5,BM81,"")) ->  | BQ81: =IF(COUNTIF(tbl_OPOVOON_P2Ded[Deductible],tbl_OPOVOON_P2Ded[[#This Row],[Deductible]])>1,"Remove Duplicate Entry.",IF(AND(tbl_OPOVOON_P2Ded[[#This Row],[Deductible]]<>"",tbl_OPOVOON_P2Ded[[#This Row],[Allowed Claims]]=0),"Entry not found in Part 1 Table",IF(AND(OFFSET(tbl_OPOVOON_P2Ded[[#This Row],[Deductible]],1,0)<>"Total",OFFSET(tbl_OPOVOON_P2Ded[[#This Row],[Deductible]],1,0)<>"",OFFSET(tbl_OPOVOON_P2Ded[[#This Row],[Deductible]],1,0)<tbl_OPOVOON_P2Ded[[#This Row],[Deductible]]),"Sort Entries from lowest to highest",""))) ->  | BW81: =SUMIF(tbl_OPAOOON_P1[Deductible],BV81,tbl_OPAOOON_P1[Plan Projected Allowed Amount]) -> 0 | BX81: =IF(OR(BW81=0,BW81=""),"",BW81/tbl_OPAOOON_P2Ded[[#Totals],[Allowed Claims]]) ->  | BY81: =IF(BX81="","",IF(SUMIF(tbl_OPAOOON_P2Ded[Deductible],">="&BV81,tbl_OPAOOON_P2Ded[Portion])>0.5,BV81,"")) ->  | BZ81: =IF(COUNTIF(tbl_OPAOOON_P2Ded[Deductible],tbl_OPAOOON_P2Ded[[#This Row],[Deductible]])>1,"Remove Duplicate Entry.",IF(AND(tbl_OPAOOON_P2Ded[[#This Row],[Deductible]]<>"",tbl_OPAOOON_P2Ded[[#This Row],[Allowed Claims]]=0),"Entry not found in Part 1 Table",IF(AND(OFFSET(tbl_OPAOOON_P2Ded[[#This Row],[Deductible]],1,0)<>"Total",OFFSET(tbl_OPAOOON_P2Ded[[#This Row],[Deductible]],1,0)<>"",OFFSET(tbl_OPAOOON_P2Ded[[#This Row],[Deductible]],1,0)<tbl_OPAOOON_P2Ded[[#This Row],[Deductible]]),"Sort Entries from lowest to highest",""))) ->  | CF81: =SUMIF(tbl_ER_P1[Deductible],CE81,tbl_ER_P1[Plan Projected Allowed Amount]) -> 0 | CG81: =IF(OR(CF81=0,CF81=""),"",CF81/tbl_ER_P2Ded[[#Totals],[Allowed Claims]]) ->  | CH81: =IF(CG81="","",IF(SUMIF(tbl_ER_P2Ded[Deductible],">="&CE81,tbl_ER_P2Ded[Portion])>0.5,CE81,"")) ->  | CI81: =IF(COUNTIF(tbl_ER_P2Ded[Deductible],tbl_ER_P2Ded[[#This Row],[Deductible]])>1,"Remove Duplicate Entry.",IF(AND(tbl_ER_P2Ded[[#This Row],[Deductible]]<>"",tbl_ER_P2Ded[[#This Row],[Allowed Claims]]=0),"Entry not found in Part 1 Table",IF(AND(OFFSET(tbl_ER_P2Ded[[#This Row],[Deductible]],1,0)<>"Total",OFFSET(tbl_ER_P2Ded[[#This Row],[Deductible]],1,0)<>"",OFFSET(tbl_ER_P2Ded[[#This Row],[Deductible]],1,0)<tbl_ER_P2Ded[[#This Row],[Deductible]]),"Sort Entries from lowest to highest",""))) ->  | CO81: =SUMIF(tbl_RX_P1[Deductible],CN81,tbl_RX_P1[Plan Projected Allowed Amount]) -> 0 | CP81: =IF(OR(CO81=0,CO81=""),"",CO81/tbl_RX_P2Ded[[#Totals],[Allowed Claims]]) ->  | CQ81: =IF(CP81="","",IF(SUMIF(tbl_RX_P2Ded[Deductible],">="&CN81,tbl_RX_P2Ded[Portion])>0.5,CN81,"")) ->  | CR81: =IF(COUNTIF(tbl_RX_P2Ded[Deductible],tbl_RX_P2Ded[[#This Row],[Deductible]])>1,"Remove Duplicate Entry.",IF(AND(tbl_RX_P2Ded[[#This Row],[Deductible]]<>"",tbl_RX_P2Ded[[#This Row],[Allowed Claims]]=0),"Entry not found in Part 1 Table",IF(AND(OFFSET(tbl_RX_P2Ded[[#This Row],[Deductible]],1,0)<>"Total",OFFSET(tbl_RX_P2Ded[[#This Row],[Deductible]],1,0)<>"",OFFSET(tbl_RX_P2Ded[[#This Row],[Deductible]],1,0)<tbl_RX_P2Ded[[#This Row],[Deductible]]),"Sort Entries from lowest to highest",""))) -> 
L82: =SUMIF(tbl_IPINN_P1[Deductible],K82,tbl_IPINN_P1[Plan Projected Allowed Amount]) -> 0 | M82: =IF(OR(L82=0,L82=""),"",L82/tbl_IPINN_P2Ded[[#Totals],[Allowed Claims]]) ->  | N82: =IF(M82="","",IF(SUMIF(tbl_IPINN_P2Ded[Deductible],">="&K82,tbl_IPINN_P2Ded[Portion])>0.5,K82,"")) ->  | O82: =IF(COUNTIF(tbl_IPINN_P2Ded[Deductible],tbl_IPINN_P2Ded[[#This Row],[Deductible]])>1,"Remove Duplicate Entry.",IF(AND(tbl_IPINN_P2Ded[[#This Row],[Deductible]]<>"",tbl_IPINN_P2Ded[[#This Row],[Allowed Claims]]=0),"Entry not found in Part 1 Table",IF(AND(OFFSET(tbl_IPINN_P2Ded[[#This Row],[Deductible]],1,0)<>"Total",OFFSET(tbl_IPINN_P2Ded[[#This Row],[Deductible]],1,0)<>"",OFFSET(tbl_IPINN_P2Ded[[#This Row],[Deductible]],1,0)<tbl_IPINN_P2Ded[[#This Row],[Deductible]]),"Sort Entries from lowest to highest",""))) ->  | U82: =SUMIF(tbl_IPOON_P1[Deductible],T82,tbl_IPOON_P1[Plan Projected Allowed Amount]) -> 0 | V82: =IF(OR(U82=0,U82=""),"",U82/tbl_IPOON_P2Ded[[#Totals],[Allowed Claims]]) ->  | W82: =IF(V82="","",IF(SUMIF(tbl_IPOON_P2Ded[Deductible],">="&T82,tbl_IPOON_P2Ded[Portion])>0.5,T82,"")) ->  | X82: =IF(COUNTIF(tbl_IPOON_P2Ded[Deductible],tbl_IPOON_P2Ded[[#This Row],[Deductible]])>1,"Remove Duplicate Entry.",IF(AND(tbl_IPOON_P2Ded[[#This Row],[Deductible]]<>"",tbl_IPOON_P2Ded[[#This Row],[Allowed Claims]]=0),"Entry not found in Part 1 Table",IF(AND(OFFSET(tbl_IPOON_P2Ded[[#This Row],[Deductible]],1,0)<>"Total",OFFSET(tbl_IPOON_P2Ded[[#This Row],[Deductible]],1,0)<>"",OFFSET(tbl_IPOON_P2Ded[[#This Row],[Deductible]],1,0)<tbl_IPOON_P2Ded[[#This Row],[Deductible]]),"Sort Entries from lowest to highest",""))) ->  | AD82: =SUMIF(tbl_OPINN_P1[Deductible],AC82,tbl_OPINN_P1[Plan Projected Allowed Amount]) -> 0 | AE82: =IF(OR(AD82=0,AD82=""),"",AD82/tbl_OPINN_P2Ded[[#Totals],[Allowed Claims]]) ->  | AF82: =IF(AE82="","",IF(SUMIF(tbl_OPINN_P2Ded[Deductible],">="&AC82,tbl_OPINN_P2Ded[Portion])>0.5,AC82,"")) ->  | AG82: =IF(COUNTIF(tbl_OPINN_P2Ded[Deductible],tbl_OPINN_P2Ded[[#This Row],[Deductible]])>1,"Remove Duplicate Entry.",IF(AND(tbl_OPINN_P2Ded[[#This Row],[Deductible]]<>"",tbl_OPINN_P2Ded[[#This Row],[Allowed Claims]]=0),"Entry not found in Part 1 Table",IF(AND(OFFSET(tbl_OPINN_P2Ded[[#This Row],[Deductible]],1,0)<>"Total",OFFSET(tbl_OPINN_P2Ded[[#This Row],[Deductible]],1,0)<>"",OFFSET(tbl_OPINN_P2Ded[[#This Row],[Deductible]],1,0)<tbl_OPINN_P2Ded[[#This Row],[Deductible]]),"Sort Entries from lowest to highest",""))) ->  | AM82: =SUMIF(tbl_OPOVINN_P1[Deductible],AL82,tbl_OPOVINN_P1[Plan Projected Allowed Amount]) -> 0 | AN82: =IF(OR(AM82=0,AM82=""),"",AM82/tbl_OPOVINN_P2Ded[[#Totals],[Allowed Claims]]) ->  | AO82: =IF(AN82="","",IF(SUMIF(tbl_OPOVINN_P2Ded[Deductible],">="&AL82,tbl_OPOVINN_P2Ded[Portion])>0.5,AL82,"")) ->  | AP82: =IF(COUNTIF(tbl_OPOVINN_P2Ded[Deductible],tbl_OPOVINN_P2Ded[[#This Row],[Deductible]])>1,"Remove Duplicate Entry.",IF(AND(tbl_OPOVINN_P2Ded[[#This Row],[Deductible]]<>"",tbl_OPOVINN_P2Ded[[#This Row],[Allowed Claims]]=0),"Entry not found in Part 1 Table",IF(AND(OFFSET(tbl_OPOVINN_P2Ded[[#This Row],[Deductible]],1,0)<>"Total",OFFSET(tbl_OPOVINN_P2Ded[[#This Row],[Deductible]],1,0)<>"",OFFSET(tbl_OPOVINN_P2Ded[[#This Row],[Deductible]],1,0)<tbl_OPOVINN_P2Ded[[#This Row],[Deductible]]),"Sort Entries from lowest to highest",""))) ->  | AV82: =SUMIF(tbl_OPAOINN_P1[Deductible],AU82,tbl_OPAOINN_P1[Plan Projected Allowed Amount]) -> 0 | AW82: =IF(OR(AV82=0,AV82=""),"",AV82/tbl_OPAOINN_P2Ded[[#Totals],[Allowed Claims]]) ->  | AX82: =IF(AW82="","",IF(SUMIF(tbl_OPAOINN_P2Ded[Deductible],">="&AU82,tbl_OPAOINN_P2Ded[Portion])>0.5,AU82,"")) ->  | AY82: =IF(COUNTIF(tbl_OPAOINN_P2Ded[Deductible],tbl_OPAOINN_P2Ded[[#This Row],[Deductible]])>1,"Remove Duplicate Entry.",IF(AND(tbl_OPAOINN_P2Ded[[#This Row],[Deductible]]<>"",tbl_OPAOINN_P2Ded[[#This Row],[Allowed Claims]]=0),"Entry not found in Part 1 Table",IF(AND(OFFSET(tbl_OPAOINN_P2Ded[[#This Row],[Deductible]],1,0)<>"Total",OFFSET(tbl_OPAOINN_P2Ded[[#This Row],[Deductible]],1,0)<>"",OFFSET(tbl_OPAOINN_P2Ded[[#This Row],[Deductible]],1,0)<tbl_OPAOINN_P2Ded[[#This Row],[Deductible]]),"Sort Entries from lowest to highest",""))) ->  | BE82: =SUMIF(tbl_OPOON_P1[Deductible],BD82,tbl_OPOON_P1[Plan Projected Allowed Amount]) -> 0 | BF82: =IF(OR(BE82=0,BE82=""),"",BE82/tbl_OPOON_P2Ded[[#Totals],[Allowed Claims]]) ->  | BG82: =IF(BF82="","",IF(SUMIF(tbl_OPOON_P2Ded[Deductible],">="&BD82,tbl_OPOON_P2Ded[Portion])>0.5,BD82,"")) ->  | BH82: =IF(COUNTIF(tbl_OPOON_P2Ded[Deductible],tbl_OPOON_P2Ded[[#This Row],[Deductible]])>1,"Remove Duplicate Entry.",IF(AND(tbl_OPOON_P2Ded[[#This Row],[Deductible]]<>"",tbl_OPOON_P2Ded[[#This Row],[Allowed Claims]]=0),"Entry not found in Part 1 Table",IF(AND(OFFSET(tbl_OPOON_P2Ded[[#This Row],[Deductible]],1,0)<>"Total",OFFSET(tbl_OPOON_P2Ded[[#This Row],[Deductible]],1,0)<>"",OFFSET(tbl_OPOON_P2Ded[[#This Row],[Deductible]],1,0)<tbl_OPOON_P2Ded[[#This Row],[Deductible]]),"Sort Entries from lowest to highest",""))) ->  | BN82: =SUMIF(tbl_OPOVOON_P1[Deductible],BM82,tbl_OPOVOON_P1[Plan Projected Allowed Amount]) -> 0 | BO82: =IF(OR(BN82=0,BN82=""),"",BN82/tbl_OPOVOON_P2Ded[[#Totals],[Allowed Claims]]) ->  | BP82: =IF(BO82="","",IF(SUMIF(tbl_OPOVOON_P2Ded[Deductible],">="&BM82,tbl_OPOVOON_P2Ded[Portion])>0.5,BM82,"")) ->  | BQ82: =IF(COUNTIF(tbl_OPOVOON_P2Ded[Deductible],tbl_OPOVOON_P2Ded[[#This Row],[Deductible]])>1,"Remove Duplicate Entry.",IF(AND(tbl_OPOVOON_P2Ded[[#This Row],[Deductible]]<>"",tbl_OPOVOON_P2Ded[[#This Row],[Allowed Claims]]=0),"Entry not found in Part 1 Table",IF(AND(OFFSET(tbl_OPOVOON_P2Ded[[#This Row],[Deductible]],1,0)<>"Total",OFFSET(tbl_OPOVOON_P2Ded[[#This Row],[Deductible]],1,0)<>"",OFFSET(tbl_OPOVOON_P2Ded[[#This Row],[Deductible]],1,0)<tbl_OPOVOON_P2Ded[[#This Row],[Deductible]]),"Sort Entries from lowest to highest",""))) ->  | BW82: =SUMIF(tbl_OPAOOON_P1[Deductible],BV82,tbl_OPAOOON_P1[Plan Projected Allowed Amount]) -> 0 | BX82: =IF(OR(BW82=0,BW82=""),"",BW82/tbl_OPAOOON_P2Ded[[#Totals],[Allowed Claims]]) ->  | BY82: =IF(BX82="","",IF(SUMIF(tbl_OPAOOON_P2Ded[Deductible],">="&BV82,tbl_OPAOOON_P2Ded[Portion])>0.5,BV82,"")) ->  | BZ82: =IF(COUNTIF(tbl_OPAOOON_P2Ded[Deductible],tbl_OPAOOON_P2Ded[[#This Row],[Deductible]])>1,"Remove Duplicate Entry.",IF(AND(tbl_OPAOOON_P2Ded[[#This Row],[Deductible]]<>"",tbl_OPAOOON_P2Ded[[#This Row],[Allowed Claims]]=0),"Entry not found in Part 1 Table",IF(AND(OFFSET(tbl_OPAOOON_P2Ded[[#This Row],[Deductible]],1,0)<>"Total",OFFSET(tbl_OPAOOON_P2Ded[[#This Row],[Deductible]],1,0)<>"",OFFSET(tbl_OPAOOON_P2Ded[[#This Row],[Deductible]],1,0)<tbl_OPAOOON_P2Ded[[#This Row],[Deductible]]),"Sort Entries from lowest to highest",""))) ->  | CF82: =SUMIF(tbl_ER_P1[Deductible],CE82,tbl_ER_P1[Plan Projected Allowed Amount]) -> 0 | CG82: =IF(OR(CF82=0,CF82=""),"",CF82/tbl_ER_P2Ded[[#Totals],[Allowed Claims]]) ->  | CH82: =IF(CG82="","",IF(SUMIF(tbl_ER_P2Ded[Deductible],">="&CE82,tbl_ER_P2Ded[Portion])>0.5,CE82,"")) ->  | CI82: =IF(COUNTIF(tbl_ER_P2Ded[Deductible],tbl_ER_P2Ded[[#This Row],[Deductible]])>1,"Remove Duplicate Entry.",IF(AND(tbl_ER_P2Ded[[#This Row],[Deductible]]<>"",tbl_ER_P2Ded[[#This Row],[Allowed Claims]]=0),"Entry not found in Part 1 Table",IF(AND(OFFSET(tbl_ER_P2Ded[[#This Row],[Deductible]],1,0)<>"Total",OFFSET(tbl_ER_P2Ded[[#This Row],[Deductible]],1,0)<>"",OFFSET(tbl_ER_P2Ded[[#This Row],[Deductible]],1,0)<tbl_ER_P2Ded[[#This Row],[Deductible]]),"Sort Entries from lowest to highest",""))) ->  | CO82: =SUMIF(tbl_RX_P1[Deductible],CN82,tbl_RX_P1[Plan Projected Allowed Amount]) -> 0 | CP82: =IF(OR(CO82=0,CO82=""),"",CO82/tbl_RX_P2Ded[[#Totals],[Allowed Claims]]) ->  | CQ82: =IF(CP82="","",IF(SUMIF(tbl_RX_P2Ded[Deductible],">="&CN82,tbl_RX_P2Ded[Portion])>0.5,CN82,"")) ->  | CR82: =IF(COUNTIF(tbl_RX_P2Ded[Deductible],tbl_RX_P2Ded[[#This Row],[Deductible]])>1,"Remove Duplicate Entry.",IF(AND(tbl_RX_P2Ded[[#This Row],[Deductible]]<>"",tbl_RX_P2Ded[[#This Row],[Allowed Claims]]=0),"Entry not found in Part 1 Table",IF(AND(OFFSET(tbl_RX_P2Ded[[#This Row],[Deductible]],1,0)<>"Total",OFFSET(tbl_RX_P2Ded[[#This Row],[Deductible]],1,0)<>"",OFFSET(tbl_RX_P2Ded[[#This Row],[Deductible]],1,0)<tbl_RX_P2Ded[[#This Row],[Deductible]]),"Sort Entries from lowest to highest",""))) -> 
K83: Total | L83: =SUBTOTAL(109,tbl_IPINN_P2Ded[Allowed Claims]) -> 0 | M83: =SUBTOTAL(109,tbl_IPINN_P2Ded[Portion]) -> 0 | O83: =IF(AND(tbl_IPINN_P2Ded[[#Totals],[Allowed Claims]]<L69,N69<>"Fail",N69<>"N/A"),"Add missing cost share values.",IF(L83>M55,"Delete extra row or edit deductible values.","")) ->  | T83: Total | U83: =SUBTOTAL(109,tbl_IPOON_P2Ded[Allowed Claims]) -> 0 | V83: =SUBTOTAL(109,tbl_IPOON_P2Ded[Portion]) -> 0 | X83: =IF(AND(tbl_IPOON_P2Ded[[#Totals],[Allowed Claims]]<U69,W69<>"Fail",W69<>"N/A"),"Add missing cost share values.",IF(U83>V55,"Delete extra row or edit deductible values.","")) ->  | AC83: Total | AD83: =SUBTOTAL(109,tbl_OPINN_P2Ded[Allowed Claims]) -> 0 | AE83: =SUBTOTAL(109,tbl_OPINN_P2Ded[Portion]) -> 0 | AG83: =IF(AND(tbl_OPINN_P2Ded[[#Totals],[Allowed Claims]]<AD69,AF69<>"Fail",AF69<>"N/A"),"Add missing cost share values.",IF(AD83>AE55,"Delete extra row or edit deductible values.","")) ->  | AL83: Total | AM83: =SUBTOTAL(109,tbl_OPOVINN_P2Ded[Allowed Claims]) -> 0 | AN83: =SUBTOTAL(109,tbl_OPOVINN_P2Ded[Portion]) -> 0 | AP83: =IF(AND(tbl_OPOVINN_P2Ded[[#Totals],[Allowed Claims]]<AM69,AO69<>"Fail",AO69<>"N/A"),"Add missing cost share values.",IF(AM83>AN55,"Delete extra row or edit deductible values.","")) ->  | AU83: Total | AV83: =SUBTOTAL(109,tbl_OPAOINN_P2Ded[Allowed Claims]) -> 0 | AW83: =SUBTOTAL(109,tbl_OPAOINN_P2Ded[Portion]) -> 0 | AY83: =IF(AND(tbl_OPAOINN_P2Ded[[#Totals],[Allowed Claims]]<AV69,AX69<>"Fail",AX69<>"N/A"),"Add missing cost share values.",IF(AV83>AW55,"Delete extra row or edit deductible values.","")) ->  | BD83: Total | BE83: =SUBTOTAL(109,tbl_OPOON_P2Ded[Allowed Claims]) -> 0 | BF83: =SUBTOTAL(109,tbl_OPOON_P2Ded[Portion]) -> 0 | BH83: =IF(AND(tbl_OPOON_P2Ded[[#Totals],[Allowed Claims]]<BE69,BG69<>"Fail",BG69<>"N/A"),"Add missing cost share values.",IF(BE83>BF55,"Delete extra row or edit deductible values.","")) ->  | BM83: Total | BN83: =SUBTOTAL(109,tbl_OPOVOON_P2Ded[Allowed Claims]) -> 0 | BO83: =SUBTOTAL(109,tbl_OPOVOON_P2Ded[Portion]) -> 0 | BQ83: =IF(AND(tbl_OPOVOON_P2Ded[[#Totals],[Allowed Claims]]<BN69,BP69<>"Fail",BP69<>"N/A"),"Add missing cost share values.",IF(BN83>BO55,"Delete extra row or edit deductible values.","")) ->  | BV83: Total | BW83: =SUBTOTAL(109,tbl_OPAOOON_P2Ded[Allowed Claims]) -> 0 | BX83: =SUBTOTAL(109,tbl_OPAOOON_P2Ded[Portion]) -> 0 | BZ83: =IF(AND(tbl_OPAOOON_P2Ded[[#Totals],[Allowed Claims]]<BW69,BY69<>"Fail",BY69<>"N/A"),"Add missing cost share values.",IF(BW83>BX55,"Delete extra row or edit deductible values.","")) ->  | CE83: Total | CF83: =SUBTOTAL(109,tbl_ER_P2Ded[Allowed Claims]) -> 0 | CG83: =SUBTOTAL(109,tbl_ER_P2Ded[Portion]) -> 0 | CI83: =IF(AND(tbl_ER_P2Ded[[#Totals],[Allowed Claims]]<CF69,CH69<>"Fail",CH69<>"N/A"),"Add missing cost share values.",IF(CF83>CG55,"Delete extra row or edit deductible values.","")) ->  | CN83: Total | CO83: =SUBTOTAL(109,tbl_RX_P2Ded[Allowed Claims]) -> 0 | CP83: =SUBTOTAL(109,tbl_RX_P2Ded[Portion]) -> 0 | CR83: =IF(AND(tbl_RX_P2Ded[[#Totals],[Allowed Claims]]<CO69,CQ69<>"Fail",CQ69<>"N/A"),"Add missing cost share values.",IF(CO83>CP55,"Delete extra row or edit deductible values.","")) -> 
K85: =K89&" ---- "&L$40 -> Copayment ---- (1) Inpatient, In-Network (IP INN) | N85: Errors found: | O85: =COUNTIF(tbl_IPINN_P2Cop[[#Data],[#Totals],[Error Checking]],"?*") -> 0 | T85: =T89&" ---- "&U$40 -> Copayment ---- (2) Inpatient, Out-of-Network (IP OON) | W85: Errors found: | X85: =COUNTIF(tbl_IPOON_P2Cop[[#Data],[#Totals],[Error Checking]],"?*") -> 0 | AC85: =AC89&" ---- "&AD$40 -> Copayment ---- (3) Outpatient, In-Network (OP INN) | AF85: Errors found: | AG85: =COUNTIF(tbl_OPINN_P2Cop[[#Data],[#Totals],[Error Checking]],"?*") -> 0 | AL85: =AL89&" ---- "&AM$40 -> Copayment ---- (3a) Outpatient - Office Visits, In-Network (OP-OV INN) | AO85: Errors found: | AP85: =COUNTIF(tbl_OPOVINN_P2Cop[[#Data],[#Totals],[Error Checking]],"?*") -> 0 | AU85: =AU89&" ---- "&AV$40 -> Copayment ---- (3b) Outpatient - All Other, In-Network (OP-AO INN) | AX85: Errors found: | AY85: =COUNTIF(tbl_OPAOINN_P2Cop[[#Data],[#Totals],[Error Checking]],"?*") -> 0 | BD85: =BD89&" ---- "&BE$40 -> Copayment ---- (4) Outpatient, Out-of-Network (OP OON) | BG85: Errors found: | BH85: =COUNTIF(tbl_OPOON_P2Cop[[#Data],[#Totals],[Error Checking]],"?*") -> 0 | BM85: =BM89&" ---- "&BN$40 -> Copayment ---- (4a) Outpatient - Office Visits, Out-of-Network (OP-OV OON) | BP85: Errors found: | BQ85: =COUNTIF(tbl_OPOVOON_P2Cop[[#Data],[#Totals],[Error Checking]],"?*") -> 0 | BV85: =BV89&" ---- "&BW$40 -> Copayment ---- (4b) Outpatient - All Other, Out-of-Network (OP-AO OON) | BY85: Errors found: | BZ85: =COUNTIF(tbl_OPAOOON_P2Cop[[#Data],[#Totals],[Error Checking]],"?*") -> 0 | CE85: =CE89&" ---- "&CF$40 -> Copayment ---- (5) Emergency Care, (ER ) | CH85: Errors found: | CI85: =COUNTIF(tbl_ER_P2Cop[[#Data],[#Totals],[Error Checking]],"?*") -> 0 | CN85: =CN89&" ---- "&CO$40 -> Copayment ---- (6) Prescription Drugs, (RX ) | CQ85: Errors found: | CR85: =COUNTIF(tbl_RX_P2Cop[[#Data],[#Totals],[Error Checking]],"?*") -> 0
K86: =IF(INDEX(M$69:M$72,MATCH(K89,K$69:K$72,0))="","If testing is required for this benefit classification: Please ensure each different cost-share combination is entered above in PART 1.",IF(INDEX(M$69:M$72,MATCH(K89,K$69:K$72,0))>=(2/3),"Applies to substantially all medical/surgical benefits in this classification. ENTER different "&LOWER(K89)&" amounts from smallest to largest.","Does not apply to substantially all medical/surgical benefits in this classification. DELETE any values in the left-hand column below.")) -> If testing is required for this benefit classification: Please ensure each different cost-share combination is entered above in PART 1. | T86: =IF(INDEX(V$69:V$72,MATCH(T89,T$69:T$72,0))="","If testing is required for this benefit classification: Please ensure each different cost-share combination is entered above in PART 1.",IF(INDEX(V$69:V$72,MATCH(T89,T$69:T$72,0))>=(2/3),"Applies to substantially all medical/surgical benefits in this classification. ENTER different "&LOWER(T89)&" amounts from smallest to largest.","Does not apply to substantially all medical/surgical benefits in this classification. DELETE any values in the left-hand column below.")) -> If testing is required for this benefit classification: Please ensure each different cost-share combination is entered above in PART 1. | AC86: =IF(INDEX(AE$69:AE$72,MATCH(AC89,AC$69:AC$72,0))="","If testing is required for this benefit classification: Please ensure each different cost-share combination is entered above in PART 1.",IF(INDEX(AE$69:AE$72,MATCH(AC89,AC$69:AC$72,0))>=(2/3),"Applies to substantially all medical/surgical benefits in this classification. ENTER different "&LOWER(AC89)&" amounts from smallest to largest.","Does not apply to substantially all medical/surgical benefits in this classification. DELETE any values in the left-hand column below.")) -> If testing is required for this benefit classification: Please ensure each different cost-share combination is entered above in PART 1. | AL86: =IF(INDEX(AN$69:AN$72,MATCH(AL89,AL$69:AL$72,0))="","If testing is required for this benefit classification: Please ensure each different cost-share combination is entered above in PART 1.",IF(INDEX(AN$69:AN$72,MATCH(AL89,AL$69:AL$72,0))>=(2/3),"Applies to substantially all medical/surgical benefits in this classification. ENTER different "&LOWER(AL89)&" amounts from smallest to largest.","Does not apply to substantially all medical/surgical benefits in this classification. DELETE any values in the left-hand column below.")) -> If testing is required for this benefit classification: Please ensure each different cost-share combination is entered above in PART 1. | AU86: =IF(INDEX(AW$69:AW$72,MATCH(AU89,AU$69:AU$72,0))="","If testing is required for this benefit classification: Please ensure each different cost-share combination is entered above in PART 1.",IF(INDEX(AW$69:AW$72,MATCH(AU89,AU$69:AU$72,0))>=(2/3),"Applies to substantially all medical/surgical benefits in this classification. ENTER different "&LOWER(AU89)&" amounts from smallest to largest.","Does not apply to substantially all medical/surgical benefits in this classification. DELETE any values in the left-hand column below.")) -> If testing is required for this benefit classification: Please ensure each different cost-share combination is entered above in PART 1. | BD86: =IF(INDEX(BF$69:BF$72,MATCH(BD89,BD$69:BD$72,0))="","If testing is required for this benefit classification: Please ensure each different cost-share combination is entered above in PART 1.",IF(INDEX(BF$69:BF$72,MATCH(BD89,BD$69:BD$72,0))>=(2/3),"Applies to substantially all medical/surgical benefits in this classification. ENTER different "&LOWER(BD89)&" amounts from smallest to largest.","Does not apply to substantially all medical/surgical benefits in this classification. DELETE any values in the left-hand column below.")) -> If testing is required for this benefit classification: Please ensure each different cost-share combination is entered above in PART 1. | BM86: =IF(INDEX(BO$69:BO$72,MATCH(BM89,BM$69:BM$72,0))="","If testing is required for this benefit classification: Please ensure each different cost-share combination is entered above in PART 1.",IF(INDEX(BO$69:BO$72,MATCH(BM89,BM$69:BM$72,0))>=(2/3),"Applies to substantially all medical/surgical benefits in this classification. ENTER different "&LOWER(BM89)&" amounts from smallest to largest.","Does not apply to substantially all medical/surgical benefits in this classification. DELETE any values in the left-hand column below.")) -> If testing is required for this benefit classification: Please ensure each different cost-share combination is entered above in PART 1. | BV86: =IF(INDEX(BX$69:BX$72,MATCH(BV89,BV$69:BV$72,0))="","If testing is required for this benefit classification: Please ensure each different cost-share combination is entered above in PART 1.",IF(INDEX(BX$69:BX$72,MATCH(BV89,BV$69:BV$72,0))>=(2/3),"Applies to substantially all medical/surgical benefits in this classification. ENTER different "&LOWER(BV89)&" amounts from smallest to largest.","Does not apply to substantially all medical/surgical benefits in this classification. DELETE any values in the left-hand column below.")) -> If testing is required for this benefit classification: Please ensure each different cost-share combination is entered above in PART 1. | CE86: =IF(INDEX(CG$69:CG$72,MATCH(CE89,CE$69:CE$72,0))="","If testing is required for this benefit classification: Please ensure each different cost-share combination is entered above in PART 1.",IF(INDEX(CG$69:CG$72,MATCH(CE89,CE$69:CE$72,0))>=(2/3),"Applies to substantially all medical/surgical benefits in this classification. ENTER different "&LOWER(CE89)&" amounts from smallest to largest.","Does not apply to substantially all medical/surgical benefits in this classification. DELETE any values in the left-hand column below.")) -> If testing is required for this benefit classification: Please ensure each different cost-share combination is entered above in PART 1. | CN86: =IF(INDEX(CP$69:CP$72,MATCH(CN89,CN$69:CN$72,0))="","If testing is required for this benefit classification: Please ensure each different cost-share combination is entered above in PART 1.",IF(INDEX(CP$69:CP$72,MATCH(CN89,CN$69:CN$72,0))>=(2/3),"Applies to substantially all medical/surgical benefits in this classification. ENTER different "&LOWER(CN89)&" amounts from smallest to largest.","Does not apply to substantially all medical/surgical benefits in this classification. DELETE any values in the left-hand column below.")) -> If testing is required for this benefit classification: Please ensure each different cost-share combination is entered above in PART 1.
K89: Copayment | L89: Allowed Claims | M89: Portion | N89: Predominant & Smaller | O89: Error Checking | T89: Copayment | U89: Allowed Claims | V89: Portion | W89: Predominant & Smaller | X89: Error Checking | AC89: Copayment | AD89: Allowed Claims | AE89: Portion | AF89: Predominant & Smaller | AG89: Error Checking | AL89: Copayment | AM89: Allowed Claims | AN89: Portion | AO89: Predominant & Smaller | AP89: Error Checking | AU89: Copayment | AV89: Allowed Claims | AW89: Portion | AX89: Predominant & Smaller | AY89: Error Checking | BD89: Copayment | BE89: Allowed Claims | BF89: Portion | BG89: Predominant & Smaller | BH89: Error Checking | BM89: Copayment | BN89: Allowed Claims | BO89: Portion | BP89: Predominant & Smaller | BQ89: Error Checking | BV89: Copayment | BW89: Allowed Claims | BX89: Portion | BY89: Predominant & Smaller | BZ89: Error Checking | CE89: Copayment | CF89: Allowed Claims | CG89: Portion | CH89: Predominant & Smaller | CI89: Error Checking | CN89: Copayment | CO89: Allowed Claims | CP89: Portion | CQ89: Predominant & Smaller | CR89: Error Checking
L90: =SUMIF(tbl_IPINN_P1[Copayment],K90,tbl_IPINN_P1[Plan Projected Allowed Amount]) -> 0 | M90: =IF(OR(L90=0,L90=""),"",L90/tbl_IPINN_P2Cop[[#Totals],[Allowed Claims]]) ->  | N90: =IF(M90="","",IF(SUMIF(tbl_IPINN_P2Cop[Copayment],">="&K90,tbl_IPINN_P2Cop[Portion])>0.5,K90,"")) ->  | O90: =IF(COUNTIF(tbl_IPINN_P2Cop[Copayment],tbl_IPINN_P2Cop[[#This Row],[Copayment]])>1,"Remove Duplicate Entry.",IF(AND(tbl_IPINN_P2Cop[[#This Row],[Copayment]]<>"",tbl_IPINN_P2Cop[[#This Row],[Allowed Claims]]=0),"Entry not found in Part 1 Table",IF(AND(OFFSET(tbl_IPINN_P2Cop[[#This Row],[Copayment]],1,0)<>"Total",OFFSET(tbl_IPINN_P2Cop[[#This Row],[Copayment]],1,0)<>"",OFFSET(tbl_IPINN_P2Cop[[#This Row],[Copayment]],1,0)<tbl_IPINN_P2Cop[[#This Row],[Copayment]]),"Sort Entries from lowest to highest",""))) ->  | U90: =SUMIF(tbl_IPOON_P1[Copayment],T90,tbl_IPOON_P1[Plan Projected Allowed Amount]) -> 0 | V90: =IF(OR(U90=0,U90=""),"",U90/tbl_IPOON_P2Cop[[#Totals],[Allowed Claims]]) ->  | W90: =IF(V90="","",IF(SUMIF(tbl_IPOON_P2Cop[Copayment],">="&T90,tbl_IPOON_P2Cop[Portion])>0.5,T90,"")) ->  | X90: =IF(COUNTIF(tbl_IPOON_P2Cop[Copayment],tbl_IPOON_P2Cop[[#This Row],[Copayment]])>1,"Remove Duplicate Entry.",IF(AND(tbl_IPOON_P2Cop[[#This Row],[Copayment]]<>"",tbl_IPOON_P2Cop[[#This Row],[Allowed Claims]]=0),"Entry not found in Part 1 Table",IF(AND(OFFSET(tbl_IPOON_P2Cop[[#This Row],[Copayment]],1,0)<>"Total",OFFSET(tbl_IPOON_P2Cop[[#This Row],[Copayment]],1,0)<>"",OFFSET(tbl_IPOON_P2Cop[[#This Row],[Copayment]],1,0)<tbl_IPOON_P2Cop[[#This Row],[Copayment]]),"Sort Entries from lowest to highest",""))) ->  | AD90: =SUMIF(tbl_OPINN_P1[Copayment],AC90,tbl_OPINN_P1[Plan Projected Allowed Amount]) -> 0 | AE90: =IF(OR(AD90=0,AD90=""),"",AD90/tbl_OPINN_P2Cop[[#Totals],[Allowed Claims]]) ->  | AF90: =IF(AE90="","",IF(SUMIF(tbl_OPINN_P2Cop[Copayment],">="&AC90,tbl_OPINN_P2Cop[Portion])>0.5,AC90,"")) ->  | AG90: =IF(COUNTIF(tbl_OPINN_P2Cop[Copayment],tbl_OPINN_P2Cop[[#This Row],[Copayment]])>1,"Remove Duplicate Entry.",IF(AND(tbl_OPINN_P2Cop[[#This Row],[Copayment]]<>"",tbl_OPINN_P2Cop[[#This Row],[Allowed Claims]]=0),"Entry not found in Part 1 Table",IF(AND(OFFSET(tbl_OPINN_P2Cop[[#This Row],[Copayment]],1,0)<>"Total",OFFSET(tbl_OPINN_P2Cop[[#This Row],[Copayment]],1,0)<>"",OFFSET(tbl_OPINN_P2Cop[[#This Row],[Copayment]],1,0)<tbl_OPINN_P2Cop[[#This Row],[Copayment]]),"Sort Entries from lowest to highest",""))) ->  | AM90: =SUMIF(tbl_OPOVINN_P1[Copayment],AL90,tbl_OPOVINN_P1[Plan Projected Allowed Amount]) -> 0 | AN90: =IF(OR(AM90=0,AM90=""),"",AM90/tbl_OPOVINN_P2Cop[[#Totals],[Allowed Claims]]) ->  | AO90: =IF(AN90="","",IF(SUMIF(tbl_OPOVINN_P2Cop[Copayment],">="&AL90,tbl_OPOVINN_P2Cop[Portion])>0.5,AL90,"")) ->  | AP90: =IF(COUNTIF(tbl_OPOVINN_P2Cop[Copayment],tbl_OPOVINN_P2Cop[[#This Row],[Copayment]])>1,"Remove Duplicate Entry.",IF(AND(tbl_OPOVINN_P2Cop[[#This Row],[Copayment]]<>"",tbl_OPOVINN_P2Cop[[#This Row],[Allowed Claims]]=0),"Entry not found in Part 1 Table",IF(AND(OFFSET(tbl_OPOVINN_P2Cop[[#This Row],[Copayment]],1,0)<>"Total",OFFSET(tbl_OPOVINN_P2Cop[[#This Row],[Copayment]],1,0)<>"",OFFSET(tbl_OPOVINN_P2Cop[[#This Row],[Copayment]],1,0)<tbl_OPOVINN_P2Cop[[#This Row],[Copayment]]),"Sort Entries from lowest to highest",""))) ->  | AV90: =SUMIF(tbl_OPAOINN_P1[Copayment],AU90,tbl_OPAOINN_P1[Plan Projected Allowed Amount]) -> 0 | AW90: =IF(OR(AV90=0,AV90=""),"",AV90/tbl_OPAOINN_P2Cop[[#Totals],[Allowed Claims]]) ->  | AX90: =IF(AW90="","",IF(SUMIF(tbl_OPAOINN_P2Cop[Copayment],">="&AU90,tbl_OPAOINN_P2Cop[Portion])>0.5,AU90,"")) ->  | AY90: =IF(COUNTIF(tbl_OPAOINN_P2Cop[Copayment],tbl_OPAOINN_P2Cop[[#This Row],[Copayment]])>1,"Remove Duplicate Entry.",IF(AND(tbl_OPAOINN_P2Cop[[#This Row],[Copayment]]<>"",tbl_OPAOINN_P2Cop[[#This Row],[Allowed Claims]]=0),"Entry not found in Part 1 Table",IF(AND(OFFSET(tbl_OPAOINN_P2Cop[[#This Row],[Copayment]],1,0)<>"Total",OFFSET(tbl_OPAOINN_P2Cop[[#This Row],[Copayment]],1,0)<>"",OFFSET(tbl_OPAOINN_P2Cop[[#This Row],[Copayment]],1,0)<tbl_OPAOINN_P2Cop[[#This Row],[Copayment]]),"Sort Entries from lowest to highest",""))) ->  | BE90: =SUMIF(tbl_OPOON_P1[Copayment],BD90,tbl_OPOON_P1[Plan Projected Allowed Amount]) -> 0 | BF90: =IF(OR(BE90=0,BE90=""),"",BE90/tbl_OPOON_P2Cop[[#Totals],[Allowed Claims]]) ->  | BG90: =IF(BF90="","",IF(SUMIF(tbl_OPOON_P2Cop[Copayment],">="&BD90,tbl_OPOON_P2Cop[Portion])>0.5,BD90,"")) ->  | BH90: =IF(COUNTIF(tbl_OPOON_P2Cop[Copayment],tbl_OPOON_P2Cop[[#This Row],[Copayment]])>1,"Remove Duplicate Entry.",IF(AND(tbl_OPOON_P2Cop[[#This Row],[Copayment]]<>"",tbl_OPOON_P2Cop[[#This Row],[Allowed Claims]]=0),"Entry not found in Part 1 Table",IF(AND(OFFSET(tbl_OPOON_P2Cop[[#This Row],[Copayment]],1,0)<>"Total",OFFSET(tbl_OPOON_P2Cop[[#This Row],[Copayment]],1,0)<>"",OFFSET(tbl_OPOON_P2Cop[[#This Row],[Copayment]],1,0)<tbl_OPOON_P2Cop[[#This Row],[Copayment]]),"Sort Entries from lowest to highest",""))) ->  | BN90: =SUMIF(tbl_OPOVOON_P1[Copayment],BM90,tbl_OPOVOON_P1[Plan Projected Allowed Amount]) -> 0 | BO90: =IF(OR(BN90=0,BN90=""),"",BN90/tbl_OPOVOON_P2Cop[[#Totals],[Allowed Claims]]) ->  | BP90: =IF(BO90="","",IF(SUMIF(tbl_OPOVOON_P2Cop[Copayment],">="&BM90,tbl_OPOVOON_P2Cop[Portion])>0.5,BM90,"")) ->  | BQ90: =IF(COUNTIF(tbl_OPOVOON_P2Cop[Copayment],tbl_OPOVOON_P2Cop[[#This Row],[Copayment]])>1,"Remove Duplicate Entry.",IF(AND(tbl_OPOVOON_P2Cop[[#This Row],[Copayment]]<>"",tbl_OPOVOON_P2Cop[[#This Row],[Allowed Claims]]=0),"Entry not found in Part 1 Table",IF(AND(OFFSET(tbl_OPOVOON_P2Cop[[#This Row],[Copayment]],1,0)<>"Total",OFFSET(tbl_OPOVOON_P2Cop[[#This Row],[Copayment]],1,0)<>"",OFFSET(tbl_OPOVOON_P2Cop[[#This Row],[Copayment]],1,0)<tbl_OPOVOON_P2Cop[[#This Row],[Copayment]]),"Sort Entries from lowest to highest",""))) ->  | BW90: =SUMIF(tbl_OPAOOON_P1[Copayment],BV90,tbl_OPAOOON_P1[Plan Projected Allowed Amount]) -> 0 | BX90: =IF(OR(BW90=0,BW90=""),"",BW90/tbl_OPAOOON_P2Cop[[#Totals],[Allowed Claims]]) ->  | BY90: =IF(BX90="","",IF(SUMIF(tbl_OPAOOON_P2Cop[Copayment],">="&BV90,tbl_OPAOOON_P2Cop[Portion])>0.5,BV90,"")) ->  | BZ90: =IF(COUNTIF(tbl_OPAOOON_P2Cop[Copayment],tbl_OPAOOON_P2Cop[[#This Row],[Copayment]])>1,"Remove Duplicate Entry.",IF(AND(tbl_OPAOOON_P2Cop[[#This Row],[Copayment]]<>"",tbl_OPAOOON_P2Cop[[#This Row],[Allowed Claims]]=0),"Entry not found in Part 1 Table",IF(AND(OFFSET(tbl_OPAOOON_P2Cop[[#This Row],[Copayment]],1,0)<>"Total",OFFSET(tbl_OPAOOON_P2Cop[[#This Row],[Copayment]],1,0)<>"",OFFSET(tbl_OPAOOON_P2Cop[[#This Row],[Copayment]],1,0)<tbl_OPAOOON_P2Cop[[#This Row],[Copayment]]),"Sort Entries from lowest to highest",""))) ->  | CF90: =SUMIF(tbl_ER_P1[Copayment],CE90,tbl_ER_P1[Plan Projected Allowed Amount]) -> 0 | CG90: =IF(OR(CF90=0,CF90=""),"",CF90/tbl_ER_P2Cop[[#Totals],[Allowed Claims]]) ->  | CH90: =IF(CG90="","",IF(SUMIF(tbl_ER_P2Cop[Copayment],">="&CE90,tbl_ER_P2Cop[Portion])>0.5,CE90,"")) ->  | CI90: =IF(COUNTIF(tbl_ER_P2Cop[Copayment],tbl_ER_P2Cop[[#This Row],[Copayment]])>1,"Remove Duplicate Entry.",IF(AND(tbl_ER_P2Cop[[#This Row],[Copayment]]<>"",tbl_ER_P2Cop[[#This Row],[Allowed Claims]]=0),"Entry not found in Part 1 Table",IF(AND(OFFSET(tbl_ER_P2Cop[[#This Row],[Copayment]],1,0)<>"Total",OFFSET(tbl_ER_P2Cop[[#This Row],[Copayment]],1,0)<>"",OFFSET(tbl_ER_P2Cop[[#This Row],[Copayment]],1,0)<tbl_ER_P2Cop[[#This Row],[Copayment]]),"Sort Entries from lowest to highest",""))) ->  | CO90: =SUMIF(tbl_RX_P1[Copayment],CN90,tbl_RX_P1[Plan Projected Allowed Amount]) -> 0 | CP90: =IF(OR(CO90=0,CO90=""),"",CO90/tbl_RX_P2Cop[[#Totals],[Allowed Claims]]) ->  | CQ90: =IF(CP90="","",IF(SUMIF(tbl_RX_P2Cop[Copayment],">="&CN90,tbl_RX_P2Cop[Portion])>0.5,CN90,"")) ->  | CR90: =IF(COUNTIF(tbl_RX_P2Cop[Copayment],tbl_RX_P2Cop[[#This Row],[Copayment]])>1,"Remove Duplicate Entry.",IF(AND(tbl_RX_P2Cop[[#This Row],[Copayment]]<>"",tbl_RX_P2Cop[[#This Row],[Allowed Claims]]=0),"Entry not found in Part 1 Table",IF(AND(OFFSET(tbl_RX_P2Cop[[#This Row],[Copayment]],1,0)<>"Total",OFFSET(tbl_RX_P2Cop[[#This Row],[Copayment]],1,0)<>"",OFFSET(tbl_RX_P2Cop[[#This Row],[Copayment]],1,0)<tbl_RX_P2Cop[[#This Row],[Copayment]]),"Sort Entries from lowest to highest",""))) -> 
L91: =SUMIF(tbl_IPINN_P1[Copayment],K91,tbl_IPINN_P1[Plan Projected Allowed Amount]) -> 0 | M91: =IF(OR(L91=0,L91=""),"",L91/tbl_IPINN_P2Cop[[#Totals],[Allowed Claims]]) ->  | N91: =IF(M91="","",IF(SUMIF(tbl_IPINN_P2Cop[Copayment],">="&K91,tbl_IPINN_P2Cop[Portion])>0.5,K91,"")) ->  | O91: =IF(COUNTIF(tbl_IPINN_P2Cop[Copayment],tbl_IPINN_P2Cop[[#This Row],[Copayment]])>1,"Remove Duplicate Entry.",IF(AND(tbl_IPINN_P2Cop[[#This Row],[Copayment]]<>"",tbl_IPINN_P2Cop[[#This Row],[Allowed Claims]]=0),"Entry not found in Part 1 Table",IF(AND(OFFSET(tbl_IPINN_P2Cop[[#This Row],[Copayment]],1,0)<>"Total",OFFSET(tbl_IPINN_P2Cop[[#This Row],[Copayment]],1,0)<>"",OFFSET(tbl_IPINN_P2Cop[[#This Row],[Copayment]],1,0)<tbl_IPINN_P2Cop[[#This Row],[Copayment]]),"Sort Entries from lowest to highest",""))) ->  | U91: =SUMIF(tbl_IPOON_P1[Copayment],T91,tbl_IPOON_P1[Plan Projected Allowed Amount]) -> 0 | V91: =IF(OR(U91=0,U91=""),"",U91/tbl_IPOON_P2Cop[[#Totals],[Allowed Claims]]) ->  | W91: =IF(V91="","",IF(SUMIF(tbl_IPOON_P2Cop[Copayment],">="&T91,tbl_IPOON_P2Cop[Portion])>0.5,T91,"")) ->  | X91: =IF(COUNTIF(tbl_IPOON_P2Cop[Copayment],tbl_IPOON_P2Cop[[#This Row],[Copayment]])>1,"Remove Duplicate Entry.",IF(AND(tbl_IPOON_P2Cop[[#This Row],[Copayment]]<>"",tbl_IPOON_P2Cop[[#This Row],[Allowed Claims]]=0),"Entry not found in Part 1 Table",IF(AND(OFFSET(tbl_IPOON_P2Cop[[#This Row],[Copayment]],1,0)<>"Total",OFFSET(tbl_IPOON_P2Cop[[#This Row],[Copayment]],1,0)<>"",OFFSET(tbl_IPOON_P2Cop[[#This Row],[Copayment]],1,0)<tbl_IPOON_P2Cop[[#This Row],[Copayment]]),"Sort Entries from lowest to highest",""))) ->  | AD91: =SUMIF(tbl_OPINN_P1[Copayment],AC91,tbl_OPINN_P1[Plan Projected Allowed Amount]) -> 0 | AE91: =IF(OR(AD91=0,AD91=""),"",AD91/tbl_OPINN_P2Cop[[#Totals],[Allowed Claims]]) ->  | AF91: =IF(AE91="","",IF(SUMIF(tbl_OPINN_P2Cop[Copayment],">="&AC91,tbl_OPINN_P2Cop[Portion])>0.5,AC91,"")) ->  | AG91: =IF(COUNTIF(tbl_OPINN_P2Cop[Copayment],tbl_OPINN_P2Cop[[#This Row],[Copayment]])>1,"Remove Duplicate Entry.",IF(AND(tbl_OPINN_P2Cop[[#This Row],[Copayment]]<>"",tbl_OPINN_P2Cop[[#This Row],[Allowed Claims]]=0),"Entry not found in Part 1 Table",IF(AND(OFFSET(tbl_OPINN_P2Cop[[#This Row],[Copayment]],1,0)<>"Total",OFFSET(tbl_OPINN_P2Cop[[#This Row],[Copayment]],1,0)<>"",OFFSET(tbl_OPINN_P2Cop[[#This Row],[Copayment]],1,0)<tbl_OPINN_P2Cop[[#This Row],[Copayment]]),"Sort Entries from lowest to highest",""))) ->  | AM91: =SUMIF(tbl_OPOVINN_P1[Copayment],AL91,tbl_OPOVINN_P1[Plan Projected Allowed Amount]) -> 0 | AN91: =IF(OR(AM91=0,AM91=""),"",AM91/tbl_OPOVINN_P2Cop[[#Totals],[Allowed Claims]]) ->  | AO91: =IF(AN91="","",IF(SUMIF(tbl_OPOVINN_P2Cop[Copayment],">="&AL91,tbl_OPOVINN_P2Cop[Portion])>0.5,AL91,"")) ->  | AP91: =IF(COUNTIF(tbl_OPOVINN_P2Cop[Copayment],tbl_OPOVINN_P2Cop[[#This Row],[Copayment]])>1,"Remove Duplicate Entry.",IF(AND(tbl_OPOVINN_P2Cop[[#This Row],[Copayment]]<>"",tbl_OPOVINN_P2Cop[[#This Row],[Allowed Claims]]=0),"Entry not found in Part 1 Table",IF(AND(OFFSET(tbl_OPOVINN_P2Cop[[#This Row],[Copayment]],1,0)<>"Total",OFFSET(tbl_OPOVINN_P2Cop[[#This Row],[Copayment]],1,0)<>"",OFFSET(tbl_OPOVINN_P2Cop[[#This Row],[Copayment]],1,0)<tbl_OPOVINN_P2Cop[[#This Row],[Copayment]]),"Sort Entries from lowest to highest",""))) ->  | AV91: =SUMIF(tbl_OPAOINN_P1[Copayment],AU91,tbl_OPAOINN_P1[Plan Projected Allowed Amount]) -> 0 | AW91: =IF(OR(AV91=0,AV91=""),"",AV91/tbl_OPAOINN_P2Cop[[#Totals],[Allowed Claims]]) ->  | AX91: =IF(AW91="","",IF(SUMIF(tbl_OPAOINN_P2Cop[Copayment],">="&AU91,tbl_OPAOINN_P2Cop[Portion])>0.5,AU91,"")) ->  | AY91: =IF(COUNTIF(tbl_OPAOINN_P2Cop[Copayment],tbl_OPAOINN_P2Cop[[#This Row],[Copayment]])>1,"Remove Duplicate Entry.",IF(AND(tbl_OPAOINN_P2Cop[[#This Row],[Copayment]]<>"",tbl_OPAOINN_P2Cop[[#This Row],[Allowed Claims]]=0),"Entry not found in Part 1 Table",IF(AND(OFFSET(tbl_OPAOINN_P2Cop[[#This Row],[Copayment]],1,0)<>"Total",OFFSET(tbl_OPAOINN_P2Cop[[#This Row],[Copayment]],1,0)<>"",OFFSET(tbl_OPAOINN_P2Cop[[#This Row],[Copayment]],1,0)<tbl_OPAOINN_P2Cop[[#This Row],[Copayment]]),"Sort Entries from lowest to highest",""))) ->  | BE91: =SUMIF(tbl_OPOON_P1[Copayment],BD91,tbl_OPOON_P1[Plan Projected Allowed Amount]) -> 0 | BF91: =IF(OR(BE91=0,BE91=""),"",BE91/tbl_OPOON_P2Cop[[#Totals],[Allowed Claims]]) ->  | BG91: =IF(BF91="","",IF(SUMIF(tbl_OPOON_P2Cop[Copayment],">="&BD91,tbl_OPOON_P2Cop[Portion])>0.5,BD91,"")) ->  | BH91: =IF(COUNTIF(tbl_OPOON_P2Cop[Copayment],tbl_OPOON_P2Cop[[#This Row],[Copayment]])>1,"Remove Duplicate Entry.",IF(AND(tbl_OPOON_P2Cop[[#This Row],[Copayment]]<>"",tbl_OPOON_P2Cop[[#This Row],[Allowed Claims]]=0),"Entry not found in Part 1 Table",IF(AND(OFFSET(tbl_OPOON_P2Cop[[#This Row],[Copayment]],1,0)<>"Total",OFFSET(tbl_OPOON_P2Cop[[#This Row],[Copayment]],1,0)<>"",OFFSET(tbl_OPOON_P2Cop[[#This Row],[Copayment]],1,0)<tbl_OPOON_P2Cop[[#This Row],[Copayment]]),"Sort Entries from lowest to highest",""))) ->  | BN91: =SUMIF(tbl_OPOVOON_P1[Copayment],BM91,tbl_OPOVOON_P1[Plan Projected Allowed Amount]) -> 0 | BO91: =IF(OR(BN91=0,BN91=""),"",BN91/tbl_OPOVOON_P2Cop[[#Totals],[Allowed Claims]]) ->  | BP91: =IF(BO91="","",IF(SUMIF(tbl_OPOVOON_P2Cop[Copayment],">="&BM91,tbl_OPOVOON_P2Cop[Portion])>0.5,BM91,"")) ->  | BQ91: =IF(COUNTIF(tbl_OPOVOON_P2Cop[Copayment],tbl_OPOVOON_P2Cop[[#This Row],[Copayment]])>1,"Remove Duplicate Entry.",IF(AND(tbl_OPOVOON_P2Cop[[#This Row],[Copayment]]<>"",tbl_OPOVOON_P2Cop[[#This Row],[Allowed Claims]]=0),"Entry not found in Part 1 Table",IF(AND(OFFSET(tbl_OPOVOON_P2Cop[[#This Row],[Copayment]],1,0)<>"Total",OFFSET(tbl_OPOVOON_P2Cop[[#This Row],[Copayment]],1,0)<>"",OFFSET(tbl_OPOVOON_P2Cop[[#This Row],[Copayment]],1,0)<tbl_OPOVOON_P2Cop[[#This Row],[Copayment]]),"Sort Entries from lowest to highest",""))) ->  | BW91: =SUMIF(tbl_OPAOOON_P1[Copayment],BV91,tbl_OPAOOON_P1[Plan Projected Allowed Amount]) -> 0 | BX91: =IF(OR(BW91=0,BW91=""),"",BW91/tbl_OPAOOON_P2Cop[[#Totals],[Allowed Claims]]) ->  | BY91: =IF(BX91="","",IF(SUMIF(tbl_OPAOOON_P2Cop[Copayment],">="&BV91,tbl_OPAOOON_P2Cop[Portion])>0.5,BV91,"")) ->  | BZ91: =IF(COUNTIF(tbl_OPAOOON_P2Cop[Copayment],tbl_OPAOOON_P2Cop[[#This Row],[Copayment]])>1,"Remove Duplicate Entry.",IF(AND(tbl_OPAOOON_P2Cop[[#This Row],[Copayment]]<>"",tbl_OPAOOON_P2Cop[[#This Row],[Allowed Claims]]=0),"Entry not found in Part 1 Table",IF(AND(OFFSET(tbl_OPAOOON_P2Cop[[#This Row],[Copayment]],1,0)<>"Total",OFFSET(tbl_OPAOOON_P2Cop[[#This Row],[Copayment]],1,0)<>"",OFFSET(tbl_OPAOOON_P2Cop[[#This Row],[Copayment]],1,0)<tbl_OPAOOON_P2Cop[[#This Row],[Copayment]]),"Sort Entries from lowest to highest",""))) ->  | CF91: =SUMIF(tbl_ER_P1[Copayment],CE91,tbl_ER_P1[Plan Projected Allowed Amount]) -> 0 | CG91: =IF(OR(CF91=0,CF91=""),"",CF91/tbl_ER_P2Cop[[#Totals],[Allowed Claims]]) ->  | CH91: =IF(CG91="","",IF(SUMIF(tbl_ER_P2Cop[Copayment],">="&CE91,tbl_ER_P2Cop[Portion])>0.5,CE91,"")) ->  | CI91: =IF(COUNTIF(tbl_ER_P2Cop[Copayment],tbl_ER_P2Cop[[#This Row],[Copayment]])>1,"Remove Duplicate Entry.",IF(AND(tbl_ER_P2Cop[[#This Row],[Copayment]]<>"",tbl_ER_P2Cop[[#This Row],[Allowed Claims]]=0),"Entry not found in Part 1 Table",IF(AND(OFFSET(tbl_ER_P2Cop[[#This Row],[Copayment]],1,0)<>"Total",OFFSET(tbl_ER_P2Cop[[#This Row],[Copayment]],1,0)<>"",OFFSET(tbl_ER_P2Cop[[#This Row],[Copayment]],1,0)<tbl_ER_P2Cop[[#This Row],[Copayment]]),"Sort Entries from lowest to highest",""))) ->  | CO91: =SUMIF(tbl_RX_P1[Copayment],CN91,tbl_RX_P1[Plan Projected Allowed Amount]) -> 0 | CP91: =IF(OR(CO91=0,CO91=""),"",CO91/tbl_RX_P2Cop[[#Totals],[Allowed Claims]]) ->  | CQ91: =IF(CP91="","",IF(SUMIF(tbl_RX_P2Cop[Copayment],">="&CN91,tbl_RX_P2Cop[Portion])>0.5,CN91,"")) ->  | CR91: =IF(COUNTIF(tbl_RX_P2Cop[Copayment],tbl_RX_P2Cop[[#This Row],[Copayment]])>1,"Remove Duplicate Entry.",IF(AND(tbl_RX_P2Cop[[#This Row],[Copayment]]<>"",tbl_RX_P2Cop[[#This Row],[Allowed Claims]]=0),"Entry not found in Part 1 Table",IF(AND(OFFSET(tbl_RX_P2Cop[[#This Row],[Copayment]],1,0)<>"Total",OFFSET(tbl_RX_P2Cop[[#This Row],[Copayment]],1,0)<>"",OFFSET(tbl_RX_P2Cop[[#This Row],[Copayment]],1,0)<tbl_RX_P2Cop[[#This Row],[Copayment]]),"Sort Entries from lowest to highest",""))) -> 
L92: =SUMIF(tbl_IPINN_P1[Copayment],K92,tbl_IPINN_P1[Plan Projected Allowed Amount]) -> 0 | M92: =IF(OR(L92=0,L92=""),"",L92/tbl_IPINN_P2Cop[[#Totals],[Allowed Claims]]) ->  | N92: =IF(M92="","",IF(SUMIF(tbl_IPINN_P2Cop[Copayment],">="&K92,tbl_IPINN_P2Cop[Portion])>0.5,K92,"")) ->  | O92: =IF(COUNTIF(tbl_IPINN_P2Cop[Copayment],tbl_IPINN_P2Cop[[#This Row],[Copayment]])>1,"Remove Duplicate Entry.",IF(AND(tbl_IPINN_P2Cop[[#This Row],[Copayment]]<>"",tbl_IPINN_P2Cop[[#This Row],[Allowed Claims]]=0),"Entry not found in Part 1 Table",IF(AND(OFFSET(tbl_IPINN_P2Cop[[#This Row],[Copayment]],1,0)<>"Total",OFFSET(tbl_IPINN_P2Cop[[#This Row],[Copayment]],1,0)<>"",OFFSET(tbl_IPINN_P2Cop[[#This Row],[Copayment]],1,0)<tbl_IPINN_P2Cop[[#This Row],[Copayment]]),"Sort Entries from lowest to highest",""))) ->  | U92: =SUMIF(tbl_IPOON_P1[Copayment],T92,tbl_IPOON_P1[Plan Projected Allowed Amount]) -> 0 | V92: =IF(OR(U92=0,U92=""),"",U92/tbl_IPOON_P2Cop[[#Totals],[Allowed Claims]]) ->  | W92: =IF(V92="","",IF(SUMIF(tbl_IPOON_P2Cop[Copayment],">="&T92,tbl_IPOON_P2Cop[Portion])>0.5,T92,"")) ->  | X92: =IF(COUNTIF(tbl_IPOON_P2Cop[Copayment],tbl_IPOON_P2Cop[[#This Row],[Copayment]])>1,"Remove Duplicate Entry.",IF(AND(tbl_IPOON_P2Cop[[#This Row],[Copayment]]<>"",tbl_IPOON_P2Cop[[#This Row],[Allowed Claims]]=0),"Entry not found in Part 1 Table",IF(AND(OFFSET(tbl_IPOON_P2Cop[[#This Row],[Copayment]],1,0)<>"Total",OFFSET(tbl_IPOON_P2Cop[[#This Row],[Copayment]],1,0)<>"",OFFSET(tbl_IPOON_P2Cop[[#This Row],[Copayment]],1,0)<tbl_IPOON_P2Cop[[#This Row],[Copayment]]),"Sort Entries from lowest to highest",""))) ->  | AD92: =SUMIF(tbl_OPINN_P1[Copayment],AC92,tbl_OPINN_P1[Plan Projected Allowed Amount]) -> 0 | AE92: =IF(OR(AD92=0,AD92=""),"",AD92/tbl_OPINN_P2Cop[[#Totals],[Allowed Claims]]) ->  | AF92: =IF(AE92="","",IF(SUMIF(tbl_OPINN_P2Cop[Copayment],">="&AC92,tbl_OPINN_P2Cop[Portion])>0.5,AC92,"")) ->  | AG92: =IF(COUNTIF(tbl_OPINN_P2Cop[Copayment],tbl_OPINN_P2Cop[[#This Row],[Copayment]])>1,"Remove Duplicate Entry.",IF(AND(tbl_OPINN_P2Cop[[#This Row],[Copayment]]<>"",tbl_OPINN_P2Cop[[#This Row],[Allowed Claims]]=0),"Entry not found in Part 1 Table",IF(AND(OFFSET(tbl_OPINN_P2Cop[[#This Row],[Copayment]],1,0)<>"Total",OFFSET(tbl_OPINN_P2Cop[[#This Row],[Copayment]],1,0)<>"",OFFSET(tbl_OPINN_P2Cop[[#This Row],[Copayment]],1,0)<tbl_OPINN_P2Cop[[#This Row],[Copayment]]),"Sort Entries from lowest to highest",""))) ->  | AM92: =SUMIF(tbl_OPOVINN_P1[Copayment],AL92,tbl_OPOVINN_P1[Plan Projected Allowed Amount]) -> 0 | AN92: =IF(OR(AM92=0,AM92=""),"",AM92/tbl_OPOVINN_P2Cop[[#Totals],[Allowed Claims]]) ->  | AO92: =IF(AN92="","",IF(SUMIF(tbl_OPOVINN_P2Cop[Copayment],">="&AL92,tbl_OPOVINN_P2Cop[Portion])>0.5,AL92,"")) ->  | AP92: =IF(COUNTIF(tbl_OPOVINN_P2Cop[Copayment],tbl_OPOVINN_P2Cop[[#This Row],[Copayment]])>1,"Remove Duplicate Entry.",IF(AND(tbl_OPOVINN_P2Cop[[#This Row],[Copayment]]<>"",tbl_OPOVINN_P2Cop[[#This Row],[Allowed Claims]]=0),"Entry not found in Part 1 Table",IF(AND(OFFSET(tbl_OPOVINN_P2Cop[[#This Row],[Copayment]],1,0)<>"Total",OFFSET(tbl_OPOVINN_P2Cop[[#This Row],[Copayment]],1,0)<>"",OFFSET(tbl_OPOVINN_P2Cop[[#This Row],[Copayment]],1,0)<tbl_OPOVINN_P2Cop[[#This Row],[Copayment]]),"Sort Entries from lowest to highest",""))) ->  | AV92: =SUMIF(tbl_OPAOINN_P1[Copayment],AU92,tbl_OPAOINN_P1[Plan Projected Allowed Amount]) -> 0 | AW92: =IF(OR(AV92=0,AV92=""),"",AV92/tbl_OPAOINN_P2Cop[[#Totals],[Allowed Claims]]) ->  | AX92: =IF(AW92="","",IF(SUMIF(tbl_OPAOINN_P2Cop[Copayment],">="&AU92,tbl_OPAOINN_P2Cop[Portion])>0.5,AU92,"")) ->  | AY92: =IF(COUNTIF(tbl_OPAOINN_P2Cop[Copayment],tbl_OPAOINN_P2Cop[[#This Row],[Copayment]])>1,"Remove Duplicate Entry.",IF(AND(tbl_OPAOINN_P2Cop[[#This Row],[Copayment]]<>"",tbl_OPAOINN_P2Cop[[#This Row],[Allowed Claims]]=0),"Entry not found in Part 1 Table",IF(AND(OFFSET(tbl_OPAOINN_P2Cop[[#This Row],[Copayment]],1,0)<>"Total",OFFSET(tbl_OPAOINN_P2Cop[[#This Row],[Copayment]],1,0)<>"",OFFSET(tbl_OPAOINN_P2Cop[[#This Row],[Copayment]],1,0)<tbl_OPAOINN_P2Cop[[#This Row],[Copayment]]),"Sort Entries from lowest to highest",""))) ->  | BE92: =SUMIF(tbl_OPOON_P1[Copayment],BD92,tbl_OPOON_P1[Plan Projected Allowed Amount]) -> 0 | BF92: =IF(OR(BE92=0,BE92=""),"",BE92/tbl_OPOON_P2Cop[[#Totals],[Allowed Claims]]) ->  | BG92: =IF(BF92="","",IF(SUMIF(tbl_OPOON_P2Cop[Copayment],">="&BD92,tbl_OPOON_P2Cop[Portion])>0.5,BD92,"")) ->  | BH92: =IF(COUNTIF(tbl_OPOON_P2Cop[Copayment],tbl_OPOON_P2Cop[[#This Row],[Copayment]])>1,"Remove Duplicate Entry.",IF(AND(tbl_OPOON_P2Cop[[#This Row],[Copayment]]<>"",tbl_OPOON_P2Cop[[#This Row],[Allowed Claims]]=0),"Entry not found in Part 1 Table",IF(AND(OFFSET(tbl_OPOON_P2Cop[[#This Row],[Copayment]],1,0)<>"Total",OFFSET(tbl_OPOON_P2Cop[[#This Row],[Copayment]],1,0)<>"",OFFSET(tbl_OPOON_P2Cop[[#This Row],[Copayment]],1,0)<tbl_OPOON_P2Cop[[#This Row],[Copayment]]),"Sort Entries from lowest to highest",""))) ->  | BN92: =SUMIF(tbl_OPOVOON_P1[Copayment],BM92,tbl_OPOVOON_P1[Plan Projected Allowed Amount]) -> 0 | BO92: =IF(OR(BN92=0,BN92=""),"",BN92/tbl_OPOVOON_P2Cop[[#Totals],[Allowed Claims]]) ->  | BP92: =IF(BO92="","",IF(SUMIF(tbl_OPOVOON_P2Cop[Copayment],">="&BM92,tbl_OPOVOON_P2Cop[Portion])>0.5,BM92,"")) ->  | BQ92: =IF(COUNTIF(tbl_OPOVOON_P2Cop[Copayment],tbl_OPOVOON_P2Cop[[#This Row],[Copayment]])>1,"Remove Duplicate Entry.",IF(AND(tbl_OPOVOON_P2Cop[[#This Row],[Copayment]]<>"",tbl_OPOVOON_P2Cop[[#This Row],[Allowed Claims]]=0),"Entry not found in Part 1 Table",IF(AND(OFFSET(tbl_OPOVOON_P2Cop[[#This Row],[Copayment]],1,0)<>"Total",OFFSET(tbl_OPOVOON_P2Cop[[#This Row],[Copayment]],1,0)<>"",OFFSET(tbl_OPOVOON_P2Cop[[#This Row],[Copayment]],1,0)<tbl_OPOVOON_P2Cop[[#This Row],[Copayment]]),"Sort Entries from lowest to highest",""))) ->  | BW92: =SUMIF(tbl_OPAOOON_P1[Copayment],BV92,tbl_OPAOOON_P1[Plan Projected Allowed Amount]) -> 0 | BX92: =IF(OR(BW92=0,BW92=""),"",BW92/tbl_OPAOOON_P2Cop[[#Totals],[Allowed Claims]]) ->  | BY92: =IF(BX92="","",IF(SUMIF(tbl_OPAOOON_P2Cop[Copayment],">="&BV92,tbl_OPAOOON_P2Cop[Portion])>0.5,BV92,"")) ->  | BZ92: =IF(COUNTIF(tbl_OPAOOON_P2Cop[Copayment],tbl_OPAOOON_P2Cop[[#This Row],[Copayment]])>1,"Remove Duplicate Entry.",IF(AND(tbl_OPAOOON_P2Cop[[#This Row],[Copayment]]<>"",tbl_OPAOOON_P2Cop[[#This Row],[Allowed Claims]]=0),"Entry not found in Part 1 Table",IF(AND(OFFSET(tbl_OPAOOON_P2Cop[[#This Row],[Copayment]],1,0)<>"Total",OFFSET(tbl_OPAOOON_P2Cop[[#This Row],[Copayment]],1,0)<>"",OFFSET(tbl_OPAOOON_P2Cop[[#This Row],[Copayment]],1,0)<tbl_OPAOOON_P2Cop[[#This Row],[Copayment]]),"Sort Entries from lowest to highest",""))) ->  | CF92: =SUMIF(tbl_ER_P1[Copayment],CE92,tbl_ER_P1[Plan Projected Allowed Amount]) -> 0 | CG92: =IF(OR(CF92=0,CF92=""),"",CF92/tbl_ER_P2Cop[[#Totals],[Allowed Claims]]) ->  | CH92: =IF(CG92="","",IF(SUMIF(tbl_ER_P2Cop[Copayment],">="&CE92,tbl_ER_P2Cop[Portion])>0.5,CE92,"")) ->  | CI92: =IF(COUNTIF(tbl_ER_P2Cop[Copayment],tbl_ER_P2Cop[[#This Row],[Copayment]])>1,"Remove Duplicate Entry.",IF(AND(tbl_ER_P2Cop[[#This Row],[Copayment]]<>"",tbl_ER_P2Cop[[#This Row],[Allowed Claims]]=0),"Entry not found in Part 1 Table",IF(AND(OFFSET(tbl_ER_P2Cop[[#This Row],[Copayment]],1,0)<>"Total",OFFSET(tbl_ER_P2Cop[[#This Row],[Copayment]],1,0)<>"",OFFSET(tbl_ER_P2Cop[[#This Row],[Copayment]],1,0)<tbl_ER_P2Cop[[#This Row],[Copayment]]),"Sort Entries from lowest to highest",""))) ->  | CO92: =SUMIF(tbl_RX_P1[Copayment],CN92,tbl_RX_P1[Plan Projected Allowed Amount]) -> 0 | CP92: =IF(OR(CO92=0,CO92=""),"",CO92/tbl_RX_P2Cop[[#Totals],[Allowed Claims]]) ->  | CQ92: =IF(CP92="","",IF(SUMIF(tbl_RX_P2Cop[Copayment],">="&CN92,tbl_RX_P2Cop[Portion])>0.5,CN92,"")) ->  | CR92: =IF(COUNTIF(tbl_RX_P2Cop[Copayment],tbl_RX_P2Cop[[#This Row],[Copayment]])>1,"Remove Duplicate Entry.",IF(AND(tbl_RX_P2Cop[[#This Row],[Copayment]]<>"",tbl_RX_P2Cop[[#This Row],[Allowed Claims]]=0),"Entry not found in Part 1 Table",IF(AND(OFFSET(tbl_RX_P2Cop[[#This Row],[Copayment]],1,0)<>"Total",OFFSET(tbl_RX_P2Cop[[#This Row],[Copayment]],1,0)<>"",OFFSET(tbl_RX_P2Cop[[#This Row],[Copayment]],1,0)<tbl_RX_P2Cop[[#This Row],[Copayment]]),"Sort Entries from lowest to highest",""))) -> 
L93: =SUMIF(tbl_IPINN_P1[Copayment],K93,tbl_IPINN_P1[Plan Projected Allowed Amount]) -> 0 | M93: =IF(OR(L93=0,L93=""),"",L93/tbl_IPINN_P2Cop[[#Totals],[Allowed Claims]]) ->  | N93: =IF(M93="","",IF(SUMIF(tbl_IPINN_P2Cop[Copayment],">="&K93,tbl_IPINN_P2Cop[Portion])>0.5,K93,"")) ->  | O93: =IF(COUNTIF(tbl_IPINN_P2Cop[Copayment],tbl_IPINN_P2Cop[[#This Row],[Copayment]])>1,"Remove Duplicate Entry.",IF(AND(tbl_IPINN_P2Cop[[#This Row],[Copayment]]<>"",tbl_IPINN_P2Cop[[#This Row],[Allowed Claims]]=0),"Entry not found in Part 1 Table",IF(AND(OFFSET(tbl_IPINN_P2Cop[[#This Row],[Copayment]],1,0)<>"Total",OFFSET(tbl_IPINN_P2Cop[[#This Row],[Copayment]],1,0)<>"",OFFSET(tbl_IPINN_P2Cop[[#This Row],[Copayment]],1,0)<tbl_IPINN_P2Cop[[#This Row],[Copayment]]),"Sort Entries from lowest to highest",""))) ->  | U93: =SUMIF(tbl_IPOON_P1[Copayment],T93,tbl_IPOON_P1[Plan Projected Allowed Amount]) -> 0 | V93: =IF(OR(U93=0,U93=""),"",U93/tbl_IPOON_P2Cop[[#Totals],[Allowed Claims]]) ->  | W93: =IF(V93="","",IF(SUMIF(tbl_IPOON_P2Cop[Copayment],">="&T93,tbl_IPOON_P2Cop[Portion])>0.5,T93,"")) ->  | X93: =IF(COUNTIF(tbl_IPOON_P2Cop[Copayment],tbl_IPOON_P2Cop[[#This Row],[Copayment]])>1,"Remove Duplicate Entry.",IF(AND(tbl_IPOON_P2Cop[[#This Row],[Copayment]]<>"",tbl_IPOON_P2Cop[[#This Row],[Allowed Claims]]=0),"Entry not found in Part 1 Table",IF(AND(OFFSET(tbl_IPOON_P2Cop[[#This Row],[Copayment]],1,0)<>"Total",OFFSET(tbl_IPOON_P2Cop[[#This Row],[Copayment]],1,0)<>"",OFFSET(tbl_IPOON_P2Cop[[#This Row],[Copayment]],1,0)<tbl_IPOON_P2Cop[[#This Row],[Copayment]]),"Sort Entries from lowest to highest",""))) ->  | AD93: =SUMIF(tbl_OPINN_P1[Copayment],AC93,tbl_OPINN_P1[Plan Projected Allowed Amount]) -> 0 | AE93: =IF(OR(AD93=0,AD93=""),"",AD93/tbl_OPINN_P2Cop[[#Totals],[Allowed Claims]]) ->  | AF93: =IF(AE93="","",IF(SUMIF(tbl_OPINN_P2Cop[Copayment],">="&AC93,tbl_OPINN_P2Cop[Portion])>0.5,AC93,"")) ->  | AG93: =IF(COUNTIF(tbl_OPINN_P2Cop[Copayment],tbl_OPINN_P2Cop[[#This Row],[Copayment]])>1,"Remove Duplicate Entry.",IF(AND(tbl_OPINN_P2Cop[[#This Row],[Copayment]]<>"",tbl_OPINN_P2Cop[[#This Row],[Allowed Claims]]=0),"Entry not found in Part 1 Table",IF(AND(OFFSET(tbl_OPINN_P2Cop[[#This Row],[Copayment]],1,0)<>"Total",OFFSET(tbl_OPINN_P2Cop[[#This Row],[Copayment]],1,0)<>"",OFFSET(tbl_OPINN_P2Cop[[#This Row],[Copayment]],1,0)<tbl_OPINN_P2Cop[[#This Row],[Copayment]]),"Sort Entries from lowest to highest",""))) ->  | AM93: =SUMIF(tbl_OPOVINN_P1[Copayment],AL93,tbl_OPOVINN_P1[Plan Projected Allowed Amount]) -> 0 | AN93: =IF(OR(AM93=0,AM93=""),"",AM93/tbl_OPOVINN_P2Cop[[#Totals],[Allowed Claims]]) ->  | AO93: =IF(AN93="","",IF(SUMIF(tbl_OPOVINN_P2Cop[Copayment],">="&AL93,tbl_OPOVINN_P2Cop[Portion])>0.5,AL93,"")) ->  | AP93: =IF(COUNTIF(tbl_OPOVINN_P2Cop[Copayment],tbl_OPOVINN_P2Cop[[#This Row],[Copayment]])>1,"Remove Duplicate Entry.",IF(AND(tbl_OPOVINN_P2Cop[[#This Row],[Copayment]]<>"",tbl_OPOVINN_P2Cop[[#This Row],[Allowed Claims]]=0),"Entry not found in Part 1 Table",IF(AND(OFFSET(tbl_OPOVINN_P2Cop[[#This Row],[Copayment]],1,0)<>"Total",OFFSET(tbl_OPOVINN_P2Cop[[#This Row],[Copayment]],1,0)<>"",OFFSET(tbl_OPOVINN_P2Cop[[#This Row],[Copayment]],1,0)<tbl_OPOVINN_P2Cop[[#This Row],[Copayment]]),"Sort Entries from lowest to highest",""))) ->  | AV93: =SUMIF(tbl_OPAOINN_P1[Copayment],AU93,tbl_OPAOINN_P1[Plan Projected Allowed Amount]) -> 0 | AW93: =IF(OR(AV93=0,AV93=""),"",AV93/tbl_OPAOINN_P2Cop[[#Totals],[Allowed Claims]]) ->  | AX93: =IF(AW93="","",IF(SUMIF(tbl_OPAOINN_P2Cop[Copayment],">="&AU93,tbl_OPAOINN_P2Cop[Portion])>0.5,AU93,"")) ->  | AY93: =IF(COUNTIF(tbl_OPAOINN_P2Cop[Copayment],tbl_OPAOINN_P2Cop[[#This Row],[Copayment]])>1,"Remove Duplicate Entry.",IF(AND(tbl_OPAOINN_P2Cop[[#This Row],[Copayment]]<>"",tbl_OPAOINN_P2Cop[[#This Row],[Allowed Claims]]=0),"Entry not found in Part 1 Table",IF(AND(OFFSET(tbl_OPAOINN_P2Cop[[#This Row],[Copayment]],1,0)<>"Total",OFFSET(tbl_OPAOINN_P2Cop[[#This Row],[Copayment]],1,0)<>"",OFFSET(tbl_OPAOINN_P2Cop[[#This Row],[Copayment]],1,0)<tbl_OPAOINN_P2Cop[[#This Row],[Copayment]]),"Sort Entries from lowest to highest",""))) ->  | BE93: =SUMIF(tbl_OPOON_P1[Copayment],BD93,tbl_OPOON_P1[Plan Projected Allowed Amount]) -> 0 | BF93: =IF(OR(BE93=0,BE93=""),"",BE93/tbl_OPOON_P2Cop[[#Totals],[Allowed Claims]]) ->  | BG93: =IF(BF93="","",IF(SUMIF(tbl_OPOON_P2Cop[Copayment],">="&BD93,tbl_OPOON_P2Cop[Portion])>0.5,BD93,"")) ->  | BH93: =IF(COUNTIF(tbl_OPOON_P2Cop[Copayment],tbl_OPOON_P2Cop[[#This Row],[Copayment]])>1,"Remove Duplicate Entry.",IF(AND(tbl_OPOON_P2Cop[[#This Row],[Copayment]]<>"",tbl_OPOON_P2Cop[[#This Row],[Allowed Claims]]=0),"Entry not found in Part 1 Table",IF(AND(OFFSET(tbl_OPOON_P2Cop[[#This Row],[Copayment]],1,0)<>"Total",OFFSET(tbl_OPOON_P2Cop[[#This Row],[Copayment]],1,0)<>"",OFFSET(tbl_OPOON_P2Cop[[#This Row],[Copayment]],1,0)<tbl_OPOON_P2Cop[[#This Row],[Copayment]]),"Sort Entries from lowest to highest",""))) ->  | BN93: =SUMIF(tbl_OPOVOON_P1[Copayment],BM93,tbl_OPOVOON_P1[Plan Projected Allowed Amount]) -> 0 | BO93: =IF(OR(BN93=0,BN93=""),"",BN93/tbl_OPOVOON_P2Cop[[#Totals],[Allowed Claims]]) ->  | BP93: =IF(BO93="","",IF(SUMIF(tbl_OPOVOON_P2Cop[Copayment],">="&BM93,tbl_OPOVOON_P2Cop[Portion])>0.5,BM93,"")) ->  | BQ93: =IF(COUNTIF(tbl_OPOVOON_P2Cop[Copayment],tbl_OPOVOON_P2Cop[[#This Row],[Copayment]])>1,"Remove Duplicate Entry.",IF(AND(tbl_OPOVOON_P2Cop[[#This Row],[Copayment]]<>"",tbl_OPOVOON_P2Cop[[#This Row],[Allowed Claims]]=0),"Entry not found in Part 1 Table",IF(AND(OFFSET(tbl_OPOVOON_P2Cop[[#This Row],[Copayment]],1,0)<>"Total",OFFSET(tbl_OPOVOON_P2Cop[[#This Row],[Copayment]],1,0)<>"",OFFSET(tbl_OPOVOON_P2Cop[[#This Row],[Copayment]],1,0)<tbl_OPOVOON_P2Cop[[#This Row],[Copayment]]),"Sort Entries from lowest to highest",""))) ->  | BW93: =SUMIF(tbl_OPAOOON_P1[Copayment],BV93,tbl_OPAOOON_P1[Plan Projected Allowed Amount]) -> 0 | BX93: =IF(OR(BW93=0,BW93=""),"",BW93/tbl_OPAOOON_P2Cop[[#Totals],[Allowed Claims]]) ->  | BY93: =IF(BX93="","",IF(SUMIF(tbl_OPAOOON_P2Cop[Copayment],">="&BV93,tbl_OPAOOON_P2Cop[Portion])>0.5,BV93,"")) ->  | BZ93: =IF(COUNTIF(tbl_OPAOOON_P2Cop[Copayment],tbl_OPAOOON_P2Cop[[#This Row],[Copayment]])>1,"Remove Duplicate Entry.",IF(AND(tbl_OPAOOON_P2Cop[[#This Row],[Copayment]]<>"",tbl_OPAOOON_P2Cop[[#This Row],[Allowed Claims]]=0),"Entry not found in Part 1 Table",IF(AND(OFFSET(tbl_OPAOOON_P2Cop[[#This Row],[Copayment]],1,0)<>"Total",OFFSET(tbl_OPAOOON_P2Cop[[#This Row],[Copayment]],1,0)<>"",OFFSET(tbl_OPAOOON_P2Cop[[#This Row],[Copayment]],1,0)<tbl_OPAOOON_P2Cop[[#This Row],[Copayment]]),"Sort Entries from lowest to highest",""))) ->  | CF93: =SUMIF(tbl_ER_P1[Copayment],CE93,tbl_ER_P1[Plan Projected Allowed Amount]) -> 0 | CG93: =IF(OR(CF93=0,CF93=""),"",CF93/tbl_ER_P2Cop[[#Totals],[Allowed Claims]]) ->  | CH93: =IF(CG93="","",IF(SUMIF(tbl_ER_P2Cop[Copayment],">="&CE93,tbl_ER_P2Cop[Portion])>0.5,CE93,"")) ->  | CI93: =IF(COUNTIF(tbl_ER_P2Cop[Copayment],tbl_ER_P2Cop[[#This Row],[Copayment]])>1,"Remove Duplicate Entry.",IF(AND(tbl_ER_P2Cop[[#This Row],[Copayment]]<>"",tbl_ER_P2Cop[[#This Row],[Allowed Claims]]=0),"Entry not found in Part 1 Table",IF(AND(OFFSET(tbl_ER_P2Cop[[#This Row],[Copayment]],1,0)<>"Total",OFFSET(tbl_ER_P2Cop[[#This Row],[Copayment]],1,0)<>"",OFFSET(tbl_ER_P2Cop[[#This Row],[Copayment]],1,0)<tbl_ER_P2Cop[[#This Row],[Copayment]]),"Sort Entries from lowest to highest",""))) ->  | CO93: =SUMIF(tbl_RX_P1[Copayment],CN93,tbl_RX_P1[Plan Projected Allowed Amount]) -> 0 | CP93: =IF(OR(CO93=0,CO93=""),"",CO93/tbl_RX_P2Cop[[#Totals],[Allowed Claims]]) ->  | CQ93: =IF(CP93="","",IF(SUMIF(tbl_RX_P2Cop[Copayment],">="&CN93,tbl_RX_P2Cop[Portion])>0.5,CN93,"")) ->  | CR93: =IF(COUNTIF(tbl_RX_P2Cop[Copayment],tbl_RX_P2Cop[[#This Row],[Copayment]])>1,"Remove Duplicate Entry.",IF(AND(tbl_RX_P2Cop[[#This Row],[Copayment]]<>"",tbl_RX_P2Cop[[#This Row],[Allowed Claims]]=0),"Entry not found in Part 1 Table",IF(AND(OFFSET(tbl_RX_P2Cop[[#This Row],[Copayment]],1,0)<>"Total",OFFSET(tbl_RX_P2Cop[[#This Row],[Copayment]],1,0)<>"",OFFSET(tbl_RX_P2Cop[[#This Row],[Copayment]],1,0)<tbl_RX_P2Cop[[#This Row],[Copayment]]),"Sort Entries from lowest to highest",""))) -> 
K94: Total | L94: =SUBTOTAL(109,tbl_IPINN_P2Cop[Allowed Claims]) -> 0 | M94: =SUBTOTAL(109,tbl_IPINN_P2Cop[Portion]) -> 0 | O94: =IF(AND(tbl_IPINN_P2Cop[[#Totals],[Allowed Claims]]<L70,N70<>"Fail",N70<>"N/A"),"Add missing cost share values.",IF(L94>M55,"Allowed claims higher than possible; correct entries.","")) ->  | T94: Total | U94: =SUBTOTAL(109,tbl_IPOON_P2Cop[Allowed Claims]) -> 0 | V94: =SUBTOTAL(109,tbl_IPOON_P2Cop[Portion]) -> 0 | X94: =IF(AND(tbl_IPOON_P2Cop[[#Totals],[Allowed Claims]]<U70,W70<>"Fail",W70<>"N/A"),"Add missing cost share values.",IF(U94>V55,"Allowed claims higher than possible; correct entries.","")) ->  | AC94: Total | AD94: =SUBTOTAL(109,tbl_OPINN_P2Cop[Allowed Claims]) -> 0 | AE94: =SUBTOTAL(109,tbl_OPINN_P2Cop[Portion]) -> 0 | AG94: =IF(AND(tbl_OPINN_P2Cop[[#Totals],[Allowed Claims]]<AD70,AF70<>"Fail",AF70<>"N/A"),"Add missing cost share values.",IF(AD94>AE55,"Allowed claims higher than possible; correct entries.","")) ->  | AL94: Total | AM94: =SUBTOTAL(109,tbl_OPOVINN_P2Cop[Allowed Claims]) -> 0 | AN94: =SUBTOTAL(109,tbl_OPOVINN_P2Cop[Portion]) -> 0 | AP94: =IF(AND(tbl_OPOVINN_P2Cop[[#Totals],[Allowed Claims]]<AM70,AO70<>"Fail",AO70<>"N/A"),"Add missing cost share values.",IF(AM94>AN55,"Allowed claims higher than possible; correct entries.","")) ->  | AU94: Total | AV94: =SUBTOTAL(109,tbl_OPAOINN_P2Cop[Allowed Claims]) -> 0 | AW94: =SUBTOTAL(109,tbl_OPAOINN_P2Cop[Portion]) -> 0 | AY94: =IF(AND(tbl_OPAOINN_P2Cop[[#Totals],[Allowed Claims]]<AV70,AX70<>"Fail",AX70<>"N/A"),"Add missing cost share values.",IF(AV94>AW55,"Allowed claims higher than possible; correct entries.","")) ->  | BD94: Total | BE94: =SUBTOTAL(109,tbl_OPOON_P2Cop[Allowed Claims]) -> 0 | BF94: =SUBTOTAL(109,tbl_OPOON_P2Cop[Portion]) -> 0 | BH94: =IF(AND(tbl_OPOON_P2Cop[[#Totals],[Allowed Claims]]<BE70,BG70<>"Fail",BG70<>"N/A"),"Add missing cost share values.",IF(BE94>BF55,"Allowed claims higher than possible; correct entries.","")) ->  | BM94: Total | BN94: =SUBTOTAL(109,tbl_OPOVOON_P2Cop[Allowed Claims]) -> 0 | BO94: =SUBTOTAL(109,tbl_OPOVOON_P2Cop[Portion]) -> 0 | BQ94: =IF(AND(tbl_OPOVOON_P2Cop[[#Totals],[Allowed Claims]]<BN70,BP70<>"Fail",BP70<>"N/A"),"Add missing cost share values.",IF(BN94>BO55,"Allowed claims higher than possible; correct entries.","")) ->  | BV94: Total | BW94: =SUBTOTAL(109,tbl_OPAOOON_P2Cop[Allowed Claims]) -> 0 | BX94: =SUBTOTAL(109,tbl_OPAOOON_P2Cop[Portion]) -> 0 | BZ94: =IF(AND(tbl_OPAOOON_P2Cop[[#Totals],[Allowed Claims]]<BW70,BY70<>"Fail",BY70<>"N/A"),"Add missing cost share values.",IF(BW94>BX55,"Allowed claims higher than possible; correct entries.","")) ->  | CE94: Total | CF94: =SUBTOTAL(109,tbl_ER_P2Cop[Allowed Claims]) -> 0 | CG94: =SUBTOTAL(109,tbl_ER_P2Cop[Portion]) -> 0 | CI94: =IF(AND(tbl_ER_P2Cop[[#Totals],[Allowed Claims]]<CF70,CH70<>"Fail",CH70<>"N/A"),"Add missing cost share values.",IF(CF94>CG55,"Allowed claims higher than possible; correct entries.","")) ->  | CN94: Total | CO94: =SUBTOTAL(109,tbl_RX_P2Cop[Allowed Claims]) -> 0 | CP94: =SUBTOTAL(109,tbl_RX_P2Cop[Portion]) -> 0 | CR94: =IF(AND(tbl_RX_P2Cop[[#Totals],[Allowed Claims]]<CO70,CQ70<>"Fail",CQ70<>"N/A"),"Add missing cost share values.",IF(CO94>CP55,"Allowed claims higher than possible; correct entries.","")) -> 
K96: =K100&" ---- "&L$40 -> Coinsurance ---- (1) Inpatient, In-Network (IP INN) | N96: Errors found: | O96: =COUNTIF(tbl_IPINN_P2Coi[[#Data],[#Totals],[Error Checking]],"?*") -> 0 | T96: =T100&" ---- "&U$40 -> Coinsurance ---- (2) Inpatient, Out-of-Network (IP OON) | W96: Errors found: | X96: =COUNTIF(tbl_IPOON_P2Coi[[#Data],[#Totals],[Error Checking]],"?*") -> 0 | AC96: =AC100&" ---- "&AD$40 -> Coinsurance ---- (3) Outpatient, In-Network (OP INN) | AF96: Errors found: | AG96: =COUNTIF(tbl_OPINN_P2Coi[[#Data],[#Totals],[Error Checking]],"?*") -> 0 | AL96: =AL100&" ---- "&AM$40 -> Coinsurance ---- (3a) Outpatient - Office Visits, In-Network (OP-OV INN) | AO96: Errors found: | AP96: =COUNTIF(tbl_OPOVINN_P2Coi[[#Data],[#Totals],[Error Checking]],"?*") -> 0 | AU96: =AU100&" ---- "&AV$40 -> Coinsurance ---- (3b) Outpatient - All Other, In-Network (OP-AO INN) | AX96: Errors found: | AY96: =COUNTIF(tbl_OPAOINN_P2Coi[[#Data],[#Totals],[Error Checking]],"?*") -> 0 | BD96: =BD100&" ---- "&BE$40 -> Coinsurance ---- (4) Outpatient, Out-of-Network (OP OON) | BG96: Errors found: | BH96: =COUNTIF(tbl_OPOON_P2Coi[[#Data],[#Totals],[Error Checking]],"?*") -> 0 | BM96: =BM100&" ---- "&BN$40 -> Coinsurance ---- (4a) Outpatient - Office Visits, Out-of-Network (OP-OV OON) | BP96: Errors found: | BQ96: =COUNTIF(tbl_OPOVOON_P2Coi[[#Data],[#Totals],[Error Checking]],"?*") -> 0 | BV96: =BV100&" ---- "&BW$40 -> Coinsurance ---- (4b) Outpatient - All Other, Out-of-Network (OP-AO OON) | BY96: Errors found: | BZ96: =COUNTIF(tbl_OPAOOON_P2Coi[[#Data],[#Totals],[Error Checking]],"?*") -> 0 | CE96: =CE100&" ---- "&CF$40 -> Coinsurance ---- (5) Emergency Care, (ER ) | CH96: Errors found: | CI96: =COUNTIF(tbl_ER_P2Coi[[#Data],[#Totals],[Error Checking]],"?*") -> 0 | CN96: =CN100&" ---- "&CO$40 -> Coinsurance ---- (6) Prescription Drugs, (RX ) | CQ96: Errors found: | CR96: =COUNTIF(tbl_RX_P2Coi[[#Data],[#Totals],[Error Checking]],"?*") -> 0
K97: =IF(INDEX(M$69:M$72,MATCH(K100,K$69:K$72,0))="","If testing is required for this benefit classification: Please ensure each different cost-share combination is entered above in PART 1.",IF(INDEX(M$69:M$72,MATCH(K100,K$69:K$72,0))>=(2/3),"Applies to substantially all medical/surgical benefits in this classification. ENTER different "&LOWER(K100)&" amounts from smallest to largest.","Does not apply to substantially all medical/surgical benefits in this classification. DELETE any values in the left-hand column below.")) -> If testing is required for this benefit classification: Please ensure each different cost-share combination is entered above in PART 1. | T97: =IF(INDEX(V$69:V$72,MATCH(T100,T$69:T$72,0))="","If testing is required for this benefit classification: Please ensure each different cost-share combination is entered above in PART 1.",IF(INDEX(V$69:V$72,MATCH(T100,T$69:T$72,0))>=(2/3),"Applies to substantially all medical/surgical benefits in this classification. ENTER different "&LOWER(T100)&" amounts from smallest to largest.","Does not apply to substantially all medical/surgical benefits in this classification. DELETE any values in the left-hand column below.")) -> If testing is required for this benefit classification: Please ensure each different cost-share combination is entered above in PART 1. | AC97: =IF(INDEX(AE$69:AE$72,MATCH(AC100,AC$69:AC$72,0))="","If testing is required for this benefit classification: Please ensure each different cost-share combination is entered above in PART 1.",IF(INDEX(AE$69:AE$72,MATCH(AC100,AC$69:AC$72,0))>=(2/3),"Applies to substantially all medical/surgical benefits in this classification. ENTER different "&LOWER(AC100)&" amounts from smallest to largest.","Does not apply to substantially all medical/surgical benefits in this classification. DELETE any values in the left-hand column below.")) -> If testing is required for this benefit classification: Please ensure each different cost-share combination is entered above in PART 1. | AL97: =IF(INDEX(AN$69:AN$72,MATCH(AL100,AL$69:AL$72,0))="","If testing is required for this benefit classification: Please ensure each different cost-share combination is entered above in PART 1.",IF(INDEX(AN$69:AN$72,MATCH(AL100,AL$69:AL$72,0))>=(2/3),"Applies to substantially all medical/surgical benefits in this classification. ENTER different "&LOWER(AL100)&" amounts from smallest to largest.","Does not apply to substantially all medical/surgical benefits in this classification. DELETE any values in the left-hand column below.")) -> If testing is required for this benefit classification: Please ensure each different cost-share combination is entered above in PART 1. | AU97: =IF(INDEX(AW$69:AW$72,MATCH(AU100,AU$69:AU$72,0))="","If testing is required for this benefit classification: Please ensure each different cost-share combination is entered above in PART 1.",IF(INDEX(AW$69:AW$72,MATCH(AU100,AU$69:AU$72,0))>=(2/3),"Applies to substantially all medical/surgical benefits in this classification. ENTER different "&LOWER(AU100)&" amounts from smallest to largest.","Does not apply to substantially all medical/surgical benefits in this classification. DELETE any values in the left-hand column below.")) -> If testing is required for this benefit classification: Please ensure each different cost-share combination is entered above in PART 1. | BD97: =IF(INDEX(BF$69:BF$72,MATCH(BD100,BD$69:BD$72,0))="","If testing is required for this benefit classification: Please ensure each different cost-share combination is entered above in PART 1.",IF(INDEX(BF$69:BF$72,MATCH(BD100,BD$69:BD$72,0))>=(2/3),"Applies to substantially all medical/surgical benefits in this classification. ENTER different "&LOWER(BD100)&" amounts from smallest to largest.","Does not apply to substantially all medical/surgical benefits in this classification. DELETE any values in the left-hand column below.")) -> If testing is required for this benefit classification: Please ensure each different cost-share combination is entered above in PART 1. | BM97: =IF(INDEX(BO$69:BO$72,MATCH(BM100,BM$69:BM$72,0))="","If testing is required for this benefit classification: Please ensure each different cost-share combination is entered above in PART 1.",IF(INDEX(BO$69:BO$72,MATCH(BM100,BM$69:BM$72,0))>=(2/3),"Applies to substantially all medical/surgical benefits in this classification. ENTER different "&LOWER(BM100)&" amounts from smallest to largest.","Does not apply to substantially all medical/surgical benefits in this classification. DELETE any values in the left-hand column below.")) -> If testing is required for this benefit classification: Please ensure each different cost-share combination is entered above in PART 1. | BV97: =IF(INDEX(BX$69:BX$72,MATCH(BV100,BV$69:BV$72,0))="","If testing is required for this benefit classification: Please ensure each different cost-share combination is entered above in PART 1.",IF(INDEX(BX$69:BX$72,MATCH(BV100,BV$69:BV$72,0))>=(2/3),"Applies to substantially all medical/surgical benefits in this classification. ENTER different "&LOWER(BV100)&" amounts from smallest to largest.","Does not apply to substantially all medical/surgical benefits in this classification. DELETE any values in the left-hand column below.")) -> If testing is required for this benefit classification: Please ensure each different cost-share combination is entered above in PART 1. | CE97: =IF(INDEX(CG$69:CG$72,MATCH(CE100,CE$69:CE$72,0))="","If testing is required for this benefit classification: Please ensure each different cost-share combination is entered above in PART 1.",IF(INDEX(CG$69:CG$72,MATCH(CE100,CE$69:CE$72,0))>=(2/3),"Applies to substantially all medical/surgical benefits in this classification. ENTER different "&LOWER(CE100)&" amounts from smallest to largest.","Does not apply to substantially all medical/surgical benefits in this classification. DELETE any values in the left-hand column below.")) -> If testing is required for this benefit classification: Please ensure each different cost-share combination is entered above in PART 1. | CN97: =IF(INDEX(CP$69:CP$72,MATCH(CN100,CN$69:CN$72,0))="","If testing is required for this benefit classification: Please ensure each different cost-share combination is entered above in PART 1.",IF(INDEX(CP$69:CP$72,MATCH(CN100,CN$69:CN$72,0))>=(2/3),"Applies to substantially all medical/surgical benefits in this classification. ENTER different "&LOWER(CN100)&" amounts from smallest to largest.","Does not apply to substantially all medical/surgical benefits in this classification. DELETE any values in the left-hand column below.")) -> If testing is required for this benefit classification: Please ensure each different cost-share combination is entered above in PART 1.
K100: Coinsurance | L100: Allowed Claims | M100: Portion | N100: Predominant & Smaller | O100: Error Checking | T100: Coinsurance | U100: Allowed Claims | V100: Portion | W100: Predominant & Smaller | X100: Error Checking | AC100: Coinsurance | AD100: Allowed Claims | AE100: Portion | AF100: Predominant & Smaller | AG100: Error Checking | AL100: Coinsurance | AM100: Allowed Claims | AN100: Portion | AO100: Predominant & Smaller | AP100: Error Checking | AU100: Coinsurance | AV100: Allowed Claims | AW100: Portion | AX100: Predominant & Smaller | AY100: Error Checking | BD100: Coinsurance | BE100: Allowed Claims | BF100: Portion | BG100: Predominant & Smaller | BH100: Error Checking | BM100: Coinsurance | BN100: Allowed Claims | BO100: Portion | BP100: Predominant & Smaller | BQ100: Error Checking | BV100: Coinsurance | BW100: Allowed Claims | BX100: Portion | BY100: Predominant & Smaller | BZ100: Error Checking | CE100: Coinsurance | CF100: Allowed Claims | CG100: Portion | CH100: Predominant & Smaller | CI100: Error Checking | CN100: Coinsurance | CO100: Allowed Claims | CP100: Portion | CQ100: Predominant & Smaller | CR100: Error Checking
L101: =SUMIF(tbl_IPINN_P1[Coinsurance],K101,tbl_IPINN_P1[Plan Projected Allowed Amount]) -> 0 | M101: =IF(OR(L101=0,L101=""),"",L101/tbl_IPINN_P2Coi[[#Totals],[Allowed Claims]]) ->  | N101: =IF(M101="","",IF(SUMIF(tbl_IPINN_P2Coi[Coinsurance],">="&K101,tbl_IPINN_P2Coi[Portion])>0.5,K101,"")) ->  | O101: =IF(COUNTIF(tbl_IPINN_P2Coi[Coinsurance],tbl_IPINN_P2Coi[[#This Row],[Coinsurance]])>1,"Remove Duplicate Entry.",IF(AND(tbl_IPINN_P2Coi[[#This Row],[Coinsurance]]<>"",tbl_IPINN_P2Coi[[#This Row],[Allowed Claims]]=0),"Entry not found in Part 1 Table",IF(AND(OFFSET(tbl_IPINN_P2Coi[[#This Row],[Coinsurance]],1,0)<>"Total",OFFSET(tbl_IPINN_P2Coi[[#This Row],[Coinsurance]],1,0)<>"",OFFSET(tbl_IPINN_P2Coi[[#This Row],[Coinsurance]],1,0)<tbl_IPINN_P2Coi[[#This Row],[Coinsurance]]),"Sort Entries from lowest to highest",""))) ->  | U101: =SUMIF(tbl_IPOON_P1[Coinsurance],T101,tbl_IPOON_P1[Plan Projected Allowed Amount]) -> 0 | V101: =IF(OR(U101=0,U101=""),"",U101/tbl_IPOON_P2Coi[[#Totals],[Allowed Claims]]) ->  | W101: =IF(V101="","",IF(SUMIF(tbl_IPOON_P2Coi[Coinsurance],">="&T101,tbl_IPOON_P2Coi[Portion])>0.5,T101,"")) ->  | X101: =IF(COUNTIF(tbl_IPOON_P2Coi[Coinsurance],tbl_IPOON_P2Coi[[#This Row],[Coinsurance]])>1,"Remove Duplicate Entry.",IF(AND(tbl_IPOON_P2Coi[[#This Row],[Coinsurance]]<>"",tbl_IPOON_P2Coi[[#This Row],[Allowed Claims]]=0),"Entry not found in Part 1 Table",IF(AND(OFFSET(tbl_IPOON_P2Coi[[#This Row],[Coinsurance]],1,0)<>"Total",OFFSET(tbl_IPOON_P2Coi[[#This Row],[Coinsurance]],1,0)<>"",OFFSET(tbl_IPOON_P2Coi[[#This Row],[Coinsurance]],1,0)<tbl_IPOON_P2Coi[[#This Row],[Coinsurance]]),"Sort Entries from lowest to highest",""))) ->  | AD101: =SUMIF(tbl_OPINN_P1[Coinsurance],AC101,tbl_OPINN_P1[Plan Projected Allowed Amount]) -> 0 | AE101: =IF(OR(AD101=0,AD101=""),"",AD101/tbl_OPINN_P2Coi[[#Totals],[Allowed Claims]]) ->  | AF101: =IF(AE101="","",IF(SUMIF(tbl_OPINN_P2Coi[Coinsurance],">="&AC101,tbl_OPINN_P2Coi[Portion])>0.5,AC101,"")) ->  | AG101: =IF(COUNTIF(tbl_OPINN_P2Coi[Coinsurance],tbl_OPINN_P2Coi[[#This Row],[Coinsurance]])>1,"Remove Duplicate Entry.",IF(AND(tbl_OPINN_P2Coi[[#This Row],[Coinsurance]]<>"",tbl_OPINN_P2Coi[[#This Row],[Allowed Claims]]=0),"Entry not found in Part 1 Table",IF(AND(OFFSET(tbl_OPINN_P2Coi[[#This Row],[Coinsurance]],1,0)<>"Total",OFFSET(tbl_OPINN_P2Coi[[#This Row],[Coinsurance]],1,0)<>"",OFFSET(tbl_OPINN_P2Coi[[#This Row],[Coinsurance]],1,0)<tbl_OPINN_P2Coi[[#This Row],[Coinsurance]]),"Sort Entries from lowest to highest",""))) ->  | AM101: =SUMIF(tbl_OPOVINN_P1[Coinsurance],AL101,tbl_OPOVINN_P1[Plan Projected Allowed Amount]) -> 0 | AN101: =IF(OR(AM101=0,AM101=""),"",AM101/tbl_OPOVINN_P2Coi[[#Totals],[Allowed Claims]]) ->  | AO101: =IF(AN101="","",IF(SUMIF(tbl_OPOVINN_P2Coi[Coinsurance],">="&AL101,tbl_OPOVINN_P2Coi[Portion])>0.5,AL101,"")) ->  | AP101: =IF(COUNTIF(tbl_OPOVINN_P2Coi[Coinsurance],tbl_OPOVINN_P2Coi[[#This Row],[Coinsurance]])>1,"Remove Duplicate Entry.",IF(AND(tbl_OPOVINN_P2Coi[[#This Row],[Coinsurance]]<>"",tbl_OPOVINN_P2Coi[[#This Row],[Allowed Claims]]=0),"Entry not found in Part 1 Table",IF(AND(OFFSET(tbl_OPOVINN_P2Coi[[#This Row],[Coinsurance]],1,0)<>"Total",OFFSET(tbl_OPOVINN_P2Coi[[#This Row],[Coinsurance]],1,0)<>"",OFFSET(tbl_OPOVINN_P2Coi[[#This Row],[Coinsurance]],1,0)<tbl_OPOVINN_P2Coi[[#This Row],[Coinsurance]]),"Sort Entries from lowest to highest",""))) ->  | AV101: =SUMIF(tbl_OPAOINN_P1[Coinsurance],AU101,tbl_OPAOINN_P1[Plan Projected Allowed Amount]) -> 0 | AW101: =IF(OR(AV101=0,AV101=""),"",AV101/tbl_OPAOINN_P2Coi[[#Totals],[Allowed Claims]]) ->  | AX101: =IF(AW101="","",IF(SUMIF(tbl_OPAOINN_P2Coi[Coinsurance],">="&AU101,tbl_OPAOINN_P2Coi[Portion])>0.5,AU101,"")) ->  | AY101: =IF(COUNTIF(tbl_OPAOINN_P2Coi[Coinsurance],tbl_OPAOINN_P2Coi[[#This Row],[Coinsurance]])>1,"Remove Duplicate Entry.",IF(AND(tbl_OPAOINN_P2Coi[[#This Row],[Coinsurance]]<>"",tbl_OPAOINN_P2Coi[[#This Row],[Allowed Claims]]=0),"Entry not found in Part 1 Table",IF(AND(OFFSET(tbl_OPAOINN_P2Coi[[#This Row],[Coinsurance]],1,0)<>"Total",OFFSET(tbl_OPAOINN_P2Coi[[#This Row],[Coinsurance]],1,0)<>"",OFFSET(tbl_OPAOINN_P2Coi[[#This Row],[Coinsurance]],1,0)<tbl_OPAOINN_P2Coi[[#This Row],[Coinsurance]]),"Sort Entries from lowest to highest",""))) ->  | BE101: =SUMIF(tbl_OPOON_P1[Coinsurance],BD101,tbl_OPOON_P1[Plan Projected Allowed Amount]) -> 0 | BF101: =IF(OR(BE101=0,BE101=""),"",BE101/tbl_OPOON_P2Coi[[#Totals],[Allowed Claims]]) ->  | BG101: =IF(BF101="","",IF(SUMIF(tbl_OPOON_P2Coi[Coinsurance],">="&BD101,tbl_OPOON_P2Coi[Portion])>0.5,BD101,"")) ->  | BH101: =IF(COUNTIF(tbl_OPOON_P2Coi[Coinsurance],tbl_OPOON_P2Coi[[#This Row],[Coinsurance]])>1,"Remove Duplicate Entry.",IF(AND(tbl_OPOON_P2Coi[[#This Row],[Coinsurance]]<>"",tbl_OPOON_P2Coi[[#This Row],[Allowed Claims]]=0),"Entry not found in Part 1 Table",IF(AND(OFFSET(tbl_OPOON_P2Coi[[#This Row],[Coinsurance]],1,0)<>"Total",OFFSET(tbl_OPOON_P2Coi[[#This Row],[Coinsurance]],1,0)<>"",OFFSET(tbl_OPOON_P2Coi[[#This Row],[Coinsurance]],1,0)<tbl_OPOON_P2Coi[[#This Row],[Coinsurance]]),"Sort Entries from lowest to highest",""))) ->  | BN101: =SUMIF(tbl_OPOVOON_P1[Coinsurance],BM101,tbl_OPOVOON_P1[Plan Projected Allowed Amount]) -> 0 | BO101: =IF(OR(BN101=0,BN101=""),"",BN101/tbl_OPOVOON_P2Coi[[#Totals],[Allowed Claims]]) ->  | BP101: =IF(BO101="","",IF(SUMIF(tbl_OPOVOON_P2Coi[Coinsurance],">="&BM101,tbl_OPOVOON_P2Coi[Portion])>0.5,BM101,"")) ->  | BQ101: =IF(COUNTIF(tbl_OPOVOON_P2Coi[Coinsurance],tbl_OPOVOON_P2Coi[[#This Row],[Coinsurance]])>1,"Remove Duplicate Entry.",IF(AND(tbl_OPOVOON_P2Coi[[#This Row],[Coinsurance]]<>"",tbl_OPOVOON_P2Coi[[#This Row],[Allowed Claims]]=0),"Entry not found in Part 1 Table",IF(AND(OFFSET(tbl_OPOVOON_P2Coi[[#This Row],[Coinsurance]],1,0)<>"Total",OFFSET(tbl_OPOVOON_P2Coi[[#This Row],[Coinsurance]],1,0)<>"",OFFSET(tbl_OPOVOON_P2Coi[[#This Row],[Coinsurance]],1,0)<tbl_OPOVOON_P2Coi[[#This Row],[Coinsurance]]),"Sort Entries from lowest to highest",""))) ->  | BW101: =SUMIF(tbl_OPAOOON_P1[Coinsurance],BV101,tbl_OPAOOON_P1[Plan Projected Allowed Amount]) -> 0 | BX101: =IF(OR(BW101=0,BW101=""),"",BW101/tbl_OPAOOON_P2Coi[[#Totals],[Allowed Claims]]) ->  | BY101: =IF(BX101="","",IF(SUMIF(tbl_OPAOOON_P2Coi[Coinsurance],">="&BV101,tbl_OPAOOON_P2Coi[Portion])>0.5,BV101,"")) ->  | BZ101: =IF(COUNTIF(tbl_OPAOOON_P2Coi[Coinsurance],tbl_OPAOOON_P2Coi[[#This Row],[Coinsurance]])>1,"Remove Duplicate Entry.",IF(AND(tbl_OPAOOON_P2Coi[[#This Row],[Coinsurance]]<>"",tbl_OPAOOON_P2Coi[[#This Row],[Allowed Claims]]=0),"Entry not found in Part 1 Table",IF(AND(OFFSET(tbl_OPAOOON_P2Coi[[#This Row],[Coinsurance]],1,0)<>"Total",OFFSET(tbl_OPAOOON_P2Coi[[#This Row],[Coinsurance]],1,0)<>"",OFFSET(tbl_OPAOOON_P2Coi[[#This Row],[Coinsurance]],1,0)<tbl_OPAOOON_P2Coi[[#This Row],[Coinsurance]]),"Sort Entries from lowest to highest",""))) ->  | CF101: =SUMIF(tbl_ER_P1[Coinsurance],CE101,tbl_ER_P1[Plan Projected Allowed Amount]) -> 0 | CG101: =IF(OR(CF101=0,CF101=""),"",CF101/tbl_ER_P2Coi[[#Totals],[Allowed Claims]]) ->  | CH101: =IF(CG101="","",IF(SUMIF(tbl_ER_P2Coi[Coinsurance],">="&CE101,tbl_ER_P2Coi[Portion])>0.5,CE101,"")) ->  | CI101: =IF(COUNTIF(tbl_ER_P2Coi[Coinsurance],tbl_ER_P2Coi[[#This Row],[Coinsurance]])>1,"Remove Duplicate Entry.",IF(AND(tbl_ER_P2Coi[[#This Row],[Coinsurance]]<>"",tbl_ER_P2Coi[[#This Row],[Allowed Claims]]=0),"Entry not found in Part 1 Table",IF(AND(OFFSET(tbl_ER_P2Coi[[#This Row],[Coinsurance]],1,0)<>"Total",OFFSET(tbl_ER_P2Coi[[#This Row],[Coinsurance]],1,0)<>"",OFFSET(tbl_ER_P2Coi[[#This Row],[Coinsurance]],1,0)<tbl_ER_P2Coi[[#This Row],[Coinsurance]]),"Sort Entries from lowest to highest",""))) ->  | CO101: =SUMIF(tbl_RX_P1[Coinsurance],CN101,tbl_RX_P1[Plan Projected Allowed Amount]) -> 0 | CP101: =IF(OR(CO101=0,CO101=""),"",CO101/tbl_RX_P2Coi[[#Totals],[Allowed Claims]]) ->  | CQ101: =IF(CP101="","",IF(SUMIF(tbl_RX_P2Coi[Coinsurance],">="&CN101,tbl_RX_P2Coi[Portion])>0.5,CN101,"")) ->  | CR101: =IF(COUNTIF(tbl_RX_P2Coi[Coinsurance],tbl_RX_P2Coi[[#This Row],[Coinsurance]])>1,"Remove Duplicate Entry.",IF(AND(tbl_RX_P2Coi[[#This Row],[Coinsurance]]<>"",tbl_RX_P2Coi[[#This Row],[Allowed Claims]]=0),"Entry not found in Part 1 Table",IF(AND(OFFSET(tbl_RX_P2Coi[[#This Row],[Coinsurance]],1,0)<>"Total",OFFSET(tbl_RX_P2Coi[[#This Row],[Coinsurance]],1,0)<>"",OFFSET(tbl_RX_P2Coi[[#This Row],[Coinsurance]],1,0)<tbl_RX_P2Coi[[#This Row],[Coinsurance]]),"Sort Entries from lowest to highest",""))) -> 
L102: =SUMIF(tbl_IPINN_P1[Coinsurance],K102,tbl_IPINN_P1[Plan Projected Allowed Amount]) -> 0 | M102: =IF(OR(L102=0,L102=""),"",L102/tbl_IPINN_P2Coi[[#Totals],[Allowed Claims]]) ->  | N102: =IF(M102="","",IF(SUMIF(tbl_IPINN_P2Coi[Coinsurance],">="&K102,tbl_IPINN_P2Coi[Portion])>0.5,K102,"")) ->  | O102: =IF(COUNTIF(tbl_IPINN_P2Coi[Coinsurance],tbl_IPINN_P2Coi[[#This Row],[Coinsurance]])>1,"Remove Duplicate Entry.",IF(AND(tbl_IPINN_P2Coi[[#This Row],[Coinsurance]]<>"",tbl_IPINN_P2Coi[[#This Row],[Allowed Claims]]=0),"Entry not found in Part 1 Table",IF(AND(OFFSET(tbl_IPINN_P2Coi[[#This Row],[Coinsurance]],1,0)<>"Total",OFFSET(tbl_IPINN_P2Coi[[#This Row],[Coinsurance]],1,0)<>"",OFFSET(tbl_IPINN_P2Coi[[#This Row],[Coinsurance]],1,0)<tbl_IPINN_P2Coi[[#This Row],[Coinsurance]]),"Sort Entries from lowest to highest",""))) ->  | U102: =SUMIF(tbl_IPOON_P1[Coinsurance],T102,tbl_IPOON_P1[Plan Projected Allowed Amount]) -> 0 | V102: =IF(OR(U102=0,U102=""),"",U102/tbl_IPOON_P2Coi[[#Totals],[Allowed Claims]]) ->  | W102: =IF(V102="","",IF(SUMIF(tbl_IPOON_P2Coi[Coinsurance],">="&T102,tbl_IPOON_P2Coi[Portion])>0.5,T102,"")) ->  | X102: =IF(COUNTIF(tbl_IPOON_P2Coi[Coinsurance],tbl_IPOON_P2Coi[[#This Row],[Coinsurance]])>1,"Remove Duplicate Entry.",IF(AND(tbl_IPOON_P2Coi[[#This Row],[Coinsurance]]<>"",tbl_IPOON_P2Coi[[#This Row],[Allowed Claims]]=0),"Entry not found in Part 1 Table",IF(AND(OFFSET(tbl_IPOON_P2Coi[[#This Row],[Coinsurance]],1,0)<>"Total",OFFSET(tbl_IPOON_P2Coi[[#This Row],[Coinsurance]],1,0)<>"",OFFSET(tbl_IPOON_P2Coi[[#This Row],[Coinsurance]],1,0)<tbl_IPOON_P2Coi[[#This Row],[Coinsurance]]),"Sort Entries from lowest to highest",""))) ->  | AD102: =SUMIF(tbl_OPINN_P1[Coinsurance],AC102,tbl_OPINN_P1[Plan Projected Allowed Amount]) -> 0 | AE102: =IF(OR(AD102=0,AD102=""),"",AD102/tbl_OPINN_P2Coi[[#Totals],[Allowed Claims]]) ->  | AF102: =IF(AE102="","",IF(SUMIF(tbl_OPINN_P2Coi[Coinsurance],">="&AC102,tbl_OPINN_P2Coi[Portion])>0.5,AC102,"")) ->  | AG102: =IF(COUNTIF(tbl_OPINN_P2Coi[Coinsurance],tbl_OPINN_P2Coi[[#This Row],[Coinsurance]])>1,"Remove Duplicate Entry.",IF(AND(tbl_OPINN_P2Coi[[#This Row],[Coinsurance]]<>"",tbl_OPINN_P2Coi[[#This Row],[Allowed Claims]]=0),"Entry not found in Part 1 Table",IF(AND(OFFSET(tbl_OPINN_P2Coi[[#This Row],[Coinsurance]],1,0)<>"Total",OFFSET(tbl_OPINN_P2Coi[[#This Row],[Coinsurance]],1,0)<>"",OFFSET(tbl_OPINN_P2Coi[[#This Row],[Coinsurance]],1,0)<tbl_OPINN_P2Coi[[#This Row],[Coinsurance]]),"Sort Entries from lowest to highest",""))) ->  | AM102: =SUMIF(tbl_OPOVINN_P1[Coinsurance],AL102,tbl_OPOVINN_P1[Plan Projected Allowed Amount]) -> 0 | AN102: =IF(OR(AM102=0,AM102=""),"",AM102/tbl_OPOVINN_P2Coi[[#Totals],[Allowed Claims]]) ->  | AO102: =IF(AN102="","",IF(SUMIF(tbl_OPOVINN_P2Coi[Coinsurance],">="&AL102,tbl_OPOVINN_P2Coi[Portion])>0.5,AL102,"")) ->  | AP102: =IF(COUNTIF(tbl_OPOVINN_P2Coi[Coinsurance],tbl_OPOVINN_P2Coi[[#This Row],[Coinsurance]])>1,"Remove Duplicate Entry.",IF(AND(tbl_OPOVINN_P2Coi[[#This Row],[Coinsurance]]<>"",tbl_OPOVINN_P2Coi[[#This Row],[Allowed Claims]]=0),"Entry not found in Part 1 Table",IF(AND(OFFSET(tbl_OPOVINN_P2Coi[[#This Row],[Coinsurance]],1,0)<>"Total",OFFSET(tbl_OPOVINN_P2Coi[[#This Row],[Coinsurance]],1,0)<>"",OFFSET(tbl_OPOVINN_P2Coi[[#This Row],[Coinsurance]],1,0)<tbl_OPOVINN_P2Coi[[#This Row],[Coinsurance]]),"Sort Entries from lowest to highest",""))) ->  | AV102: =SUMIF(tbl_OPAOINN_P1[Coinsurance],AU102,tbl_OPAOINN_P1[Plan Projected Allowed Amount]) -> 0 | AW102: =IF(OR(AV102=0,AV102=""),"",AV102/tbl_OPAOINN_P2Coi[[#Totals],[Allowed Claims]]) ->  | AX102: =IF(AW102="","",IF(SUMIF(tbl_OPAOINN_P2Coi[Coinsurance],">="&AU102,tbl_OPAOINN_P2Coi[Portion])>0.5,AU102,"")) ->  | AY102: =IF(COUNTIF(tbl_OPAOINN_P2Coi[Coinsurance],tbl_OPAOINN_P2Coi[[#This Row],[Coinsurance]])>1,"Remove Duplicate Entry.",IF(AND(tbl_OPAOINN_P2Coi[[#This Row],[Coinsurance]]<>"",tbl_OPAOINN_P2Coi[[#This Row],[Allowed Claims]]=0),"Entry not found in Part 1 Table",IF(AND(OFFSET(tbl_OPAOINN_P2Coi[[#This Row],[Coinsurance]],1,0)<>"Total",OFFSET(tbl_OPAOINN_P2Coi[[#This Row],[Coinsurance]],1,0)<>"",OFFSET(tbl_OPAOINN_P2Coi[[#This Row],[Coinsurance]],1,0)<tbl_OPAOINN_P2Coi[[#This Row],[Coinsurance]]),"Sort Entries from lowest to highest",""))) ->  | BE102: =SUMIF(tbl_OPOON_P1[Coinsurance],BD102,tbl_OPOON_P1[Plan Projected Allowed Amount]) -> 0 | BF102: =IF(OR(BE102=0,BE102=""),"",BE102/tbl_OPOON_P2Coi[[#Totals],[Allowed Claims]]) ->  | BG102: =IF(BF102="","",IF(SUMIF(tbl_OPOON_P2Coi[Coinsurance],">="&BD102,tbl_OPOON_P2Coi[Portion])>0.5,BD102,"")) ->  | BH102: =IF(COUNTIF(tbl_OPOON_P2Coi[Coinsurance],tbl_OPOON_P2Coi[[#This Row],[Coinsurance]])>1,"Remove Duplicate Entry.",IF(AND(tbl_OPOON_P2Coi[[#This Row],[Coinsurance]]<>"",tbl_OPOON_P2Coi[[#This Row],[Allowed Claims]]=0),"Entry not found in Part 1 Table",IF(AND(OFFSET(tbl_OPOON_P2Coi[[#This Row],[Coinsurance]],1,0)<>"Total",OFFSET(tbl_OPOON_P2Coi[[#This Row],[Coinsurance]],1,0)<>"",OFFSET(tbl_OPOON_P2Coi[[#This Row],[Coinsurance]],1,0)<tbl_OPOON_P2Coi[[#This Row],[Coinsurance]]),"Sort Entries from lowest to highest",""))) ->  | BN102: =SUMIF(tbl_OPOVOON_P1[Coinsurance],BM102,tbl_OPOVOON_P1[Plan Projected Allowed Amount]) -> 0 | BO102: =IF(OR(BN102=0,BN102=""),"",BN102/tbl_OPOVOON_P2Coi[[#Totals],[Allowed Claims]]) ->  | BP102: =IF(BO102="","",IF(SUMIF(tbl_OPOVOON_P2Coi[Coinsurance],">="&BM102,tbl_OPOVOON_P2Coi[Portion])>0.5,BM102,"")) ->  | BQ102: =IF(COUNTIF(tbl_OPOVOON_P2Coi[Coinsurance],tbl_OPOVOON_P2Coi[[#This Row],[Coinsurance]])>1,"Remove Duplicate Entry.",IF(AND(tbl_OPOVOON_P2Coi[[#This Row],[Coinsurance]]<>"",tbl_OPOVOON_P2Coi[[#This Row],[Allowed Claims]]=0),"Entry not found in Part 1 Table",IF(AND(OFFSET(tbl_OPOVOON_P2Coi[[#This Row],[Coinsurance]],1,0)<>"Total",OFFSET(tbl_OPOVOON_P2Coi[[#This Row],[Coinsurance]],1,0)<>"",OFFSET(tbl_OPOVOON_P2Coi[[#This Row],[Coinsurance]],1,0)<tbl_OPOVOON_P2Coi[[#This Row],[Coinsurance]]),"Sort Entries from lowest to highest",""))) ->  | BW102: =SUMIF(tbl_OPAOOON_P1[Coinsurance],BV102,tbl_OPAOOON_P1[Plan Projected Allowed Amount]) -> 0 | BX102: =IF(OR(BW102=0,BW102=""),"",BW102/tbl_OPAOOON_P2Coi[[#Totals],[Allowed Claims]]) ->  | BY102: =IF(BX102="","",IF(SUMIF(tbl_OPAOOON_P2Coi[Coinsurance],">="&BV102,tbl_OPAOOON_P2Coi[Portion])>0.5,BV102,"")) ->  | BZ102: =IF(COUNTIF(tbl_OPAOOON_P2Coi[Coinsurance],tbl_OPAOOON_P2Coi[[#This Row],[Coinsurance]])>1,"Remove Duplicate Entry.",IF(AND(tbl_OPAOOON_P2Coi[[#This Row],[Coinsurance]]<>"",tbl_OPAOOON_P2Coi[[#This Row],[Allowed Claims]]=0),"Entry not found in Part 1 Table",IF(AND(OFFSET(tbl_OPAOOON_P2Coi[[#This Row],[Coinsurance]],1,0)<>"Total",OFFSET(tbl_OPAOOON_P2Coi[[#This Row],[Coinsurance]],1,0)<>"",OFFSET(tbl_OPAOOON_P2Coi[[#This Row],[Coinsurance]],1,0)<tbl_OPAOOON_P2Coi[[#This Row],[Coinsurance]]),"Sort Entries from lowest to highest",""))) ->  | CF102: =SUMIF(tbl_ER_P1[Coinsurance],CE102,tbl_ER_P1[Plan Projected Allowed Amount]) -> 0 | CG102: =IF(OR(CF102=0,CF102=""),"",CF102/tbl_ER_P2Coi[[#Totals],[Allowed Claims]]) ->  | CH102: =IF(CG102="","",IF(SUMIF(tbl_ER_P2Coi[Coinsurance],">="&CE102,tbl_ER_P2Coi[Portion])>0.5,CE102,"")) ->  | CI102: =IF(COUNTIF(tbl_ER_P2Coi[Coinsurance],tbl_ER_P2Coi[[#This Row],[Coinsurance]])>1,"Remove Duplicate Entry.",IF(AND(tbl_ER_P2Coi[[#This Row],[Coinsurance]]<>"",tbl_ER_P2Coi[[#This Row],[Allowed Claims]]=0),"Entry not found in Part 1 Table",IF(AND(OFFSET(tbl_ER_P2Coi[[#This Row],[Coinsurance]],1,0)<>"Total",OFFSET(tbl_ER_P2Coi[[#This Row],[Coinsurance]],1,0)<>"",OFFSET(tbl_ER_P2Coi[[#This Row],[Coinsurance]],1,0)<tbl_ER_P2Coi[[#This Row],[Coinsurance]]),"Sort Entries from lowest to highest",""))) ->  | CO102: =SUMIF(tbl_RX_P1[Coinsurance],CN102,tbl_RX_P1[Plan Projected Allowed Amount]) -> 0 | CP102: =IF(OR(CO102=0,CO102=""),"",CO102/tbl_RX_P2Coi[[#Totals],[Allowed Claims]]) ->  | CQ102: =IF(CP102="","",IF(SUMIF(tbl_RX_P2Coi[Coinsurance],">="&CN102,tbl_RX_P2Coi[Portion])>0.5,CN102,"")) ->  | CR102: =IF(COUNTIF(tbl_RX_P2Coi[Coinsurance],tbl_RX_P2Coi[[#This Row],[Coinsurance]])>1,"Remove Duplicate Entry.",IF(AND(tbl_RX_P2Coi[[#This Row],[Coinsurance]]<>"",tbl_RX_P2Coi[[#This Row],[Allowed Claims]]=0),"Entry not found in Part 1 Table",IF(AND(OFFSET(tbl_RX_P2Coi[[#This Row],[Coinsurance]],1,0)<>"Total",OFFSET(tbl_RX_P2Coi[[#This Row],[Coinsurance]],1,0)<>"",OFFSET(tbl_RX_P2Coi[[#This Row],[Coinsurance]],1,0)<tbl_RX_P2Coi[[#This Row],[Coinsurance]]),"Sort Entries from lowest to highest",""))) -> 
L103: =SUMIF(tbl_IPINN_P1[Coinsurance],K103,tbl_IPINN_P1[Plan Projected Allowed Amount]) -> 0 | M103: =IF(OR(L103=0,L103=""),"",L103/tbl_IPINN_P2Coi[[#Totals],[Allowed Claims]]) ->  | N103: =IF(M103="","",IF(SUMIF(tbl_IPINN_P2Coi[Coinsurance],">="&K103,tbl_IPINN_P2Coi[Portion])>0.5,K103,"")) ->  | O103: =IF(COUNTIF(tbl_IPINN_P2Coi[Coinsurance],tbl_IPINN_P2Coi[[#This Row],[Coinsurance]])>1,"Remove Duplicate Entry.",IF(AND(tbl_IPINN_P2Coi[[#This Row],[Coinsurance]]<>"",tbl_IPINN_P2Coi[[#This Row],[Allowed Claims]]=0),"Entry not found in Part 1 Table",IF(AND(OFFSET(tbl_IPINN_P2Coi[[#This Row],[Coinsurance]],1,0)<>"Total",OFFSET(tbl_IPINN_P2Coi[[#This Row],[Coinsurance]],1,0)<>"",OFFSET(tbl_IPINN_P2Coi[[#This Row],[Coinsurance]],1,0)<tbl_IPINN_P2Coi[[#This Row],[Coinsurance]]),"Sort Entries from lowest to highest",""))) ->  | U103: =SUMIF(tbl_IPOON_P1[Coinsurance],T103,tbl_IPOON_P1[Plan Projected Allowed Amount]) -> 0 | V103: =IF(OR(U103=0,U103=""),"",U103/tbl_IPOON_P2Coi[[#Totals],[Allowed Claims]]) ->  | W103: =IF(V103="","",IF(SUMIF(tbl_IPOON_P2Coi[Coinsurance],">="&T103,tbl_IPOON_P2Coi[Portion])>0.5,T103,"")) ->  | X103: =IF(COUNTIF(tbl_IPOON_P2Coi[Coinsurance],tbl_IPOON_P2Coi[[#This Row],[Coinsurance]])>1,"Remove Duplicate Entry.",IF(AND(tbl_IPOON_P2Coi[[#This Row],[Coinsurance]]<>"",tbl_IPOON_P2Coi[[#This Row],[Allowed Claims]]=0),"Entry not found in Part 1 Table",IF(AND(OFFSET(tbl_IPOON_P2Coi[[#This Row],[Coinsurance]],1,0)<>"Total",OFFSET(tbl_IPOON_P2Coi[[#This Row],[Coinsurance]],1,0)<>"",OFFSET(tbl_IPOON_P2Coi[[#This Row],[Coinsurance]],1,0)<tbl_IPOON_P2Coi[[#This Row],[Coinsurance]]),"Sort Entries from lowest to highest",""))) ->  | AD103: =SUMIF(tbl_OPINN_P1[Coinsurance],AC103,tbl_OPINN_P1[Plan Projected Allowed Amount]) -> 0 | AE103: =IF(OR(AD103=0,AD103=""),"",AD103/tbl_OPINN_P2Coi[[#Totals],[Allowed Claims]]) ->  | AF103: =IF(AE103="","",IF(SUMIF(tbl_OPINN_P2Coi[Coinsurance],">="&AC103,tbl_OPINN_P2Coi[Portion])>0.5,AC103,"")) ->  | AG103: =IF(COUNTIF(tbl_OPINN_P2Coi[Coinsurance],tbl_OPINN_P2Coi[[#This Row],[Coinsurance]])>1,"Remove Duplicate Entry.",IF(AND(tbl_OPINN_P2Coi[[#This Row],[Coinsurance]]<>"",tbl_OPINN_P2Coi[[#This Row],[Allowed Claims]]=0),"Entry not found in Part 1 Table",IF(AND(OFFSET(tbl_OPINN_P2Coi[[#This Row],[Coinsurance]],1,0)<>"Total",OFFSET(tbl_OPINN_P2Coi[[#This Row],[Coinsurance]],1,0)<>"",OFFSET(tbl_OPINN_P2Coi[[#This Row],[Coinsurance]],1,0)<tbl_OPINN_P2Coi[[#This Row],[Coinsurance]]),"Sort Entries from lowest to highest",""))) ->  | AM103: =SUMIF(tbl_OPOVINN_P1[Coinsurance],AL103,tbl_OPOVINN_P1[Plan Projected Allowed Amount]) -> 0 | AN103: =IF(OR(AM103=0,AM103=""),"",AM103/tbl_OPOVINN_P2Coi[[#Totals],[Allowed Claims]]) ->  | AO103: =IF(AN103="","",IF(SUMIF(tbl_OPOVINN_P2Coi[Coinsurance],">="&AL103,tbl_OPOVINN_P2Coi[Portion])>0.5,AL103,"")) ->  | AP103: =IF(COUNTIF(tbl_OPOVINN_P2Coi[Coinsurance],tbl_OPOVINN_P2Coi[[#This Row],[Coinsurance]])>1,"Remove Duplicate Entry.",IF(AND(tbl_OPOVINN_P2Coi[[#This Row],[Coinsurance]]<>"",tbl_OPOVINN_P2Coi[[#This Row],[Allowed Claims]]=0),"Entry not found in Part 1 Table",IF(AND(OFFSET(tbl_OPOVINN_P2Coi[[#This Row],[Coinsurance]],1,0)<>"Total",OFFSET(tbl_OPOVINN_P2Coi[[#This Row],[Coinsurance]],1,0)<>"",OFFSET(tbl_OPOVINN_P2Coi[[#This Row],[Coinsurance]],1,0)<tbl_OPOVINN_P2Coi[[#This Row],[Coinsurance]]),"Sort Entries from lowest to highest",""))) ->  | AV103: =SUMIF(tbl_OPAOINN_P1[Coinsurance],AU103,tbl_OPAOINN_P1[Plan Projected Allowed Amount]) -> 0 | AW103: =IF(OR(AV103=0,AV103=""),"",AV103/tbl_OPAOINN_P2Coi[[#Totals],[Allowed Claims]]) ->  | AX103: =IF(AW103="","",IF(SUMIF(tbl_OPAOINN_P2Coi[Coinsurance],">="&AU103,tbl_OPAOINN_P2Coi[Portion])>0.5,AU103,"")) ->  | AY103: =IF(COUNTIF(tbl_OPAOINN_P2Coi[Coinsurance],tbl_OPAOINN_P2Coi[[#This Row],[Coinsurance]])>1,"Remove Duplicate Entry.",IF(AND(tbl_OPAOINN_P2Coi[[#This Row],[Coinsurance]]<>"",tbl_OPAOINN_P2Coi[[#This Row],[Allowed Claims]]=0),"Entry not found in Part 1 Table",IF(AND(OFFSET(tbl_OPAOINN_P2Coi[[#This Row],[Coinsurance]],1,0)<>"Total",OFFSET(tbl_OPAOINN_P2Coi[[#This Row],[Coinsurance]],1,0)<>"",OFFSET(tbl_OPAOINN_P2Coi[[#This Row],[Coinsurance]],1,0)<tbl_OPAOINN_P2Coi[[#This Row],[Coinsurance]]),"Sort Entries from lowest to highest",""))) ->  | BE103: =SUMIF(tbl_OPOON_P1[Coinsurance],BD103,tbl_OPOON_P1[Plan Projected Allowed Amount]) -> 0 | BF103: =IF(OR(BE103=0,BE103=""),"",BE103/tbl_OPOON_P2Coi[[#Totals],[Allowed Claims]]) ->  | BG103: =IF(BF103="","",IF(SUMIF(tbl_OPOON_P2Coi[Coinsurance],">="&BD103,tbl_OPOON_P2Coi[Portion])>0.5,BD103,"")) ->  | BH103: =IF(COUNTIF(tbl_OPOON_P2Coi[Coinsurance],tbl_OPOON_P2Coi[[#This Row],[Coinsurance]])>1,"Remove Duplicate Entry.",IF(AND(tbl_OPOON_P2Coi[[#This Row],[Coinsurance]]<>"",tbl_OPOON_P2Coi[[#This Row],[Allowed Claims]]=0),"Entry not found in Part 1 Table",IF(AND(OFFSET(tbl_OPOON_P2Coi[[#This Row],[Coinsurance]],1,0)<>"Total",OFFSET(tbl_OPOON_P2Coi[[#This Row],[Coinsurance]],1,0)<>"",OFFSET(tbl_OPOON_P2Coi[[#This Row],[Coinsurance]],1,0)<tbl_OPOON_P2Coi[[#This Row],[Coinsurance]]),"Sort Entries from lowest to highest",""))) ->  | BN103: =SUMIF(tbl_OPOVOON_P1[Coinsurance],BM103,tbl_OPOVOON_P1[Plan Projected Allowed Amount]) -> 0 | BO103: =IF(OR(BN103=0,BN103=""),"",BN103/tbl_OPOVOON_P2Coi[[#Totals],[Allowed Claims]]) ->  | BP103: =IF(BO103="","",IF(SUMIF(tbl_OPOVOON_P2Coi[Coinsurance],">="&BM103,tbl_OPOVOON_P2Coi[Portion])>0.5,BM103,"")) ->  | BQ103: =IF(COUNTIF(tbl_OPOVOON_P2Coi[Coinsurance],tbl_OPOVOON_P2Coi[[#This Row],[Coinsurance]])>1,"Remove Duplicate Entry.",IF(AND(tbl_OPOVOON_P2Coi[[#This Row],[Coinsurance]]<>"",tbl_OPOVOON_P2Coi[[#This Row],[Allowed Claims]]=0),"Entry not found in Part 1 Table",IF(AND(OFFSET(tbl_OPOVOON_P2Coi[[#This Row],[Coinsurance]],1,0)<>"Total",OFFSET(tbl_OPOVOON_P2Coi[[#This Row],[Coinsurance]],1,0)<>"",OFFSET(tbl_OPOVOON_P2Coi[[#This Row],[Coinsurance]],1,0)<tbl_OPOVOON_P2Coi[[#This Row],[Coinsurance]]),"Sort Entries from lowest to highest",""))) ->  | BW103: =SUMIF(tbl_OPAOOON_P1[Coinsurance],BV103,tbl_OPAOOON_P1[Plan Projected Allowed Amount]) -> 0 | BX103: =IF(OR(BW103=0,BW103=""),"",BW103/tbl_OPAOOON_P2Coi[[#Totals],[Allowed Claims]]) ->  | BY103: =IF(BX103="","",IF(SUMIF(tbl_OPAOOON_P2Coi[Coinsurance],">="&BV103,tbl_OPAOOON_P2Coi[Portion])>0.5,BV103,"")) ->  | BZ103: =IF(COUNTIF(tbl_OPAOOON_P2Coi[Coinsurance],tbl_OPAOOON_P2Coi[[#This Row],[Coinsurance]])>1,"Remove Duplicate Entry.",IF(AND(tbl_OPAOOON_P2Coi[[#This Row],[Coinsurance]]<>"",tbl_OPAOOON_P2Coi[[#This Row],[Allowed Claims]]=0),"Entry not found in Part 1 Table",IF(AND(OFFSET(tbl_OPAOOON_P2Coi[[#This Row],[Coinsurance]],1,0)<>"Total",OFFSET(tbl_OPAOOON_P2Coi[[#This Row],[Coinsurance]],1,0)<>"",OFFSET(tbl_OPAOOON_P2Coi[[#This Row],[Coinsurance]],1,0)<tbl_OPAOOON_P2Coi[[#This Row],[Coinsurance]]),"Sort Entries from lowest to highest",""))) ->  | CF103: =SUMIF(tbl_ER_P1[Coinsurance],CE103,tbl_ER_P1[Plan Projected Allowed Amount]) -> 0 | CG103: =IF(OR(CF103=0,CF103=""),"",CF103/tbl_ER_P2Coi[[#Totals],[Allowed Claims]]) ->  | CH103: =IF(CG103="","",IF(SUMIF(tbl_ER_P2Coi[Coinsurance],">="&CE103,tbl_ER_P2Coi[Portion])>0.5,CE103,"")) ->  | CI103: =IF(COUNTIF(tbl_ER_P2Coi[Coinsurance],tbl_ER_P2Coi[[#This Row],[Coinsurance]])>1,"Remove Duplicate Entry.",IF(AND(tbl_ER_P2Coi[[#This Row],[Coinsurance]]<>"",tbl_ER_P2Coi[[#This Row],[Allowed Claims]]=0),"Entry not found in Part 1 Table",IF(AND(OFFSET(tbl_ER_P2Coi[[#This Row],[Coinsurance]],1,0)<>"Total",OFFSET(tbl_ER_P2Coi[[#This Row],[Coinsurance]],1,0)<>"",OFFSET(tbl_ER_P2Coi[[#This Row],[Coinsurance]],1,0)<tbl_ER_P2Coi[[#This Row],[Coinsurance]]),"Sort Entries from lowest to highest",""))) ->  | CO103: =SUMIF(tbl_RX_P1[Coinsurance],CN103,tbl_RX_P1[Plan Projected Allowed Amount]) -> 0 | CP103: =IF(OR(CO103=0,CO103=""),"",CO103/tbl_RX_P2Coi[[#Totals],[Allowed Claims]]) ->  | CQ103: =IF(CP103="","",IF(SUMIF(tbl_RX_P2Coi[Coinsurance],">="&CN103,tbl_RX_P2Coi[Portion])>0.5,CN103,"")) ->  | CR103: =IF(COUNTIF(tbl_RX_P2Coi[Coinsurance],tbl_RX_P2Coi[[#This Row],[Coinsurance]])>1,"Remove Duplicate Entry.",IF(AND(tbl_RX_P2Coi[[#This Row],[Coinsurance]]<>"",tbl_RX_P2Coi[[#This Row],[Allowed Claims]]=0),"Entry not found in Part 1 Table",IF(AND(OFFSET(tbl_RX_P2Coi[[#This Row],[Coinsurance]],1,0)<>"Total",OFFSET(tbl_RX_P2Coi[[#This Row],[Coinsurance]],1,0)<>"",OFFSET(tbl_RX_P2Coi[[#This Row],[Coinsurance]],1,0)<tbl_RX_P2Coi[[#This Row],[Coinsurance]]),"Sort Entries from lowest to highest",""))) -> 
L104: =SUMIF(tbl_IPINN_P1[Coinsurance],K104,tbl_IPINN_P1[Plan Projected Allowed Amount]) -> 0 | M104: =IF(OR(L104=0,L104=""),"",L104/tbl_IPINN_P2Coi[[#Totals],[Allowed Claims]]) ->  | N104: =IF(M104="","",IF(SUMIF(tbl_IPINN_P2Coi[Coinsurance],">="&K104,tbl_IPINN_P2Coi[Portion])>0.5,K104,"")) ->  | O104: =IF(COUNTIF(tbl_IPINN_P2Coi[Coinsurance],tbl_IPINN_P2Coi[[#This Row],[Coinsurance]])>1,"Remove Duplicate Entry.",IF(AND(tbl_IPINN_P2Coi[[#This Row],[Coinsurance]]<>"",tbl_IPINN_P2Coi[[#This Row],[Allowed Claims]]=0),"Entry not found in Part 1 Table",IF(AND(OFFSET(tbl_IPINN_P2Coi[[#This Row],[Coinsurance]],1,0)<>"Total",OFFSET(tbl_IPINN_P2Coi[[#This Row],[Coinsurance]],1,0)<>"",OFFSET(tbl_IPINN_P2Coi[[#This Row],[Coinsurance]],1,0)<tbl_IPINN_P2Coi[[#This Row],[Coinsurance]]),"Sort Entries from lowest to highest",""))) ->  | U104: =SUMIF(tbl_IPOON_P1[Coinsurance],T104,tbl_IPOON_P1[Plan Projected Allowed Amount]) -> 0 | V104: =IF(OR(U104=0,U104=""),"",U104/tbl_IPOON_P2Coi[[#Totals],[Allowed Claims]]) ->  | W104: =IF(V104="","",IF(SUMIF(tbl_IPOON_P2Coi[Coinsurance],">="&T104,tbl_IPOON_P2Coi[Portion])>0.5,T104,"")) ->  | X104: =IF(COUNTIF(tbl_IPOON_P2Coi[Coinsurance],tbl_IPOON_P2Coi[[#This Row],[Coinsurance]])>1,"Remove Duplicate Entry.",IF(AND(tbl_IPOON_P2Coi[[#This Row],[Coinsurance]]<>"",tbl_IPOON_P2Coi[[#This Row],[Allowed Claims]]=0),"Entry not found in Part 1 Table",IF(AND(OFFSET(tbl_IPOON_P2Coi[[#This Row],[Coinsurance]],1,0)<>"Total",OFFSET(tbl_IPOON_P2Coi[[#This Row],[Coinsurance]],1,0)<>"",OFFSET(tbl_IPOON_P2Coi[[#This Row],[Coinsurance]],1,0)<tbl_IPOON_P2Coi[[#This Row],[Coinsurance]]),"Sort Entries from lowest to highest",""))) ->  | AD104: =SUMIF(tbl_OPINN_P1[Coinsurance],AC104,tbl_OPINN_P1[Plan Projected Allowed Amount]) -> 0 | AE104: =IF(OR(AD104=0,AD104=""),"",AD104/tbl_OPINN_P2Coi[[#Totals],[Allowed Claims]]) ->  | AF104: =IF(AE104="","",IF(SUMIF(tbl_OPINN_P2Coi[Coinsurance],">="&AC104,tbl_OPINN_P2Coi[Portion])>0.5,AC104,"")) ->  | AG104: =IF(COUNTIF(tbl_OPINN_P2Coi[Coinsurance],tbl_OPINN_P2Coi[[#This Row],[Coinsurance]])>1,"Remove Duplicate Entry.",IF(AND(tbl_OPINN_P2Coi[[#This Row],[Coinsurance]]<>"",tbl_OPINN_P2Coi[[#This Row],[Allowed Claims]]=0),"Entry not found in Part 1 Table",IF(AND(OFFSET(tbl_OPINN_P2Coi[[#This Row],[Coinsurance]],1,0)<>"Total",OFFSET(tbl_OPINN_P2Coi[[#This Row],[Coinsurance]],1,0)<>"",OFFSET(tbl_OPINN_P2Coi[[#This Row],[Coinsurance]],1,0)<tbl_OPINN_P2Coi[[#This Row],[Coinsurance]]),"Sort Entries from lowest to highest",""))) ->  | AM104: =SUMIF(tbl_OPOVINN_P1[Coinsurance],AL104,tbl_OPOVINN_P1[Plan Projected Allowed Amount]) -> 0 | AN104: =IF(OR(AM104=0,AM104=""),"",AM104/tbl_OPOVINN_P2Coi[[#Totals],[Allowed Claims]]) ->  | AO104: =IF(AN104="","",IF(SUMIF(tbl_OPOVINN_P2Coi[Coinsurance],">="&AL104,tbl_OPOVINN_P2Coi[Portion])>0.5,AL104,"")) ->  | AP104: =IF(COUNTIF(tbl_OPOVINN_P2Coi[Coinsurance],tbl_OPOVINN_P2Coi[[#This Row],[Coinsurance]])>1,"Remove Duplicate Entry.",IF(AND(tbl_OPOVINN_P2Coi[[#This Row],[Coinsurance]]<>"",tbl_OPOVINN_P2Coi[[#This Row],[Allowed Claims]]=0),"Entry not found in Part 1 Table",IF(AND(OFFSET(tbl_OPOVINN_P2Coi[[#This Row],[Coinsurance]],1,0)<>"Total",OFFSET(tbl_OPOVINN_P2Coi[[#This Row],[Coinsurance]],1,0)<>"",OFFSET(tbl_OPOVINN_P2Coi[[#This Row],[Coinsurance]],1,0)<tbl_OPOVINN_P2Coi[[#This Row],[Coinsurance]]),"Sort Entries from lowest to highest",""))) ->  | AV104: =SUMIF(tbl_OPAOINN_P1[Coinsurance],AU104,tbl_OPAOINN_P1[Plan Projected Allowed Amount]) -> 0 | AW104: =IF(OR(AV104=0,AV104=""),"",AV104/tbl_OPAOINN_P2Coi[[#Totals],[Allowed Claims]]) ->  | AX104: =IF(AW104="","",IF(SUMIF(tbl_OPAOINN_P2Coi[Coinsurance],">="&AU104,tbl_OPAOINN_P2Coi[Portion])>0.5,AU104,"")) ->  | AY104: =IF(COUNTIF(tbl_OPAOINN_P2Coi[Coinsurance],tbl_OPAOINN_P2Coi[[#This Row],[Coinsurance]])>1,"Remove Duplicate Entry.",IF(AND(tbl_OPAOINN_P2Coi[[#This Row],[Coinsurance]]<>"",tbl_OPAOINN_P2Coi[[#This Row],[Allowed Claims]]=0),"Entry not found in Part 1 Table",IF(AND(OFFSET(tbl_OPAOINN_P2Coi[[#This Row],[Coinsurance]],1,0)<>"Total",OFFSET(tbl_OPAOINN_P2Coi[[#This Row],[Coinsurance]],1,0)<>"",OFFSET(tbl_OPAOINN_P2Coi[[#This Row],[Coinsurance]],1,0)<tbl_OPAOINN_P2Coi[[#This Row],[Coinsurance]]),"Sort Entries from lowest to highest",""))) ->  | BE104: =SUMIF(tbl_OPOON_P1[Coinsurance],BD104,tbl_OPOON_P1[Plan Projected Allowed Amount]) -> 0 | BF104: =IF(OR(BE104=0,BE104=""),"",BE104/tbl_OPOON_P2Coi[[#Totals],[Allowed Claims]]) ->  | BG104: =IF(BF104="","",IF(SUMIF(tbl_OPOON_P2Coi[Coinsurance],">="&BD104,tbl_OPOON_P2Coi[Portion])>0.5,BD104,"")) ->  | BH104: =IF(COUNTIF(tbl_OPOON_P2Coi[Coinsurance],tbl_OPOON_P2Coi[[#This Row],[Coinsurance]])>1,"Remove Duplicate Entry.",IF(AND(tbl_OPOON_P2Coi[[#This Row],[Coinsurance]]<>"",tbl_OPOON_P2Coi[[#This Row],[Allowed Claims]]=0),"Entry not found in Part 1 Table",IF(AND(OFFSET(tbl_OPOON_P2Coi[[#This Row],[Coinsurance]],1,0)<>"Total",OFFSET(tbl_OPOON_P2Coi[[#This Row],[Coinsurance]],1,0)<>"",OFFSET(tbl_OPOON_P2Coi[[#This Row],[Coinsurance]],1,0)<tbl_OPOON_P2Coi[[#This Row],[Coinsurance]]),"Sort Entries from lowest to highest",""))) ->  | BN104: =SUMIF(tbl_OPOVOON_P1[Coinsurance],BM104,tbl_OPOVOON_P1[Plan Projected Allowed Amount]) -> 0 | BO104: =IF(OR(BN104=0,BN104=""),"",BN104/tbl_OPOVOON_P2Coi[[#Totals],[Allowed Claims]]) ->  | BP104: =IF(BO104="","",IF(SUMIF(tbl_OPOVOON_P2Coi[Coinsurance],">="&BM104,tbl_OPOVOON_P2Coi[Portion])>0.5,BM104,"")) ->  | BQ104: =IF(COUNTIF(tbl_OPOVOON_P2Coi[Coinsurance],tbl_OPOVOON_P2Coi[[#This Row],[Coinsurance]])>1,"Remove Duplicate Entry.",IF(AND(tbl_OPOVOON_P2Coi[[#This Row],[Coinsurance]]<>"",tbl_OPOVOON_P2Coi[[#This Row],[Allowed Claims]]=0),"Entry not found in Part 1 Table",IF(AND(OFFSET(tbl_OPOVOON_P2Coi[[#This Row],[Coinsurance]],1,0)<>"Total",OFFSET(tbl_OPOVOON_P2Coi[[#This Row],[Coinsurance]],1,0)<>"",OFFSET(tbl_OPOVOON_P2Coi[[#This Row],[Coinsurance]],1,0)<tbl_OPOVOON_P2Coi[[#This Row],[Coinsurance]]),"Sort Entries from lowest to highest",""))) ->  | BW104: =SUMIF(tbl_OPAOOON_P1[Coinsurance],BV104,tbl_OPAOOON_P1[Plan Projected Allowed Amount]) -> 0 | BX104: =IF(OR(BW104=0,BW104=""),"",BW104/tbl_OPAOOON_P2Coi[[#Totals],[Allowed Claims]]) ->  | BY104: =IF(BX104="","",IF(SUMIF(tbl_OPAOOON_P2Coi[Coinsurance],">="&BV104,tbl_OPAOOON_P2Coi[Portion])>0.5,BV104,"")) ->  | BZ104: =IF(COUNTIF(tbl_OPAOOON_P2Coi[Coinsurance],tbl_OPAOOON_P2Coi[[#This Row],[Coinsurance]])>1,"Remove Duplicate Entry.",IF(AND(tbl_OPAOOON_P2Coi[[#This Row],[Coinsurance]]<>"",tbl_OPAOOON_P2Coi[[#This Row],[Allowed Claims]]=0),"Entry not found in Part 1 Table",IF(AND(OFFSET(tbl_OPAOOON_P2Coi[[#This Row],[Coinsurance]],1,0)<>"Total",OFFSET(tbl_OPAOOON_P2Coi[[#This Row],[Coinsurance]],1,0)<>"",OFFSET(tbl_OPAOOON_P2Coi[[#This Row],[Coinsurance]],1,0)<tbl_OPAOOON_P2Coi[[#This Row],[Coinsurance]]),"Sort Entries from lowest to highest",""))) ->  | CF104: =SUMIF(tbl_ER_P1[Coinsurance],CE104,tbl_ER_P1[Plan Projected Allowed Amount]) -> 0 | CG104: =IF(OR(CF104=0,CF104=""),"",CF104/tbl_ER_P2Coi[[#Totals],[Allowed Claims]]) ->  | CH104: =IF(CG104="","",IF(SUMIF(tbl_ER_P2Coi[Coinsurance],">="&CE104,tbl_ER_P2Coi[Portion])>0.5,CE104,"")) ->  | CI104: =IF(COUNTIF(tbl_ER_P2Coi[Coinsurance],tbl_ER_P2Coi[[#This Row],[Coinsurance]])>1,"Remove Duplicate Entry.",IF(AND(tbl_ER_P2Coi[[#This Row],[Coinsurance]]<>"",tbl_ER_P2Coi[[#This Row],[Allowed Claims]]=0),"Entry not found in Part 1 Table",IF(AND(OFFSET(tbl_ER_P2Coi[[#This Row],[Coinsurance]],1,0)<>"Total",OFFSET(tbl_ER_P2Coi[[#This Row],[Coinsurance]],1,0)<>"",OFFSET(tbl_ER_P2Coi[[#This Row],[Coinsurance]],1,0)<tbl_ER_P2Coi[[#This Row],[Coinsurance]]),"Sort Entries from lowest to highest",""))) ->  | CO104: =SUMIF(tbl_RX_P1[Coinsurance],CN104,tbl_RX_P1[Plan Projected Allowed Amount]) -> 0 | CP104: =IF(OR(CO104=0,CO104=""),"",CO104/tbl_RX_P2Coi[[#Totals],[Allowed Claims]]) ->  | CQ104: =IF(CP104="","",IF(SUMIF(tbl_RX_P2Coi[Coinsurance],">="&CN104,tbl_RX_P2Coi[Portion])>0.5,CN104,"")) ->  | CR104: =IF(COUNTIF(tbl_RX_P2Coi[Coinsurance],tbl_RX_P2Coi[[#This Row],[Coinsurance]])>1,"Remove Duplicate Entry.",IF(AND(tbl_RX_P2Coi[[#This Row],[Coinsurance]]<>"",tbl_RX_P2Coi[[#This Row],[Allowed Claims]]=0),"Entry not found in Part 1 Table",IF(AND(OFFSET(tbl_RX_P2Coi[[#This Row],[Coinsurance]],1,0)<>"Total",OFFSET(tbl_RX_P2Coi[[#This Row],[Coinsurance]],1,0)<>"",OFFSET(tbl_RX_P2Coi[[#This Row],[Coinsurance]],1,0)<tbl_RX_P2Coi[[#This Row],[Coinsurance]]),"Sort Entries from lowest to highest",""))) -> 
K105: Total | L105: =SUBTOTAL(109,tbl_IPINN_P2Coi[Allowed Claims]) -> 0 | M105: =SUBTOTAL(109,tbl_IPINN_P2Coi[Portion]) -> 0 | O105: =IF(AND(tbl_IPINN_P2Coi[[#Totals],[Allowed Claims]]<L71,N71<>"Fail",N71<>"N/A"),"Add missing cost share values.",IF(L105>M55,"Allowed claims higher than possible; correct entries.","")) ->  | T105: Total | U105: =SUBTOTAL(109,tbl_IPOON_P2Coi[Allowed Claims]) -> 0 | V105: =SUBTOTAL(109,tbl_IPOON_P2Coi[Portion]) -> 0 | X105: =IF(AND(tbl_IPOON_P2Coi[[#Totals],[Allowed Claims]]<U71,W71<>"Fail",W71<>"N/A"),"Add missing cost share values.",IF(U105>V55,"Allowed claims higher than possible; correct entries.","")) ->  | AC105: Total | AD105: =SUBTOTAL(109,tbl_OPINN_P2Coi[Allowed Claims]) -> 0 | AE105: =SUBTOTAL(109,tbl_OPINN_P2Coi[Portion]) -> 0 | AG105: =IF(AND(tbl_OPINN_P2Coi[[#Totals],[Allowed Claims]]<AD71,AF71<>"Fail",AF71<>"N/A"),"Add missing cost share values.",IF(AD105>AE55,"Allowed claims higher than possible; correct entries.","")) ->  | AL105: Total | AM105: =SUBTOTAL(109,tbl_OPOVINN_P2Coi[Allowed Claims]) -> 0 | AN105: =SUBTOTAL(109,tbl_OPOVINN_P2Coi[Portion]) -> 0 | AP105: =IF(AND(tbl_OPOVINN_P2Coi[[#Totals],[Allowed Claims]]<AM71,AO71<>"Fail",AO71<>"N/A"),"Add missing cost share values.",IF(AM105>AN55,"Allowed claims higher than possible; correct entries.","")) ->  | AU105: Total | AV105: =SUBTOTAL(109,tbl_OPAOINN_P2Coi[Allowed Claims]) -> 0 | AW105: =SUBTOTAL(109,tbl_OPAOINN_P2Coi[Portion]) -> 0 | AY105: =IF(AND(tbl_OPAOINN_P2Coi[[#Totals],[Allowed Claims]]<AV71,AX71<>"Fail",AX71<>"N/A"),"Add missing cost share values.",IF(AV105>AW55,"Allowed claims higher than possible; correct entries.","")) ->  | BD105: Total | BE105: =SUBTOTAL(109,tbl_OPOON_P2Coi[Allowed Claims]) -> 0 | BF105: =SUBTOTAL(109,tbl_OPOON_P2Coi[Portion]) -> 0 | BH105: =IF(AND(tbl_OPOON_P2Coi[[#Totals],[Allowed Claims]]<BE71,BG71<>"Fail",BG71<>"N/A"),"Add missing cost share values.",IF(BE105>BF55,"Allowed claims higher than possible; correct entries.","")) ->  | BM105: Total | BN105: =SUBTOTAL(109,tbl_OPOVOON_P2Coi[Allowed Claims]) -> 0 | BO105: =SUBTOTAL(109,tbl_OPOVOON_P2Coi[Portion]) -> 0 | BQ105: =IF(AND(tbl_OPOVOON_P2Coi[[#Totals],[Allowed Claims]]<BN71,BP71<>"Fail",BP71<>"N/A"),"Add missing cost share values.",IF(BN105>BO55,"Allowed claims higher than possible; correct entries.","")) ->  | BV105: Total | BW105: =SUBTOTAL(109,tbl_OPAOOON_P2Coi[Allowed Claims]) -> 0 | BX105: =SUBTOTAL(109,tbl_OPAOOON_P2Coi[Portion]) -> 0 | BZ105: =IF(AND(tbl_OPAOOON_P2Coi[[#Totals],[Allowed Claims]]<BW71,BY71<>"Fail",BY71<>"N/A"),"Add missing cost share values.",IF(BW105>BX55,"Allowed claims higher than possible; correct entries.","")) ->  | CE105: Total | CF105: =SUBTOTAL(109,tbl_ER_P2Coi[Allowed Claims]) -> 0 | CG105: =SUBTOTAL(109,tbl_ER_P2Coi[Portion]) -> 0 | CI105: =IF(AND(tbl_ER_P2Coi[[#Totals],[Allowed Claims]]<CF71,CH71<>"Fail",CH71<>"N/A"),"Add missing cost share values.",IF(CF105>CG55,"Allowed claims higher than possible; correct entries.","")) ->  | CN105: Total | CO105: =SUBTOTAL(109,tbl_RX_P2Coi[Allowed Claims]) -> 0 | CP105: =SUBTOTAL(109,tbl_RX_P2Coi[Portion]) -> 0 | CR105: =IF(AND(tbl_RX_P2Coi[[#Totals],[Allowed Claims]]<CO71,CQ71<>"Fail",CQ71<>"N/A"),"Add missing cost share values.",IF(CO105>CP55,"Allowed claims higher than possible; correct entries.","")) -> 
K107: =K111&" ---- "&L$40 -> OOPM ---- (1) Inpatient, In-Network (IP INN) | N107: Errors found: | O107: =COUNTIF(tbl_IPINN_P2OOPM[[#Data],[#Totals],[Error Checking]],"?*") -> 0 | T107: =T111&" ---- "&U$40 -> OOPM ---- (2) Inpatient, Out-of-Network (IP OON) | W107: Errors found: | X107: =COUNTIF(tbl_IPOON_P2OOPM[[#Data],[#Totals],[Error Checking]],"?*") -> 0 | AC107: =AC111&" ---- "&AD$40 -> OOPM ---- (3) Outpatient, In-Network (OP INN) | AF107: Errors found: | AG107: =COUNTIF(tbl_OPINN_P2OOPM[[#Data],[#Totals],[Error Checking]],"?*") -> 0 | AL107: =AL111&" ---- "&AM$40 -> OOPM ---- (3a) Outpatient - Office Visits, In-Network (OP-OV INN) | AO107: Errors found: | AP107: =COUNTIF(tbl_OPOVINN_P2OOPM[[#Data],[#Totals],[Error Checking]],"?*") -> 0 | AU107: =AU111&" ---- "&AV$40 -> OOPM ---- (3b) Outpatient - All Other, In-Network (OP-AO INN) | AX107: Errors found: | AY107: =COUNTIF(tbl_OPAOINN_P2OOPM[[#Data],[#Totals],[Error Checking]],"?*") -> 0 | BD107: =BD111&" ---- "&BE$40 -> OOPM ---- (4) Outpatient, Out-of-Network (OP OON) | BG107: Errors found: | BH107: =COUNTIF(tbl_OPOON_P2OOPM[[#Data],[#Totals],[Error Checking]],"?*") -> 0 | BM107: =BM111&" ---- "&BN$40 -> OOPM ---- (4a) Outpatient - Office Visits, Out-of-Network (OP-OV OON) | BP107: Errors found: | BQ107: =COUNTIF(tbl_OPOVOON_P2OOPM[[#Data],[#Totals],[Error Checking]],"?*") -> 0 | BV107: =BV111&" ---- "&BW$40 -> OOPM ---- (4b) Outpatient - All Other, Out-of-Network (OP-AO OON) | BY107: Errors found: | BZ107: =COUNTIF(tbl_OPAOOON_P2OOPM[[#Data],[#Totals],[Error Checking]],"?*") -> 0 | CE107: =CE111&" ---- "&CF$40 -> OOPM ---- (5) Emergency Care, (ER ) | CH107: Errors found: | CI107: =COUNTIF(tbl_ER_P2OOPM[[#Data],[#Totals],[Error Checking]],"?*") -> 0 | CN107: =CN111&" ---- "&CO$40 -> OOPM ---- (6) Prescription Drugs, (RX ) | CQ107: Errors found: | CR107: =COUNTIF(tbl_RX_P2OOPM[[#Data],[#Totals],[Error Checking]],"?*") -> 0
K108: =IF(INDEX(M$69:M$72,MATCH(K111,K$69:K$72,0))="","If testing is required for this benefit classification: Please ensure each different cost-share combination is entered above in PART 1.",IF(INDEX(M$69:M$72,MATCH(K111,K$69:K$72,0))>=(2/3),"Applies to substantially all medical/surgical benefits in this classification. ENTER different "&LOWER(K111)&" amounts from smallest to largest.","Does not apply to substantially all medical/surgical benefits in this classification. DELETE any values in the left-hand column below.")) -> If testing is required for this benefit classification: Please ensure each different cost-share combination is entered above in PART 1. | T108: =IF(INDEX(V$69:V$72,MATCH(T111,T$69:T$72,0))="","If testing is required for this benefit classification: Please ensure each different cost-share combination is entered above in PART 1.",IF(INDEX(V$69:V$72,MATCH(T111,T$69:T$72,0))>=(2/3),"Applies to substantially all medical/surgical benefits in this classification. ENTER different "&LOWER(T111)&" amounts from smallest to largest.","Does not apply to substantially all medical/surgical benefits in this classification. DELETE any values in the left-hand column below.")) -> If testing is required for this benefit classification: Please ensure each different cost-share combination is entered above in PART 1. | AC108: =IF(INDEX(AE$69:AE$72,MATCH(AC111,AC$69:AC$72,0))="","If testing is required for this benefit classification: Please ensure each different cost-share combination is entered above in PART 1.",IF(INDEX(AE$69:AE$72,MATCH(AC111,AC$69:AC$72,0))>=(2/3),"Applies to substantially all medical/surgical benefits in this classification. ENTER different "&LOWER(AC111)&" amounts from smallest to largest.","Does not apply to substantially all medical/surgical benefits in this classification. DELETE any values in the left-hand column below.")) -> If testing is required for this benefit classification: Please ensure each different cost-share combination is entered above in PART 1. | AL108: =IF(INDEX(AN$69:AN$72,MATCH(AL111,AL$69:AL$72,0))="","If testing is required for this benefit classification: Please ensure each different cost-share combination is entered above in PART 1.",IF(INDEX(AN$69:AN$72,MATCH(AL111,AL$69:AL$72,0))>=(2/3),"Applies to substantially all medical/surgical benefits in this classification. ENTER different "&LOWER(AL111)&" amounts from smallest to largest.","Does not apply to substantially all medical/surgical benefits in this classification. DELETE any values in the left-hand column below.")) -> If testing is required for this benefit classification: Please ensure each different cost-share combination is entered above in PART 1. | AU108: =IF(INDEX(AW$69:AW$72,MATCH(AU111,AU$69:AU$72,0))="","If testing is required for this benefit classification: Please ensure each different cost-share combination is entered above in PART 1.",IF(INDEX(AW$69:AW$72,MATCH(AU111,AU$69:AU$72,0))>=(2/3),"Applies to substantially all medical/surgical benefits in this classification. ENTER different "&LOWER(AU111)&" amounts from smallest to largest.","Does not apply to substantially all medical/surgical benefits in this classification. DELETE any values in the left-hand column below.")) -> If testing is required for this benefit classification: Please ensure each different cost-share combination is entered above in PART 1. | BD108: =IF(INDEX(BF$69:BF$72,MATCH(BD111,BD$69:BD$72,0))="","If testing is required for this benefit classification: Please ensure each different cost-share combination is entered above in PART 1.",IF(INDEX(BF$69:BF$72,MATCH(BD111,BD$69:BD$72,0))>=(2/3),"Applies to substantially all medical/surgical benefits in this classification. ENTER different "&LOWER(BD111)&" amounts from smallest to largest.","Does not apply to substantially all medical/surgical benefits in this classification. DELETE any values in the left-hand column below.")) -> If testing is required for this benefit classification: Please ensure each different cost-share combination is entered above in PART 1. | BM108: =IF(INDEX(BO$69:BO$72,MATCH(BM111,BM$69:BM$72,0))="","If testing is required for this benefit classification: Please ensure each different cost-share combination is entered above in PART 1.",IF(INDEX(BO$69:BO$72,MATCH(BM111,BM$69:BM$72,0))>=(2/3),"Applies to substantially all medical/surgical benefits in this classification. ENTER different "&LOWER(BM111)&" amounts from smallest to largest.","Does not apply to substantially all medical/surgical benefits in this classification. DELETE any values in the left-hand column below.")) -> If testing is required for this benefit classification: Please ensure each different cost-share combination is entered above in PART 1. | BV108: =IF(INDEX(BX$69:BX$72,MATCH(BV111,BV$69:BV$72,0))="","If testing is required for this benefit classification: Please ensure each different cost-share combination is entered above in PART 1.",IF(INDEX(BX$69:BX$72,MATCH(BV111,BV$69:BV$72,0))>=(2/3),"Applies to substantially all medical/surgical benefits in this classification. ENTER different "&LOWER(BV111)&" amounts from smallest to largest.","Does not apply to substantially all medical/surgical benefits in this classification. DELETE any values in the left-hand column below.")) -> If testing is required for this benefit classification: Please ensure each different cost-share combination is entered above in PART 1. | CE108: =IF(INDEX(CG$69:CG$72,MATCH(CE111,CE$69:CE$72,0))="","If testing is required for this benefit classification: Please ensure each different cost-share combination is entered above in PART 1.",IF(INDEX(CG$69:CG$72,MATCH(CE111,CE$69:CE$72,0))>=(2/3),"Applies to substantially all medical/surgical benefits in this classification. ENTER different "&LOWER(CE111)&" amounts from smallest to largest.","Does not apply to substantially all medical/surgical benefits in this classification. DELETE any values in the left-hand column below.")) -> If testing is required for this benefit classification: Please ensure each different cost-share combination is entered above in PART 1. | CN108: =IF(INDEX(CP$69:CP$72,MATCH(CN111,CN$69:CN$72,0))="","If testing is required for this benefit classification: Please ensure each different cost-share combination is entered above in PART 1.",IF(INDEX(CP$69:CP$72,MATCH(CN111,CN$69:CN$72,0))>=(2/3),"Applies to substantially all medical/surgical benefits in this classification. ENTER different "&LOWER(CN111)&" amounts from smallest to largest.","Does not apply to substantially all medical/surgical benefits in this classification. DELETE any values in the left-hand column below.")) -> If testing is required for this benefit classification: Please ensure each different cost-share combination is entered above in PART 1.
K111: OOPM | L111: Allowed Claims | M111: Portion | N111: Predominant & Smaller | O111: Error Checking | T111: OOPM | U111: Allowed Claims | V111: Portion | W111: Predominant & Smaller | X111: Error Checking | AC111: OOPM | AD111: Allowed Claims | AE111: Portion | AF111: Predominant & Smaller | AG111: Error Checking | AL111: OOPM | AM111: Allowed Claims | AN111: Portion | AO111: Predominant & Smaller | AP111: Error Checking | AU111: OOPM | AV111: Allowed Claims | AW111: Portion | AX111: Predominant & Smaller | AY111: Error Checking | BD111: OOPM | BE111: Allowed Claims | BF111: Portion | BG111: Predominant & Smaller | BH111: Error Checking | BM111: OOPM | BN111: Allowed Claims | BO111: Portion | BP111: Predominant & Smaller | BQ111: Error Checking | BV111: OOPM | BW111: Allowed Claims | BX111: Portion | BY111: Predominant & Smaller | BZ111: Error Checking | CE111: OOPM | CF111: Allowed Claims | CG111: Portion | CH111: Predominant & Smaller | CI111: Error Checking | CN111: OOPM | CO111: Allowed Claims | CP111: Portion | CQ111: Predominant & Smaller | CR111: Error Checking
L112: =SUMIF(tbl_IPINN_P1[Out-of-Pocket Maximum (OOPM)],K112,tbl_IPINN_P1[Plan Projected Allowed Amount]) -> 0 | M112: =IF(OR(L112=0,L112=""),"",L112/tbl_IPINN_P2OOPM[[#Totals],[Allowed Claims]]) ->  | N112: =IF(M112="","",IF(SUMIF(tbl_IPINN_P2OOPM[OOPM],">="&K112,tbl_IPINN_P2OOPM[Portion])>0.5,K112,"")) ->  | O112: =IF(COUNTIF(tbl_IPINN_P2OOPM[OOPM],tbl_IPINN_P2OOPM[[#This Row],[OOPM]])>1,"Remove Duplicate Entry.",IF(AND(tbl_IPINN_P2OOPM[[#This Row],[OOPM]]<>"",tbl_IPINN_P2OOPM[[#This Row],[Allowed Claims]]=0),"Entry not found in Part 1 Table",IF(AND(OFFSET(tbl_IPINN_P2OOPM[[#This Row],[OOPM]],1,0)<>"Total",OFFSET(tbl_IPINN_P2OOPM[[#This Row],[OOPM]],1,0)<>"",OFFSET(tbl_IPINN_P2OOPM[[#This Row],[OOPM]],1,0)<tbl_IPINN_P2OOPM[[#This Row],[OOPM]]),"Sort Entries from lowest to highest",""))) ->  | U112: =SUMIF(tbl_IPOON_P1[Out-of-Pocket Maximum (OOPM)],T112,tbl_IPOON_P1[Plan Projected Allowed Amount]) -> 0 | V112: =IF(OR(U112=0,U112=""),"",U112/tbl_IPOON_P2OOPM[[#Totals],[Allowed Claims]]) ->  | W112: =IF(V112="","",IF(SUMIF(tbl_IPOON_P2OOPM[OOPM],">="&T112,tbl_IPOON_P2OOPM[Portion])>0.5,T112,"")) ->  | X112: =IF(COUNTIF(tbl_IPOON_P2OOPM[OOPM],tbl_IPOON_P2OOPM[[#This Row],[OOPM]])>1,"Remove Duplicate Entry.",IF(AND(tbl_IPOON_P2OOPM[[#This Row],[OOPM]]<>"",tbl_IPOON_P2OOPM[[#This Row],[Allowed Claims]]=0),"Entry not found in Part 1 Table",IF(AND(OFFSET(tbl_IPOON_P2OOPM[[#This Row],[OOPM]],1,0)<>"Total",OFFSET(tbl_IPOON_P2OOPM[[#This Row],[OOPM]],1,0)<>"",OFFSET(tbl_IPOON_P2OOPM[[#This Row],[OOPM]],1,0)<tbl_IPOON_P2OOPM[[#This Row],[OOPM]]),"Sort Entries from lowest to highest",""))) ->  | AD112: =SUMIF(tbl_OPINN_P1[Out-of-Pocket Maximum (OOPM)],AC112,tbl_OPINN_P1[Plan Projected Allowed Amount]) -> 0 | AE112: =IF(OR(AD112=0,AD112=""),"",AD112/tbl_OPINN_P2OOPM[[#Totals],[Allowed Claims]]) ->  | AF112: =IF(AE112="","",IF(SUMIF(tbl_OPINN_P2OOPM[OOPM],">="&AC112,tbl_OPINN_P2OOPM[Portion])>0.5,AC112,"")) ->  | AG112: =IF(COUNTIF(tbl_OPINN_P2OOPM[OOPM],tbl_OPINN_P2OOPM[[#This Row],[OOPM]])>1,"Remove Duplicate Entry.",IF(AND(tbl_OPINN_P2OOPM[[#This Row],[OOPM]]<>"",tbl_OPINN_P2OOPM[[#This Row],[Allowed Claims]]=0),"Entry not found in Part 1 Table",IF(AND(OFFSET(tbl_OPINN_P2OOPM[[#This Row],[OOPM]],1,0)<>"Total",OFFSET(tbl_OPINN_P2OOPM[[#This Row],[OOPM]],1,0)<>"",OFFSET(tbl_OPINN_P2OOPM[[#This Row],[OOPM]],1,0)<tbl_OPINN_P2OOPM[[#This Row],[OOPM]]),"Sort Entries from lowest to highest",""))) ->  | AM112: =SUMIF(tbl_OPOVINN_P1[Out-of-Pocket Maximum (OOPM)],AL112,tbl_OPOVINN_P1[Plan Projected Allowed Amount]) -> 0 | AN112: =IF(OR(AM112=0,AM112=""),"",AM112/tbl_OPOVINN_P2OOPM[[#Totals],[Allowed Claims]]) ->  | AO112: =IF(AN112="","",IF(SUMIF(tbl_OPOVINN_P2OOPM[OOPM],">="&AL112,tbl_OPOVINN_P2OOPM[Portion])>0.5,AL112,"")) ->  | AP112: =IF(COUNTIF(tbl_OPOVINN_P2OOPM[OOPM],tbl_OPOVINN_P2OOPM[[#This Row],[OOPM]])>1,"Remove Duplicate Entry.",IF(AND(tbl_OPOVINN_P2OOPM[[#This Row],[OOPM]]<>"",tbl_OPOVINN_P2OOPM[[#This Row],[Allowed Claims]]=0),"Entry not found in Part 1 Table",IF(AND(OFFSET(tbl_OPOVINN_P2OOPM[[#This Row],[OOPM]],1,0)<>"Total",OFFSET(tbl_OPOVINN_P2OOPM[[#This Row],[OOPM]],1,0)<>"",OFFSET(tbl_OPOVINN_P2OOPM[[#This Row],[OOPM]],1,0)<tbl_OPOVINN_P2OOPM[[#This Row],[OOPM]]),"Sort Entries from lowest to highest",""))) ->  | AV112: =SUMIF(tbl_OPAOINN_P1[Out-of-Pocket Maximum (OOPM)],AU112,tbl_OPAOINN_P1[Plan Projected Allowed Amount]) -> 0 | AW112: =IF(OR(AV112=0,AV112=""),"",AV112/tbl_OPAOINN_P2OOPM[[#Totals],[Allowed Claims]]) ->  | AX112: =IF(AW112="","",IF(SUMIF(tbl_OPAOINN_P2OOPM[OOPM],">="&AU112,tbl_OPAOINN_P2OOPM[Portion])>0.5,AU112,"")) ->  | AY112: =IF(COUNTIF(tbl_OPAOINN_P2OOPM[OOPM],tbl_OPAOINN_P2OOPM[[#This Row],[OOPM]])>1,"Remove Duplicate Entry.",IF(AND(tbl_OPAOINN_P2OOPM[[#This Row],[OOPM]]<>"",tbl_OPAOINN_P2OOPM[[#This Row],[Allowed Claims]]=0),"Entry not found in Part 1 Table",IF(AND(OFFSET(tbl_OPAOINN_P2OOPM[[#This Row],[OOPM]],1,0)<>"Total",OFFSET(tbl_OPAOINN_P2OOPM[[#This Row],[OOPM]],1,0)<>"",OFFSET(tbl_OPAOINN_P2OOPM[[#This Row],[OOPM]],1,0)<tbl_OPAOINN_P2OOPM[[#This Row],[OOPM]]),"Sort Entries from lowest to highest",""))) ->  | BE112: =SUMIF(tbl_OPOON_P1[Out-of-Pocket Maximum (OOPM)],BD112,tbl_OPOON_P1[Plan Projected Allowed Amount]) -> 0 | BF112: =IF(OR(BE112=0,BE112=""),"",BE112/tbl_OPOON_P2OOPM[[#Totals],[Allowed Claims]]) ->  | BG112: =IF(BF112="","",IF(SUMIF(tbl_OPOON_P2OOPM[OOPM],">="&BD112,tbl_OPOON_P2OOPM[Portion])>0.5,BD112,"")) ->  | BH112: =IF(COUNTIF(tbl_OPOON_P2OOPM[OOPM],tbl_OPOON_P2OOPM[[#This Row],[OOPM]])>1,"Remove Duplicate Entry.",IF(AND(tbl_OPOON_P2OOPM[[#This Row],[OOPM]]<>"",tbl_OPOON_P2OOPM[[#This Row],[Allowed Claims]]=0),"Entry not found in Part 1 Table",IF(AND(OFFSET(tbl_OPOON_P2OOPM[[#This Row],[OOPM]],1,0)<>"Total",OFFSET(tbl_OPOON_P2OOPM[[#This Row],[OOPM]],1,0)<>"",OFFSET(tbl_OPOON_P2OOPM[[#This Row],[OOPM]],1,0)<tbl_OPOON_P2OOPM[[#This Row],[OOPM]]),"Sort Entries from lowest to highest",""))) ->  | BN112: =SUMIF(tbl_OPOVOON_P1[Out-of-Pocket Maximum (OOPM)],BM112,tbl_OPOVOON_P1[Plan Projected Allowed Amount]) -> 0 | BO112: =IF(OR(BN112=0,BN112=""),"",BN112/tbl_OPOVOON_P2OOPM[[#Totals],[Allowed Claims]]) ->  | BP112: =IF(BO112="","",IF(SUMIF(tbl_OPOVOON_P2OOPM[OOPM],">="&BM112,tbl_OPOVOON_P2OOPM[Portion])>0.5,BM112,"")) ->  | BQ112: =IF(COUNTIF(tbl_OPOVOON_P2OOPM[OOPM],tbl_OPOVOON_P2OOPM[[#This Row],[OOPM]])>1,"Remove Duplicate Entry.",IF(AND(tbl_OPOVOON_P2OOPM[[#This Row],[OOPM]]<>"",tbl_OPOVOON_P2OOPM[[#This Row],[Allowed Claims]]=0),"Entry not found in Part 1 Table",IF(AND(OFFSET(tbl_OPOVOON_P2OOPM[[#This Row],[OOPM]],1,0)<>"Total",OFFSET(tbl_OPOVOON_P2OOPM[[#This Row],[OOPM]],1,0)<>"",OFFSET(tbl_OPOVOON_P2OOPM[[#This Row],[OOPM]],1,0)<tbl_OPOVOON_P2OOPM[[#This Row],[OOPM]]),"Sort Entries from lowest to highest",""))) ->  | BW112: =SUMIF(tbl_OPAOOON_P1[Out-of-Pocket Maximum (OOPM)],BV112,tbl_OPAOOON_P1[Plan Projected Allowed Amount]) -> 0 | BX112: =IF(OR(BW112=0,BW112=""),"",BW112/tbl_OPAOOON_P2OOPM[[#Totals],[Allowed Claims]]) ->  | BY112: =IF(BX112="","",IF(SUMIF(tbl_OPAOOON_P2OOPM[OOPM],">="&BV112,tbl_OPAOOON_P2OOPM[Portion])>0.5,BV112,"")) ->  | BZ112: =IF(COUNTIF(tbl_OPAOOON_P2OOPM[OOPM],tbl_OPAOOON_P2OOPM[[#This Row],[OOPM]])>1,"Remove Duplicate Entry.",IF(AND(tbl_OPAOOON_P2OOPM[[#This Row],[OOPM]]<>"",tbl_OPAOOON_P2OOPM[[#This Row],[Allowed Claims]]=0),"Entry not found in Part 1 Table",IF(AND(OFFSET(tbl_OPAOOON_P2OOPM[[#This Row],[OOPM]],1,0)<>"Total",OFFSET(tbl_OPAOOON_P2OOPM[[#This Row],[OOPM]],1,0)<>"",OFFSET(tbl_OPAOOON_P2OOPM[[#This Row],[OOPM]],1,0)<tbl_OPAOOON_P2OOPM[[#This Row],[OOPM]]),"Sort Entries from lowest to highest",""))) ->  | CF112: =SUMIF(tbl_ER_P1[Out-of-Pocket Maximum (OOPM)],CE112,tbl_ER_P1[Plan Projected Allowed Amount]) -> 0 | CG112: =IF(OR(CF112=0,CF112=""),"",CF112/tbl_ER_P2OOPM[[#Totals],[Allowed Claims]]) ->  | CH112: =IF(CG112="","",IF(SUMIF(tbl_ER_P2OOPM[OOPM],">="&CE112,tbl_ER_P2OOPM[Portion])>0.5,CE112,"")) ->  | CI112: =IF(COUNTIF(tbl_ER_P2OOPM[OOPM],tbl_ER_P2OOPM[[#This Row],[OOPM]])>1,"Remove Duplicate Entry.",IF(AND(tbl_ER_P2OOPM[[#This Row],[OOPM]]<>"",tbl_ER_P2OOPM[[#This Row],[Allowed Claims]]=0),"Entry not found in Part 1 Table",IF(AND(OFFSET(tbl_ER_P2OOPM[[#This Row],[OOPM]],1,0)<>"Total",OFFSET(tbl_ER_P2OOPM[[#This Row],[OOPM]],1,0)<>"",OFFSET(tbl_ER_P2OOPM[[#This Row],[OOPM]],1,0)<tbl_ER_P2OOPM[[#This Row],[OOPM]]),"Sort Entries from lowest to highest",""))) ->  | CO112: =SUMIF(tbl_RX_P1[Out-of-Pocket Maximum (OOPM)],CN112,tbl_RX_P1[Plan Projected Allowed Amount]) -> 0 | CP112: =IF(OR(CO112=0,CO112=""),"",CO112/tbl_RX_P2OOPM[[#Totals],[Allowed Claims]]) ->  | CQ112: =IF(CP112="","",IF(SUMIF(tbl_RX_P2OOPM[OOPM],">="&CN112,tbl_RX_P2OOPM[Portion])>0.5,CN112,"")) ->  | CR112: =IF(COUNTIF(tbl_RX_P2OOPM[OOPM],tbl_RX_P2OOPM[[#This Row],[OOPM]])>1,"Remove Duplicate Entry.",IF(AND(tbl_RX_P2OOPM[[#This Row],[OOPM]]<>"",tbl_RX_P2OOPM[[#This Row],[Allowed Claims]]=0),"Entry not found in Part 1 Table",IF(AND(OFFSET(tbl_RX_P2OOPM[[#This Row],[OOPM]],1,0)<>"Total",OFFSET(tbl_RX_P2OOPM[[#This Row],[OOPM]],1,0)<>"",OFFSET(tbl_RX_P2OOPM[[#This Row],[OOPM]],1,0)<tbl_RX_P2OOPM[[#This Row],[OOPM]]),"Sort Entries from lowest to highest",""))) -> 
L113: =SUMIF(tbl_IPINN_P1[Out-of-Pocket Maximum (OOPM)],K113,tbl_IPINN_P1[Plan Projected Allowed Amount]) -> 0 | M113: =IF(OR(L113=0,L113=""),"",L113/tbl_IPINN_P2OOPM[[#Totals],[Allowed Claims]]) ->  | N113: =IF(M113="","",IF(SUMIF(tbl_IPINN_P2OOPM[OOPM],">="&K113,tbl_IPINN_P2OOPM[Portion])>0.5,K113,"")) ->  | O113: =IF(COUNTIF(tbl_IPINN_P2OOPM[OOPM],tbl_IPINN_P2OOPM[[#This Row],[OOPM]])>1,"Remove Duplicate Entry.",IF(AND(tbl_IPINN_P2OOPM[[#This Row],[OOPM]]<>"",tbl_IPINN_P2OOPM[[#This Row],[Allowed Claims]]=0),"Entry not found in Part 1 Table",IF(AND(OFFSET(tbl_IPINN_P2OOPM[[#This Row],[OOPM]],1,0)<>"Total",OFFSET(tbl_IPINN_P2OOPM[[#This Row],[OOPM]],1,0)<>"",OFFSET(tbl_IPINN_P2OOPM[[#This Row],[OOPM]],1,0)<tbl_IPINN_P2OOPM[[#This Row],[OOPM]]),"Sort Entries from lowest to highest",""))) ->  | U113: =SUMIF(tbl_IPOON_P1[Out-of-Pocket Maximum (OOPM)],T113,tbl_IPOON_P1[Plan Projected Allowed Amount]) -> 0 | V113: =IF(OR(U113=0,U113=""),"",U113/tbl_IPOON_P2OOPM[[#Totals],[Allowed Claims]]) ->  | W113: =IF(V113="","",IF(SUMIF(tbl_IPOON_P2OOPM[OOPM],">="&T113,tbl_IPOON_P2OOPM[Portion])>0.5,T113,"")) ->  | X113: =IF(COUNTIF(tbl_IPOON_P2OOPM[OOPM],tbl_IPOON_P2OOPM[[#This Row],[OOPM]])>1,"Remove Duplicate Entry.",IF(AND(tbl_IPOON_P2OOPM[[#This Row],[OOPM]]<>"",tbl_IPOON_P2OOPM[[#This Row],[Allowed Claims]]=0),"Entry not found in Part 1 Table",IF(AND(OFFSET(tbl_IPOON_P2OOPM[[#This Row],[OOPM]],1,0)<>"Total",OFFSET(tbl_IPOON_P2OOPM[[#This Row],[OOPM]],1,0)<>"",OFFSET(tbl_IPOON_P2OOPM[[#This Row],[OOPM]],1,0)<tbl_IPOON_P2OOPM[[#This Row],[OOPM]]),"Sort Entries from lowest to highest",""))) ->  | AD113: =SUMIF(tbl_OPINN_P1[Out-of-Pocket Maximum (OOPM)],AC113,tbl_OPINN_P1[Plan Projected Allowed Amount]) -> 0 | AE113: =IF(OR(AD113=0,AD113=""),"",AD113/tbl_OPINN_P2OOPM[[#Totals],[Allowed Claims]]) ->  | AF113: =IF(AE113="","",IF(SUMIF(tbl_OPINN_P2OOPM[OOPM],">="&AC113,tbl_OPINN_P2OOPM[Portion])>0.5,AC113,"")) ->  | AG113: =IF(COUNTIF(tbl_OPINN_P2OOPM[OOPM],tbl_OPINN_P2OOPM[[#This Row],[OOPM]])>1,"Remove Duplicate Entry.",IF(AND(tbl_OPINN_P2OOPM[[#This Row],[OOPM]]<>"",tbl_OPINN_P2OOPM[[#This Row],[Allowed Claims]]=0),"Entry not found in Part 1 Table",IF(AND(OFFSET(tbl_OPINN_P2OOPM[[#This Row],[OOPM]],1,0)<>"Total",OFFSET(tbl_OPINN_P2OOPM[[#This Row],[OOPM]],1,0)<>"",OFFSET(tbl_OPINN_P2OOPM[[#This Row],[OOPM]],1,0)<tbl_OPINN_P2OOPM[[#This Row],[OOPM]]),"Sort Entries from lowest to highest",""))) ->  | AM113: =SUMIF(tbl_OPOVINN_P1[Out-of-Pocket Maximum (OOPM)],AL113,tbl_OPOVINN_P1[Plan Projected Allowed Amount]) -> 0 | AN113: =IF(OR(AM113=0,AM113=""),"",AM113/tbl_OPOVINN_P2OOPM[[#Totals],[Allowed Claims]]) ->  | AO113: =IF(AN113="","",IF(SUMIF(tbl_OPOVINN_P2OOPM[OOPM],">="&AL113,tbl_OPOVINN_P2OOPM[Portion])>0.5,AL113,"")) ->  | AP113: =IF(COUNTIF(tbl_OPOVINN_P2OOPM[OOPM],tbl_OPOVINN_P2OOPM[[#This Row],[OOPM]])>1,"Remove Duplicate Entry.",IF(AND(tbl_OPOVINN_P2OOPM[[#This Row],[OOPM]]<>"",tbl_OPOVINN_P2OOPM[[#This Row],[Allowed Claims]]=0),"Entry not found in Part 1 Table",IF(AND(OFFSET(tbl_OPOVINN_P2OOPM[[#This Row],[OOPM]],1,0)<>"Total",OFFSET(tbl_OPOVINN_P2OOPM[[#This Row],[OOPM]],1,0)<>"",OFFSET(tbl_OPOVINN_P2OOPM[[#This Row],[OOPM]],1,0)<tbl_OPOVINN_P2OOPM[[#This Row],[OOPM]]),"Sort Entries from lowest to highest",""))) ->  | AV113: =SUMIF(tbl_OPAOINN_P1[Out-of-Pocket Maximum (OOPM)],AU113,tbl_OPAOINN_P1[Plan Projected Allowed Amount]) -> 0 | AW113: =IF(OR(AV113=0,AV113=""),"",AV113/tbl_OPAOINN_P2OOPM[[#Totals],[Allowed Claims]]) ->  | AX113: =IF(AW113="","",IF(SUMIF(tbl_OPAOINN_P2OOPM[OOPM],">="&AU113,tbl_OPAOINN_P2OOPM[Portion])>0.5,AU113,"")) ->  | AY113: =IF(COUNTIF(tbl_OPAOINN_P2OOPM[OOPM],tbl_OPAOINN_P2OOPM[[#This Row],[OOPM]])>1,"Remove Duplicate Entry.",IF(AND(tbl_OPAOINN_P2OOPM[[#This Row],[OOPM]]<>"",tbl_OPAOINN_P2OOPM[[#This Row],[Allowed Claims]]=0),"Entry not found in Part 1 Table",IF(AND(OFFSET(tbl_OPAOINN_P2OOPM[[#This Row],[OOPM]],1,0)<>"Total",OFFSET(tbl_OPAOINN_P2OOPM[[#This Row],[OOPM]],1,0)<>"",OFFSET(tbl_OPAOINN_P2OOPM[[#This Row],[OOPM]],1,0)<tbl_OPAOINN_P2OOPM[[#This Row],[OOPM]]),"Sort Entries from lowest to highest",""))) ->  | BE113: =SUMIF(tbl_OPOON_P1[Out-of-Pocket Maximum (OOPM)],BD113,tbl_OPOON_P1[Plan Projected Allowed Amount]) -> 0 | BF113: =IF(OR(BE113=0,BE113=""),"",BE113/tbl_OPOON_P2OOPM[[#Totals],[Allowed Claims]]) ->  | BG113: =IF(BF113="","",IF(SUMIF(tbl_OPOON_P2OOPM[OOPM],">="&BD113,tbl_OPOON_P2OOPM[Portion])>0.5,BD113,"")) ->  | BH113: =IF(COUNTIF(tbl_OPOON_P2OOPM[OOPM],tbl_OPOON_P2OOPM[[#This Row],[OOPM]])>1,"Remove Duplicate Entry.",IF(AND(tbl_OPOON_P2OOPM[[#This Row],[OOPM]]<>"",tbl_OPOON_P2OOPM[[#This Row],[Allowed Claims]]=0),"Entry not found in Part 1 Table",IF(AND(OFFSET(tbl_OPOON_P2OOPM[[#This Row],[OOPM]],1,0)<>"Total",OFFSET(tbl_OPOON_P2OOPM[[#This Row],[OOPM]],1,0)<>"",OFFSET(tbl_OPOON_P2OOPM[[#This Row],[OOPM]],1,0)<tbl_OPOON_P2OOPM[[#This Row],[OOPM]]),"Sort Entries from lowest to highest",""))) ->  | BN113: =SUMIF(tbl_OPOVOON_P1[Out-of-Pocket Maximum (OOPM)],BM113,tbl_OPOVOON_P1[Plan Projected Allowed Amount]) -> 0 | BO113: =IF(OR(BN113=0,BN113=""),"",BN113/tbl_OPOVOON_P2OOPM[[#Totals],[Allowed Claims]]) ->  | BP113: =IF(BO113="","",IF(SUMIF(tbl_OPOVOON_P2OOPM[OOPM],">="&BM113,tbl_OPOVOON_P2OOPM[Portion])>0.5,BM113,"")) ->  | BQ113: =IF(COUNTIF(tbl_OPOVOON_P2OOPM[OOPM],tbl_OPOVOON_P2OOPM[[#This Row],[OOPM]])>1,"Remove Duplicate Entry.",IF(AND(tbl_OPOVOON_P2OOPM[[#This Row],[OOPM]]<>"",tbl_OPOVOON_P2OOPM[[#This Row],[Allowed Claims]]=0),"Entry not found in Part 1 Table",IF(AND(OFFSET(tbl_OPOVOON_P2OOPM[[#This Row],[OOPM]],1,0)<>"Total",OFFSET(tbl_OPOVOON_P2OOPM[[#This Row],[OOPM]],1,0)<>"",OFFSET(tbl_OPOVOON_P2OOPM[[#This Row],[OOPM]],1,0)<tbl_OPOVOON_P2OOPM[[#This Row],[OOPM]]),"Sort Entries from lowest to highest",""))) ->  | BW113: =SUMIF(tbl_OPAOOON_P1[Out-of-Pocket Maximum (OOPM)],BV113,tbl_OPAOOON_P1[Plan Projected Allowed Amount]) -> 0 | BX113: =IF(OR(BW113=0,BW113=""),"",BW113/tbl_OPAOOON_P2OOPM[[#Totals],[Allowed Claims]]) ->  | BY113: =IF(BX113="","",IF(SUMIF(tbl_OPAOOON_P2OOPM[OOPM],">="&BV113,tbl_OPAOOON_P2OOPM[Portion])>0.5,BV113,"")) ->  | BZ113: =IF(COUNTIF(tbl_OPAOOON_P2OOPM[OOPM],tbl_OPAOOON_P2OOPM[[#This Row],[OOPM]])>1,"Remove Duplicate Entry.",IF(AND(tbl_OPAOOON_P2OOPM[[#This Row],[OOPM]]<>"",tbl_OPAOOON_P2OOPM[[#This Row],[Allowed Claims]]=0),"Entry not found in Part 1 Table",IF(AND(OFFSET(tbl_OPAOOON_P2OOPM[[#This Row],[OOPM]],1,0)<>"Total",OFFSET(tbl_OPAOOON_P2OOPM[[#This Row],[OOPM]],1,0)<>"",OFFSET(tbl_OPAOOON_P2OOPM[[#This Row],[OOPM]],1,0)<tbl_OPAOOON_P2OOPM[[#This Row],[OOPM]]),"Sort Entries from lowest to highest",""))) ->  | CF113: =SUMIF(tbl_ER_P1[Out-of-Pocket Maximum (OOPM)],CE113,tbl_ER_P1[Plan Projected Allowed Amount]) -> 0 | CG113: =IF(OR(CF113=0,CF113=""),"",CF113/tbl_ER_P2OOPM[[#Totals],[Allowed Claims]]) ->  | CH113: =IF(CG113="","",IF(SUMIF(tbl_ER_P2OOPM[OOPM],">="&CE113,tbl_ER_P2OOPM[Portion])>0.5,CE113,"")) ->  | CI113: =IF(COUNTIF(tbl_ER_P2OOPM[OOPM],tbl_ER_P2OOPM[[#This Row],[OOPM]])>1,"Remove Duplicate Entry.",IF(AND(tbl_ER_P2OOPM[[#This Row],[OOPM]]<>"",tbl_ER_P2OOPM[[#This Row],[Allowed Claims]]=0),"Entry not found in Part 1 Table",IF(AND(OFFSET(tbl_ER_P2OOPM[[#This Row],[OOPM]],1,0)<>"Total",OFFSET(tbl_ER_P2OOPM[[#This Row],[OOPM]],1,0)<>"",OFFSET(tbl_ER_P2OOPM[[#This Row],[OOPM]],1,0)<tbl_ER_P2OOPM[[#This Row],[OOPM]]),"Sort Entries from lowest to highest",""))) ->  | CO113: =SUMIF(tbl_RX_P1[Out-of-Pocket Maximum (OOPM)],CN113,tbl_RX_P1[Plan Projected Allowed Amount]) -> 0 | CP113: =IF(OR(CO113=0,CO113=""),"",CO113/tbl_RX_P2OOPM[[#Totals],[Allowed Claims]]) ->  | CQ113: =IF(CP113="","",IF(SUMIF(tbl_RX_P2OOPM[OOPM],">="&CN113,tbl_RX_P2OOPM[Portion])>0.5,CN113,"")) ->  | CR113: =IF(COUNTIF(tbl_RX_P2OOPM[OOPM],tbl_RX_P2OOPM[[#This Row],[OOPM]])>1,"Remove Duplicate Entry.",IF(AND(tbl_RX_P2OOPM[[#This Row],[OOPM]]<>"",tbl_RX_P2OOPM[[#This Row],[Allowed Claims]]=0),"Entry not found in Part 1 Table",IF(AND(OFFSET(tbl_RX_P2OOPM[[#This Row],[OOPM]],1,0)<>"Total",OFFSET(tbl_RX_P2OOPM[[#This Row],[OOPM]],1,0)<>"",OFFSET(tbl_RX_P2OOPM[[#This Row],[OOPM]],1,0)<tbl_RX_P2OOPM[[#This Row],[OOPM]]),"Sort Entries from lowest to highest",""))) -> 
L114: =SUMIF(tbl_IPINN_P1[Out-of-Pocket Maximum (OOPM)],K114,tbl_IPINN_P1[Plan Projected Allowed Amount]) -> 0 | M114: =IF(OR(L114=0,L114=""),"",L114/tbl_IPINN_P2OOPM[[#Totals],[Allowed Claims]]) ->  | N114: =IF(M114="","",IF(SUMIF(tbl_IPINN_P2OOPM[OOPM],">="&K114,tbl_IPINN_P2OOPM[Portion])>0.5,K114,"")) ->  | O114: =IF(COUNTIF(tbl_IPINN_P2OOPM[OOPM],tbl_IPINN_P2OOPM[[#This Row],[OOPM]])>1,"Remove Duplicate Entry.",IF(AND(tbl_IPINN_P2OOPM[[#This Row],[OOPM]]<>"",tbl_IPINN_P2OOPM[[#This Row],[Allowed Claims]]=0),"Entry not found in Part 1 Table",IF(AND(OFFSET(tbl_IPINN_P2OOPM[[#This Row],[OOPM]],1,0)<>"Total",OFFSET(tbl_IPINN_P2OOPM[[#This Row],[OOPM]],1,0)<>"",OFFSET(tbl_IPINN_P2OOPM[[#This Row],[OOPM]],1,0)<tbl_IPINN_P2OOPM[[#This Row],[OOPM]]),"Sort Entries from lowest to highest",""))) ->  | U114: =SUMIF(tbl_IPOON_P1[Out-of-Pocket Maximum (OOPM)],T114,tbl_IPOON_P1[Plan Projected Allowed Amount]) -> 0 | V114: =IF(OR(U114=0,U114=""),"",U114/tbl_IPOON_P2OOPM[[#Totals],[Allowed Claims]]) ->  | W114: =IF(V114="","",IF(SUMIF(tbl_IPOON_P2OOPM[OOPM],">="&T114,tbl_IPOON_P2OOPM[Portion])>0.5,T114,"")) ->  | X114: =IF(COUNTIF(tbl_IPOON_P2OOPM[OOPM],tbl_IPOON_P2OOPM[[#This Row],[OOPM]])>1,"Remove Duplicate Entry.",IF(AND(tbl_IPOON_P2OOPM[[#This Row],[OOPM]]<>"",tbl_IPOON_P2OOPM[[#This Row],[Allowed Claims]]=0),"Entry not found in Part 1 Table",IF(AND(OFFSET(tbl_IPOON_P2OOPM[[#This Row],[OOPM]],1,0)<>"Total",OFFSET(tbl_IPOON_P2OOPM[[#This Row],[OOPM]],1,0)<>"",OFFSET(tbl_IPOON_P2OOPM[[#This Row],[OOPM]],1,0)<tbl_IPOON_P2OOPM[[#This Row],[OOPM]]),"Sort Entries from lowest to highest",""))) ->  | AD114: =SUMIF(tbl_OPINN_P1[Out-of-Pocket Maximum (OOPM)],AC114,tbl_OPINN_P1[Plan Projected Allowed Amount]) -> 0 | AE114: =IF(OR(AD114=0,AD114=""),"",AD114/tbl_OPINN_P2OOPM[[#Totals],[Allowed Claims]]) ->  | AF114: =IF(AE114="","",IF(SUMIF(tbl_OPINN_P2OOPM[OOPM],">="&AC114,tbl_OPINN_P2OOPM[Portion])>0.5,AC114,"")) ->  | AG114: =IF(COUNTIF(tbl_OPINN_P2OOPM[OOPM],tbl_OPINN_P2OOPM[[#This Row],[OOPM]])>1,"Remove Duplicate Entry.",IF(AND(tbl_OPINN_P2OOPM[[#This Row],[OOPM]]<>"",tbl_OPINN_P2OOPM[[#This Row],[Allowed Claims]]=0),"Entry not found in Part 1 Table",IF(AND(OFFSET(tbl_OPINN_P2OOPM[[#This Row],[OOPM]],1,0)<>"Total",OFFSET(tbl_OPINN_P2OOPM[[#This Row],[OOPM]],1,0)<>"",OFFSET(tbl_OPINN_P2OOPM[[#This Row],[OOPM]],1,0)<tbl_OPINN_P2OOPM[[#This Row],[OOPM]]),"Sort Entries from lowest to highest",""))) ->  | AM114: =SUMIF(tbl_OPOVINN_P1[Out-of-Pocket Maximum (OOPM)],AL114,tbl_OPOVINN_P1[Plan Projected Allowed Amount]) -> 0 | AN114: =IF(OR(AM114=0,AM114=""),"",AM114/tbl_OPOVINN_P2OOPM[[#Totals],[Allowed Claims]]) ->  | AO114: =IF(AN114="","",IF(SUMIF(tbl_OPOVINN_P2OOPM[OOPM],">="&AL114,tbl_OPOVINN_P2OOPM[Portion])>0.5,AL114,"")) ->  | AP114: =IF(COUNTIF(tbl_OPOVINN_P2OOPM[OOPM],tbl_OPOVINN_P2OOPM[[#This Row],[OOPM]])>1,"Remove Duplicate Entry.",IF(AND(tbl_OPOVINN_P2OOPM[[#This Row],[OOPM]]<>"",tbl_OPOVINN_P2OOPM[[#This Row],[Allowed Claims]]=0),"Entry not found in Part 1 Table",IF(AND(OFFSET(tbl_OPOVINN_P2OOPM[[#This Row],[OOPM]],1,0)<>"Total",OFFSET(tbl_OPOVINN_P2OOPM[[#This Row],[OOPM]],1,0)<>"",OFFSET(tbl_OPOVINN_P2OOPM[[#This Row],[OOPM]],1,0)<tbl_OPOVINN_P2OOPM[[#This Row],[OOPM]]),"Sort Entries from lowest to highest",""))) ->  | AV114: =SUMIF(tbl_OPAOINN_P1[Out-of-Pocket Maximum (OOPM)],AU114,tbl_OPAOINN_P1[Plan Projected Allowed Amount]) -> 0 | AW114: =IF(OR(AV114=0,AV114=""),"",AV114/tbl_OPAOINN_P2OOPM[[#Totals],[Allowed Claims]]) ->  | AX114: =IF(AW114="","",IF(SUMIF(tbl_OPAOINN_P2OOPM[OOPM],">="&AU114,tbl_OPAOINN_P2OOPM[Portion])>0.5,AU114,"")) ->  | AY114: =IF(COUNTIF(tbl_OPAOINN_P2OOPM[OOPM],tbl_OPAOINN_P2OOPM[[#This Row],[OOPM]])>1,"Remove Duplicate Entry.",IF(AND(tbl_OPAOINN_P2OOPM[[#This Row],[OOPM]]<>"",tbl_OPAOINN_P2OOPM[[#This Row],[Allowed Claims]]=0),"Entry not found in Part 1 Table",IF(AND(OFFSET(tbl_OPAOINN_P2OOPM[[#This Row],[OOPM]],1,0)<>"Total",OFFSET(tbl_OPAOINN_P2OOPM[[#This Row],[OOPM]],1,0)<>"",OFFSET(tbl_OPAOINN_P2OOPM[[#This Row],[OOPM]],1,0)<tbl_OPAOINN_P2OOPM[[#This Row],[OOPM]]),"Sort Entries from lowest to highest",""))) ->  | BE114: =SUMIF(tbl_OPOON_P1[Out-of-Pocket Maximum (OOPM)],BD114,tbl_OPOON_P1[Plan Projected Allowed Amount]) -> 0 | BF114: =IF(OR(BE114=0,BE114=""),"",BE114/tbl_OPOON_P2OOPM[[#Totals],[Allowed Claims]]) ->  | BG114: =IF(BF114="","",IF(SUMIF(tbl_OPOON_P2OOPM[OOPM],">="&BD114,tbl_OPOON_P2OOPM[Portion])>0.5,BD114,"")) ->  | BH114: =IF(COUNTIF(tbl_OPOON_P2OOPM[OOPM],tbl_OPOON_P2OOPM[[#This Row],[OOPM]])>1,"Remove Duplicate Entry.",IF(AND(tbl_OPOON_P2OOPM[[#This Row],[OOPM]]<>"",tbl_OPOON_P2OOPM[[#This Row],[Allowed Claims]]=0),"Entry not found in Part 1 Table",IF(AND(OFFSET(tbl_OPOON_P2OOPM[[#This Row],[OOPM]],1,0)<>"Total",OFFSET(tbl_OPOON_P2OOPM[[#This Row],[OOPM]],1,0)<>"",OFFSET(tbl_OPOON_P2OOPM[[#This Row],[OOPM]],1,0)<tbl_OPOON_P2OOPM[[#This Row],[OOPM]]),"Sort Entries from lowest to highest",""))) ->  | BN114: =SUMIF(tbl_OPOVOON_P1[Out-of-Pocket Maximum (OOPM)],BM114,tbl_OPOVOON_P1[Plan Projected Allowed Amount]) -> 0 | BO114: =IF(OR(BN114=0,BN114=""),"",BN114/tbl_OPOVOON_P2OOPM[[#Totals],[Allowed Claims]]) ->  | BP114: =IF(BO114="","",IF(SUMIF(tbl_OPOVOON_P2OOPM[OOPM],">="&BM114,tbl_OPOVOON_P2OOPM[Portion])>0.5,BM114,"")) ->  | BQ114: =IF(COUNTIF(tbl_OPOVOON_P2OOPM[OOPM],tbl_OPOVOON_P2OOPM[[#This Row],[OOPM]])>1,"Remove Duplicate Entry.",IF(AND(tbl_OPOVOON_P2OOPM[[#This Row],[OOPM]]<>"",tbl_OPOVOON_P2OOPM[[#This Row],[Allowed Claims]]=0),"Entry not found in Part 1 Table",IF(AND(OFFSET(tbl_OPOVOON_P2OOPM[[#This Row],[OOPM]],1,0)<>"Total",OFFSET(tbl_OPOVOON_P2OOPM[[#This Row],[OOPM]],1,0)<>"",OFFSET(tbl_OPOVOON_P2OOPM[[#This Row],[OOPM]],1,0)<tbl_OPOVOON_P2OOPM[[#This Row],[OOPM]]),"Sort Entries from lowest to highest",""))) ->  | BW114: =SUMIF(tbl_OPAOOON_P1[Out-of-Pocket Maximum (OOPM)],BV114,tbl_OPAOOON_P1[Plan Projected Allowed Amount]) -> 0 | BX114: =IF(OR(BW114=0,BW114=""),"",BW114/tbl_OPAOOON_P2OOPM[[#Totals],[Allowed Claims]]) ->  | BY114: =IF(BX114="","",IF(SUMIF(tbl_OPAOOON_P2OOPM[OOPM],">="&BV114,tbl_OPAOOON_P2OOPM[Portion])>0.5,BV114,"")) ->  | BZ114: =IF(COUNTIF(tbl_OPAOOON_P2OOPM[OOPM],tbl_OPAOOON_P2OOPM[[#This Row],[OOPM]])>1,"Remove Duplicate Entry.",IF(AND(tbl_OPAOOON_P2OOPM[[#This Row],[OOPM]]<>"",tbl_OPAOOON_P2OOPM[[#This Row],[Allowed Claims]]=0),"Entry not found in Part 1 Table",IF(AND(OFFSET(tbl_OPAOOON_P2OOPM[[#This Row],[OOPM]],1,0)<>"Total",OFFSET(tbl_OPAOOON_P2OOPM[[#This Row],[OOPM]],1,0)<>"",OFFSET(tbl_OPAOOON_P2OOPM[[#This Row],[OOPM]],1,0)<tbl_OPAOOON_P2OOPM[[#This Row],[OOPM]]),"Sort Entries from lowest to highest",""))) ->  | CF114: =SUMIF(tbl_ER_P1[Out-of-Pocket Maximum (OOPM)],CE114,tbl_ER_P1[Plan Projected Allowed Amount]) -> 0 | CG114: =IF(OR(CF114=0,CF114=""),"",CF114/tbl_ER_P2OOPM[[#Totals],[Allowed Claims]]) ->  | CH114: =IF(CG114="","",IF(SUMIF(tbl_ER_P2OOPM[OOPM],">="&CE114,tbl_ER_P2OOPM[Portion])>0.5,CE114,"")) ->  | CI114: =IF(COUNTIF(tbl_ER_P2OOPM[OOPM],tbl_ER_P2OOPM[[#This Row],[OOPM]])>1,"Remove Duplicate Entry.",IF(AND(tbl_ER_P2OOPM[[#This Row],[OOPM]]<>"",tbl_ER_P2OOPM[[#This Row],[Allowed Claims]]=0),"Entry not found in Part 1 Table",IF(AND(OFFSET(tbl_ER_P2OOPM[[#This Row],[OOPM]],1,0)<>"Total",OFFSET(tbl_ER_P2OOPM[[#This Row],[OOPM]],1,0)<>"",OFFSET(tbl_ER_P2OOPM[[#This Row],[OOPM]],1,0)<tbl_ER_P2OOPM[[#This Row],[OOPM]]),"Sort Entries from lowest to highest",""))) ->  | CO114: =SUMIF(tbl_RX_P1[Out-of-Pocket Maximum (OOPM)],CN114,tbl_RX_P1[Plan Projected Allowed Amount]) -> 0 | CP114: =IF(OR(CO114=0,CO114=""),"",CO114/tbl_RX_P2OOPM[[#Totals],[Allowed Claims]]) ->  | CQ114: =IF(CP114="","",IF(SUMIF(tbl_RX_P2OOPM[OOPM],">="&CN114,tbl_RX_P2OOPM[Portion])>0.5,CN114,"")) ->  | CR114: =IF(COUNTIF(tbl_RX_P2OOPM[OOPM],tbl_RX_P2OOPM[[#This Row],[OOPM]])>1,"Remove Duplicate Entry.",IF(AND(tbl_RX_P2OOPM[[#This Row],[OOPM]]<>"",tbl_RX_P2OOPM[[#This Row],[Allowed Claims]]=0),"Entry not found in Part 1 Table",IF(AND(OFFSET(tbl_RX_P2OOPM[[#This Row],[OOPM]],1,0)<>"Total",OFFSET(tbl_RX_P2OOPM[[#This Row],[OOPM]],1,0)<>"",OFFSET(tbl_RX_P2OOPM[[#This Row],[OOPM]],1,0)<tbl_RX_P2OOPM[[#This Row],[OOPM]]),"Sort Entries from lowest to highest",""))) -> 
L115: =SUMIF(tbl_IPINN_P1[Out-of-Pocket Maximum (OOPM)],K115,tbl_IPINN_P1[Plan Projected Allowed Amount]) -> 0 | M115: =IF(OR(L115=0,L115=""),"",L115/tbl_IPINN_P2OOPM[[#Totals],[Allowed Claims]]) ->  | N115: =IF(M115="","",IF(SUMIF(tbl_IPINN_P2OOPM[OOPM],">="&K115,tbl_IPINN_P2OOPM[Portion])>0.5,K115,"")) ->  | O115: =IF(COUNTIF(tbl_IPINN_P2OOPM[OOPM],tbl_IPINN_P2OOPM[[#This Row],[OOPM]])>1,"Remove Duplicate Entry.",IF(AND(tbl_IPINN_P2OOPM[[#This Row],[OOPM]]<>"",tbl_IPINN_P2OOPM[[#This Row],[Allowed Claims]]=0),"Entry not found in Part 1 Table",IF(AND(OFFSET(tbl_IPINN_P2OOPM[[#This Row],[OOPM]],1,0)<>"Total",OFFSET(tbl_IPINN_P2OOPM[[#This Row],[OOPM]],1,0)<>"",OFFSET(tbl_IPINN_P2OOPM[[#This Row],[OOPM]],1,0)<tbl_IPINN_P2OOPM[[#This Row],[OOPM]]),"Sort Entries from lowest to highest",""))) ->  | U115: =SUMIF(tbl_IPOON_P1[Out-of-Pocket Maximum (OOPM)],T115,tbl_IPOON_P1[Plan Projected Allowed Amount]) -> 0 | V115: =IF(OR(U115=0,U115=""),"",U115/tbl_IPOON_P2OOPM[[#Totals],[Allowed Claims]]) ->  | W115: =IF(V115="","",IF(SUMIF(tbl_IPOON_P2OOPM[OOPM],">="&T115,tbl_IPOON_P2OOPM[Portion])>0.5,T115,"")) ->  | X115: =IF(COUNTIF(tbl_IPOON_P2OOPM[OOPM],tbl_IPOON_P2OOPM[[#This Row],[OOPM]])>1,"Remove Duplicate Entry.",IF(AND(tbl_IPOON_P2OOPM[[#This Row],[OOPM]]<>"",tbl_IPOON_P2OOPM[[#This Row],[Allowed Claims]]=0),"Entry not found in Part 1 Table",IF(AND(OFFSET(tbl_IPOON_P2OOPM[[#This Row],[OOPM]],1,0)<>"Total",OFFSET(tbl_IPOON_P2OOPM[[#This Row],[OOPM]],1,0)<>"",OFFSET(tbl_IPOON_P2OOPM[[#This Row],[OOPM]],1,0)<tbl_IPOON_P2OOPM[[#This Row],[OOPM]]),"Sort Entries from lowest to highest",""))) ->  | AD115: =SUMIF(tbl_OPINN_P1[Out-of-Pocket Maximum (OOPM)],AC115,tbl_OPINN_P1[Plan Projected Allowed Amount]) -> 0 | AE115: =IF(OR(AD115=0,AD115=""),"",AD115/tbl_OPINN_P2OOPM[[#Totals],[Allowed Claims]]) ->  | AF115: =IF(AE115="","",IF(SUMIF(tbl_OPINN_P2OOPM[OOPM],">="&AC115,tbl_OPINN_P2OOPM[Portion])>0.5,AC115,"")) ->  | AG115: =IF(COUNTIF(tbl_OPINN_P2OOPM[OOPM],tbl_OPINN_P2OOPM[[#This Row],[OOPM]])>1,"Remove Duplicate Entry.",IF(AND(tbl_OPINN_P2OOPM[[#This Row],[OOPM]]<>"",tbl_OPINN_P2OOPM[[#This Row],[Allowed Claims]]=0),"Entry not found in Part 1 Table",IF(AND(OFFSET(tbl_OPINN_P2OOPM[[#This Row],[OOPM]],1,0)<>"Total",OFFSET(tbl_OPINN_P2OOPM[[#This Row],[OOPM]],1,0)<>"",OFFSET(tbl_OPINN_P2OOPM[[#This Row],[OOPM]],1,0)<tbl_OPINN_P2OOPM[[#This Row],[OOPM]]),"Sort Entries from lowest to highest",""))) ->  | AM115: =SUMIF(tbl_OPOVINN_P1[Out-of-Pocket Maximum (OOPM)],AL115,tbl_OPOVINN_P1[Plan Projected Allowed Amount]) -> 0 | AN115: =IF(OR(AM115=0,AM115=""),"",AM115/tbl_OPOVINN_P2OOPM[[#Totals],[Allowed Claims]]) ->  | AO115: =IF(AN115="","",IF(SUMIF(tbl_OPOVINN_P2OOPM[OOPM],">="&AL115,tbl_OPOVINN_P2OOPM[Portion])>0.5,AL115,"")) ->  | AP115: =IF(COUNTIF(tbl_OPOVINN_P2OOPM[OOPM],tbl_OPOVINN_P2OOPM[[#This Row],[OOPM]])>1,"Remove Duplicate Entry.",IF(AND(tbl_OPOVINN_P2OOPM[[#This Row],[OOPM]]<>"",tbl_OPOVINN_P2OOPM[[#This Row],[Allowed Claims]]=0),"Entry not found in Part 1 Table",IF(AND(OFFSET(tbl_OPOVINN_P2OOPM[[#This Row],[OOPM]],1,0)<>"Total",OFFSET(tbl_OPOVINN_P2OOPM[[#This Row],[OOPM]],1,0)<>"",OFFSET(tbl_OPOVINN_P2OOPM[[#This Row],[OOPM]],1,0)<tbl_OPOVINN_P2OOPM[[#This Row],[OOPM]]),"Sort Entries from lowest to highest",""))) ->  | AV115: =SUMIF(tbl_OPAOINN_P1[Out-of-Pocket Maximum (OOPM)],AU115,tbl_OPAOINN_P1[Plan Projected Allowed Amount]) -> 0 | AW115: =IF(OR(AV115=0,AV115=""),"",AV115/tbl_OPAOINN_P2OOPM[[#Totals],[Allowed Claims]]) ->  | AX115: =IF(AW115="","",IF(SUMIF(tbl_OPAOINN_P2OOPM[OOPM],">="&AU115,tbl_OPAOINN_P2OOPM[Portion])>0.5,AU115,"")) ->  | AY115: =IF(COUNTIF(tbl_OPAOINN_P2OOPM[OOPM],tbl_OPAOINN_P2OOPM[[#This Row],[OOPM]])>1,"Remove Duplicate Entry.",IF(AND(tbl_OPAOINN_P2OOPM[[#This Row],[OOPM]]<>"",tbl_OPAOINN_P2OOPM[[#This Row],[Allowed Claims]]=0),"Entry not found in Part 1 Table",IF(AND(OFFSET(tbl_OPAOINN_P2OOPM[[#This Row],[OOPM]],1,0)<>"Total",OFFSET(tbl_OPAOINN_P2OOPM[[#This Row],[OOPM]],1,0)<>"",OFFSET(tbl_OPAOINN_P2OOPM[[#This Row],[OOPM]],1,0)<tbl_OPAOINN_P2OOPM[[#This Row],[OOPM]]),"Sort Entries from lowest to highest",""))) ->  | BE115: =SUMIF(tbl_OPOON_P1[Out-of-Pocket Maximum (OOPM)],BD115,tbl_OPOON_P1[Plan Projected Allowed Amount]) -> 0 | BF115: =IF(OR(BE115=0,BE115=""),"",BE115/tbl_OPOON_P2OOPM[[#Totals],[Allowed Claims]]) ->  | BG115: =IF(BF115="","",IF(SUMIF(tbl_OPOON_P2OOPM[OOPM],">="&BD115,tbl_OPOON_P2OOPM[Portion])>0.5,BD115,"")) ->  | BH115: =IF(COUNTIF(tbl_OPOON_P2OOPM[OOPM],tbl_OPOON_P2OOPM[[#This Row],[OOPM]])>1,"Remove Duplicate Entry.",IF(AND(tbl_OPOON_P2OOPM[[#This Row],[OOPM]]<>"",tbl_OPOON_P2OOPM[[#This Row],[Allowed Claims]]=0),"Entry not found in Part 1 Table",IF(AND(OFFSET(tbl_OPOON_P2OOPM[[#This Row],[OOPM]],1,0)<>"Total",OFFSET(tbl_OPOON_P2OOPM[[#This Row],[OOPM]],1,0)<>"",OFFSET(tbl_OPOON_P2OOPM[[#This Row],[OOPM]],1,0)<tbl_OPOON_P2OOPM[[#This Row],[OOPM]]),"Sort Entries from lowest to highest",""))) ->  | BN115: =SUMIF(tbl_OPOVOON_P1[Out-of-Pocket Maximum (OOPM)],BM115,tbl_OPOVOON_P1[Plan Projected Allowed Amount]) -> 0 | BO115: =IF(OR(BN115=0,BN115=""),"",BN115/tbl_OPOVOON_P2OOPM[[#Totals],[Allowed Claims]]) ->  | BP115: =IF(BO115="","",IF(SUMIF(tbl_OPOVOON_P2OOPM[OOPM],">="&BM115,tbl_OPOVOON_P2OOPM[Portion])>0.5,BM115,"")) ->  | BQ115: =IF(COUNTIF(tbl_OPOVOON_P2OOPM[OOPM],tbl_OPOVOON_P2OOPM[[#This Row],[OOPM]])>1,"Remove Duplicate Entry.",IF(AND(tbl_OPOVOON_P2OOPM[[#This Row],[OOPM]]<>"",tbl_OPOVOON_P2OOPM[[#This Row],[Allowed Claims]]=0),"Entry not found in Part 1 Table",IF(AND(OFFSET(tbl_OPOVOON_P2OOPM[[#This Row],[OOPM]],1,0)<>"Total",OFFSET(tbl_OPOVOON_P2OOPM[[#This Row],[OOPM]],1,0)<>"",OFFSET(tbl_OPOVOON_P2OOPM[[#This Row],[OOPM]],1,0)<tbl_OPOVOON_P2OOPM[[#This Row],[OOPM]]),"Sort Entries from lowest to highest",""))) ->  | BW115: =SUMIF(tbl_OPAOOON_P1[Out-of-Pocket Maximum (OOPM)],BV115,tbl_OPAOOON_P1[Plan Projected Allowed Amount]) -> 0 | BX115: =IF(OR(BW115=0,BW115=""),"",BW115/tbl_OPAOOON_P2OOPM[[#Totals],[Allowed Claims]]) ->  | BY115: =IF(BX115="","",IF(SUMIF(tbl_OPAOOON_P2OOPM[OOPM],">="&BV115,tbl_OPAOOON_P2OOPM[Portion])>0.5,BV115,"")) ->  | BZ115: =IF(COUNTIF(tbl_OPAOOON_P2OOPM[OOPM],tbl_OPAOOON_P2OOPM[[#This Row],[OOPM]])>1,"Remove Duplicate Entry.",IF(AND(tbl_OPAOOON_P2OOPM[[#This Row],[OOPM]]<>"",tbl_OPAOOON_P2OOPM[[#This Row],[Allowed Claims]]=0),"Entry not found in Part 1 Table",IF(AND(OFFSET(tbl_OPAOOON_P2OOPM[[#This Row],[OOPM]],1,0)<>"Total",OFFSET(tbl_OPAOOON_P2OOPM[[#This Row],[OOPM]],1,0)<>"",OFFSET(tbl_OPAOOON_P2OOPM[[#This Row],[OOPM]],1,0)<tbl_OPAOOON_P2OOPM[[#This Row],[OOPM]]),"Sort Entries from lowest to highest",""))) ->  | CF115: =SUMIF(tbl_ER_P1[Out-of-Pocket Maximum (OOPM)],CE115,tbl_ER_P1[Plan Projected Allowed Amount]) -> 0 | CG115: =IF(OR(CF115=0,CF115=""),"",CF115/tbl_ER_P2OOPM[[#Totals],[Allowed Claims]]) ->  | CH115: =IF(CG115="","",IF(SUMIF(tbl_ER_P2OOPM[OOPM],">="&CE115,tbl_ER_P2OOPM[Portion])>0.5,CE115,"")) ->  | CI115: =IF(COUNTIF(tbl_ER_P2OOPM[OOPM],tbl_ER_P2OOPM[[#This Row],[OOPM]])>1,"Remove Duplicate Entry.",IF(AND(tbl_ER_P2OOPM[[#This Row],[OOPM]]<>"",tbl_ER_P2OOPM[[#This Row],[Allowed Claims]]=0),"Entry not found in Part 1 Table",IF(AND(OFFSET(tbl_ER_P2OOPM[[#This Row],[OOPM]],1,0)<>"Total",OFFSET(tbl_ER_P2OOPM[[#This Row],[OOPM]],1,0)<>"",OFFSET(tbl_ER_P2OOPM[[#This Row],[OOPM]],1,0)<tbl_ER_P2OOPM[[#This Row],[OOPM]]),"Sort Entries from lowest to highest",""))) ->  | CO115: =SUMIF(tbl_RX_P1[Out-of-Pocket Maximum (OOPM)],CN115,tbl_RX_P1[Plan Projected Allowed Amount]) -> 0 | CP115: =IF(OR(CO115=0,CO115=""),"",CO115/tbl_RX_P2OOPM[[#Totals],[Allowed Claims]]) ->  | CQ115: =IF(CP115="","",IF(SUMIF(tbl_RX_P2OOPM[OOPM],">="&CN115,tbl_RX_P2OOPM[Portion])>0.5,CN115,"")) ->  | CR115: =IF(COUNTIF(tbl_RX_P2OOPM[OOPM],tbl_RX_P2OOPM[[#This Row],[OOPM]])>1,"Remove Duplicate Entry.",IF(AND(tbl_RX_P2OOPM[[#This Row],[OOPM]]<>"",tbl_RX_P2OOPM[[#This Row],[Allowed Claims]]=0),"Entry not found in Part 1 Table",IF(AND(OFFSET(tbl_RX_P2OOPM[[#This Row],[OOPM]],1,0)<>"Total",OFFSET(tbl_RX_P2OOPM[[#This Row],[OOPM]],1,0)<>"",OFFSET(tbl_RX_P2OOPM[[#This Row],[OOPM]],1,0)<tbl_RX_P2OOPM[[#This Row],[OOPM]]),"Sort Entries from lowest to highest",""))) -> 
K116: Total | L116: =SUBTOTAL(109,tbl_IPINN_P2OOPM[Allowed Claims]) -> 0 | M116: =SUBTOTAL(109,tbl_IPINN_P2OOPM[Portion]) -> 0 | O116: =IF(AND(tbl_IPINN_P2OOPM[[#Totals],[Allowed Claims]]<L72,N72<>"Fail",N72<>"N/A"),"Add missing cost share values.",IF(L116>M55,"Allowed claims higher than possible; correct entries.","")) ->  | T116: Total | U116: =SUBTOTAL(109,tbl_IPOON_P2OOPM[Allowed Claims]) -> 0 | V116: =SUBTOTAL(109,tbl_IPOON_P2OOPM[Portion]) -> 0 | X116: =IF(AND(tbl_IPOON_P2OOPM[[#Totals],[Allowed Claims]]<U72,W72<>"Fail",W72<>"N/A"),"Add missing cost share values.",IF(U116>V55,"Allowed claims higher than possible; correct entries.","")) ->  | AC116: Total | AD116: =SUBTOTAL(109,tbl_OPINN_P2OOPM[Allowed Claims]) -> 0 | AE116: =SUBTOTAL(109,tbl_OPINN_P2OOPM[Portion]) -> 0 | AG116: =IF(AND(tbl_OPINN_P2OOPM[[#Totals],[Allowed Claims]]<AD72,AF72<>"Fail",AF72<>"N/A"),"Add missing cost share values.",IF(AD116>AE55,"Allowed claims higher than possible; correct entries.","")) ->  | AL116: Total | AM116: =SUBTOTAL(109,tbl_OPOVINN_P2OOPM[Allowed Claims]) -> 0 | AN116: =SUBTOTAL(109,tbl_OPOVINN_P2OOPM[Portion]) -> 0 | AP116: =IF(AND(tbl_OPOVINN_P2OOPM[[#Totals],[Allowed Claims]]<AM72,AO72<>"Fail",AO72<>"N/A"),"Add missing cost share values.",IF(AM116>AN55,"Allowed claims higher than possible; correct entries.","")) ->  | AU116: Total | AV116: =SUBTOTAL(109,tbl_OPAOINN_P2OOPM[Allowed Claims]) -> 0 | AW116: =SUBTOTAL(109,tbl_OPAOINN_P2OOPM[Portion]) -> 0 | AY116: =IF(AND(tbl_OPAOINN_P2OOPM[[#Totals],[Allowed Claims]]<AV72,AX72<>"Fail",AX72<>"N/A"),"Add missing cost share values.",IF(AV116>AW55,"Allowed claims higher than possible; correct entries.","")) ->  | BD116: Total | BE116: =SUBTOTAL(109,tbl_OPOON_P2OOPM[Allowed Claims]) -> 0 | BF116: =SUBTOTAL(109,tbl_OPOON_P2OOPM[Portion]) -> 0 | BH116: =IF(AND(tbl_OPOON_P2OOPM[[#Totals],[Allowed Claims]]<BE72,BG72<>"Fail",BG72<>"N/A"),"Add missing cost share values.",IF(BE116>BF55,"Allowed claims higher than possible; correct entries.","")) ->  | BM116: Total | BN116: =SUBTOTAL(109,tbl_OPOVOON_P2OOPM[Allowed Claims]) -> 0 | BO116: =SUBTOTAL(109,tbl_OPOVOON_P2OOPM[Portion]) -> 0 | BQ116: =IF(AND(tbl_OPOVOON_P2OOPM[[#Totals],[Allowed Claims]]<BN72,BP72<>"Fail",BP72<>"N/A"),"Add missing cost share values.",IF(BN116>BO55,"Allowed claims higher than possible; correct entries.","")) ->  | BV116: Total | BW116: =SUBTOTAL(109,tbl_OPAOOON_P2OOPM[Allowed Claims]) -> 0 | BX116: =SUBTOTAL(109,tbl_OPAOOON_P2OOPM[Portion]) -> 0 | BZ116: =IF(AND(tbl_OPAOOON_P2OOPM[[#Totals],[Allowed Claims]]<BW72,BY72<>"Fail",BY72<>"N/A"),"Add missing cost share values.",IF(BW116>BX55,"Allowed claims higher than possible; correct entries.","")) ->  | CE116: Total | CF116: =SUBTOTAL(109,tbl_ER_P2OOPM[Allowed Claims]) -> 0 | CG116: =SUBTOTAL(109,tbl_ER_P2OOPM[Portion]) -> 0 | CI116: =IF(AND(tbl_ER_P2OOPM[[#Totals],[Allowed Claims]]<CF72,CH72<>"Fail",CH72<>"N/A"),"Add missing cost share values.",IF(CF116>CG55,"Allowed claims higher than possible; correct entries.","")) ->  | CN116: Total | CO116: =SUBTOTAL(109,tbl_RX_P2OOPM[Allowed Claims]) -> 0 | CP116: =SUBTOTAL(109,tbl_RX_P2OOPM[Portion]) -> 0 | CR116: =IF(AND(tbl_RX_P2OOPM[[#Totals],[Allowed Claims]]<CO72,CQ72<>"Fail",CQ72<>"N/A"),"Add missing cost share values.",IF(CO116>CP55,"Allowed claims higher than possible; correct entries.","")) -> 

Sheet Developer Notes (hidden)
A1: Development Notes
A2: 45391 | B2: Do not use table references in Part 2 Table total rows, there is a bug in Excel where the formula will change after data is entered in the first column. The table reference will change to pointing to the original template sheet rather than the template copy sheet.

Sheet LookupTables (hidden)
A1: Workbook Lookup Tables
A3: Market | C3: Network | D3: Code | F3: Benefit Classification | G3: Classification Code | I3: Yes/No Cells | K3: OutpatientToggle
A4: Select a Market | C4: In-Network | D4: INN | F4: Inpatient | G4: IP | I4: Select Input | K4: Select Input
A5: Individual | C5: Out-of-Network | D5: OON | F5: Outpatient | G5: OP | I5: Yes | K5: All Combined
A6: Small Group | C6: N/A | D6: ="" ->  | F6: Outpatient - Office Visits | G6: OP-OV | I6: No | K6: Office Visits Separate
F7: Outpatient - All Other | G7: OP-AO
F8: Emergency Care | G8: ER
F9: Prescription Drugs | G9: RX
F13: <<select testing classification>> | H13: <<select mapped Ben. Comp. category>>
F14: Inpatient | H14: Emergency Room Services
F15: Outpatient | H15: Inpatient Hospital Services (e.g., Hospital Stay)
F16: Outpatient - Office Visits | H16: Primary Care Visit to Treat an Injury or Illness
F17: Outpatient - All Other | H17: Specialist Visit
F18: Emergency Care | H18: Mental Health & Substance Use Disorder Office Visits
F19: Prescription Drugs | H19: Mental Health & Substance Use Disorder All Other OP Services
F20: Outpatient | H20: Imaging (CT/PET Scans, MRIs)
H21: Rehabilitative Speech Therapy
H22: Rehabilitative Occupational and Rehabilitative Physical Therapy
H23: Preventive Care/Screening/Immunization
H24: Laboratory Outpatient and Professional Services
H25: X-rays and Diagnostic Imaging
H26: Skilled Nursing Facility
H27: Outpatient Facility Fee (e.g., Ambulatory Surgery Center)
H28: Outpatient Surgery Physician/Surgical Services
H29: Urgent Care
H30: Emergency Transportation
H31: Generic Drugs (Tier 1)
H32: Preferred Brand Drugs (Tier 2)
H33: Non-Preferred Brand Drugs (Tier 3)
H34: Specialty Drugs (Tier 4)
G35: Delete here >>>>>

Sheet Example
A1: MHSUD Financial Requirement (a.k.a. Cost Share) Parity Testing | G1: Workbook Info | K1: =K40 -> Benefit Classification | L1: =L40 -> (1) Inpatient, In-Network (IP INN) | T1: =T40 -> Benefit Classification | U1: =U40 -> (2) Inpatient, Out-of-Network (IP OON) | AC1: =AC40 -> Benefit Classification | AD1: =AD40 -> (3) Outpatient, In-Network (OP INN) | AL1: =AL40 -> Benefit Classification | AM1: =AM40 -> (3a) Outpatient - Office Visits, In-Network (OP-OV INN) | AU1: =AU40 -> Benefit Classification | AV1: =AV40 -> (3b) Outpatient - All Other, In-Network (OP-AO INN) | BD1: =BD40 -> Benefit Classification | BE1: =BE40 -> (4) Outpatient, Out-of-Network (OP OON) | BM1: =BM40 -> Benefit Classification | BN1: =BN40 -> (4a) Outpatient - Office Visits, Out-of-Network (OP-OV OON) | BV1: =BV40 -> Benefit Classification | BW1: =BW40 -> (4b) Outpatient - All Other, Out-of-Network (OP-AO OON) | CE1: =CE40 -> Benefit Classification | CF1: =CF40 -> (5) Emergency Care, (ER ) | CN1: =CN40 -> Benefit Classification | CO1: =CO40 -> (6) Prescription Drugs, (RX )
B3: Issuer / Market: | C3: =IF(LEFT(IssuerName,2)="<<","<<Go back to 'Summary' tab and enter Issuer Name>>",IssuerName) -> <<Go back to 'Summary' tab and enter Issuer Name>> | G3: Link back to Summary Sheet
B4: Market: | C4: =IF(Market="Select Market","<<Go back to 'Summary' tab and select the market for this filing>>",Market) -> <<Go back to 'Summary' tab and select the market for this filing>> | G4: User Inputs Cell Format
B5: State Filing Tracking Number: | C5: =IF(LEFT(StateTracker,2)="<<","<<Go back to 'Summary' tab and enter state filing tracking number>>",StateTracker) -> <<Go back to 'Summary' tab and enter state filing tracking number>> | G5: See the Example worksheet for additional details.
A7: PLAN INFORMATION
B9: Plan Name: | D9: <<<<This will auto populate from summary sheet macro | G9: FOR DEMONSTRATION PURPOSES ONLY
B10: Plan ID: | D10: <<<<This will auto populate from summary sheet macro
B11: CSR Variant Description: | D11: <<<<If the plan is a CSR variant, identify it here. Otherwise, leave the field blank. | K11: Click>>>>> | L11: Home | N11: Errors found: | O11: =O78+O88+O99+O110 -> 11 | T11: Click>>>>> | U11: Home | W11: Errors found: | X11: =X78+X87+X98+X109 -> 0 | AC11: Click>>>>> | AD11: Home | AF11: Errors found: | AG11: =AG78+AG87+AG98+AG109 -> 0 | AL11: Click>>>>> | AM11: Home | AO11: Errors found: | AP11: =AP78+AP87+AP98+AP109 -> 0 | AU11: Click>>>>> | AV11: Home | AX11: Errors found: | AY11: =AY78+AY87+AY98+AY109 -> 0 | BD11: Click>>>>> | BE11: Home | BG11: Errors found: | BH11: =BH78+BH87+BH98+BH109 -> 0 | BM11: Click>>>>> | BN11: Home | BP11: Errors found: | BQ11: =BQ78+BQ87+BQ98+BQ109 -> 0 | BV11: Click>>>>> | BW11: Home | BY11: Errors found: | BZ11: =BZ78+BZ87+BZ98+BZ109 -> 0 | CE11: Click>>>>> | CF11: Home | CH11: Errors found: | CI11: =CI78+CI87+CI98+CI109 -> 0 | CN11: Click>>>>> | CO11: Home | CQ11: Errors found: | CR11: =CR78+CR87+CR98+CR109 -> 0
A12: PARITY PASS/FAIL RESULTS, BY BENEFIT CLASSIFICATION
B14: Overall Result: | C14: =IF(AND(I28="Pass",OR(I30="Pass",AND(I32="Pass",I33="Pass")),E36="Pass",E37="Pass"),"Pass","Fail") -> Fail | E14: <<<<Click the links in the cells below to scroll directly to the stated section>>>>> | K14: <<<<Click the links in the cells below to scroll directly to the stated section>>>>> | T14: <<<<Click the links in the cells below to scroll directly to the stated section>>>>> | AC14: <<<<Click the links in the cells below to scroll directly to the stated section>>>>> | AL14: <<<<Click the links in the cells below to scroll directly to the stated section>>>>> | AU14: <<<<Click the links in the cells below to scroll directly to the stated section>>>>> | BD14: <<<<Click the links in the cells below to scroll directly to the stated section>>>>> | BM14: <<<<Click the links in the cells below to scroll directly to the stated section>>>>> | BV14: <<<<Click the links in the cells below to scroll directly to the stated section>>>>> | CE14: <<<<Click the links in the cells below to scroll directly to the stated section>>>>> | CN14: <<<<Click the links in the cells below to scroll directly to the stated section>>>>>
E15: Move to IP INN | F15: Move to IP OON | G15: Move to OP INN | H15: Move to OP-OV INN | I15: Move to OP-AO INN | K15: Move to IP INN | L15: Move to IP OON | M15: Move to OP INN | N15: Move to OP-OV INN | O15: Move to OP-AO INN | T15: Move to IP INN | U15: Move to IP OON | V15: Move to OP INN | W15: Move to OP-OV INN | X15: Move to OP-AO INN | AC15: Move to IP INN | AD15: Move to IP OON | AE15: Move to OP INN | AF15: Move to OP-OV INN | AG15: Move to OP-AO INN | AL15: Move to IP INN | AM15: Move to IP OON | AN15: Move to OP INN | AO15: Move to OP-OV INN | AP15: Move to OP-AO INN | AU15: Move to IP INN | AV15: Move to IP OON | AW15: Move to OP INN | AX15: Move to OP-OV INN | AY15: Move to OP-AO INN | BD15: Move to IP INN | BE15: Move to IP OON | BF15: Move to OP INN | BG15: Move to OP-OV INN | BH15: Move to OP-AO INN | BM15: Move to IP INN | BN15: Move to IP OON | BO15: Move to OP INN | BP15: Move to OP-OV INN | BQ15: Move to OP-AO INN | BV15: Move to IP INN | BW15: Move to IP OON | BX15: Move to OP INN | BY15: Move to OP-OV INN | BZ15: Move to OP-AO INN | CE15: Move to IP INN | CF15: Move to IP OON | CG15: Move to OP INN | CH15: Move to OP-OV INN | CI15: Move to OP-AO INN | CN15: Move to IP INN | CO15: Move to IP OON | CP15: Move to OP INN | CQ15: Move to OP-OV INN | CR15: Move to OP-AO INN
C16: Links only work for sections that are not already hidden>>>>> | E16: Move to OP OON | F16: Move to OP-OV OON | G16: Move to OP-AO OON | H16: Move to ER | I16: Move to RX | K16: Move to OP OON | L16: Move to OP-OV OON | M16: Move to OP-AO OON | N16: Move to ER | O16: Move to RX | T16: Move to OP OON | U16: Move to OP-OV OON | V16: Move to OP-AO OON | W16: Move to ER | X16: Move to RX | AC16: Move to OP OON | AD16: Move to OP-OV OON | AE16: Move to OP-AO OON | AF16: Move to ER | AG16: Move to RX | AL16: Move to OP OON | AM16: Move to OP-OV OON | AN16: Move to OP-AO OON | AO16: Move to ER | AP16: Move to RX | AU16: Move to OP OON | AV16: Move to OP-OV OON | AW16: Move to OP-AO OON | AX16: Move to ER | AY16: Move to RX | BD16: Move to OP OON | BE16: Move to OP-OV OON | BF16: Move to OP-AO OON | BG16: Move to ER | BH16: Move to RX | BM16: Move to OP OON | BN16: Move to OP-OV OON | BO16: Move to OP-AO OON | BP16: Move to ER | BQ16: Move to RX | BV16: Move to OP OON | BW16: Move to OP-OV OON | BX16: Move to OP-AO OON | BY16: Move to ER | BZ16: Move to RX | CE16: Move to OP OON | CF16: Move to OP-OV OON | CG16: Move to OP-AO OON | CH16: Move to ER | CI16: Move to RX | CN16: Move to OP OON | CO16: Move to OP-OV OON | CP16: Move to OP-AO OON | CQ16: Move to ER | CR16: Move to RX
B18: Testing Options
B19: Option | C19: Selection | G19: No Errors found?
B21: Out-of-Network Tier? | C21: Yes | G21: =IF(O11+X11+AG11+AP11+AY11+BH11+BQ11+BZ11+CI11+CR11=0,TRUE,FALSE) -> FALSE
B22: Outpatient Benefit Testing | C22: Office Visits Separate
B25: Results By Benefit Classification
B26: A. Benefit Classification | C26: B1. Do the MHSUD cost shares match all Medical/Surgical cost shares in the Benefit Classification? (In-Network) | D26: C1. Test Required? (In-Network) | E26: B2. Do the MHSUD cost shares match all Medical/Surgical cost shares in the Benefit Classification? (Out-of-Network) | F26: C2. Test Required? (Out-of-Network) | G26: D. By Network Tier | I26: E. Test Results
G27: D1. In-Network | H27: D2. Out-of-Network
B28: Inpatient | C28: No | D28: =IF(C28="Yes","No","Yes") -> Yes | E28: No | F28: =IF(E28="Yes","No","Yes") -> Yes | G28: =N68 -> Fail | H28: =IF($C$21="No","Pass",W68) -> Pass | I28: =IF(AND(G28="Pass",H28="Pass"),"Pass","Fail") -> Fail
B29: Outpatient
B30: Outpatient - All Services Combined | C30: Select Input | D30: =IF(C22="All Combined",IF(C30="Yes","No","Yes"),"No") -> No | E30: Select Input | F30: =IF(C22="All Combined",IF(E30="Yes","No","Yes"),"No") -> No | G30: =AF68 -> Pass | H30: =IF($C$21="No","Pass",BG68) -> Pass | I30: =IF(AND(G30="Pass",H30="Pass"),"Pass","Fail") -> Pass
B31: Outpatient - Office Visits Separate
B32: Outpatient - Office Visits | C32: Yes | D32: =IF(C22="Office Visits Separate",IF(C32="Yes","No","Yes"),"No") -> No | E32: Yes | F32: =IF(C22="Office Visits Separate",IF(E32="Yes","No","Yes"),"No") -> No | G32: =AO68 -> Pass | H32: =IF($C$21="No","Pass",BP68) -> Pass | I32: =IF(AND(G32="Pass",H32="Pass"),"Pass","Fail") -> Pass
B33: Outpatient - All Other | C33: Yes | D33: =IF(C22="Office Visits Separate",IF(C33="Yes","No","Yes"),"No") -> No | E33: Yes | F33: =IF(C22="Office Visits Separate",IF(E33="Yes","No","Yes"),"No") -> No | G33: =AX68 -> Pass | H33: =IF($C$21="No","Pass",BY68) -> Pass | I33: =IF(AND(G33="Pass",H33="Pass"),"Pass","Fail") -> Pass
B35: A. Benefit Classification | C35: B. Do the MHSUD cost shares match all Medical/Surgical cost shares in the Benefit Classification? | D35: C. Test Required? | E35: D. Test Results
B36: Emergency Care | C36: Yes | D36: =IF(C36="Yes","No","Yes") -> No | E36: =IF(D36="No","Pass",CH68) -> Pass
B37: Prescription Drugs | C37: Yes | D37: =IF(C37="Yes","No","Yes") -> No | E37: =IF(D37="No","Pass",CQ68) -> Pass
K38: PART 1 | T38: PART 1 | AC38: PART 1 | AL38: PART 1 | AU38: PART 1 | BD38: PART 1 | BM38: PART 1 | BV38: PART 1 | CE38: PART 1 | CN38: PART 1
K39: COST SHARES FOR MEDICAL/SURGICAL BENEFITS, BY BENEFIT CLASSIFICATION | T39: COST SHARES FOR MEDICAL/SURGICAL BENEFITS, BY BENEFIT CLASSIFICATION | AC39: COST SHARES FOR MEDICAL/SURGICAL BENEFITS, BY BENEFIT CLASSIFICATION | AL39: COST SHARES FOR MEDICAL/SURGICAL BENEFITS, BY BENEFIT CLASSIFICATION | AU39: COST SHARES FOR MEDICAL/SURGICAL BENEFITS, BY BENEFIT CLASSIFICATION | BD39: COST SHARES FOR MEDICAL/SURGICAL BENEFITS, BY BENEFIT CLASSIFICATION | BM39: COST SHARES FOR MEDICAL/SURGICAL BENEFITS, BY BENEFIT CLASSIFICATION | BV39: COST SHARES FOR MEDICAL/SURGICAL BENEFITS, BY BENEFIT CLASSIFICATION | CE39: COST SHARES FOR MEDICAL/SURGICAL BENEFITS, BY BENEFIT CLASSIFICATION | CN39: COST SHARES FOR MEDICAL/SURGICAL BENEFITS, BY BENEFIT CLASSIFICATION
K40: Benefit Classification | L40: ="(" &L45&") "&L43&", "&SUBSTITUTE(L44,"N/A","")&" ("&M45&")" -> (1) Inpatient, In-Network (IP INN) | T40: Benefit Classification | U40: ="(" &U45&") "&U43&", "&SUBSTITUTE(U44,"N/A","")&" ("&V45&")" -> (2) Inpatient, Out-of-Network (IP OON) | AC40: Benefit Classification | AD40: ="(" &AD45&") "&AD43&", "&SUBSTITUTE(AD44,"N/A","")&" ("&AE45&")" -> (3) Outpatient, In-Network (OP INN) | AL40: Benefit Classification | AM40: ="(" &AM45&") "&AM43&", "&SUBSTITUTE(AM44,"N/A","")&" ("&AN45&")" -> (3a) Outpatient - Office Visits, In-Network (OP-OV INN) | AU40: Benefit Classification | AV40: ="(" &AV45&") "&AV43&", "&SUBSTITUTE(AV44,"N/A","")&" ("&AW45&")" -> (3b) Outpatient - All Other, In-Network (OP-AO INN) | BD40: Benefit Classification | BE40: ="(" &BE45&") "&BE43&", "&SUBSTITUTE(BE44,"N/A","")&" ("&BF45&")" -> (4) Outpatient, Out-of-Network (OP OON) | BM40: Benefit Classification | BN40: ="(" &BN45&") "&BN43&", "&SUBSTITUTE(BN44,"N/A","")&" ("&BO45&")" -> (4a) Outpatient - Office Visits, Out-of-Network (OP-OV OON) | BV40: Benefit Classification | BW40: ="(" &BW45&") "&BW43&", "&SUBSTITUTE(BW44,"N/A","")&" ("&BX45&")" -> (4b) Outpatient - All Other, Out-of-Network (OP-AO OON) | CE40: Benefit Classification | CF40: ="(" &CF45&") "&CF43&", "&SUBSTITUTE(CF44,"N/A","")&" ("&CG45&")" -> (5) Emergency Care, (ER ) | CN40: Benefit Classification | CO40: ="(" &CO45&") "&CO43&", "&SUBSTITUTE(CO44,"N/A","")&" ("&CP45&")" -> (6) Prescription Drugs, (RX )
AC41: Notes: | AD41: Use this table if you are testing all outpatient services combined. | AL41: Notes: | AM41: Use this table if you are separately testing outpatient office visits and all other outpatient services. | AU41: Notes: | AV41: =AM41 -> Use this table if you are separately testing outpatient office visits and all other outpatient services. | BD41: Notes: | BE41: Use this table if you are testing all outpatient services combined. | BM41: Notes: | BN41: =AM41 -> Use this table if you are separately testing outpatient office visits and all other outpatient services. | BV41: Notes: | BW41: =BN41 -> Use this table if you are separately testing outpatient office visits and all other outpatient services.
K43: Classification | L43: Inpatient | M43: =VLOOKUP(L43,LookupTables!$F$4:$G$9,2,FALSE) -> IP | T43: Classification | U43: Inpatient | V43: =VLOOKUP(U43,LookupTables!$F$4:$G$9,2,FALSE) -> IP | AC43: Classification | AD43: Outpatient | AE43: =VLOOKUP(AD43,LookupTables!$F$4:$G$9,2,FALSE) -> OP | AL43: Classification | AM43: Outpatient - Office Visits | AN43: =VLOOKUP(AM43,LookupTables!$F$4:$G$9,2,FALSE) -> OP-OV | AU43: Classification | AV43: Outpatient - All Other | AW43: =VLOOKUP(AV43,LookupTables!$F$4:$G$9,2,FALSE) -> OP-AO | BD43: Classification | BE43: Outpatient | BF43: =VLOOKUP(BE43,LookupTables!$F$4:$G$9,2,FALSE) -> OP | BM43: Classification | BN43: Outpatient - Office Visits | BO43: =VLOOKUP(BN43,LookupTables!$F$4:$G$9,2,FALSE) -> OP-OV | BV43: Classification | BW43: Outpatient - All Other | BX43: =VLOOKUP(BW43,LookupTables!$F$4:$G$9,2,FALSE) -> OP-AO | CE43: Classification | CF43: Emergency Care | CG43: =VLOOKUP(CF43,LookupTables!$F$4:$G$9,2,FALSE) -> ER | CN43: Classification | CO43: Prescription Drugs | CP43: =VLOOKUP(CO43,LookupTables!$F$4:$G$9,2,FALSE) -> RX
K44: Network (In/Out) | L44: In-Network | M44: =VLOOKUP(L44,LookupTables!$C$4:$D$6,2,0) -> INN | T44: Network (In/Out) | U44: Out-of-Network | V44: =VLOOKUP(U44,LookupTables!$C$4:$D$6,2,0) -> OON | AC44: Network (In/Out) | AD44: In-Network | AE44: =VLOOKUP(AD44,LookupTables!$C$4:$D$6,2,0) -> INN | AL44: Network (In/Out) | AM44: In-Network | AN44: =VLOOKUP(AM44,LookupTables!$C$4:$D$6,2,0) -> INN | AU44: Network (In/Out) | AV44: In-Network | AW44: =VLOOKUP(AV44,LookupTables!$C$4:$D$6,2,0) -> INN | BD44: Network (In/Out) | BE44: Out-of-Network | BF44: =VLOOKUP(BE44,LookupTables!$C$4:$D$6,2,0) -> OON | BM44: Network (In/Out) | BN44: Out-of-Network | BO44: =VLOOKUP(BN44,LookupTables!$C$4:$D$6,2,0) -> OON | BV44: Network (In/Out) | BW44: Out-of-Network | BX44: =VLOOKUP(BW44,LookupTables!$C$4:$D$6,2,0) -> OON | CE44: Network (In/Out) | CF44: N/A | CG44: =VLOOKUP(CF44,LookupTables!$C$4:$D$6,2,0) ->  | CN44: Network (In/Out) | CO44: N/A | CP44: =VLOOKUP(CO44,LookupTables!$C$4:$D$6,2,0) -> 
K45: Classification Code | L45: 1 | M45: =M43&" "&M44 -> IP INN | Q45: Number of Rows | R45: 6 | T45: Classification Code | U45: 2 | V45: =V43&" "&V44 -> IP OON | Z45: Number of Rows | AA45: 8 | AC45: Classification Code | AD45: 3 | AE45: =AE43&" "&AE44 -> OP INN | AI45: Number of Rows | AJ45: 6 | AL45: Classification Code | AM45: 3a | AN45: =AN43&" "&AN44 -> OP-OV INN | AR45: Number of Rows | AS45: 6 | AU45: Classification Code | AV45: 3b | AW45: =AW43&" "&AW44 -> OP-AO INN | BA45: Number of Rows | BB45: 6 | BD45: Classification Code | BE45: 4 | BF45: =BF43&" "&BF44 -> OP OON | BJ45: Number of Rows | BK45: 6 | BM45: Classification Code | BN45: 4a | BO45: =BO43&" "&BO44 -> OP-OV OON | BS45: Number of Rows | BT45: 6 | BV45: Classification Code | BW45: 4b | BX45: =BX43&" "&BX44 -> OP-AO OON | CB45: Number of Rows | CC45: 6 | CE45: Classification Code | CF45: 5 | CG45: =CG43&" "&CG44 -> ER | CK45: Number of Rows | CL45: 6 | CN45: Classification Code | CO45: 6 | CP45: =CP43&" "&CP44 -> RX
K46: Table Name | M46: =SUBSTITUTE(SUBSTITUTE("tbl_"&M45&"_P1"," ",""),"-","") -> tbl_IPINN_P1 | T46: Table Name | V46: =SUBSTITUTE(SUBSTITUTE("tbl_"&V45&"_P1"," ",""),"-","") -> tbl_IPOON_P1 | AC46: Table Name | AE46: =SUBSTITUTE(SUBSTITUTE("tbl_"&AE45&"_P1"," ",""),"-","") -> tbl_OPINN_P1 | AL46: Table Name | AN46: =SUBSTITUTE(SUBSTITUTE("tbl_"&AN45&"_P1"," ",""),"-","") -> tbl_OPOVINN_P1 | AU46: Table Name | AW46: =SUBSTITUTE(SUBSTITUTE("tbl_"&AW45&"_P1"," ",""),"-","") -> tbl_OPAOINN_P1 | BD46: Table Name | BF46: =SUBSTITUTE(SUBSTITUTE("tbl_"&BF45&"_P1"," ",""),"-","") -> tbl_OPOON_P1 | BM46: Table Name | BO46: =SUBSTITUTE(SUBSTITUTE("tbl_"&BO45&"_P1"," ",""),"-","") -> tbl_OPOVOON_P1 | BV46: Table Name | BX46: =SUBSTITUTE(SUBSTITUTE("tbl_"&BX45&"_P1"," ",""),"-","") -> tbl_OPAOOON_P1 | CE46: Table Name | CG46: =SUBSTITUTE(SUBSTITUTE("tbl_"&CG45&"_P1"," ",""),"-","") -> tbl_ER_P1 | CN46: Table Name | CP46: =SUBSTITUTE(SUBSTITUTE("tbl_"&CP45&"_P1"," ",""),"-","") -> tbl_RX_P1 | CT46: Number of Rows | CU46: 6
K47: For each cost share, if it does not apply, enter "N/A". | T47: For each cost share, if it does not apply, enter "N/A". | AC47: For each cost share, if it does not apply, enter "N/A". | AL47: For each cost share, if it does not apply, enter "N/A". | AU47: For each cost share, if it does not apply, enter "N/A". | BD47: For each cost share, if it does not apply, enter "N/A". | BM47: For each cost share, if it does not apply, enter "N/A". | BV47: For each cost share, if it does not apply, enter "N/A". | CE47: For each cost share, if it does not apply, enter "N/A". | CN47: For each cost share, if it does not apply, enter "N/A".
K48: Service Description | L48: Cost-Share Description | M48: Plan Projected Allowed Amount | N48: Deductible | O48: Copayment | P48: Coinsurance | Q48: Out-of-Pocket Maximum (OOPM) | R48: No Cost-Share (If true, enter "x") | T48: Service Description | U48: Cost-Share Description | V48: Plan Projected Allowed Amount | W48: Deductible | X48: Copayment | Y48: Coinsurance | Z48: Out-of-Pocket Maximum (OOPM) | AA48: No Cost-Share (If true, enter "x") | AC48: Service Description | AD48: Cost-Share Description | AE48: Plan Projected Allowed Amount | AF48: Deductible | AG48: Copayment | AH48: Coinsurance | AI48: Out-of-Pocket Maximum (OOPM) | AJ48: No Cost-Share (If true, enter "x") | AL48: Service Description | AM48: Cost-Share Description | AN48: Plan Projected Allowed Amount | AO48: Deductible | AP48: Copayment | AQ48: Coinsurance | AR48: Out-of-Pocket Maximum (OOPM) | AS48: No Cost-Share (If true, enter "x") | AU48: Service Description | AV48: Cost-Share Description | AW48: Plan Projected Allowed Amount | AX48: Deductible | AY48: Copayment | AZ48: Coinsurance | BA48: Out-of-Pocket Maximum (OOPM) | BB48: No Cost-Share (If true, enter "x") | BD48: Service Description | BE48: Cost-Share Description | BF48: Plan Projected Allowed Amount | BG48: Deductible | BH48: Copayment | BI48: Coinsurance | BJ48: Out-of-Pocket Maximum (OOPM) | BK48: No Cost-Share (If true, enter "x") | BM48: Service Description | BN48: Cost-Share Description | BO48: Plan Projected Allowed Amount | BP48: Deductible | BQ48: Copayment | BR48: Coinsurance | BS48: Out-of-Pocket Maximum (OOPM) | BT48: No Cost-Share (If true, enter "x") | BV48: Service Description | BW48: Cost-Share Description | BX48: Plan Projected Allowed Amount | BY48: Deductible | BZ48: Copayment | CA48: Coinsurance | CB48: Out-of-Pocket Maximum (OOPM) | CC48: No Cost-Share (If true, enter "x") | CE48: Service Description | CF48: Cost-Share Description | CG48: Plan Projected Allowed Amount | CH48: Deductible | CI48: Copayment | CJ48: Coinsurance | CK48: Out-of-Pocket Maximum (OOPM) | CL48: No Cost-Share (If true, enter "x") | CN48: Service Description | CO48: Cost-Share Description | CP48: Plan Projected Allowed Amount | CQ48: Deductible | CR48: Copayment | CS48: Coinsurance | CT48: Out-of-Pocket Maximum (OOPM) | CU48: No Cost-Share (If true, enter "x")
K49: <<Enter description>> | L49: Before Deductible | M49: 346 | N49: N/A | O49: 15 | P49: 0.2 | Q49: 8000 | T49: <<Enter description>> | U49: <<Enter description>> | V49: 123 | W49: 500 | X49: 15 | Y49: 0.2 | Z49: 8000 | AC49: <<Enter description>> | AD49: <<Enter description>> | AL49: <<Enter description>> | AM49: <<Enter description>> | AU49: <<Enter description>> | AV49: <<Enter description>> | BD49: <<Enter description>> | BE49: <<Enter description>> | BM49: <<Enter description>> | BN49: <<Enter description>> | BV49: <<Enter description>> | BW49: <<Enter description>> | CE49: <<Enter description>> | CF49: <<Enter description>> | CN49: <<Enter description>> | CO49: <<Enter description>>
K50: <<Enter description>> | L50: After Deductible | M50: 140 | N50: 500 | O50: 15 | P50: N/A | Q50: 8000 | T50: <<Enter description>> | U50: <<Enter description>> | V50: 300 | W50: 550 | X50: 30 | Y50: N/A | Z50: 8000
K51: <<Enter description>> | L51: Before and After Deductible | M51: 639 | N51: 500 | O51: 15 | P51: 0.3 | Q51: 8000 | T51: <<Preventive Services description>> | U51: <<Enter description>> | V51: 100 | W51: N/A | X51: N/A | Y51: N/A | Z51: N/A | AA51: x
K52: <<Enter description>> | L52: Before Deductible | M52: 369 | N52: 500 | O52: 15 | P52: 0.5 | Q52: 8000 | T52: <<Enter description>> | U52: <<Enter description>> | V52: 57 | W52: 500 | X52: 20 | Y52: N/A | Z52: 8000
K53: <<Enter description>> | L53: After Deductible | M53: 466 | N53: 500 | O53: 30 | P53: N/A | Q53: 8000 | T53: <<Enter description>> | U53: <<Enter description>> | V53: 64 | W53: 500 | X53: 30 | Y53: 0.2 | Z53: 8000
K54: <<Enter description>> | L54: Before and After Deductible | M54: 325 | N54: 500 | O54: 45 | P54: N/A | Q54: 8000 | T54: <<Enter description>> | U54: <<Enter description>> | V54: 38 | W54: 500 | X54: N/A | Y54: 0.25 | Z54: 8000
K55: Total Row | M55: =SUBTOTAL(109,tbl_IPINN_P15[Plan Projected Allowed Amount]) -> 2285 | T55: <<Enter description>> | U55: <<Enter description>> | V55: 40 | W55: 500 | X55: 15 | Y55: 0.2 | Z55: 8000 | AC55: Total Row | AE55: =SUBTOTAL(109,tbl_OPINN_P115[Plan Projected Allowed Amount]) -> 0 | AL55: Total Row | AN55: =SUBTOTAL(109,tbl_OPOVINN_P120[Plan Projected Allowed Amount]) -> 0 | AU55: Total Row | AW55: =SUBTOTAL(109,tbl_OPAOINN_P125[Plan Projected Allowed Amount]) -> 0 | BD55: Total Row | BF55: =SUBTOTAL(109,tbl_OPOON_P130[Plan Projected Allowed Amount]) -> 0 | BM55: Total Row | BO55: =SUBTOTAL(109,tbl_OPOVOON_P135[Plan Projected Allowed Amount]) -> 0 | BV55: Total Row | BX55: =SUBTOTAL(109,tbl_OPAOOON_P140[Plan Projected Allowed Amount]) -> 0 | CE55: Total Row | CG55: =SUBTOTAL(109,tbl_ER_P145[Plan Projected Allowed Amount]) -> 0 | CN55: Total Row | CP55: =SUBTOTAL(109,tbl_RX_P149[Plan Projected Allowed Amount]) -> 0
T56: <<Enter description>> | U56: <<Enter description>> | V56: 37 | W56: 500 | X56: 15 | Y56: 0.2 | Z56: 8000
T57: Total Row | V57: =SUBTOTAL(109,tbl_IPOON_P110[Plan Projected Allowed Amount]) -> 759
K59: PART 2 | T59: PART 2 | AC59: PART 2 | AL59: PART 2 | AU59: PART 2 | BD59: PART 2 | BM59: PART 2 | BV59: PART 2 | CE59: PART 2 | CN59: PART 2
K60: ANALYSIS OF MHSUD FINANCIAL REQUIREMENT PARITY, BY BENEFIT CLASSIFICATION | T60: ANALYSIS OF MHSUD FINANCIAL REQUIREMENT PARITY, BY BENEFIT CLASSIFICATION | AC60: ANALYSIS OF MHSUD FINANCIAL REQUIREMENT PARITY, BY BENEFIT CLASSIFICATION | AL60: ANALYSIS OF MHSUD FINANCIAL REQUIREMENT PARITY, BY BENEFIT CLASSIFICATION | AU60: ANALYSIS OF MHSUD FINANCIAL REQUIREMENT PARITY, BY BENEFIT CLASSIFICATION | BD60: ANALYSIS OF MHSUD FINANCIAL REQUIREMENT PARITY, BY BENEFIT CLASSIFICATION | BM60: ANALYSIS OF MHSUD FINANCIAL REQUIREMENT PARITY, BY BENEFIT CLASSIFICATION | BV60: ANALYSIS OF MHSUD FINANCIAL REQUIREMENT PARITY, BY BENEFIT CLASSIFICATION | CE60: ANALYSIS OF MHSUD FINANCIAL REQUIREMENT PARITY, BY BENEFIT CLASSIFICATION | CN60: ANALYSIS OF MHSUD FINANCIAL REQUIREMENT PARITY, BY BENEFIT CLASSIFICATION
K62: ="Financial Parity for "&L40 -> Financial Parity for (1) Inpatient, In-Network (IP INN) | T62: ="Financial Parity for "&U40 -> Financial Parity for (2) Inpatient, Out-of-Network (IP OON) | AC62: ="Financial Parity for "&AD40 -> Financial Parity for (3) Outpatient, In-Network (OP INN) | AL62: ="Financial Parity for "&AM40 -> Financial Parity for (3a) Outpatient - Office Visits, In-Network (OP-OV INN) | AU62: ="Financial Parity for "&AV40 -> Financial Parity for (3b) Outpatient - All Other, In-Network (OP-AO INN) | BD62: ="Financial Parity for "&BE40 -> Financial Parity for (4) Outpatient, Out-of-Network (OP OON) | BM62: ="Financial Parity for "&BN40 -> Financial Parity for (4a) Outpatient - Office Visits, Out-of-Network (OP-OV OON) | BV62: ="Financial Parity for "&BW40 -> Financial Parity for (4b) Outpatient - All Other, Out-of-Network (OP-AO OON) | CE62: ="Financial Parity for "&CF40 -> Financial Parity for (5) Emergency Care, (ER ) | CN62: ="Financial Parity for "&CO40 -> Financial Parity for (6) Prescription Drugs, (RX )
K63: Cost-Share Type | L63: MHSUD Cost Shares in Plan Design* | M63: Predominant Level for Medical/ Surgical | N63: MHSUD Financial Parity Result | P63: Enter Footnotes (as needed) about MHSUD Cost Shares in the Plan Design | T63: Cost-Share Type | U63: MHSUD Cost Shares in Plan Design* | V63: Predominant Level for Medical/ Surgical | W63: MHSUD Financial Parity Result | Y63: Enter Footnotes (as needed) about MHSUD Cost Shares in the Plan Design | AC63: Cost-Share Type | AD63: MHSUD Cost Shares in Plan Design* | AE63: Predominant Level for Medical/ Surgical | AF63: MHSUD Financial Parity Result | AH63: Enter Footnotes (as needed) about MHSUD Cost Shares in the Plan Design | AL63: Cost-Share Type | AM63: MHSUD Cost Shares in Plan Design* | AN63: Predominant Level for Medical/ Surgical | AO63: MHSUD Financial Parity Result | AQ63: Enter Footnotes (as needed) about MHSUD Cost Shares in the Plan Design | AU63: Cost-Share Type | AV63: MHSUD Cost Shares in Plan Design* | AW63: Predominant Level for Medical/ Surgical | AX63: MHSUD Financial Parity Result | AZ63: Enter Footnotes (as needed) about MHSUD Cost Shares in the Plan Design | BD63: Cost-Share Type | BE63: MHSUD Cost Shares in Plan Design* | BF63: Predominant Level for Medical/ Surgical | BG63: MHSUD Financial Parity Result | BI63: Enter Footnotes (as needed) about MHSUD Cost Shares in the Plan Design | BM63: Cost-Share Type | BN63: MHSUD Cost Shares in Plan Design* | BO63: Predominant Level for Medical/ Surgical | BP63: MHSUD Financial Parity Result | BR63: Enter Footnotes (as needed) about MHSUD Cost Shares in the Plan Design | BV63: Cost-Share Type | BW63: MHSUD Cost Shares in Plan Design* | BX63: Predominant Level for Medical/ Surgical | BY63: MHSUD Financial Parity Result | CA63: Enter Footnotes (as needed) about MHSUD Cost Shares in the Plan Design | CE63: Cost-Share Type | CF63: MHSUD Cost Shares in Plan Design* | CG63: Predominant Level for Medical/ Surgical | CH63: MHSUD Financial Parity Result | CJ63: Enter Footnotes (as needed) about MHSUD Cost Shares in the Plan Design | CN63: Cost-Share Type | CO63: MHSUD Cost Shares in Plan Design* | CP63: Predominant Level for Medical/ Surgical | CQ63: MHSUD Financial Parity Result | CS63: Enter Footnotes (as needed) about MHSUD Cost Shares in the Plan Design
K64: Deductible | L64: 500 | M64: =IF(OR(N71="Fail",N71="N/A"),N71,MAX(tbl_IPINN_P2Ded6[Predominant & Smaller])) -> 500 | N64: =IF(AND(OR(L64="",L64="N/A"),N71="N/A"),"N/A",IF(AND(OR(M64="N/A",M64="Fail"),OR(L64="N/A",L64="Not Applicable")),"Pass",IF(M64="Fail",M64,IF(L64="","Fail - Enter MHSUD cost share",IF(AND(M64<>"N/A",M64<>"Fail",OR(AND(L64<=M64,L64>=0),L64="N/A",L64="Not Applicable")),"Pass","Fail"))))) -> Pass | P64: xx | T64: Deductible | U64: 500 | V64: =IF(OR(W71="Fail",W71="N/A"),W71,MAX(tbl_IPOON_P2Ded11[Predominant & Smaller])) -> 500 | W64: =IF(AND(OR(U64="",U64="N/A"),W71="N/A"),"N/A",IF(AND(OR(V64="N/A",V64="Fail"),OR(U64="N/A",U64="Not Applicable")),"Pass",IF(V64="Fail",V64,IF(U64="","Fail - Enter MHSUD cost share",IF(AND(V64<>"N/A",V64<>"Fail",OR(AND(U64<=V64,U64>=0),U64="N/A",U64="Not Applicable")),"Pass","Fail"))))) -> Pass | Y64: xx | AC64: Deductible | AE64: =IF(OR(AF71="Fail",AF71="N/A"),AF71,MAX(tbl_OPINN_P2Ded16[Predominant & Smaller])) -> N/A | AF64: =IF(AND(OR(AD64="",AD64="N/A"),AF71="N/A"),"N/A",IF(AND(OR(AE64="N/A",AE64="Fail"),OR(AD64="N/A",AD64="Not Applicable")),"Pass",IF(AE64="Fail",AE64,IF(AD64="","Fail - Enter MHSUD cost share",IF(AND(AE64<>"N/A",AE64<>"Fail",OR(AND(AD64<=AE64,AD64>=0),AD64="N/A",AD64="Not Applicable")),"Pass","Fail"))))) -> N/A | AH64: xx | AL64: Deductible | AN64: =IF(OR(AO71="Fail",AO71="N/A"),AO71,MAX(tbl_OPOVINN_P2Ded21[Predominant & Smaller])) -> N/A | AO64: =IF(AND(OR(AM64="",AM64="N/A"),AO71="N/A"),"N/A",IF(AND(OR(AN64="N/A",AN64="Fail"),OR(AM64="N/A",AM64="Not Applicable")),"Pass",IF(AN64="Fail",AN64,IF(AM64="","Fail - Enter MHSUD cost share",IF(AND(AN64<>"N/A",AN64<>"Fail",OR(AND(AM64<=AN64,AM64>=0),AM64="N/A",AM64="Not Applicable")),"Pass","Fail"))))) -> N/A | AQ64: xx | AU64: Deductible | AW64: =IF(OR(AX71="Fail",AX71="N/A"),AX71,MAX(tbl_OPAOINN_P2Ded26[Predominant & Smaller])) -> N/A | AX64: =IF(AND(OR(AV64="",AV64="N/A"),AX71="N/A"),"N/A",IF(AND(OR(AW64="N/A",AW64="Fail"),OR(AV64="N/A",AV64="Not Applicable")),"Pass",IF(AW64="Fail",AW64,IF(AV64="","Fail - Enter MHSUD cost share",IF(AND(AW64<>"N/A",AW64<>"Fail",OR(AND(AV64<=AW64,AV64>=0),AV64="N/A",AV64="Not Applicable")),"Pass","Fail"))))) -> N/A | AZ64: xx | BD64: Deductible | BF64: =IF(OR(BG71="Fail",BG71="N/A"),BG71,MAX(tbl_OPOON_P2Ded31[Predominant & Smaller])) -> N/A | BG64: =IF(AND(OR(BE64="",BE64="N/A"),BG71="N/A"),"N/A",IF(AND(OR(BF64="N/A",BF64="Fail"),OR(BE64="N/A",BE64="Not Applicable")),"Pass",IF(BF64="Fail",BF64,IF(BE64="","Fail - Enter MHSUD cost share",IF(AND(BF64<>"N/A",BF64<>"Fail",OR(AND(BE64<=BF64,BE64>=0),BE64="N/A",BE64="Not Applicable")),"Pass","Fail"))))) -> N/A | BI64: xx | BM64: Deductible | BO64: =IF(OR(BP71="Fail",BP71="N/A"),BP71,MAX(tbl_OPOVOON_P2Ded36[Predominant & Smaller])) -> N/A | BP64: =IF(AND(OR(BN64="",BN64="N/A"),BP71="N/A"),"N/A",IF(AND(OR(BO64="N/A",BO64="Fail"),OR(BN64="N/A",BN64="Not Applicable")),"Pass",IF(BO64="Fail",BO64,IF(BN64="","Fail - Enter MHSUD cost share",IF(AND(BO64<>"N/A",BO64<>"Fail",OR(AND(BN64<=BO64,BN64>=0),BN64="N/A",BN64="Not Applicable")),"Pass","Fail"))))) -> N/A | BR64: xx | BV64: Deductible | BX64: =IF(OR(BY71="Fail",BY71="N/A"),BY71,MAX(tbl_OPAOOON_P2Ded41[Predominant & Smaller])) -> N/A | BY64: =IF(AND(OR(BW64="",BW64="N/A"),BY71="N/A"),"N/A",IF(AND(OR(BX64="N/A",BX64="Fail"),OR(BW64="N/A",BW64="Not Applicable")),"Pass",IF(BX64="Fail",BX64,IF(BW64="","Fail - Enter MHSUD cost share",IF(AND(BX64<>"N/A",BX64<>"Fail",OR(AND(BW64<=BX64,BW64>=0),BW64="N/A",BW64="Not Applicable")),"Pass","Fail"))))) -> N/A | CA64: xx | CE64: Deductible | CG64: =IF(OR(CH71="Fail",CH71="N/A"),CH71,MAX(tbl_ER_P2Ded54[Predominant & Smaller])) -> N/A | CH64: =IF(AND(OR(CF64="",CF64="N/A"),CH71="N/A"),"N/A",IF(AND(OR(CG64="N/A",CG64="Fail"),OR(CF64="N/A",CF64="Not Applicable")),"Pass",IF(CG64="Fail",CG64,IF(CF64="","Fail - Enter MHSUD cost share",IF(AND(CG64<>"N/A",CG64<>"Fail",OR(AND(CF64<=CG64,CF64>=0),CF64="N/A",CF64="Not Applicable")),"Pass","Fail"))))) -> N/A | CJ64: xx | CN64: Deductible | CP64: =IF(OR(CQ71="Fail",CQ71="N/A"),CQ71,MAX(tbl_RX_P2Ded50[Predominant & Smaller])) -> N/A | CQ64: =IF(AND(OR(CO64="",CO64="N/A"),CQ71="N/A"),"N/A",IF(AND(OR(CP64="N/A",CP64="Fail"),OR(CO64="N/A",CO64="Not Applicable")),"Pass",IF(CP64="Fail",CP64,IF(CO64="","Fail - Enter MHSUD cost share",IF(AND(CP64<>"N/A",CP64<>"Fail",OR(AND(CO64<=CP64,CO64>=0),CO64="N/A",CO64="Not Applicable")),"Pass","Fail"))))) -> N/A | CS64: xx
K65: Copayment | L65: N/A | M65: =IF(OR(N72="Fail",N72="N/A"),N72,MAX(tbl_IPINN_P2Cop7[Predominant & Smaller])) -> 15 | N65: =IF(AND(OR(L65="",L65="N/A"),N72="N/A"),"N/A",IF(AND(OR(M65="N/A",M65="Fail"),OR(L65="N/A",L65="Not Applicable")),"Pass",IF(M65="Fail",M65,IF(L65="","Fail - Enter MHSUD cost share",IF(AND(M65<>"N/A",M65<>"Fail",OR(AND(L65<=M65,L65>=0),L65="N/A",L65="Not Applicable")),"Pass","Fail"))))) -> Pass | T65: Copayment | U65: 15 | V65: =IF(OR(W72="Fail",W72="N/A"),W72,MAX(tbl_IPOON_P2Cop12[Predominant & Smaller])) -> 30 | W65: =IF(AND(OR(U65="",U65="N/A"),W72="N/A"),"N/A",IF(AND(OR(V65="N/A",V65="Fail"),OR(U65="N/A",U65="Not Applicable")),"Pass",IF(V65="Fail",V65,IF(U65="","Fail - Enter MHSUD cost share",IF(AND(V65<>"N/A",V65<>"Fail",OR(AND(U65<=V65,U65>=0),U65="N/A",U65="Not Applicable")),"Pass","Fail"))))) -> Pass | AC65: Copayment | AE65: =IF(OR(AF72="Fail",AF72="N/A"),AF72,MAX(tbl_OPINN_P2Cop17[Predominant & Smaller])) -> N/A | AF65: =IF(AND(OR(AD65="",AD65="N/A"),AF72="N/A"),"N/A",IF(AND(OR(AE65="N/A",AE65="Fail"),OR(AD65="N/A",AD65="Not Applicable")),"Pass",IF(AE65="Fail",AE65,IF(AD65="","Fail - Enter MHSUD cost share",IF(AND(AE65<>"N/A",AE65<>"Fail",OR(AND(AD65<=AE65,AD65>=0),AD65="N/A",AD65="Not Applicable")),"Pass","Fail"))))) -> N/A | AL65: Copayment | AN65: =IF(OR(AO72="Fail",AO72="N/A"),AO72,MAX(tbl_OPOVINN_P2Cop22[Predominant & Smaller])) -> N/A | AO65: =IF(AND(OR(AM65="",AM65="N/A"),AO72="N/A"),"N/A",IF(AND(OR(AN65="N/A",AN65="Fail"),OR(AM65="N/A",AM65="Not Applicable")),"Pass",IF(AN65="Fail",AN65,IF(AM65="","Fail - Enter MHSUD cost share",IF(AND(AN65<>"N/A",AN65<>"Fail",OR(AND(AM65<=AN65,AM65>=0),AM65="N/A",AM65="Not Applicable")),"Pass","Fail"))))) -> N/A | AU65: Copayment | AW65: =IF(OR(AX72="Fail",AX72="N/A"),AX72,MAX(tbl_OPAOINN_P2Cop27[Predominant & Smaller])) -> N/A | AX65: =IF(AND(OR(AV65="",AV65="N/A"),AX72="N/A"),"N/A",IF(AND(OR(AW65="N/A",AW65="Fail"),OR(AV65="N/A",AV65="Not Applicable")),"Pass",IF(AW65="Fail",AW65,IF(AV65="","Fail - Enter MHSUD cost share",IF(AND(AW65<>"N/A",AW65<>"Fail",OR(AND(AV65<=AW65,AV65>=0),AV65="N/A",AV65="Not Applicable")),"Pass","Fail"))))) -> N/A | BD65: Copayment | BF65: =IF(OR(BG72="Fail",BG72="N/A"),BG72,MAX(tbl_OPOON_P2Cop32[Predominant & Smaller])) -> N/A | BG65: =IF(AND(OR(BE65="",BE65="N/A"),BG72="N/A"),"N/A",IF(AND(OR(BF65="N/A",BF65="Fail"),OR(BE65="N/A",BE65="Not Applicable")),"Pass",IF(BF65="Fail",BF65,IF(BE65="","Fail - Enter MHSUD cost share",IF(AND(BF65<>"N/A",BF65<>"Fail",OR(AND(BE65<=BF65,BE65>=0),BE65="N/A",BE65="Not Applicable")),"Pass","Fail"))))) -> N/A | BM65: Copayment | BO65: =IF(OR(BP72="Fail",BP72="N/A"),BP72,MAX(tbl_OPOVOON_P2Cop37[Predominant & Smaller])) -> N/A | BP65: =IF(AND(OR(BN65="",BN65="N/A"),BP72="N/A"),"N/A",IF(AND(OR(BO65="N/A",BO65="Fail"),OR(BN65="N/A",BN65="Not Applicable")),"Pass",IF(BO65="Fail",BO65,IF(BN65="","Fail - Enter MHSUD cost share",IF(AND(BO65<>"N/A",BO65<>"Fail",OR(AND(BN65<=BO65,BN65>=0),BN65="N/A",BN65="Not Applicable")),"Pass","Fail"))))) -> N/A | BV65: Copayment | BX65: =IF(OR(BY72="Fail",BY72="N/A"),BY72,MAX(tbl_OPAOOON_P2Cop42[Predominant & Smaller])) -> N/A | BY65: =IF(AND(OR(BW65="",BW65="N/A"),BY72="N/A"),"N/A",IF(AND(OR(BX65="N/A",BX65="Fail"),OR(BW65="N/A",BW65="Not Applicable")),"Pass",IF(BX65="Fail",BX65,IF(BW65="","Fail - Enter MHSUD cost share",IF(AND(BX65<>"N/A",BX65<>"Fail",OR(AND(BW65<=BX65,BW65>=0),BW65="N/A",BW65="Not Applicable")),"Pass","Fail"))))) -> N/A | CE65: Copayment | CG65: =IF(OR(CH72="Fail",CH72="N/A"),CH72,MAX(tbl_ER_P2Cop46[Predominant & Smaller])) -> N/A | CH65: =IF(AND(OR(CF65="",CF65="N/A"),CH72="N/A"),"N/A",IF(AND(OR(CG65="N/A",CG65="Fail"),OR(CF65="N/A",CF65="Not Applicable")),"Pass",IF(CG65="Fail",CG65,IF(CF65="","Fail - Enter MHSUD cost share",IF(AND(CG65<>"N/A",CG65<>"Fail",OR(AND(CF65<=CG65,CF65>=0),CF65="N/A",CF65="Not Applicable")),"Pass","Fail"))))) -> N/A | CN65: Copayment | CP65: =IF(OR(CQ72="Fail",CQ72="N/A"),CQ72,MAX(tbl_RX_P2Cop51[Predominant & Smaller])) -> N/A | CQ65: =IF(AND(OR(CO65="",CO65="N/A"),CQ72="N/A"),"N/A",IF(AND(OR(CP65="N/A",CP65="Fail"),OR(CO65="N/A",CO65="Not Applicable")),"Pass",IF(CP65="Fail",CP65,IF(CO65="","Fail - Enter MHSUD cost share",IF(AND(CP65<>"N/A",CP65<>"Fail",OR(AND(CO65<=CP65,CO65>=0),CO65="N/A",CO65="Not Applicable")),"Pass","Fail"))))) -> N/A
K66: Coinsurance | L66: 0.25 | M66: =IF(OR(N73="Fail",N73="N/A"),N73,MAX(tbl_IPINN_P2Coi8[Predominant & Smaller])) -> Fail | N66: =IF(AND(OR(L66="",L66="N/A"),N73="N/A"),"N/A",IF(AND(OR(M66="N/A",M66="Fail"),OR(L66="N/A",L66="Not Applicable")),"Pass",IF(M66="Fail",M66,IF(L66="","Fail - Enter MHSUD cost share",IF(AND(M66<>"N/A",M66<>"Fail",OR(AND(L66<=M66,L66>=0),L66="N/A",L66="Not Applicable")),"Pass","Fail"))))) -> Fail | T66: Coinsurance | U66: N/A | V66: =IF(OR(W73="Fail",W73="N/A"),W73,MAX(tbl_IPOON_P2Coi13[Predominant & Smaller])) -> Fail | W66: Pass | AC66: Coinsurance | AE66: =IF(OR(AF73="Fail",AF73="N/A"),AF73,MAX(tbl_OPINN_P2Coi18[Predominant & Smaller])) -> N/A | AF66: N/A | AL66: Coinsurance | AN66: =IF(OR(AO73="Fail",AO73="N/A"),AO73,MAX(tbl_OPOVINN_P2Coi23[Predominant & Smaller])) -> N/A | AO66: N/A | AU66: Coinsurance | AW66: =IF(OR(AX73="Fail",AX73="N/A"),AX73,MAX(tbl_OPAOINN_P2Coi28[Predominant & Smaller])) -> N/A | AX66: N/A | BD66: Coinsurance | BF66: =IF(OR(BG73="Fail",BG73="N/A"),BG73,MAX(tbl_OPOON_P2Coi33[Predominant & Smaller])) -> N/A | BG66: N/A | BM66: Coinsurance | BO66: =IF(OR(BP73="Fail",BP73="N/A"),BP73,MAX(tbl_OPOVOON_P2Coi38[Predominant & Smaller])) -> N/A | BP66: N/A | BV66: Coinsurance | BX66: =IF(OR(BY73="Fail",BY73="N/A"),BY73,MAX(tbl_OPAOOON_P2Coi43[Predominant & Smaller])) -> N/A | BY66: N/A | CE66: Coinsurance | CG66: =IF(OR(CH73="Fail",CH73="N/A"),CH73,MAX(tbl_ER_P2Coi47[Predominant & Smaller])) -> N/A | CH66: N/A | CN66: Coinsurance | CP66: =IF(OR(CQ73="Fail",CQ73="N/A"),CQ73,MAX(tbl_RX_P2Coi52[Predominant & Smaller])) -> N/A | CQ66: N/A
K67: OOPM | L67: 8000 | M67: =IF(OR(N74="Fail",N74="N/A"),N74,MAX(tbl_IPINN_P2OOPM9[Predominant & Smaller])) -> 8000 | N67: =IF(AND(OR(L67="",L67="N/A"),N74="N/A"),"N/A",IF(AND(OR(M67="N/A",M67="Fail"),OR(L67="N/A",L67="Not Applicable")),"Pass",IF(M67="Fail",M67,IF(L67="","Fail - Enter MHSUD cost share",IF(AND(M67<>"N/A",M67<>"Fail",OR(AND(L67<=M67,L67>=0),L67="N/A",L67="Not Applicable")),"Pass","Fail"))))) -> Pass | T67: OOPM | U67: 8000 | V67: =IF(OR(W74="Fail",W74="N/A"),W74,MAX(tbl_IPOON_P2OOPM14[Predominant & Smaller])) -> 8000 | W67: Pass | AC67: OOPM | AE67: =IF(OR(AF74="Fail",AF74="N/A"),AF74,MAX(tbl_OPINN_P2OOPM19[Predominant & Smaller])) -> N/A | AF67: N/A | AL67: OOPM | AN67: =IF(OR(AO74="Fail",AO74="N/A"),AO74,MAX(tbl_OPOVINN_P2OOPM24[Predominant & Smaller])) -> N/A | AO67: N/A | AU67: OOPM | AW67: =IF(OR(AX74="Fail",AX74="N/A"),AX74,MAX(tbl_OPAOINN_P2OOPM29[Predominant & Smaller])) -> N/A | AX67: N/A | BD67: OOPM | BF67: =IF(OR(BG74="Fail",BG74="N/A"),BG74,MAX(tbl_OPOON_P2OOPM34[Predominant & Smaller])) -> N/A | BG67: N/A | BM67: OOPM | BO67: =IF(OR(BP74="Fail",BP74="N/A"),BP74,MAX(tbl_OPOVOON_P2OOPM39[Predominant & Smaller])) -> N/A | BP67: N/A | BV67: OOPM | BX67: =IF(OR(BY74="Fail",BY74="N/A"),BY74,MAX(tbl_OPAOOON_P2OOPM44[Predominant & Smaller])) -> N/A | BY67: N/A | CE67: OOPM | CG67: =IF(OR(CH74="Fail",CH74="N/A"),CH74,MAX(tbl_ER_P2OOPM48[Predominant & Smaller])) -> N/A | CH67: N/A | CN67: OOPM | CP67: =IF(OR(CQ74="Fail",CQ74="N/A"),CQ74,MAX(tbl_RX_P2OOPM53[Predominant & Smaller])) -> N/A | CQ67: N/A
K68: Overall | N68: =IF((COUNTIF(N64:N67,"Pass")+COUNTIF(N64:N67,"N/A"))=4,"Pass","Fail") -> Fail | T68: Overall | W68: =IF((COUNTIF(W64:W67,"Pass")+COUNTIF(W64:W67,"N/A"))=4,"Pass","Fail") -> Pass | AC68: Overall | AF68: =IF((COUNTIF(AF64:AF67,"Pass")+COUNTIF(AF64:AF67,"N/A"))=4,"Pass","Fail") -> Pass | AL68: Overall | AO68: =IF((COUNTIF(AO64:AO67,"Pass")+COUNTIF(AO64:AO67,"N/A"))=4,"Pass","Fail") -> Pass | AU68: Overall | AX68: =IF((COUNTIF(AX64:AX67,"Pass")+COUNTIF(AX64:AX67,"N/A"))=4,"Pass","Fail") -> Pass | BD68: Overall | BG68: =IF((COUNTIF(BG64:BG67,"Pass")+COUNTIF(BG64:BG67,"N/A"))=4,"Pass","Fail") -> Pass | BM68: Overall | BP68: =IF((COUNTIF(BP64:BP67,"Pass")+COUNTIF(BP64:BP67,"N/A"))=4,"Pass","Fail") -> Pass | BV68: Overall | BY68: =IF((COUNTIF(BY64:BY67,"Pass")+COUNTIF(BY64:BY67,"N/A"))=4,"Pass","Fail") -> Pass | CE68: Overall | CH68: =IF((COUNTIF(CH64:CH67,"Pass")+COUNTIF(CH64:CH67,"N/A"))=4,"Pass","Fail") -> Pass | CN68: Overall | CQ68: =IF((COUNTIF(CQ64:CQ67,"Pass")+COUNTIF(CQ64:CQ67,"N/A"))=4,"Pass","Fail") -> Pass
L69: *If not applicable, enter "N/A" | U69: *If not applicable, enter "N/A" | AD69: *If not applicable, enter "N/A" | AM69: *If not applicable, enter "N/A" | AV69: *If not applicable, enter "N/A" | BE69: *If not applicable, enter "N/A" | BN69: *If not applicable, enter "N/A" | BW69: *If not applicable, enter "N/A" | CF69: *If not applicable, enter "N/A" | CO69: *If not applicable, enter "N/A"
K70: Step 1 Substantially All (i.e., ≥ ⅔ of medical/surgical benefits) | T70: Step 1 Substantially All (i.e., ≥ ⅔ of medical/surgical benefits) | AC70: Step 1 Substantially All (i.e., ≥ ⅔ of medical/surgical benefits) | AL70: Step 1 Substantially All (i.e., ≥ ⅔ of medical/surgical benefits) | AU70: Step 1 Substantially All (i.e., ≥ ⅔ of medical/surgical benefits) | BD70: Step 1 Substantially All (i.e., ≥ ⅔ of medical/surgical benefits) | BM70: Step 1 Substantially All (i.e., ≥ ⅔ of medical/surgical benefits) | BV70: Step 1 Substantially All (i.e., ≥ ⅔ of medical/surgical benefits) | CE70: Step 1 Substantially All (i.e., ≥ ⅔ of medical/surgical benefits) | CN70: Step 1 Substantially All (i.e., ≥ ⅔ of medical/surgical benefits)
K71: Deductible | L71: =SUMIF(tbl_IPINN_P15[Deductible],">0",tbl_IPINN_P15[Plan Projected Allowed Amount]) -> 1939 | M71: =IFERROR(L71/L$75,"") -> 0.8485776805 | N71: =IF($D$28="Yes",IF(L71=0,"Fail",IF(M71>=(2/3),M$45&" "&K71,"Fail")),"N/A") -> IP INN Deductible | T71: Deductible | U71: =SUMIF(tbl_IPOON_P110[Deductible],">0",tbl_IPOON_P110[Plan Projected Allowed Amount]) -> 659 | V71: =IFERROR(U71/U$75,"") -> 0.8682476943 | W71: =IF(AND($F$28="Yes",$C$21="Yes"),IF(U71=0,"Fail",IF(V71>=(2/3),V$45&" "&T71,"Fail")),"N/A") -> IP OON Deductible | AC71: Deductible | AD71: =SUMIF(tbl_OPINN_P115[Deductible],">0",tbl_OPINN_P115[Plan Projected Allowed Amount]) -> 0 | AE71: =IFERROR(AD71/AD$75,"") ->  | AF71: =IF(AND($D$30="Yes",$C$22="All Combined"),IF(AD71=0,"Fail",IF(AE71>=(2/3),AE$45&" "&AC71,"Fail")),"N/A") -> N/A | AL71: Deductible | AM71: =SUMIF(tbl_OPOVINN_P120[Deductible],">0",tbl_OPOVINN_P120[Plan Projected Allowed Amount]) -> 0 | AN71: =IFERROR(AM71/AM$75,"") ->  | AO71: =IF(AND($D$32="Yes",$C$22="Office Visits Separate"),IF(AM71=0,"Fail",IF(AN71>=(2/3),AN$45&" "&AL71,"Fail")),"N/A") -> N/A | AU71: Deductible | AV71: =SUMIF(tbl_OPAOINN_P125[Deductible],">0",tbl_OPAOINN_P125[Plan Projected Allowed Amount]) -> 0 | AW71: =IFERROR(AV71/AV$75,"") ->  | AX71: =IF(AND($D$33="Yes",$C$22="Office Visits Separate"),IF(AV71=0,"Fail",IF(AW71>=(2/3),AW$45&" "&AU71,"Fail")),"N/A") -> N/A | BD71: Deductible | BE71: =SUMIF(tbl_OPOON_P130[Deductible],">0",tbl_OPOON_P130[Plan Projected Allowed Amount]) -> 0 | BF71: =IFERROR(BE71/BE$75,"") ->  | BG71: =IF(AND($F$30="Yes",$C$22="All Combined",$C$21="Yes"),IF(BE71=0,"Fail",IF(BF71>=(2/3),BF$45&" "&BD71,"Fail")),"N/A") -> N/A | BM71: Deductible | BN71: =SUMIF(tbl_OPOVOON_P135[Deductible],">0",tbl_OPOVOON_P135[Plan Projected Allowed Amount]) -> 0 | BO71: =IFERROR(BN71/BN$75,"") ->  | BP71: =IF(AND($F$32="Yes",$C$22="Office Visits Separate",$C$21="Yes"),IF(BN71=0,"Fail",IF(BO71>=(2/3),BO$45&" "&BM71,"Fail")),"N/A") -> N/A | BV71: Deductible | BW71: =SUMIF(tbl_OPAOOON_P140[Deductible],">0",tbl_OPAOOON_P140[Plan Projected Allowed Amount]) -> 0 | BX71: =IFERROR(BW71/BW$75,"") ->  | BY71: =IF(AND($F$33="Yes",$C$22="Office Visits Separate",$C$21="Yes"),IF(BW71=0,"Fail",IF(BX71>=(2/3),BX$45&" "&BV71,"Fail")),"N/A") -> N/A | CE71: Deductible | CF71: =SUMIF(tbl_ER_P145[Deductible],">0",tbl_ER_P145[Plan Projected Allowed Amount]) -> 0 | CG71: =IFERROR(CF71/CF$75,"") ->  | CH71: =IF($D$36="Yes",IF(CF71=0,"Fail",IF(CG71>=(2/3),CG$45&" "&CE71,"Fail")),"N/A") -> N/A | CN71: Deductible | CO71: =SUMIF(tbl_RX_P149[Deductible],">0",tbl_RX_P149[Plan Projected Allowed Amount]) -> 0 | CP71: =IFERROR(CO71/CO$75,"") ->  | CQ71: =IF($D$37="Yes",IF(CO71=0,"Fail",IF(CP71>=(2/3),CP$45&" "&CN71,"Fail")),"N/A") -> N/A
K72: Copayment | L72: =SUMIF(tbl_IPINN_P15[Copayment],">0",tbl_IPINN_P15[Plan Projected Allowed Amount]) -> 2285 | M72: =IFERROR(L72/L$75,"") -> 1 | N72: =IF($D$28="Yes",IF(L72=0,"Fail",IF(M72>=(2/3),M$45&" "&K72,"Fail")),"N/A") -> IP INN Copayment | T72: Copayment | U72: =SUMIF(tbl_IPOON_P110[Copayment],">0",tbl_IPOON_P110[Plan Projected Allowed Amount]) -> 621 | V72: =IFERROR(U72/U$75,"") -> 0.8181818182 | W72: =IF(AND($F$28="Yes",$C$21="Yes"),IF(U72=0,"Fail",IF(V72>=(2/3),V$45&" "&T72,"Fail")),"N/A") -> IP OON Copayment | AC72: Copayment | AD72: =SUMIF(tbl_OPINN_P115[Copayment],">0",tbl_OPINN_P115[Plan Projected Allowed Amount]) -> 0 | AE72: =IFERROR(AD72/AD$75,"") ->  | AF72: =IF(AND($D$30="Yes",$C$22="All Combined"),IF(AD72=0,"Fail",IF(AE72>=(2/3),AE$45&" "&AC72,"Fail")),"N/A") -> N/A | AL72: Copayment | AM72: =SUMIF(tbl_OPOVINN_P120[Copayment],">0",tbl_OPOVINN_P120[Plan Projected Allowed Amount]) -> 0 | AN72: =IFERROR(AM72/AM$75,"") ->  | AO72: =IF(AND($D$32="Yes",$C$22="Office Visits Separate"),IF(AM72=0,"Fail",IF(AN72>=(2/3),AN$45&" "&AL72,"Fail")),"N/A") -> N/A | AU72: Copayment | AV72: =SUMIF(tbl_OPAOINN_P125[Copayment],">0",tbl_OPAOINN_P125[Plan Projected Allowed Amount]) -> 0 | AW72: =IFERROR(AV72/AV$75,"") ->  | AX72: =IF(AND($D$33="Yes",$C$22="Office Visits Separate"),IF(AV72=0,"Fail",IF(AW72>=(2/3),AW$45&" "&AU72,"Fail")),"N/A") -> N/A | BD72: Copayment | BE72: =SUMIF(tbl_OPOON_P130[Copayment],">0",tbl_OPOON_P130[Plan Projected Allowed Amount]) -> 0 | BF72: =IFERROR(BE72/BE$75,"") ->  | BG72: =IF(AND($F$30="Yes",$C$22="All Combined",$C$21="Yes"),IF(BE72=0,"Fail",IF(BF72>=(2/3),BF$45&" "&BD72,"Fail")),"N/A") -> N/A | BM72: Copayment | BN72: =SUMIF(tbl_OPOVOON_P135[Copayment],">0",tbl_OPOVOON_P135[Plan Projected Allowed Amount]) -> 0 | BO72: =IFERROR(BN72/BN$75,"") ->  | BP72: =IF(AND($F$32="Yes",$C$22="Office Visits Separate",$C$21="Yes"),IF(BN72=0,"Fail",IF(BO72>=(2/3),BO$45&" "&BM72,"Fail")),"N/A") -> N/A | BV72: Copayment | BW72: =SUMIF(tbl_OPAOOON_P140[Copayment],">0",tbl_OPAOOON_P140[Plan Projected Allowed Amount]) -> 0 | BX72: =IFERROR(BW72/BW$75,"") ->  | BY72: =IF(AND($F$33="Yes",$C$22="Office Visits Separate",$C$21="Yes"),IF(BW72=0,"Fail",IF(BX72>=(2/3),BX$45&" "&BV72,"Fail")),"N/A") -> N/A | CE72: Copayment | CF72: =SUMIF(tbl_ER_P145[Copayment],">0",tbl_ER_P145[Plan Projected Allowed Amount]) -> 0 | CG72: =IFERROR(CF72/CF$75,"") ->  | CH72: =IF($D$36="Yes",IF(CF72=0,"Fail",IF(CG72>=(2/3),CG$45&" "&CE72,"Fail")),"N/A") -> N/A | CN72: Copayment | CO72: =SUMIF(tbl_RX_P149[Copayment],">0",tbl_RX_P149[Plan Projected Allowed Amount]) -> 0 | CP72: =IFERROR(CO72/CO$75,"") ->  | CQ72: =IF($D$37="Yes",IF(CO72=0,"Fail",IF(CP72>=(2/3),CP$45&" "&CN72,"Fail")),"N/A") -> N/A
K73: Coinsurance | L73: =SUMIF(tbl_IPINN_P15[Coinsurance],">0",tbl_IPINN_P15[Plan Projected Allowed Amount]) -> 1354 | M73: =IFERROR(L73/L$75,"") -> 0.5925601751 | N73: =IF($D$28="Yes",IF(L73=0,"Fail",IF(M73>=(2/3),M$45&" "&K73,"Fail")),"N/A") -> Fail | T73: Coinsurance | U73: =SUMIF(tbl_IPOON_P110[Coinsurance],">0",tbl_IPOON_P110[Plan Projected Allowed Amount]) -> 302 | V73: =IFERROR(U73/U$75,"") -> 0.3978919631 | W73: =IF(AND($F$28="Yes",$C$21="Yes"),IF(U73=0,"Fail",IF(V73>=(2/3),V$45&" "&T73,"Fail")),"N/A") -> Fail | AC73: Coinsurance | AD73: =SUMIF(tbl_OPINN_P115[Coinsurance],">0",tbl_OPINN_P115[Plan Projected Allowed Amount]) -> 0 | AE73: =IFERROR(AD73/AD$75,"") ->  | AF73: =IF(AND($D$30="Yes",$C$22="All Combined"),IF(AD73=0,"Fail",IF(AE73>=(2/3),AE$45&" "&AC73,"Fail")),"N/A") -> N/A | AL73: Coinsurance | AM73: =SUMIF(tbl_OPOVINN_P120[Coinsurance],">0",tbl_OPOVINN_P120[Plan Projected Allowed Amount]) -> 0 | AN73: =IFERROR(AM73/AM$75,"") ->  | AO73: =IF(AND($D$32="Yes",$C$22="Office Visits Separate"),IF(AM73=0,"Fail",IF(AN73>=(2/3),AN$45&" "&AL73,"Fail")),"N/A") -> N/A | AU73: Coinsurance | AV73: =SUMIF(tbl_OPAOINN_P125[Coinsurance],">0",tbl_OPAOINN_P125[Plan Projected Allowed Amount]) -> 0 | AW73: =IFERROR(AV73/AV$75,"") ->  | AX73: =IF(AND($D$33="Yes",$C$22="Office Visits Separate"),IF(AV73=0,"Fail",IF(AW73>=(2/3),AW$45&" "&AU73,"Fail")),"N/A") -> N/A | BD73: Coinsurance | BE73: =SUMIF(tbl_OPOON_P130[Coinsurance],">0",tbl_OPOON_P130[Plan Projected Allowed Amount]) -> 0 | BF73: =IFERROR(BE73/BE$75,"") ->  | BG73: =IF(AND($F$30="Yes",$C$22="All Combined",$C$21="Yes"),IF(BE73=0,"Fail",IF(BF73>=(2/3),BF$45&" "&BD73,"Fail")),"N/A") -> N/A | BM73: Coinsurance | BN73: =SUMIF(tbl_OPOVOON_P135[Coinsurance],">0",tbl_OPOVOON_P135[Plan Projected Allowed Amount]) -> 0 | BO73: =IFERROR(BN73/BN$75,"") ->  | BP73: =IF(AND($F$32="Yes",$C$22="Office Visits Separate",$C$21="Yes"),IF(BN73=0,"Fail",IF(BO73>=(2/3),BO$45&" "&BM73,"Fail")),"N/A") -> N/A | BV73: Coinsurance | BW73: =SUMIF(tbl_OPAOOON_P140[Coinsurance],">0",tbl_OPAOOON_P140[Plan Projected Allowed Amount]) -> 0 | BX73: =IFERROR(BW73/BW$75,"") ->  | BY73: =IF(AND($F$33="Yes",$C$22="Office Visits Separate",$C$21="Yes"),IF(BW73=0,"Fail",IF(BX73>=(2/3),BX$45&" "&BV73,"Fail")),"N/A") -> N/A | CE73: Coinsurance | CF73: =SUMIF(tbl_ER_P145[Coinsurance],">0",tbl_ER_P145[Plan Projected Allowed Amount]) -> 0 | CG73: =IFERROR(CF73/CF$75,"") ->  | CH73: =IF($D$36="Yes",IF(CF73=0,"Fail",IF(CG73>=(2/3),CG$45&" "&CE73,"Fail")),"N/A") -> N/A | CN73: Coinsurance | CO73: =SUMIF(tbl_RX_P149[Coinsurance],">0",tbl_RX_P149[Plan Projected Allowed Amount]) -> 0 | CP73: =IFERROR(CO73/CO$75,"") ->  | CQ73: =IF($D$37="Yes",IF(CO73=0,"Fail",IF(CP73>=(2/3),CP$45&" "&CN73,"Fail")),"N/A") -> N/A
K74: OOPM | L74: =SUMIF(tbl_IPINN_P15[Out-of-Pocket Maximum (OOPM)],">0",tbl_IPINN_P15[Plan Projected Allowed Amount]) -> 2285 | M74: =IFERROR(L74/L$75,"") -> 1 | N74: =IF($D$28="Yes",IF(L74=0,"Fail",IF(M74>=(2/3),M$45&" "&K74,"Fail")),"N/A") -> IP INN OOPM | T74: OOPM | U74: =SUMIF(tbl_IPOON_P110[Out-of-Pocket Maximum (OOPM)],">0",tbl_IPOON_P110[Plan Projected Allowed Amount]) -> 659 | V74: =IFERROR(U74/U$75,"") -> 0.8682476943 | W74: =IF(AND($F$28="Yes",$C$21="Yes"),IF(U74=0,"Fail",IF(V74>=(2/3),V$45&" "&T74,"Fail")),"N/A") -> IP OON OOPM | AC74: OOPM | AD74: =SUMIF(tbl_OPINN_P115[Out-of-Pocket Maximum (OOPM)],">0",tbl_OPINN_P115[Plan Projected Allowed Amount]) -> 0 | AE74: =IFERROR(AD74/AD$75,"") ->  | AF74: =IF(AND($D$30="Yes",$C$22="All Combined"),IF(AD74=0,"Fail",IF(AE74>=(2/3),AE$45&" "&AC74,"Fail")),"N/A") -> N/A | AL74: OOPM | AM74: =SUMIF(tbl_OPOVINN_P120[Out-of-Pocket Maximum (OOPM)],">0",tbl_OPOVINN_P120[Plan Projected Allowed Amount]) -> 0 | AN74: =IFERROR(AM74/AM$75,"") ->  | AO74: =IF(AND($D$32="Yes",$C$22="Office Visits Separate"),IF(AM74=0,"Fail",IF(AN74>=(2/3),AN$45&" "&AL74,"Fail")),"N/A") -> N/A | AU74: OOPM | AV74: =SUMIF(tbl_OPAOINN_P125[Out-of-Pocket Maximum (OOPM)],">0",tbl_OPAOINN_P125[Plan Projected Allowed Amount]) -> 0 | AW74: =IFERROR(AV74/AV$75,"") ->  | AX74: =IF(AND($D$33="Yes",$C$22="Office Visits Separate"),IF(AV74=0,"Fail",IF(AW74>=(2/3),AW$45&" "&AU74,"Fail")),"N/A") -> N/A | BD74: OOPM | BE74: =SUMIF(tbl_OPOON_P130[Out-of-Pocket Maximum (OOPM)],">0",tbl_OPOON_P130[Plan Projected Allowed Amount]) -> 0 | BF74: =IFERROR(BE74/BE$75,"") ->  | BG74: =IF(AND($F$30="Yes",$C$22="All Combined",$C$21="Yes"),IF(BE74=0,"Fail",IF(BF74>=(2/3),BF$45&" "&BD74,"Fail")),"N/A") -> N/A | BM74: OOPM | BN74: =SUMIF(tbl_OPOVOON_P135[Out-of-Pocket Maximum (OOPM)],">0",tbl_OPOVOON_P135[Plan Projected Allowed Amount]) -> 0 | BO74: =IFERROR(BN74/BN$75,"") ->  | BP74: =IF(AND($F$32="Yes",$C$22="Office Visits Separate",$C$21="Yes"),IF(BN74=0,"Fail",IF(BO74>=(2/3),BO$45&" "&BM74,"Fail")),"N/A") -> N/A | BV74: OOPM | BW74: =SUMIF(tbl_OPAOOON_P140[Out-of-Pocket Maximum (OOPM)],">0",tbl_OPAOOON_P140[Plan Projected Allowed Amount]) -> 0 | BX74: =IFERROR(BW74/BW$75,"") ->  | BY74: =IF(AND($F$33="Yes",$C$22="Office Visits Separate",$C$21="Yes"),IF(BW74=0,"Fail",IF(BX74>=(2/3),BX$45&" "&BV74,"Fail")),"N/A") -> N/A | CE74: OOPM | CF74: =SUMIF(tbl_ER_P145[Out-of-Pocket Maximum (OOPM)],">0",tbl_ER_P145[Plan Projected Allowed Amount]) -> 0 | CG74: =IFERROR(CF74/CF$75,"") ->  | CH74: =IF($D$36="Yes",IF(CF74=0,"Fail",IF(CG74>=(2/3),CG$45&" "&CE74,"Fail")),"N/A") -> N/A | CN74: OOPM | CO74: =SUMIF(tbl_RX_P149[Out-of-Pocket Maximum (OOPM)],">0",tbl_RX_P149[Plan Projected Allowed Amount]) -> 0 | CP74: =IFERROR(CO74/CO$75,"") ->  | CQ74: =IF($D$37="Yes",IF(CO74=0,"Fail",IF(CP74>=(2/3),CP$45&" "&CN74,"Fail")),"N/A") -> N/A
K75: Total Projected | L75: =tbl_IPINN_P15[[#Totals],[Plan Projected Allowed Amount]] -> 2285 | T75: Total Projected | U75: =tbl_IPOON_P110[[#Totals],[Plan Projected Allowed Amount]] -> 759 | AC75: Total Projected | AD75: =tbl_OPINN_P115[[#Totals],[Plan Projected Allowed Amount]] -> 0 | AL75: Total Projected | AM75: =tbl_OPOVINN_P120[[#Totals],[Plan Projected Allowed Amount]] -> 0 | AU75: Total Projected | AV75: =tbl_OPAOINN_P125[[#Totals],[Plan Projected Allowed Amount]] -> 0 | BD75: Total Projected | BE75: =tbl_OPOON_P130[[#Totals],[Plan Projected Allowed Amount]] -> 0 | BM75: Total Projected | BN75: =tbl_OPOVOON_P135[[#Totals],[Plan Projected Allowed Amount]] -> 0 | BV75: Total Projected | BW75: =tbl_OPAOOON_P140[[#Totals],[Plan Projected Allowed Amount]] -> 0 | CE75: Total Projected | CF75: =tbl_ER_P145[[#Totals],[Plan Projected Allowed Amount]] -> 0 | CN75: Total Projected | CO75: =tbl_RX_P149[[#Totals],[Plan Projected Allowed Amount]] -> 0
K77: Step 2 Predominant Level | T77: Step 2 Predominant Level | AC77: Step 2 Predominant Level | AL77: Step 2 Predominant Level | AU77: Step 2 Predominant Level | BD77: Step 2 Predominant Level | BM77: Step 2 Predominant Level | BV77: Step 2 Predominant Level | CE77: Step 2 Predominant Level | CN77: Step 2 Predominant Level
K78: =K82&" ---- "&L$40 -> Deductible ---- (1) Inpatient, In-Network (IP INN) | N78: Errors found: | O78: =COUNTIF(tbl_IPINN_P2Ded6[[#Data],[#Totals],[Error Checking]],"?*") -> 1 | T78: =T82&" ---- "&U$40 -> Deductible ---- (2) Inpatient, Out-of-Network (IP OON) | W78: Errors found: | X78: =COUNTIF(tbl_IPOON_P2Ded11[[#Data],[#Totals],[Error Checking]],"?*") -> 0 | AC78: =AC82&" ---- "&AD$40 -> Deductible ---- (3) Outpatient, In-Network (OP INN) | AF78: Errors found: | AG78: =COUNTIF(tbl_OPINN_P2Ded16[[#Data],[#Totals],[Error Checking]],"?*") -> 0 | AL78: =AL82&" ---- "&AM$40 -> Deductible ---- (3a) Outpatient - Office Visits, In-Network (OP-OV INN) | AO78: Errors found: | AP78: =COUNTIF(tbl_OPOVINN_P2Ded21[[#Data],[#Totals],[Error Checking]],"?*") -> 0 | AU78: =AU82&" ---- "&AV$40 -> Deductible ---- (3b) Outpatient - All Other, In-Network (OP-AO INN) | AX78: Errors found: | AY78: =COUNTIF(tbl_OPAOINN_P2Ded26[[#Data],[#Totals],[Error Checking]],"?*") -> 0 | BD78: =BD82&" ---- "&BE$40 -> Deductible ---- (4) Outpatient, Out-of-Network (OP OON) | BG78: Errors found: | BH78: =COUNTIF(tbl_OPOON_P2Ded31[[#Data],[#Totals],[Error Checking]],"?*") -> 0 | BM78: =BM82&" ---- "&BN$40 -> Deductible ---- (4a) Outpatient - Office Visits, Out-of-Network (OP-OV OON) | BP78: Errors found: | BQ78: =COUNTIF(tbl_OPOVOON_P2Ded36[[#Data],[#Totals],[Error Checking]],"?*") -> 0 | BV78: =BV82&" ---- "&BW$40 -> Deductible ---- (4b) Outpatient - All Other, Out-of-Network (OP-AO OON) | BY78: Errors found: | BZ78: =COUNTIF(tbl_OPAOOON_P2Ded41[[#Data],[#Totals],[Error Checking]],"?*") -> 0 | CE78: =CE82&" ---- "&CF$40 -> Deductible ---- (5) Emergency Care, (ER ) | CH78: Errors found: | CI78: =COUNTIF(tbl_ER_P2Ded54[[#Data],[#Totals],[Error Checking]],"?*") -> 0 | CN78: =CN82&" ---- "&CO$40 -> Deductible ---- (6) Prescription Drugs, (RX ) | CQ78: Errors found: | CR78: =COUNTIF(tbl_RX_P2Ded50[[#Data],[#Totals],[Error Checking]],"?*") -> 0
